Workbook

Sheet Formulacion
A1: Hoja | B1: Tipo1 | C1: Tipo2 | D1: Tipo3 | E1: Tipo4 | F1: Fecha | G1: Materiales | H1: MObra | I1: Postes | J1: Conductor | K1: VolumenZanja | L1: CostoTotal | M1: Cantidad | N1: CostoReferencia | O1: FactorAsimetria | P1: Condicion | Q1: Valor | R1: rango | S1: Codigo | T1: FactorEficienciaCantidad | U1: m2 | V1: CantMobPCComOt | W1: CantTrbtOtC
A2: AINAP | F2: SI | G2: SI | H2: SI | I2: NA | J2: NA | K2: NA | L2: NA | M2: NA | N2: NA | O2: 0.9 | P2: NA | Q2: NA | R2: NA | S2: NA | T2: 1 | U2: NA | V2: NA | W2: NA
A3: CEQOT | F3: SI | G3: SI | H3: NA | I3: NA | J3: NA | K3: NA | L3: SI | M3: NA | N3: NA | O3: =O2 -> 0.9 | P3: NA | Q3: NA | R3: NA | S3: NA | T3: 1 | U3: NA | V3: NA | W3: SI
A4: CMEDI | F4: SI | G4: SI | H4: NA | I4: NA | J4: NA | K4: NA | L4: NA | M4: NA | N4: NA | O4: =O3 -> 0.9 | P4: NA | Q4: NA | R4: NA | S4: NA | T4: 1 | U4: NA | V4: NA | W4: SI
A5: CMESM | F5: SI | G5: SI | H5: SI | I5: NA | J5: NA | K5: NA | L5: SI | M5: NA | N5: NA | O5: 0.9 | P5: NA | Q5: NA | R5: NA | S5: NA | T5: 1 | U5: NA | V5: NA | W5: NA
A6: DACBT | F6: SI | G6: SI | H6: SI | I6: NA | J6: NA | K6: NA | L6: NA | M6: NA | N6: NA | O6: 0.9 | P6: NA | Q6: NA | R6: NA | S6: NA | T6: 1 | U6: NA | V6: NA | W6: NA
A7: DCRMM | F7: SI | G7: SI | H7: SI | I7: NA | J7: NA | K7: NA | L7: SI | M7: NA | N7: NA | O7: 0.9 | P7: NA | Q7: NA | R7: NA | S7: NA | T7: 1 | U7: NA | V7: NA | W7: NA
A8: DEQDM | F8: SI | G8: NA | H8: NA | I8: NA | J8: NA | K8: NA | L8: SI | M8: NA | N8: NA | O8: 0.9 | P8: NA | Q8: NA | R8: NA | S8: NA | T8: 1 | U8: NA | V8: NA | W8: SI
A9: DEQMC | F9: SI | G9: NA | H9: NA | I9: NA | J9: NA | K9: NA | L9: SI | M9: NA | N9: NA | O9: 0.9 | P9: NA | Q9: NA | R9: NA | S9: NA | T9: 1 | U9: NA | V9: SI | W9: NA
A10: DEQOT | F10: SI | G10: SI | H10: SI | I10: NA | J10: NA | K10: NA | L10: SI | M10: NA | N10: NA | O10: 0.9 | P10: NA | Q10: NA | R10: NA | S10: NA | T10: 1 | U10: NA | V10: SI | W10: NA
A11: DLAAT | B11: DLA | F11: SI | G11: SI | H11: SI | I11: SI | J11: SI | K11: NA | L11: SI | M11: Conductor | N11: SI | O11: 0.9 | P11: vano | Q11: 100 | R11: 0.3 | S11: NA | T11: 1 | U11: NA | V11: NA | W11: NA
A12: DLAAT-115 | B12: DLA | F12: SI | G12: SI | H12: SI | I12: SI | J12: SI | K12: NA | L12: SI | M12: Conductor | N12: SI | O12: 0.9 | P12: vano | Q12: 100 | R12: 0.3 | S12: NA | T12: 1 | U12: NA | V12: NA | W12: NA
A13: DLAAT-230 | B13: DLA | F13: SI | G13: SI | H13: SI | I13: SI | J13: SI | K13: NA | L13: SI | M13: Conductor | N13: SI | O13: 0.9 | P13: vano | Q13: 60 | R13: 0.3 | S13: NA | T13: 1 | U13: NA | V13: NA | W13: NA
A14: DLABT | B14: DLA | F14: SI | G14: SI | H14: SI | I14: SI | J14: SI | K14: NA | L14: SI | M14: Conductor | N14: SI | O14: 0.9 | P14: vano | Q14: 30 | R14: 0.3 | S14: 0206170220032403 | T14: 1 | U14: NA | V14: NA | W14: NA
A15: DLAMT-13,8 | B15: DLA | F15: SI | G15: SI | H15: SI | I15: SI | J15: SI | K15: NA | L15: SI | M15: Conductor | N15: SI | O15: 0.9 | P15: vano | Q15: 45 | R15: 0.3 | S15: 0209200223022603 | T15: 1 | U15: NA | V15: NA | W15: NA
A16: DLAMT-34,5 | B16: DLA | F16: SI | G16: SI | H16: SI | I16: SI | J16: SI | K16: NA | L16: SI | M16: Conductor | N16: SI | O16: 0.9 | P16: vano | Q16: 45 | R16: 0.3 | S16: 0209200223022603 | T16: 1 | U16: NA | V16: NA | W16: NA
A17: DLAMT-Otras | B17: DLA | F17: SI | G17: SI | H17: SI | I17: SI | J17: SI | K17: NA | L17: SI | M17: Conductor | N17: SI | O17: 0.9 | P17: vano | Q17: 45 | R17: 0.3 | S17: 0209200223022603 | T17: 1 | U17: NA | V17: NA | W17: NA
A18: DLSAT | B18: DLS | F18: SI | G18: SI | H18: SI | I18: NA | J18: SI | K18: NA | L18: SI | M18: NA | N18: NA | O18: 0.9 | P18: NA | Q18: NA | R18: NA | S18: NA | T18: 1 | U18: NA | V18: NA | W18: NA
A19: DLSAT-115 | B19: DLS | F19: SI | G19: SI | H19: SI | I19: NA | J19: SI | K19: NA | L19: SI | M19: NA | N19: NA | O19: 0.9 | P19: NA | Q19: NA | R19: NA | S19: NA | T19: 1 | U19: NA | V19: NA | W19: NA
A20: DLSAT-230 | B20: DLS | F20: SI | G20: SI | H20: SI | I20: NA | J20: SI | K20: NA | L20: SI | M20: NA | N20: NA | O20: 0.9 | P20: NA | Q20: NA | R20: NA | S20: NA | T20: 1 | U20: NA | V20: NA | W20: NA
A21: DLSBT | B21: DLS | F21: SI | G21: SI | H21: SI | I21: NA | J21: SI | K21: NA | L21: SI | M21: Conductor | N21: SI | O21: 0.9 | P21: VolumenZanja | Q21: 1000 | R21: 0.5 | S21: 020624022703 | T21: 1 | U21: NA | V21: NA | W21: NA
A22: DLSMT-13,8 | B22: DLS | F22: SI | G22: SI | H22: SI | I22: NA | J22: SI | K22: NA | L22: SI | M22: Conductor | N22: SI | O22: 0.9 | P22: VolumenZanja | Q22: 1000 | R22: 0.5 | S22: 020826043103 | T22: 1 | U22: NA | V22: NA | W22: NA
A23: DLSMT-34,5 | B23: DLS | F23: SI | G23: SI | H23: SI | I23: NA | J23: SI | K23: NA | L23: SI | M23: NA | N23: SI | O23: 0.9 | P23: NA | Q23: 1000 | R23: 0.5 | S23: NA | T23: 1 | U23: NA | V23: NA | W23: NA
A24: DLSMT-Otras | B24: DLS | F24: SI | G24: SI | H24: SI | I24: NA | J24: SI | K24: NA | L24: SI | M24: NA | N24: NA | O24: 0.9 | P24: NA | Q24: NA | R24: NA | S24: NA | T24: 1 | U24: NA | V24: NA | W24: NA
A25: DTRAM | F25: SI | G25: NA | H25: NA | I25: NA | J25: NA | K25: NA | L25: SI | M25: NA | N25: NA | O25: 0.9 | P25: NA | Q25: NA | R25: NA | S25: NA | T25: 1 | U25: NA | V25: NA | W25: NA
A26: DTRAM-115 | F26: SI | G26: NA | H26: NA | I26: NA | J26: NA | K26: NA | L26: SI | M26: NA | N26: NA | O26: 0.9 | P26: NA | Q26: NA | R26: NA | S26: NA | T26: 1 | U26: NA | V26: NA | W26: NA
A27: DTRAM-230 | F27: SI | G27: NA | H27: NA | I27: NA | J27: NA | K27: NA | L27: SI | M27: NA | N27: NA | O27: 0.9 | P27: NA | Q27: NA | R27: NA | S27: NA | T27: 1 | U27: NA | V27: NA | W27: NA
A28: DTRMB-13,8 | F28: SI | G28: SI | H28: SI | I28: NA | J28: NA | K28: NA | L28: SI | M28: CantTrbtOtC | N28: SI | O28: 0.9 | P28: NA | Q28: NA | R28: NA | S28: 02081106 | T28: 1 | U28: NA | V28: NA | W28: SI
A29: DTRMB-34,5 | F29: SI | G29: SI | H29: SI | I29: NA | J29: NA | K29: NA | L29: SI | M29: CantTrbtOtC | N29: SI | O29: 0.9 | P29: NA | Q29: NA | R29: NA | S29: 02081106 | T29: 1 | U29: NA | V29: NA | W29: SI
A30: DTRMB-Otras | F30: SI | G30: SI | H30: SI | I30: NA | J30: NA | K30: NA | L30: SI | M30: CantTrbtOtC | N30: SI | O30: 0.9 | P30: NA | Q30: NA | R30: NA | S30: 02081106 | T30: 1 | U30: NA | V30: NA | W30: SI
A31: DTRMM-13,8 | F31: SI | G31: NA | H31: NA | I31: NA | J31: NA | K31: NA | L31: SI | M31: NA | N31: NA | O31: 0.9 | P31: NA | Q31: NA | R31: NA | S31: NA | T31: 1 | U31: NA | V31: NA | W31: NA
A32: DTRMM-34,5 | F32: SI | G32: NA | H32: NA | I32: NA | J32: NA | K32: NA | L32: SI | M32: NA | N32: NA | O32: 0.9 | P32: NA | Q32: NA | R32: NA | S32: NA | T32: 1 | U32: NA | V32: NA | W32: NA
A33: DTRMM-Otras | F33: SI | G33: NA | H33: NA | I33: NA | J33: NA | K33: NA | L33: SI | M33: NA | N33: NA | O33: 0.9 | P33: NA | Q33: NA | R33: NA | S33: NA | T33: 1 | U33: NA | V33: NA | W33: NA
A34: PEDYM | F34: SI | G34: NA | H34: NA | I34: NA | J34: NA | K34: NA | L34: NA | M34: NA | N34: NA | O34: 0.9 | P34: NA | Q34: NA | R34: NA | S34: NA | T34: 1 | U34: SI | V34: NA | W34: NA
A35: PEQCM | F35: SI | G35: NA | H35: NA | I35: NA | J35: NA | K35: NA | L35: NA | M35: NA | N35: NA | O35: 0.9 | P35: NA | Q35: NA | R35: NA | S35: NA | T35: 1 | U35: NA | V35: SI | W35: NA
A36: PEQCO | F36: SI | G36: NA | H36: NA | I36: NA | J36: NA | K36: NA | L36: NA | M36: NA | N36: NA | O36: 0.9 | P36: NA | Q36: NA | R36: NA | S36: NA | T36: 1 | U36: NA | V36: SI | W36: NA
A37: PEQOT | F37: SI | G37: NA | H37: NA | I37: NA | J37: NA | K37: NA | L37: NA | M37: NA | N37: NA | O37: 0.9 | P37: NA | Q37: NA | R37: NA | S37: NA | T37: 1 | U37: NA | V37: Si | W37: NA
A38: PEQTC | F38: SI | G38: NA | H38: NA | I38: NA | J38: NA | K38: NA | L38: NA | M38: NA | N38: NA | O38: 0.9 | P38: NA | Q38: NA | R38: NA | S38: NA | T38: 1 | U38: NA | V38: NA | W38: NA
A39: PMOBI | F39: SI | G39: NA | H39: NA | I39: NA | J39: NA | K39: NA | L39: NA | M39: NA | N39: NA | O39: 0.9 | P39: NA | Q39: NA | R39: NA | S39: NA | T39: 1 | U39: NA | V39: Si | W39: NA
A40: PPLIN | F40: SI | G40: NA | H40: NA | I40: NA | J40: NA | K40: NA | L40: NA | M40: NA | N40: NA | O40: 0.9 | P40: NA | Q40: NA | R40: NA | S40: NA | T40: 1 | U40: NA | V40: NA | W40: NA
A41: PTERR | F41: SI | G41: NA | H41: NA | I41: NA | J41: NA | K41: NA | L41: NA | M41: m2 | N41: Si | O41: 0.9 | P41: NA | Q41: NA | R41: NA | S41: NA | T41: 1 | U41: SI | V41: NA | W41: NA

Sheet Parametros
A1: Parámetro | B1: Valor
A2: FechaMin | B2: 2023-12-31
A3: FechaMax | B3: 2024-12-31
A4: MaterialesMin | B4: 0
A5: MObraMin | B5: 0.01
A6: MObraMax | B6: 0.99
A7: PosteInicio | B7: 17
A8: PosteFin | B8: 19
A9: PosteInicioBT | B9: 14
A10: PosteFinBT | B10: 16
A11: DLA | B11: 50
A12: DLS | B12: 20
A13: CondInicio | B13: 11
A14: CondFin | B14: 15
A15: CondInicioBT | B15: 8
A16: CondFinBT | B16: 12
A17: ZanjaInicio | B17: 18
A18: ZanjaFin | B18: 21
A19: ZanjaInicioBT | B19: 15
A20: ZanjaFinBT | B20: 18
A21: CostoTotalMin | B21: 100
A22: PostesMin | B22: 2
A23: FactorAsig | B23: 0.5
A24: m2Inicio | B24: 15
A25: m2Fin | B25: 20
A26: m2Min | B26: 0 | C26: <=
A27: PEDYM | B27: 1
A28: PTERR | B28: 0
A29: CantMobPCComOtMin | B29: 0 | C29: <=
A30: CantTrbtOtCMin | B30: 0 | C30: >
A31: MDOmin | B31: 0

Sheet Datos
A1: Archivo | B1: Hoja | C1: CódigoProyecto | D1: CódigoDescriptivo | E1: Fecha | F1: ÁreaGeográfica | G1: Cant | H1: SumOfMateriales$ | I1: SumOfManoObra$ | J1: SumOfIngenieria$ | K1: SumOfExtras$ | L1: SumOfFinancieros$ | M1: SumOfDerechos$ | N1: SumOfCostoTotal$ | O1: FirstOfFila | P1: SumOfATR$ | Q1: Cant_Poste | R1: Cant_Cond | S1: Postes | T1: Conductor | U1: Vano | V1: VolumenZanja | W1: Unidad | X1: m2 | Y1: CantMobPCComOt | Z1: CantTrbtOtC | AA1: Cant | AB1: m2 | AC1: Fecha | AD1: Materiales | AE1: Mobra | AF1: CostoTotal | AG1: Postes | AH1: Conductor | AI1: Finv | AJ1: Inversiones | AL1: Condicion | AM1: Valor | AN1: Rango | AP1: Codigo | AX1: CostoReferencia | AY1: Cantidad | AZ1: CostoReal | BA1: FactorEficienciaPrecio | BB1: FactorAsimetria | BC1: FactorEficienciaCantidad | BD1: CostoEficiente
A2: Proyecto con cuenta ENSA 2024.xls | B2: =[1]Listado_Proyectos!K2 -> CMEDI | C2: =[1]Listado_Proyectos!A2 -> 01-17.23.0142 | E2: =[1]Listado_Proyectos!I2 -> 2024-03-31 | F2: =[1]Listado_Proyectos!D2 -> CHEPO | H2: =[1]Listado_Proyectos!N2 -> 395.18 | I2: =[1]Listado_Proyectos!M2 -> 82.71 | K2: =[1]Listado_Proyectos!O2 -> 0 | N2: =[1]Listado_Proyectos!P2 -> 477.89 | P2: =[1]Listado_Proyectos!Q2+[1]Listado_Proyectos!R2 -> 0 | Q2: =IFERROR(VLOOKUP(C2,'[2]Postes 2024'!$A:$C,3,FALSE),0) -> 0 | R2: =IFERROR(VLOOKUP(C2,'[2]Líneas 2024'!$A:$C,3,FALSE),0) -> 0 | S2: =IF((VLOOKUP($B2,Formulacion!$A:$BE,MATCH(S$1,Formulacion!$1:$1,0),FALSE)="NA"),"NA",Q2) -> NA | T2: =IF((VLOOKUP($B2,Formulacion!$A:$BE,MATCH(T$1,Formulacion!$1:$1,0),FALSE)="NA"),"NA",R2) -> NA | U2: =IF(S2="NA","NA",IF(S2=0,"SP",T2/S2)) -> NA | V2: =IF(OR(VLOOKUP($B2,Formulacion!$A:$BE,MATCH(V$1,Formulacion!$1:$1,0),FALSE)="NA",$D2=0),"NA",IF($B2="DLSBT",MID($D2,ZanjaInicioBT,ZanjaFinBT-ZanjaInicioBT+1)*1,MID($D2,ZanjaInicio,ZanjaFin-ZanjaInicio+1)*1)) -> NA | W2: 1 | X2: =IF(OR(VLOOKUP($B2,Formulacion!$A:$BE,MATCH(X$1,Formulacion!$1:$1,0),FALSE)="NA",$D2=0),"NA",MID($D2,m2Inicio+INDIRECT(B2),m2Fin-m2Inicio+1)*1) -> NA | Y2: =IF(OR(VLOOKUP($B2,Formulacion!$A:$BE,MATCH(Y$1,Formulacion!$1:$1,0),FALSE)="NA",$D2=0),"NA",RIGHT($D2,4)*1) -> NA | Z2: =IF(OR(VLOOKUP($B2,Formulacion!$A:$BE,MATCH(Z$1,Formulacion!$1:$1,0),FALSE)="NA",$D2=0),"NA",RIGHT($D2,3)*1) -> NA | AA2: =IF(OR(AND(Y2="NA",Z2="NA"),AND(Y2="NA",Z2>CantTrbtOtCMin),AND(Y2>CantTrbtOtCMin,Z2="NA")),1,0) -> 1 | AB2: =IF(VLOOKUP($B2,Formulacion!$A:$BE,MATCH(AB$1,Formulacion!$1:$1,0),FALSE)="NA",1,IF(X2<=m2Min,0,1)) -> 1 | AC2: =IF(VLOOKUP($B2,Formulacion!$A:$BE,MATCH(AC$1,Formulacion!$1:$1,0),FALSE)="NA",1,IF(OR(E2<=FechaMin,E2>FechaMax),0,1)) -> 1 | AD2: =IF(VLOOKUP($B2,Formulacion!$A:$BE,MATCH(AD$1,Formulacion!$1:$1,0),FALSE)="NA",1,IF(H2<=MaterialesMin,0,1)) -> 1 | AE2: =IF(VLOOKUP($B2,Formulacion!$A:$BE,MATCH(AE$1,Formulacion!$1:$1,0),FALSE)="NA",1,IF(N2=0,0,IF(OR(I2/N2<=MObraMin,I2/N2>=MObraMax),MDOmin,1))) -> 1 | AF2: =IF(VLOOKUP($B2,Formulacion!$A:$BE,MATCH(AF$1,Formulacion!$1:$1,0),FALSE)="NA",1,IF(N2<=CostoTotalMin,0,1)) -> 1 | AG2: =IF(VLOOKUP($B2,Formulacion!$A:$BE,MATCH(AG$1,Formulacion!$1:$1,0),FALSE)="NA",1,IF(S2<PostesMin,0,1)) -> 1 | AH2: =IF(VLOOKUP($B2,Formulacion!$A:$BE,MATCH(AH$1,Formulacion!$1:$1,0),FALSE)="NA",1,IF(T2<INDIRECT(VLOOKUP(B2,Formulacion!$A:$BE,2,FALSE)),0,1)) -> 1 | AI2: =AA2*AB2*AC2*AD2*AE2*AF2*MAX(AG2,AH2) -> 1 | AJ2: =N2*AI2 -> 477.89 | AK2: =IF(OR(E2<=FechaMin,E2>FechaMax),0,1) -> 1 | AL2: =IF(VLOOKUP($B2,Formulacion!$A:$BE,MATCH(AL$1,Formulacion!$1:$1,0),FALSE)="NA","NA",HLOOKUP(VLOOKUP($B2,Formulacion!$A:$BE,MATCH(AL$1,Formulacion!$1:$1,0),FALSE),$S:$AB,ROW(AL2),FALSE)) -> NA | AM2: =IF(VLOOKUP($B2,Formulacion!$A:$BE,MATCH(AM$1,Formulacion!$1:$1,0),FALSE)="NA",1,VLOOKUP($B2,Formulacion!$A:$BE,MATCH(AM$1,Formulacion!$1:$1,0),FALSE)) -> 1 | AN2: =IF(VLOOKUP($B2,Formulacion!$A:$BE,MATCH(AN$1,Formulacion!$1:$1,0),FALSE)="NA",1,VLOOKUP($B2,Formulacion!$A:$BE,MATCH(AN$1,Formulacion!$1:$1,0),FALSE)) -> 1 | AO2: =IF(AL2="NA",1,IF(AL2<=AM2*(1+AN2),"CU","NC")) -> 1 | AP2: =IF(VLOOKUP($B2,Formulacion!$A:$BE,MATCH(AP$1,Formulacion!$1:$1,0),FALSE)="NA","NA",IF(D2=0,"",VLOOKUP($B2,Formulacion!$A:$BE,MATCH(AP$1,Formulacion!$1:$1,0),FALSE))) -> NA | AQ2: =IF(OR(MID(AP2,1,2)="",MID(AP2,1,2)="NA"),"X",MID(D2,MID(AP2,1,2),MID(AP2,3,2))) -> X | AR2: =IF(MID(AP2,5,2)="","",MID(D2,MID(AP2,5,2),MID(AP2,7,2))) ->  | AS2: =IF(MID(AP2,9,2)="","",MID(D2,MID(AP2,9,2),MID(AP2,11,2))) ->  | AT2: =IF(MID(AP2,13,2)="","",MID(D2,MID(AP2,13,2),MID(AP2,15,2))) ->  | AU2: =IF(MID(AP2,17,2)="","",MID(D2,MID(AP2,17,2),MID(AP2,19,2))) ->  | AV2: =IF(MID(AP2,21,2)="","",MID(D2,MID(AP2,21,2),MID(AP2,23,2))) ->  | AW2: =IF(MID(AP2,25,2)="","",MID(D2,MID(AP2,25,2),MID(AP2,27,2))) ->  | AX2: NA | AY2: =IF(VLOOKUP($B2,Formulacion!$A:$BE,MATCH(AY$1,Formulacion!$1:$1,0),FALSE)="NA","NA",HLOOKUP(VLOOKUP($B2,Formulacion!$A:$BE,MATCH(AY$1,Formulacion!$1:$1,0),FALSE),$S:$AB,ROW(AY2),FALSE)) -> NA | AZ2: =IF(AX2="NA","NA",IF(AY2=0,0,N2/AY2)) -> NA | BA2: =IFERROR(IF(OR(AZ2="NA",AO2="NC"),1,IF(AZ2<AX2,1,AX2/AZ2)),100%) -> 1 | BB2: =IF(VLOOKUP($B2,Formulacion!$A:$BE,MATCH(BB$1,Formulacion!$1:$1,0),FALSE)="NA",1,VLOOKUP($B2,Formulacion!$A:$BE,MATCH(BB$1,Formulacion!$1:$1,0),FALSE)) -> 0.9 | BC2: =IF(VLOOKUP($B2,Formulacion!$A:$BE,MATCH(BC$1,Formulacion!$1:$1,0),FALSE)="NA",1,VLOOKUP($B2,Formulacion!$A:$BE,MATCH(BC$1,Formulacion!$1:$1,0),FALSE)) -> 1 | BD2: =AJ2*BA2*BB2*BC2 -> 430.101 | BF2: =VLOOKUP(C2,[3]Listado_Proyectos!$A$2:$I$815,9,FALSE) ->  | BG2: 2019-02-28
A3: Proyecto con cuenta ENSA 2024.xls | B3: =[1]Listado_Proyectos!K3 -> DACBT | C3: =[1]Listado_Proyectos!A3 -> 01-17.23.0142 | E3: =[1]Listado_Proyectos!I3 -> 2024-03-31 | F3: =[1]Listado_Proyectos!D3 -> CHEPO | H3: =[1]Listado_Proyectos!N3 -> 552.02 | I3: =[1]Listado_Proyectos!M3 -> 218 | K3: =[1]Listado_Proyectos!O3 -> 0 | N3: =[1]Listado_Proyectos!P3 -> 770.02 | P3: =[1]Listado_Proyectos!Q3+[1]Listado_Proyectos!R3 -> 0 | Q3: =IFERROR(VLOOKUP(C3,'[2]Postes 2024'!$A:$C,3,FALSE),0) -> 0 | R3: =IFERROR(VLOOKUP(C3,'[2]Líneas 2024'!$A:$C,3,FALSE),0) -> 0 | S3: =IF((VLOOKUP($B3,Formulacion!$A:$BE,MATCH(S$1,Formulacion!$1:$1,0),FALSE)="NA"),"NA",Q3) -> NA | T3: =IF((VLOOKUP($B3,Formulacion!$A:$BE,MATCH(T$1,Formulacion!$1:$1,0),FALSE)="NA"),"NA",R3) -> NA | U3: =IF(S3="NA","NA",IF(S3=0,"SP",T3/S3)) -> NA | V3: =IF(OR(VLOOKUP($B3,Formulacion!$A:$BE,MATCH(V$1,Formulacion!$1:$1,0),FALSE)="NA",$D3=0),"NA",IF($B3="DLSBT",MID($D3,ZanjaInicioBT,ZanjaFinBT-ZanjaInicioBT+1)*1,MID($D3,ZanjaInicio,ZanjaFin-ZanjaInicio+1)*1)) -> NA | W3: 1 | X3: =IF(OR(VLOOKUP($B3,Formulacion!$A:$BE,MATCH(X$1,Formulacion!$1:$1,0),FALSE)="NA",$D3=0),"NA",MID($D3,m2Inicio+INDIRECT(B3),m2Fin-m2Inicio+1)*1) -> NA | Y3: =IF(OR(VLOOKUP($B3,Formulacion!$A:$BE,MATCH(Y$1,Formulacion!$1:$1,0),FALSE)="NA",$D3=0),"NA",RIGHT($D3,4)*1) -> NA | Z3: =IF(OR(VLOOKUP($B3,Formulacion!$A:$BE,MATCH(Z$1,Formulacion!$1:$1,0),FALSE)="NA",$D3=0),"NA",RIGHT($D3,3)*1) -> NA | AA3: =IF(OR(AND(Y3="NA",Z3="NA"),AND(Y3="NA",Z3>CantTrbtOtCMin),AND(Y3>CantTrbtOtCMin,Z3="NA")),1,0) -> 1 | AB3: =IF(VLOOKUP($B3,Formulacion!$A:$BE,MATCH(AB$1,Formulacion!$1:$1,0),FALSE)="NA",1,IF(X3<=m2Min,0,1)) -> 1 | AC3: =IF(VLOOKUP($B3,Formulacion!$A:$BE,MATCH(AC$1,Formulacion!$1:$1,0),FALSE)="NA",1,IF(OR(E3<=FechaMin,E3>FechaMax),0,1)) -> 1 | AD3: =IF(VLOOKUP($B3,Formulacion!$A:$BE,MATCH(AD$1,Formulacion!$1:$1,0),FALSE)="NA",1,IF(H3<=MaterialesMin,0,1)) -> 1 | AE3: =IF(VLOOKUP($B3,Formulacion!$A:$BE,MATCH(AE$1,Formulacion!$1:$1,0),FALSE)="NA",1,IF(N3=0,0,IF(OR(I3/N3<=MObraMin,I3/N3>=MObraMax),MDOmin,1))) -> 1 | AF3: =IF(VLOOKUP($B3,Formulacion!$A:$BE,MATCH(AF$1,Formulacion!$1:$1,0),FALSE)="NA",1,IF(N3<=CostoTotalMin,0,1)) -> 1 | AG3: =IF(VLOOKUP($B3,Formulacion!$A:$BE,MATCH(AG$1,Formulacion!$1:$1,0),FALSE)="NA",1,IF(S3<PostesMin,0,1)) -> 1 | AH3: =IF(VLOOKUP($B3,Formulacion!$A:$BE,MATCH(AH$1,Formulacion!$1:$1,0),FALSE)="NA",1,IF(T3<INDIRECT(VLOOKUP(B3,Formulacion!$A:$BE,2,FALSE)),0,1)) -> 1 | AI3: =AA3*AB3*AC3*AD3*AE3*AF3*MAX(AG3,AH3) -> 1 | AJ3: =N3*AI3 -> 770.02 | AK3: =IF(OR(E3<=FechaMin,E3>FechaMax),0,1) -> 1 | AL3: =IF(VLOOKUP($B3,Formulacion!$A:$BE,MATCH(AL$1,Formulacion!$1:$1,0),FALSE)="NA","NA",HLOOKUP(VLOOKUP($B3,Formulacion!$A:$BE,MATCH(AL$1,Formulacion!$1:$1,0),FALSE),$S:$AB,ROW(AL3),FALSE)) -> NA | AM3: =IF(VLOOKUP($B3,Formulacion!$A:$BE,MATCH(AM$1,Formulacion!$1:$1,0),FALSE)="NA",1,VLOOKUP($B3,Formulacion!$A:$BE,MATCH(AM$1,Formulacion!$1:$1,0),FALSE)) -> 1 | AN3: =IF(VLOOKUP($B3,Formulacion!$A:$BE,MATCH(AN$1,Formulacion!$1:$1,0),FALSE)="NA",1,VLOOKUP($B3,Formulacion!$A:$BE,MATCH(AN$1,Formulacion!$1:$1,0),FALSE)) -> 1 | AO3: =IF(AL3="NA",1,IF(AL3<=AM3*(1+AN3),"CU","NC")) -> 1 | AP3: =IF(VLOOKUP($B3,Formulacion!$A:$BE,MATCH(AP$1,Formulacion!$1:$1,0),FALSE)="NA","NA",IF(D3=0,"",VLOOKUP($B3,Formulacion!$A:$BE,MATCH(AP$1,Formulacion!$1:$1,0),FALSE))) -> NA | AQ3: =IF(OR(MID(AP3,1,2)="",MID(AP3,1,2)="NA"),"X",MID(D3,MID(AP3,1,2),MID(AP3,3,2))) -> X | AR3: =IF(MID(AP3,5,2)="","",MID(D3,MID(AP3,5,2),MID(AP3,7,2))) ->  | AS3: =IF(MID(AP3,9,2)="","",MID(D3,MID(AP3,9,2),MID(AP3,11,2))) ->  | AT3: =IF(MID(AP3,13,2)="","",MID(D3,MID(AP3,13,2),MID(AP3,15,2))) ->  | AU3: =IF(MID(AP3,17,2)="","",MID(D3,MID(AP3,17,2),MID(AP3,19,2))) ->  | AV3: =IF(MID(AP3,21,2)="","",MID(D3,MID(AP3,21,2),MID(AP3,23,2))) ->  | AW3: =IF(MID(AP3,25,2)="","",MID(D3,MID(AP3,25,2),MID(AP3,27,2))) ->  | AX3: NA | AY3: =IF(VLOOKUP($B3,Formulacion!$A:$BE,MATCH(AY$1,Formulacion!$1:$1,0),FALSE)="NA","NA",HLOOKUP(VLOOKUP($B3,Formulacion!$A:$BE,MATCH(AY$1,Formulacion!$1:$1,0),FALSE),$S:$AB,ROW(AY3),FALSE)) -> NA | AZ3: =IF(AX3="NA","NA",IF(AY3=0,0,N3/AY3)) -> NA | BA3: =IFERROR(IF(OR(AZ3="NA",AO3="NC"),1,IF(AZ3<AX3,1,AX3/AZ3)),100%) -> 1 | BB3: =IF(VLOOKUP($B3,Formulacion!$A:$BE,MATCH(BB$1,Formulacion!$1:$1,0),FALSE)="NA",1,VLOOKUP($B3,Formulacion!$A:$BE,MATCH(BB$1,Formulacion!$1:$1,0),FALSE)) -> 0.9 | BC3: =IF(VLOOKUP($B3,Formulacion!$A:$BE,MATCH(BC$1,Formulacion!$1:$1,0),FALSE)="NA",1,VLOOKUP($B3,Formulacion!$A:$BE,MATCH(BC$1,Formulacion!$1:$1,0),FALSE)) -> 1 | BD3: =AJ3*BA3*BB3*BC3 -> 693.018 | BF3: =VLOOKUP(C3,[3]Listado_Proyectos!$A$2:$I$815,9,FALSE) ->  | BG3: 2019-02-28
A4: Proyecto con cuenta ENSA 2024.xls | B4: =[1]Listado_Proyectos!K4 -> AINAP | C4: =[1]Listado_Proyectos!A4 -> 01-17.23.0129 | E4: =[1]Listado_Proyectos!I4 -> 2024-02-28 | F4: =[1]Listado_Proyectos!D4 -> CHEPIGANA | H4: =[1]Listado_Proyectos!N4 -> 866.21 | I4: =[1]Listado_Proyectos!M4 -> 400.37 | K4: =[1]Listado_Proyectos!O4 -> 0 | N4: =[1]Listado_Proyectos!P4 -> 1266.58 | P4: =[1]Listado_Proyectos!Q4+[1]Listado_Proyectos!R4 -> 0 | Q4: =IFERROR(VLOOKUP(C4,'[2]Postes 2024'!$A:$C,3,FALSE),0) -> 0 | R4: =IFERROR(VLOOKUP(C4,'[2]Líneas 2024'!$A:$C,3,FALSE),0) -> 0 | S4: =IF((VLOOKUP($B4,Formulacion!$A:$BE,MATCH(S$1,Formulacion!$1:$1,0),FALSE)="NA"),"NA",Q4) -> NA | T4: =IF((VLOOKUP($B4,Formulacion!$A:$BE,MATCH(T$1,Formulacion!$1:$1,0),FALSE)="NA"),"NA",R4) -> NA | U4: NA | V4: =IF(OR(VLOOKUP($B4,Formulacion!$A:$BE,MATCH(V$1,Formulacion!$1:$1,0),FALSE)="NA",$D4=0),"NA",IF($B4="DLSBT",MID($D4,ZanjaInicioBT,ZanjaFinBT-ZanjaInicioBT+1)*1,MID($D4,ZanjaInicio,ZanjaFin-ZanjaInicio+1)*1)) -> NA | W4: 1 | X4: =IF(OR(VLOOKUP($B4,Formulacion!$A:$BE,MATCH(X$1,Formulacion!$1:$1,0),FALSE)="NA",$D4=0),"NA",MID($D4,m2Inicio+INDIRECT(B4),m2Fin-m2Inicio+1)*1) -> NA | Y4: =IF(OR(VLOOKUP($B4,Formulacion!$A:$BE,MATCH(Y$1,Formulacion!$1:$1,0),FALSE)="NA",$D4=0),"NA",RIGHT($D4,4)*1) -> NA | Z4: =IF(OR(VLOOKUP($B4,Formulacion!$A:$BE,MATCH(Z$1,Formulacion!$1:$1,0),FALSE)="NA",$D4=0),"NA",RIGHT($D4,3)*1) -> NA | AA4: 1 | AB4: =IF(VLOOKUP($B4,Formulacion!$A:$BE,MATCH(AB$1,Formulacion!$1:$1,0),FALSE)="NA",1,IF(X4<=m2Min,0,1)) -> 1 | AC4: =IF(VLOOKUP($B4,Formulacion!$A:$BE,MATCH(AC$1,Formulacion!$1:$1,0),FALSE)="NA",1,IF(OR(E4<=FechaMin,E4>FechaMax),0,1)) -> 1 | AD4: =IF(VLOOKUP($B4,Formulacion!$A:$BE,MATCH(AD$1,Formulacion!$1:$1,0),FALSE)="NA",1,IF(H4<=MaterialesMin,0,1)) -> 1 | AE4: =IF(VLOOKUP($B4,Formulacion!$A:$BE,MATCH(AE$1,Formulacion!$1:$1,0),FALSE)="NA",1,IF(N4=0,0,IF(OR(I4/N4<=MObraMin,I4/N4>=MObraMax),MDOmin,1))) -> 1 | AF4: =IF(VLOOKUP($B4,Formulacion!$A:$BE,MATCH(AF$1,Formulacion!$1:$1,0),FALSE)="NA",1,IF(N4<=CostoTotalMin,0,1)) -> 1 | AG4: =IF(VLOOKUP($B4,Formulacion!$A:$BE,MATCH(AG$1,Formulacion!$1:$1,0),FALSE)="NA",1,IF(S4<PostesMin,0,1)) -> 1 | AH4: =IF(VLOOKUP($B4,Formulacion!$A:$BE,MATCH(AH$1,Formulacion!$1:$1,0),FALSE)="NA",1,IF(T4<INDIRECT(VLOOKUP(B4,Formulacion!$A:$BE,2,FALSE)),0,1)) -> 1 | AI4: 1 | AJ4: 1266.58 | AK4: 1 | AL4: =IF(VLOOKUP($B4,Formulacion!$A:$BE,MATCH(AL$1,Formulacion!$1:$1,0),FALSE)="NA","NA",HLOOKUP(VLOOKUP($B4,Formulacion!$A:$BE,MATCH(AL$1,Formulacion!$1:$1,0),FALSE),$S:$AB,ROW(AL4),FALSE)) -> NA | AM4: =IF(VLOOKUP($B4,Formulacion!$A:$BE,MATCH(AM$1,Formulacion!$1:$1,0),FALSE)="NA",1,VLOOKUP($B4,Formulacion!$A:$BE,MATCH(AM$1,Formulacion!$1:$1,0),FALSE)) -> 1 | AN4: =IF(VLOOKUP($B4,Formulacion!$A:$BE,MATCH(AN$1,Formulacion!$1:$1,0),FALSE)="NA",1,VLOOKUP($B4,Formulacion!$A:$BE,MATCH(AN$1,Formulacion!$1:$1,0),FALSE)) -> 1 | AO4: 1 | AP4: =IF(VLOOKUP($B4,Formulacion!$A:$BE,MATCH(AP$1,Formulacion!$1:$1,0),FALSE)="NA","NA",IF(D4=0,"",VLOOKUP($B4,Formulacion!$A:$BE,MATCH(AP$1,Formulacion!$1:$1,0),FALSE))) -> NA | AQ4: X | AX4: NA | AY4: =IF(VLOOKUP($B4,Formulacion!$A:$BE,MATCH(AY$1,Formulacion!$1:$1,0),FALSE)="NA","NA",HLOOKUP(VLOOKUP($B4,Formulacion!$A:$BE,MATCH(AY$1,Formulacion!$1:$1,0),FALSE),$S:$AB,ROW(AY4),FALSE)) -> NA | AZ4: NA | BA4: 1 | BB4: =IF(VLOOKUP($B4,Formulacion!$A:$BE,MATCH(BB$1,Formulacion!$1:$1,0),FALSE)="NA",1,VLOOKUP($B4,Formulacion!$A:$BE,MATCH(BB$1,Formulacion!$1:$1,0),FALSE)) -> 0.9 | BC4: =IF(VLOOKUP($B4,Formulacion!$A:$BE,MATCH(BC$1,Formulacion!$1:$1,0),FALSE)="NA",1,VLOOKUP($B4,Formulacion!$A:$BE,MATCH(BC$1,Formulacion!$1:$1,0),FALSE)) -> 1 | BD4: 1139.922 | BF4: =VLOOKUP(C4,[3]Listado_Proyectos!$A$2:$I$815,9,FALSE) ->  | BG4: 2019-02-28
A5: Proyecto con cuenta ENSA 2024.xls | B5: =[1]Listado_Proyectos!K5 -> DLABT | C5: =[1]Listado_Proyectos!A5 -> 01-17.23.0129 | E5: =[1]Listado_Proyectos!I5 -> 2024-02-28 | F5: =[1]Listado_Proyectos!D5 -> CHEPIGANA | H5: =[1]Listado_Proyectos!N5 -> 950.15 | I5: =[1]Listado_Proyectos!M5 -> 455.84 | K5: =[1]Listado_Proyectos!O5 -> 0 | N5: =[1]Listado_Proyectos!P5 -> 1405.99 | P5: =[1]Listado_Proyectos!Q5+[1]Listado_Proyectos!R5 -> 0 | Q5: =IFERROR(VLOOKUP(C5,'[2]Postes 2024'!$A:$C,3,FALSE),0) -> 0 | R5: =IFERROR(VLOOKUP(C5,'[2]Líneas 2024'!$A:$C,3,FALSE),0) -> 0 | S5: =IF((VLOOKUP($B5,Formulacion!$A:$BE,MATCH(S$1,Formulacion!$1:$1,0),FALSE)="NA"),"NA",Q5) -> 0 | T5: =IF((VLOOKUP($B5,Formulacion!$A:$BE,MATCH(T$1,Formulacion!$1:$1,0),FALSE)="NA"),"NA",R5) -> 0 | U5: SP | V5: =IF(OR(VLOOKUP($B5,Formulacion!$A:$BE,MATCH(V$1,Formulacion!$1:$1,0),FALSE)="NA",$D5=0),"NA",IF($B5="DLSBT",MID($D5,ZanjaInicioBT,ZanjaFinBT-ZanjaInicioBT+1)*1,MID($D5,ZanjaInicio,ZanjaFin-ZanjaInicio+1)*1)) -> NA | W5: 1 | X5: =IF(OR(VLOOKUP($B5,Formulacion!$A:$BE,MATCH(X$1,Formulacion!$1:$1,0),FALSE)="NA",$D5=0),"NA",MID($D5,m2Inicio+INDIRECT(B5),m2Fin-m2Inicio+1)*1) -> NA | Y5: =IF(OR(VLOOKUP($B5,Formulacion!$A:$BE,MATCH(Y$1,Formulacion!$1:$1,0),FALSE)="NA",$D5=0),"NA",RIGHT($D5,4)*1) -> NA | Z5: =IF(OR(VLOOKUP($B5,Formulacion!$A:$BE,MATCH(Z$1,Formulacion!$1:$1,0),FALSE)="NA",$D5=0),"NA",RIGHT($D5,3)*1) -> NA | AA5: 1 | AB5: =IF(VLOOKUP($B5,Formulacion!$A:$BE,MATCH(AB$1,Formulacion!$1:$1,0),FALSE)="NA",1,IF(X5<=m2Min,0,1)) -> 1 | AC5: =IF(VLOOKUP($B5,Formulacion!$A:$BE,MATCH(AC$1,Formulacion!$1:$1,0),FALSE)="NA",1,IF(OR(E5<=FechaMin,E5>FechaMax),0,1)) -> 1 | AD5: =IF(VLOOKUP($B5,Formulacion!$A:$BE,MATCH(AD$1,Formulacion!$1:$1,0),FALSE)="NA",1,IF(H5<=MaterialesMin,0,1)) -> 1 | AE5: =IF(VLOOKUP($B5,Formulacion!$A:$BE,MATCH(AE$1,Formulacion!$1:$1,0),FALSE)="NA",1,IF(N5=0,0,IF(OR(I5/N5<=MObraMin,I5/N5>=MObraMax),MDOmin,1))) -> 1 | AF5: =IF(VLOOKUP($B5,Formulacion!$A:$BE,MATCH(AF$1,Formulacion!$1:$1,0),FALSE)="NA",1,IF(N5<=CostoTotalMin,0,1)) -> 1 | AG5: =IF(VLOOKUP($B5,Formulacion!$A:$BE,MATCH(AG$1,Formulacion!$1:$1,0),FALSE)="NA",1,IF(S5<PostesMin,0,1)) -> 0 | AH5: =IF(VLOOKUP($B5,Formulacion!$A:$BE,MATCH(AH$1,Formulacion!$1:$1,0),FALSE)="NA",1,IF(T5<INDIRECT(VLOOKUP(B5,Formulacion!$A:$BE,2,FALSE)),0,1)) -> 0 | AI5: 0 | AJ5: 0 | AK5: 1 | AL5: =IF(VLOOKUP($B5,Formulacion!$A:$BE,MATCH(AL$1,Formulacion!$1:$1,0),FALSE)="NA","NA",HLOOKUP(VLOOKUP($B5,Formulacion!$A:$BE,MATCH(AL$1,Formulacion!$1:$1,0),FALSE),$S:$AB,ROW(AL5),FALSE)) -> SP | AM5: =IF(VLOOKUP($B5,Formulacion!$A:$BE,MATCH(AM$1,Formulacion!$1:$1,0),FALSE)="NA",1,VLOOKUP($B5,Formulacion!$A:$BE,MATCH(AM$1,Formulacion!$1:$1,0),FALSE)) -> 30 | AN5: =IF(VLOOKUP($B5,Formulacion!$A:$BE,MATCH(AN$1,Formulacion!$1:$1,0),FALSE)="NA",1,VLOOKUP($B5,Formulacion!$A:$BE,MATCH(AN$1,Formulacion!$1:$1,0),FALSE)) -> 0.3 | AO5: NC | AP5: =IF(VLOOKUP($B5,Formulacion!$A:$BE,MATCH(AP$1,Formulacion!$1:$1,0),FALSE)="NA","NA",IF(D5=0,"",VLOOKUP($B5,Formulacion!$A:$BE,MATCH(AP$1,Formulacion!$1:$1,0),FALSE))) ->  | AQ5: X | AX5: NA | AY5: =IF(VLOOKUP($B5,Formulacion!$A:$BE,MATCH(AY$1,Formulacion!$1:$1,0),FALSE)="NA","NA",HLOOKUP(VLOOKUP($B5,Formulacion!$A:$BE,MATCH(AY$1,Formulacion!$1:$1,0),FALSE),$S:$AB,ROW(AY5),FALSE)) -> 0 | AZ5: NA | BA5: 1 | BB5: =IF(VLOOKUP($B5,Formulacion!$A:$BE,MATCH(BB$1,Formulacion!$1:$1,0),FALSE)="NA",1,VLOOKUP($B5,Formulacion!$A:$BE,MATCH(BB$1,Formulacion!$1:$1,0),FALSE)) -> 0.9 | BC5: =IF(VLOOKUP($B5,Formulacion!$A:$BE,MATCH(BC$1,Formulacion!$1:$1,0),FALSE)="NA",1,VLOOKUP($B5,Formulacion!$A:$BE,MATCH(BC$1,Formulacion!$1:$1,0),FALSE)) -> 1 | BD5: 0 | BF5: =VLOOKUP(C5,[3]Listado_Proyectos!$A$2:$I$815,9,FALSE) ->  | BG5: 2019-02-28
A6: Proyecto con cuenta ENSA 2024.xls | B6: =[1]Listado_Proyectos!K6 -> DLAMT-13,8 | C6: =[1]Listado_Proyectos!A6 -> 01-17.23.0129 | E6: =[1]Listado_Proyectos!I6 -> 2024-02-28 | F6: =[1]Listado_Proyectos!D6 -> CHEPIGANA | H6: =[1]Listado_Proyectos!N6 -> 8654.91 | I6: =[1]Listado_Proyectos!M6 -> 6168.74 | K6: =[1]Listado_Proyectos!O6 -> 0 | N6: =[1]Listado_Proyectos!P6 -> 14823.65 | P6: =[1]Listado_Proyectos!Q6+[1]Listado_Proyectos!R6 -> 0 | Q6: =IFERROR(VLOOKUP(C6,'[2]Postes 2024'!$A:$C,3,FALSE),0) -> 0 | R6: =IFERROR(VLOOKUP(C6,'[2]Líneas 2024'!$A:$C,3,FALSE),0) -> 0 | S6: =IF((VLOOKUP($B6,Formulacion!$A:$BE,MATCH(S$1,Formulacion!$1:$1,0),FALSE)="NA"),"NA",Q6) -> 0 | T6: =IF((VLOOKUP($B6,Formulacion!$A:$BE,MATCH(T$1,Formulacion!$1:$1,0),FALSE)="NA"),"NA",R6) -> 0 | U6: SP | V6: =IF(OR(VLOOKUP($B6,Formulacion!$A:$BE,MATCH(V$1,Formulacion!$1:$1,0),FALSE)="NA",$D6=0),"NA",IF($B6="DLSBT",MID($D6,ZanjaInicioBT,ZanjaFinBT-ZanjaInicioBT+1)*1,MID($D6,ZanjaInicio,ZanjaFin-ZanjaInicio+1)*1)) -> NA | W6: 1 | X6: =IF(OR(VLOOKUP($B6,Formulacion!$A:$BE,MATCH(X$1,Formulacion!$1:$1,0),FALSE)="NA",$D6=0),"NA",MID($D6,m2Inicio+INDIRECT(B6),m2Fin-m2Inicio+1)*1) -> NA | Y6: =IF(OR(VLOOKUP($B6,Formulacion!$A:$BE,MATCH(Y$1,Formulacion!$1:$1,0),FALSE)="NA",$D6=0),"NA",RIGHT($D6,4)*1) -> NA | Z6: =IF(OR(VLOOKUP($B6,Formulacion!$A:$BE,MATCH(Z$1,Formulacion!$1:$1,0),FALSE)="NA",$D6=0),"NA",RIGHT($D6,3)*1) -> NA | AA6: 1 | AB6: =IF(VLOOKUP($B6,Formulacion!$A:$BE,MATCH(AB$1,Formulacion!$1:$1,0),FALSE)="NA",1,IF(X6<=m2Min,0,1)) -> 1 | AC6: =IF(VLOOKUP($B6,Formulacion!$A:$BE,MATCH(AC$1,Formulacion!$1:$1,0),FALSE)="NA",1,IF(OR(E6<=FechaMin,E6>FechaMax),0,1)) -> 1 | AD6: =IF(VLOOKUP($B6,Formulacion!$A:$BE,MATCH(AD$1,Formulacion!$1:$1,0),FALSE)="NA",1,IF(H6<=MaterialesMin,0,1)) -> 1 | AE6: =IF(VLOOKUP($B6,Formulacion!$A:$BE,MATCH(AE$1,Formulacion!$1:$1,0),FALSE)="NA",1,IF(N6=0,0,IF(OR(I6/N6<=MObraMin,I6/N6>=MObraMax),MDOmin,1))) -> 1 | AF6: =IF(VLOOKUP($B6,Formulacion!$A:$BE,MATCH(AF$1,Formulacion!$1:$1,0),FALSE)="NA",1,IF(N6<=CostoTotalMin,0,1)) -> 1 | AG6: =IF(VLOOKUP($B6,Formulacion!$A:$BE,MATCH(AG$1,Formulacion!$1:$1,0),FALSE)="NA",1,IF(S6<PostesMin,0,1)) -> 0 | AH6: =IF(VLOOKUP($B6,Formulacion!$A:$BE,MATCH(AH$1,Formulacion!$1:$1,0),FALSE)="NA",1,IF(T6<INDIRECT(VLOOKUP(B6,Formulacion!$A:$BE,2,FALSE)),0,1)) -> 0 | AI6: 0 | AJ6: 0 | AK6: 1 | AL6: =IF(VLOOKUP($B6,Formulacion!$A:$BE,MATCH(AL$1,Formulacion!$1:$1,0),FALSE)="NA","NA",HLOOKUP(VLOOKUP($B6,Formulacion!$A:$BE,MATCH(AL$1,Formulacion!$1:$1,0),FALSE),$S:$AB,ROW(AL6),FALSE)) -> SP | AM6: =IF(VLOOKUP($B6,Formulacion!$A:$BE,MATCH(AM$1,Formulacion!$1:$1,0),FALSE)="NA",1,VLOOKUP($B6,Formulacion!$A:$BE,MATCH(AM$1,Formulacion!$1:$1,0),FALSE)) -> 45 | AN6: =IF(VLOOKUP($B6,Formulacion!$A:$BE,MATCH(AN$1,Formulacion!$1:$1,0),FALSE)="NA",1,VLOOKUP($B6,Formulacion!$A:$BE,MATCH(AN$1,Formulacion!$1:$1,0),FALSE)) -> 0.3 | AO6: NC | AP6: =IF(VLOOKUP($B6,Formulacion!$A:$BE,MATCH(AP$1,Formulacion!$1:$1,0),FALSE)="NA","NA",IF(D6=0,"",VLOOKUP($B6,Formulacion!$A:$BE,MATCH(AP$1,Formulacion!$1:$1,0),FALSE))) ->  | AQ6: X | AX6: NA | AY6: =IF(VLOOKUP($B6,Formulacion!$A:$BE,MATCH(AY$1,Formulacion!$1:$1,0),FALSE)="NA","NA",HLOOKUP(VLOOKUP($B6,Formulacion!$A:$BE,MATCH(AY$1,Formulacion!$1:$1,0),FALSE),$S:$AB,ROW(AY6),FALSE)) -> 0 | AZ6: NA | BA6: 1 | BB6: =IF(VLOOKUP($B6,Formulacion!$A:$BE,MATCH(BB$1,Formulacion!$1:$1,0),FALSE)="NA",1,VLOOKUP($B6,Formulacion!$A:$BE,MATCH(BB$1,Formulacion!$1:$1,0),FALSE)) -> 0.9 | BC6: =IF(VLOOKUP($B6,Formulacion!$A:$BE,MATCH(BC$1,Formulacion!$1:$1,0),FALSE)="NA",1,VLOOKUP($B6,Formulacion!$A:$BE,MATCH(BC$1,Formulacion!$1:$1,0),FALSE)) -> 1 | BD6: 0 | BF6: =VLOOKUP(C6,[3]Listado_Proyectos!$A$2:$I$815,9,FALSE) ->  | BG6: 2019-02-28
A7: Proyecto con cuenta ENSA 2024.xls | B7: =[1]Listado_Proyectos!K7 -> DEQDM | C7: =[1]Listado_Proyectos!A7 -> 01-58.24.0019 | E7: =[1]Listado_Proyectos!I7 -> 2024-10-25 | F7: =[1]Listado_Proyectos!D7 -> SAN MIGUELITO | H7: =[1]Listado_Proyectos!N7 -> 17424.7 | I7: =[1]Listado_Proyectos!M7 -> 7972.48 | K7: =[1]Listado_Proyectos!O7 -> 0 | N7: =[1]Listado_Proyectos!P7 -> 25397.18 | P7: =[1]Listado_Proyectos!Q7+[1]Listado_Proyectos!R7 -> 0 | Q7: =IFERROR(VLOOKUP(C7,'[2]Postes 2024'!$A:$C,3,FALSE),0) -> 0 | R7: =IFERROR(VLOOKUP(C7,'[2]Líneas 2024'!$A:$C,3,FALSE),0) -> 0 | S7: =IF((VLOOKUP($B7,Formulacion!$A:$BE,MATCH(S$1,Formulacion!$1:$1,0),FALSE)="NA"),"NA",Q7) -> NA | T7: =IF((VLOOKUP($B7,Formulacion!$A:$BE,MATCH(T$1,Formulacion!$1:$1,0),FALSE)="NA"),"NA",R7) -> NA | U7: NA | V7: =IF(OR(VLOOKUP($B7,Formulacion!$A:$BE,MATCH(V$1,Formulacion!$1:$1,0),FALSE)="NA",$D7=0),"NA",IF($B7="DLSBT",MID($D7,ZanjaInicioBT,ZanjaFinBT-ZanjaInicioBT+1)*1,MID($D7,ZanjaInicio,ZanjaFin-ZanjaInicio+1)*1)) -> NA | W7: 1 | X7: =IF(OR(VLOOKUP($B7,Formulacion!$A:$BE,MATCH(X$1,Formulacion!$1:$1,0),FALSE)="NA",$D7=0),"NA",MID($D7,m2Inicio+INDIRECT(B7),m2Fin-m2Inicio+1)*1) -> NA | Y7: =IF(OR(VLOOKUP($B7,Formulacion!$A:$BE,MATCH(Y$1,Formulacion!$1:$1,0),FALSE)="NA",$D7=0),"NA",RIGHT($D7,4)*1) -> NA | Z7: =IF(OR(VLOOKUP($B7,Formulacion!$A:$BE,MATCH(Z$1,Formulacion!$1:$1,0),FALSE)="NA",$D7=0),"NA",RIGHT($D7,3)*1) -> NA | AA7: 1 | AB7: =IF(VLOOKUP($B7,Formulacion!$A:$BE,MATCH(AB$1,Formulacion!$1:$1,0),FALSE)="NA",1,IF(X7<=m2Min,0,1)) -> 1 | AC7: =IF(VLOOKUP($B7,Formulacion!$A:$BE,MATCH(AC$1,Formulacion!$1:$1,0),FALSE)="NA",1,IF(OR(E7<=FechaMin,E7>FechaMax),0,1)) -> 1 | AD7: =IF(VLOOKUP($B7,Formulacion!$A:$BE,MATCH(AD$1,Formulacion!$1:$1,0),FALSE)="NA",1,IF(H7<=MaterialesMin,0,1)) -> 1 | AE7: =IF(VLOOKUP($B7,Formulacion!$A:$BE,MATCH(AE$1,Formulacion!$1:$1,0),FALSE)="NA",1,IF(N7=0,0,IF(OR(I7/N7<=MObraMin,I7/N7>=MObraMax),MDOmin,1))) -> 1 | AF7: =IF(VLOOKUP($B7,Formulacion!$A:$BE,MATCH(AF$1,Formulacion!$1:$1,0),FALSE)="NA",1,IF(N7<=CostoTotalMin,0,1)) -> 1 | AG7: =IF(VLOOKUP($B7,Formulacion!$A:$BE,MATCH(AG$1,Formulacion!$1:$1,0),FALSE)="NA",1,IF(S7<PostesMin,0,1)) -> 1 | AH7: =IF(VLOOKUP($B7,Formulacion!$A:$BE,MATCH(AH$1,Formulacion!$1:$1,0),FALSE)="NA",1,IF(T7<INDIRECT(VLOOKUP(B7,Formulacion!$A:$BE,2,FALSE)),0,1)) -> 1 | AI7: 1 | AJ7: 25397.18 | AK7: 1 | AL7: =IF(VLOOKUP($B7,Formulacion!$A:$BE,MATCH(AL$1,Formulacion!$1:$1,0),FALSE)="NA","NA",HLOOKUP(VLOOKUP($B7,Formulacion!$A:$BE,MATCH(AL$1,Formulacion!$1:$1,0),FALSE),$S:$AB,ROW(AL7),FALSE)) -> NA | AM7: =IF(VLOOKUP($B7,Formulacion!$A:$BE,MATCH(AM$1,Formulacion!$1:$1,0),FALSE)="NA",1,VLOOKUP($B7,Formulacion!$A:$BE,MATCH(AM$1,Formulacion!$1:$1,0),FALSE)) -> 1 | AN7: =IF(VLOOKUP($B7,Formulacion!$A:$BE,MATCH(AN$1,Formulacion!$1:$1,0),FALSE)="NA",1,VLOOKUP($B7,Formulacion!$A:$BE,MATCH(AN$1,Formulacion!$1:$1,0),FALSE)) -> 1 | AO7: 1 | AP7: =IF(VLOOKUP($B7,Formulacion!$A:$BE,MATCH(AP$1,Formulacion!$1:$1,0),FALSE)="NA","NA",IF(D7=0,"",VLOOKUP($B7,Formulacion!$A:$BE,MATCH(AP$1,Formulacion!$1:$1,0),FALSE))) -> NA | AQ7: X | AX7: NA | AY7: =IF(VLOOKUP($B7,Formulacion!$A:$BE,MATCH(AY$1,Formulacion!$1:$1,0),FALSE)="NA","NA",HLOOKUP(VLOOKUP($B7,Formulacion!$A:$BE,MATCH(AY$1,Formulacion!$1:$1,0),FALSE),$S:$AB,ROW(AY7),FALSE)) -> NA | AZ7: NA | BA7: 1 | BB7: =IF(VLOOKUP($B7,Formulacion!$A:$BE,MATCH(BB$1,Formulacion!$1:$1,0),FALSE)="NA",1,VLOOKUP($B7,Formulacion!$A:$BE,MATCH(BB$1,Formulacion!$1:$1,0),FALSE)) -> 0.9 | BC7: =IF(VLOOKUP($B7,Formulacion!$A:$BE,MATCH(BC$1,Formulacion!$1:$1,0),FALSE)="NA",1,VLOOKUP($B7,Formulacion!$A:$BE,MATCH(BC$1,Formulacion!$1:$1,0),FALSE)) -> 1 | BD7: 22857.462 | BF7: =VLOOKUP(C7,[3]Listado_Proyectos!$A$2:$I$815,9,FALSE) ->  | BG7: 2019-02-28
A8: Proyecto con cuenta ENSA 2024.xls | B8: =[1]Listado_Proyectos!K8 -> AINAP | C8: =[1]Listado_Proyectos!A8 -> 01-17.24.0019 | E8: =[1]Listado_Proyectos!I8 -> 2024-09-25 | F8: =[1]Listado_Proyectos!D8 -> PORTOBELO | H8: =[1]Listado_Proyectos!N8 -> 435.23 | I8: =[1]Listado_Proyectos!M8 -> 243.08 | K8: =[1]Listado_Proyectos!O8 -> 0 | N8: =[1]Listado_Proyectos!P8 -> 678.31 | P8: =[1]Listado_Proyectos!Q8+[1]Listado_Proyectos!R8 -> 0 | Q8: =IFERROR(VLOOKUP(C8,'[2]Postes 2024'!$A:$C,3,FALSE),0) -> 7 | R8: =IFERROR(VLOOKUP(C8,'[2]Líneas 2024'!$A:$C,3,FALSE),0) -> 254.7559 | S8: =IF((VLOOKUP($B8,Formulacion!$A:$BE,MATCH(S$1,Formulacion!$1:$1,0),FALSE)="NA"),"NA",Q8) -> NA | T8: =IF((VLOOKUP($B8,Formulacion!$A:$BE,MATCH(T$1,Formulacion!$1:$1,0),FALSE)="NA"),"NA",R8) -> NA | U8: NA | V8: =IF(OR(VLOOKUP($B8,Formulacion!$A:$BE,MATCH(V$1,Formulacion!$1:$1,0),FALSE)="NA",$D8=0),"NA",IF($B8="DLSBT",MID($D8,ZanjaInicioBT,ZanjaFinBT-ZanjaInicioBT+1)*1,MID($D8,ZanjaInicio,ZanjaFin-ZanjaInicio+1)*1)) -> NA | W8: 1 | X8: =IF(OR(VLOOKUP($B8,Formulacion!$A:$BE,MATCH(X$1,Formulacion!$1:$1,0),FALSE)="NA",$D8=0),"NA",MID($D8,m2Inicio+INDIRECT(B8),m2Fin-m2Inicio+1)*1) -> NA | Y8: =IF(OR(VLOOKUP($B8,Formulacion!$A:$BE,MATCH(Y$1,Formulacion!$1:$1,0),FALSE)="NA",$D8=0),"NA",RIGHT($D8,4)*1) -> NA | Z8: =IF(OR(VLOOKUP($B8,Formulacion!$A:$BE,MATCH(Z$1,Formulacion!$1:$1,0),FALSE)="NA",$D8=0),"NA",RIGHT($D8,3)*1) -> NA | AA8: 1 | AB8: =IF(VLOOKUP($B8,Formulacion!$A:$BE,MATCH(AB$1,Formulacion!$1:$1,0),FALSE)="NA",1,IF(X8<=m2Min,0,1)) -> 1 | AC8: =IF(VLOOKUP($B8,Formulacion!$A:$BE,MATCH(AC$1,Formulacion!$1:$1,0),FALSE)="NA",1,IF(OR(E8<=FechaMin,E8>FechaMax),0,1)) -> 1 | AD8: =IF(VLOOKUP($B8,Formulacion!$A:$BE,MATCH(AD$1,Formulacion!$1:$1,0),FALSE)="NA",1,IF(H8<=MaterialesMin,0,1)) -> 1 | AE8: =IF(VLOOKUP($B8,Formulacion!$A:$BE,MATCH(AE$1,Formulacion!$1:$1,0),FALSE)="NA",1,IF(N8=0,0,IF(OR(I8/N8<=MObraMin,I8/N8>=MObraMax),MDOmin,1))) -> 1 | AF8: =IF(VLOOKUP($B8,Formulacion!$A:$BE,MATCH(AF$1,Formulacion!$1:$1,0),FALSE)="NA",1,IF(N8<=CostoTotalMin,0,1)) -> 1 | AG8: =IF(VLOOKUP($B8,Formulacion!$A:$BE,MATCH(AG$1,Formulacion!$1:$1,0),FALSE)="NA",1,IF(S8<PostesMin,0,1)) -> 1 | AH8: =IF(VLOOKUP($B8,Formulacion!$A:$BE,MATCH(AH$1,Formulacion!$1:$1,0),FALSE)="NA",1,IF(T8<INDIRECT(VLOOKUP(B8,Formulacion!$A:$BE,2,FALSE)),0,1)) -> 1 | AI8: 1 | AJ8: 678.31 | AK8: 1 | AL8: =IF(VLOOKUP($B8,Formulacion!$A:$BE,MATCH(AL$1,Formulacion!$1:$1,0),FALSE)="NA","NA",HLOOKUP(VLOOKUP($B8,Formulacion!$A:$BE,MATCH(AL$1,Formulacion!$1:$1,0),FALSE),$S:$AB,ROW(AL8),FALSE)) -> NA | AM8: =IF(VLOOKUP($B8,Formulacion!$A:$BE,MATCH(AM$1,Formulacion!$1:$1,0),FALSE)="NA",1,VLOOKUP($B8,Formulacion!$A:$BE,MATCH(AM$1,Formulacion!$1:$1,0),FALSE)) -> 1 | AN8: =IF(VLOOKUP($B8,Formulacion!$A:$BE,MATCH(AN$1,Formulacion!$1:$1,0),FALSE)="NA",1,VLOOKUP($B8,Formulacion!$A:$BE,MATCH(AN$1,Formulacion!$1:$1,0),FALSE)) -> 1 | AO8: 1 | AP8: =IF(VLOOKUP($B8,Formulacion!$A:$BE,MATCH(AP$1,Formulacion!$1:$1,0),FALSE)="NA","NA",IF(D8=0,"",VLOOKUP($B8,Formulacion!$A:$BE,MATCH(AP$1,Formulacion!$1:$1,0),FALSE))) -> NA | AQ8: X | AX8: NA | AY8: =IF(VLOOKUP($B8,Formulacion!$A:$BE,MATCH(AY$1,Formulacion!$1:$1,0),FALSE)="NA","NA",HLOOKUP(VLOOKUP($B8,Formulacion!$A:$BE,MATCH(AY$1,Formulacion!$1:$1,0),FALSE),$S:$AB,ROW(AY8),FALSE)) -> NA | AZ8: NA | BA8: 1 | BB8: =IF(VLOOKUP($B8,Formulacion!$A:$BE,MATCH(BB$1,Formulacion!$1:$1,0),FALSE)="NA",1,VLOOKUP($B8,Formulacion!$A:$BE,MATCH(BB$1,Formulacion!$1:$1,0),FALSE)) -> 0.9 | BC8: =IF(VLOOKUP($B8,Formulacion!$A:$BE,MATCH(BC$1,Formulacion!$1:$1,0),FALSE)="NA",1,VLOOKUP($B8,Formulacion!$A:$BE,MATCH(BC$1,Formulacion!$1:$1,0),FALSE)) -> 1 | BD8: 610.479 | BF8: =VLOOKUP(C8,[3]Listado_Proyectos!$A$2:$I$815,9,FALSE) ->  | BG8: 2019-02-28
A9: Proyecto con cuenta ENSA 2024.xls | B9: =[1]Listado_Proyectos!K9 -> DEQDM | C9: =[1]Listado_Proyectos!A9 -> 01-17.24.0019 | E9: =[1]Listado_Proyectos!I9 -> 2024-09-25 | F9: =[1]Listado_Proyectos!D9 -> PORTOBELO | H9: =[1]Listado_Proyectos!N9 -> 2316.88 | I9: =[1]Listado_Proyectos!M9 -> 1499.46 | K9: =[1]Listado_Proyectos!O9 -> 0 | N9: =[1]Listado_Proyectos!P9 -> 3816.34 | P9: =[1]Listado_Proyectos!Q9+[1]Listado_Proyectos!R9 -> 0 | Q9: =IFERROR(VLOOKUP(C9,'[2]Postes 2024'!$A:$C,3,FALSE),0) -> 7 | R9: =IFERROR(VLOOKUP(C9,'[2]Líneas 2024'!$A:$C,3,FALSE),0) -> 254.7559 | S9: =IF((VLOOKUP($B9,Formulacion!$A:$BE,MATCH(S$1,Formulacion!$1:$1,0),FALSE)="NA"),"NA",Q9) -> NA | T9: =IF((VLOOKUP($B9,Formulacion!$A:$BE,MATCH(T$1,Formulacion!$1:$1,0),FALSE)="NA"),"NA",R9) -> NA | U9: NA | V9: =IF(OR(VLOOKUP($B9,Formulacion!$A:$BE,MATCH(V$1,Formulacion!$1:$1,0),FALSE)="NA",$D9=0),"NA",IF($B9="DLSBT",MID($D9,ZanjaInicioBT,ZanjaFinBT-ZanjaInicioBT+1)*1,MID($D9,ZanjaInicio,ZanjaFin-ZanjaInicio+1)*1)) -> NA | W9: 1 | X9: =IF(OR(VLOOKUP($B9,Formulacion!$A:$BE,MATCH(X$1,Formulacion!$1:$1,0),FALSE)="NA",$D9=0),"NA",MID($D9,m2Inicio+INDIRECT(B9),m2Fin-m2Inicio+1)*1) -> NA | Y9: =IF(OR(VLOOKUP($B9,Formulacion!$A:$BE,MATCH(Y$1,Formulacion!$1:$1,0),FALSE)="NA",$D9=0),"NA",RIGHT($D9,4)*1) -> NA | Z9: =IF(OR(VLOOKUP($B9,Formulacion!$A:$BE,MATCH(Z$1,Formulacion!$1:$1,0),FALSE)="NA",$D9=0),"NA",RIGHT($D9,3)*1) -> NA | AA9: 1 | AB9: =IF(VLOOKUP($B9,Formulacion!$A:$BE,MATCH(AB$1,Formulacion!$1:$1,0),FALSE)="NA",1,IF(X9<=m2Min,0,1)) -> 1 | AC9: =IF(VLOOKUP($B9,Formulacion!$A:$BE,MATCH(AC$1,Formulacion!$1:$1,0),FALSE)="NA",1,IF(OR(E9<=FechaMin,E9>FechaMax),0,1)) -> 1 | AD9: =IF(VLOOKUP($B9,Formulacion!$A:$BE,MATCH(AD$1,Formulacion!$1:$1,0),FALSE)="NA",1,IF(H9<=MaterialesMin,0,1)) -> 1 | AE9: =IF(VLOOKUP($B9,Formulacion!$A:$BE,MATCH(AE$1,Formulacion!$1:$1,0),FALSE)="NA",1,IF(N9=0,0,IF(OR(I9/N9<=MObraMin,I9/N9>=MObraMax),MDOmin,1))) -> 1 | AF9: =IF(VLOOKUP($B9,Formulacion!$A:$BE,MATCH(AF$1,Formulacion!$1:$1,0),FALSE)="NA",1,IF(N9<=CostoTotalMin,0,1)) -> 1 | AG9: =IF(VLOOKUP($B9,Formulacion!$A:$BE,MATCH(AG$1,Formulacion!$1:$1,0),FALSE)="NA",1,IF(S9<PostesMin,0,1)) -> 1 | AH9: =IF(VLOOKUP($B9,Formulacion!$A:$BE,MATCH(AH$1,Formulacion!$1:$1,0),FALSE)="NA",1,IF(T9<INDIRECT(VLOOKUP(B9,Formulacion!$A:$BE,2,FALSE)),0,1)) -> 1 | AI9: 1 | AJ9: 3816.34 | AK9: 1 | AL9: =IF(VLOOKUP($B9,Formulacion!$A:$BE,MATCH(AL$1,Formulacion!$1:$1,0),FALSE)="NA","NA",HLOOKUP(VLOOKUP($B9,Formulacion!$A:$BE,MATCH(AL$1,Formulacion!$1:$1,0),FALSE),$S:$AB,ROW(AL9),FALSE)) -> NA | AM9: =IF(VLOOKUP($B9,Formulacion!$A:$BE,MATCH(AM$1,Formulacion!$1:$1,0),FALSE)="NA",1,VLOOKUP($B9,Formulacion!$A:$BE,MATCH(AM$1,Formulacion!$1:$1,0),FALSE)) -> 1 | AN9: =IF(VLOOKUP($B9,Formulacion!$A:$BE,MATCH(AN$1,Formulacion!$1:$1,0),FALSE)="NA",1,VLOOKUP($B9,Formulacion!$A:$BE,MATCH(AN$1,Formulacion!$1:$1,0),FALSE)) -> 1 | AO9: 1 | AP9: =IF(VLOOKUP($B9,Formulacion!$A:$BE,MATCH(AP$1,Formulacion!$1:$1,0),FALSE)="NA","NA",IF(D9=0,"",VLOOKUP($B9,Formulacion!$A:$BE,MATCH(AP$1,Formulacion!$1:$1,0),FALSE))) -> NA | AQ9: X | AX9: NA | AY9: =IF(VLOOKUP($B9,Formulacion!$A:$BE,MATCH(AY$1,Formulacion!$1:$1,0),FALSE)="NA","NA",HLOOKUP(VLOOKUP($B9,Formulacion!$A:$BE,MATCH(AY$1,Formulacion!$1:$1,0),FALSE),$S:$AB,ROW(AY9),FALSE)) -> NA | AZ9: NA | BA9: 1 | BB9: =IF(VLOOKUP($B9,Formulacion!$A:$BE,MATCH(BB$1,Formulacion!$1:$1,0),FALSE)="NA",1,VLOOKUP($B9,Formulacion!$A:$BE,MATCH(BB$1,Formulacion!$1:$1,0),FALSE)) -> 0.9 | BC9: =IF(VLOOKUP($B9,Formulacion!$A:$BE,MATCH(BC$1,Formulacion!$1:$1,0),FALSE)="NA",1,VLOOKUP($B9,Formulacion!$A:$BE,MATCH(BC$1,Formulacion!$1:$1,0),FALSE)) -> 1 | BD9: 3434.706 | BF9: =VLOOKUP(C9,[3]Listado_Proyectos!$A$2:$I$815,9,FALSE) ->  | BG9: 2019-02-28
A10: Proyecto con cuenta ENSA 2024.xls | B10: =[1]Listado_Proyectos!K10 -> DEQOT | C10: =[1]Listado_Proyectos!A10 -> 01-17.24.0019 | E10: =[1]Listado_Proyectos!I10 -> 2024-09-25 | F10: =[1]Listado_Proyectos!D10 -> PORTOBELO | H10: =[1]Listado_Proyectos!N10 -> 1254.39 | I10: =[1]Listado_Proyectos!M10 -> 817.92 | K10: =[1]Listado_Proyectos!O10 -> 0 | N10: =[1]Listado_Proyectos!P10 -> 2072.31 | P10: =[1]Listado_Proyectos!Q10+[1]Listado_Proyectos!R10 -> 0 | Q10: =IFERROR(VLOOKUP(C10,'[2]Postes 2024'!$A:$C,3,FALSE),0) -> 7 | R10: =IFERROR(VLOOKUP(C10,'[2]Líneas 2024'!$A:$C,3,FALSE),0) -> 254.7559 | S10: =IF((VLOOKUP($B10,Formulacion!$A:$BE,MATCH(S$1,Formulacion!$1:$1,0),FALSE)="NA"),"NA",Q10) -> NA | T10: =IF((VLOOKUP($B10,Formulacion!$A:$BE,MATCH(T$1,Formulacion!$1:$1,0),FALSE)="NA"),"NA",R10) -> NA | U10: NA | V10: =IF(OR(VLOOKUP($B10,Formulacion!$A:$BE,MATCH(V$1,Formulacion!$1:$1,0),FALSE)="NA",$D10=0),"NA",IF($B10="DLSBT",MID($D10,ZanjaInicioBT,ZanjaFinBT-ZanjaInicioBT+1)*1,MID($D10,ZanjaInicio,ZanjaFin-ZanjaInicio+1)*1)) -> NA | W10: 1 | X10: =IF(OR(VLOOKUP($B10,Formulacion!$A:$BE,MATCH(X$1,Formulacion!$1:$1,0),FALSE)="NA",$D10=0),"NA",MID($D10,m2Inicio+INDIRECT(B10),m2Fin-m2Inicio+1)*1) -> NA | Y10: =IF(OR(VLOOKUP($B10,Formulacion!$A:$BE,MATCH(Y$1,Formulacion!$1:$1,0),FALSE)="NA",$D10=0),"NA",RIGHT($D10,4)*1) -> NA | Z10: =IF(OR(VLOOKUP($B10,Formulacion!$A:$BE,MATCH(Z$1,Formulacion!$1:$1,0),FALSE)="NA",$D10=0),"NA",RIGHT($D10,3)*1) -> NA | AA10: 1 | AB10: =IF(VLOOKUP($B10,Formulacion!$A:$BE,MATCH(AB$1,Formulacion!$1:$1,0),FALSE)="NA",1,IF(X10<=m2Min,0,1)) -> 1 | AC10: =IF(VLOOKUP($B10,Formulacion!$A:$BE,MATCH(AC$1,Formulacion!$1:$1,0),FALSE)="NA",1,IF(OR(E10<=FechaMin,E10>FechaMax),0,1)) -> 1 | AD10: =IF(VLOOKUP($B10,Formulacion!$A:$BE,MATCH(AD$1,Formulacion!$1:$1,0),FALSE)="NA",1,IF(H10<=MaterialesMin,0,1)) -> 1 | AE10: =IF(VLOOKUP($B10,Formulacion!$A:$BE,MATCH(AE$1,Formulacion!$1:$1,0),FALSE)="NA",1,IF(N10=0,0,IF(OR(I10/N10<=MObraMin,I10/N10>=MObraMax),MDOmin,1))) -> 1 | AF10: =IF(VLOOKUP($B10,Formulacion!$A:$BE,MATCH(AF$1,Formulacion!$1:$1,0),FALSE)="NA",1,IF(N10<=CostoTotalMin,0,1)) -> 1 | AG10: =IF(VLOOKUP($B10,Formulacion!$A:$BE,MATCH(AG$1,Formulacion!$1:$1,0),FALSE)="NA",1,IF(S10<PostesMin,0,1)) -> 1 | AH10: =IF(VLOOKUP($B10,Formulacion!$A:$BE,MATCH(AH$1,Formulacion!$1:$1,0),FALSE)="NA",1,IF(T10<INDIRECT(VLOOKUP(B10,Formulacion!$A:$BE,2,FALSE)),0,1)) -> 1 | AI10: 1 | AJ10: 2072.31 | AK10: 1 | AL10: =IF(VLOOKUP($B10,Formulacion!$A:$BE,MATCH(AL$1,Formulacion!$1:$1,0),FALSE)="NA","NA",HLOOKUP(VLOOKUP($B10,Formulacion!$A:$BE,MATCH(AL$1,Formulacion!$1:$1,0),FALSE),$S:$AB,ROW(AL10),FALSE)) -> NA | AM10: =IF(VLOOKUP($B10,Formulacion!$A:$BE,MATCH(AM$1,Formulacion!$1:$1,0),FALSE)="NA",1,VLOOKUP($B10,Formulacion!$A:$BE,MATCH(AM$1,Formulacion!$1:$1,0),FALSE)) -> 1 | AN10: =IF(VLOOKUP($B10,Formulacion!$A:$BE,MATCH(AN$1,Formulacion!$1:$1,0),FALSE)="NA",1,VLOOKUP($B10,Formulacion!$A:$BE,MATCH(AN$1,Formulacion!$1:$1,0),FALSE)) -> 1 | AO10: 1 | AP10: =IF(VLOOKUP($B10,Formulacion!$A:$BE,MATCH(AP$1,Formulacion!$1:$1,0),FALSE)="NA","NA",IF(D10=0,"",VLOOKUP($B10,Formulacion!$A:$BE,MATCH(AP$1,Formulacion!$1:$1,0),FALSE))) -> NA | AQ10: X | AX10: NA | AY10: =IF(VLOOKUP($B10,Formulacion!$A:$BE,MATCH(AY$1,Formulacion!$1:$1,0),FALSE)="NA","NA",HLOOKUP(VLOOKUP($B10,Formulacion!$A:$BE,MATCH(AY$1,Formulacion!$1:$1,0),FALSE),$S:$AB,ROW(AY10),FALSE)) -> NA | AZ10: NA | BA10: 1 | BB10: =IF(VLOOKUP($B10,Formulacion!$A:$BE,MATCH(BB$1,Formulacion!$1:$1,0),FALSE)="NA",1,VLOOKUP($B10,Formulacion!$A:$BE,MATCH(BB$1,Formulacion!$1:$1,0),FALSE)) -> 0.9 | BC10: =IF(VLOOKUP($B10,Formulacion!$A:$BE,MATCH(BC$1,Formulacion!$1:$1,0),FALSE)="NA",1,VLOOKUP($B10,Formulacion!$A:$BE,MATCH(BC$1,Formulacion!$1:$1,0),FALSE)) -> 1 | BD10: 1865.079 | BF10: =VLOOKUP(C10,[3]Listado_Proyectos!$A$2:$I$815,9,FALSE) ->  | BG10: 2019-02-28
A11: Proyecto con cuenta ENSA 2024.xls | B11: =[1]Listado_Proyectos!K11 -> DLABT | C11: =[1]Listado_Proyectos!A11 -> 01-17.24.0019 | E11: =[1]Listado_Proyectos!I11 -> 2024-09-25 | F11: =[1]Listado_Proyectos!D11 -> PORTOBELO | H11: =[1]Listado_Proyectos!N11 -> 2918.47 | I11: =[1]Listado_Proyectos!M11 -> 2408.29 | K11: =[1]Listado_Proyectos!O11 -> 0 | N11: =[1]Listado_Proyectos!P11 -> 5326.76 | P11: =[1]Listado_Proyectos!Q11+[1]Listado_Proyectos!R11 -> 0 | Q11: =IFERROR(VLOOKUP(C11,'[2]Postes 2024'!$A:$C,3,FALSE),0) -> 7 | R11: =IFERROR(VLOOKUP(C11,'[2]Líneas 2024'!$A:$C,3,FALSE),0) -> 254.7559 | S11: =IF((VLOOKUP($B11,Formulacion!$A:$BE,MATCH(S$1,Formulacion!$1:$1,0),FALSE)="NA"),"NA",Q11) -> 7 | T11: =IF((VLOOKUP($B11,Formulacion!$A:$BE,MATCH(T$1,Formulacion!$1:$1,0),FALSE)="NA"),"NA",R11) -> 254.7559 | U11: 36.3937 | V11: =IF(OR(VLOOKUP($B11,Formulacion!$A:$BE,MATCH(V$1,Formulacion!$1:$1,0),FALSE)="NA",$D11=0),"NA",IF($B11="DLSBT",MID($D11,ZanjaInicioBT,ZanjaFinBT-ZanjaInicioBT+1)*1,MID($D11,ZanjaInicio,ZanjaFin-ZanjaInicio+1)*1)) -> NA | W11: 1 | X11: =IF(OR(VLOOKUP($B11,Formulacion!$A:$BE,MATCH(X$1,Formulacion!$1:$1,0),FALSE)="NA",$D11=0),"NA",MID($D11,m2Inicio+INDIRECT(B11),m2Fin-m2Inicio+1)*1) -> NA | Y11: =IF(OR(VLOOKUP($B11,Formulacion!$A:$BE,MATCH(Y$1,Formulacion!$1:$1,0),FALSE)="NA",$D11=0),"NA",RIGHT($D11,4)*1) -> NA | Z11: =IF(OR(VLOOKUP($B11,Formulacion!$A:$BE,MATCH(Z$1,Formulacion!$1:$1,0),FALSE)="NA",$D11=0),"NA",RIGHT($D11,3)*1) -> NA | AA11: 1 | AB11: =IF(VLOOKUP($B11,Formulacion!$A:$BE,MATCH(AB$1,Formulacion!$1:$1,0),FALSE)="NA",1,IF(X11<=m2Min,0,1)) -> 1 | AC11: =IF(VLOOKUP($B11,Formulacion!$A:$BE,MATCH(AC$1,Formulacion!$1:$1,0),FALSE)="NA",1,IF(OR(E11<=FechaMin,E11>FechaMax),0,1)) -> 1 | AD11: =IF(VLOOKUP($B11,Formulacion!$A:$BE,MATCH(AD$1,Formulacion!$1:$1,0),FALSE)="NA",1,IF(H11<=MaterialesMin,0,1)) -> 1 | AE11: =IF(VLOOKUP($B11,Formulacion!$A:$BE,MATCH(AE$1,Formulacion!$1:$1,0),FALSE)="NA",1,IF(N11=0,0,IF(OR(I11/N11<=MObraMin,I11/N11>=MObraMax),MDOmin,1))) -> 1 | AF11: =IF(VLOOKUP($B11,Formulacion!$A:$BE,MATCH(AF$1,Formulacion!$1:$1,0),FALSE)="NA",1,IF(N11<=CostoTotalMin,0,1)) -> 1 | AG11: =IF(VLOOKUP($B11,Formulacion!$A:$BE,MATCH(AG$1,Formulacion!$1:$1,0),FALSE)="NA",1,IF(S11<PostesMin,0,1)) -> 1 | AH11: =IF(VLOOKUP($B11,Formulacion!$A:$BE,MATCH(AH$1,Formulacion!$1:$1,0),FALSE)="NA",1,IF(T11<INDIRECT(VLOOKUP(B11,Formulacion!$A:$BE,2,FALSE)),0,1)) -> 1 | AI11: 1 | AJ11: 5326.76 | AK11: 1 | AL11: =IF(VLOOKUP($B11,Formulacion!$A:$BE,MATCH(AL$1,Formulacion!$1:$1,0),FALSE)="NA","NA",HLOOKUP(VLOOKUP($B11,Formulacion!$A:$BE,MATCH(AL$1,Formulacion!$1:$1,0),FALSE),$S:$AB,ROW(AL11),FALSE)) -> 36.3937 | AM11: =IF(VLOOKUP($B11,Formulacion!$A:$BE,MATCH(AM$1,Formulacion!$1:$1,0),FALSE)="NA",1,VLOOKUP($B11,Formulacion!$A:$BE,MATCH(AM$1,Formulacion!$1:$1,0),FALSE)) -> 30 | AN11: =IF(VLOOKUP($B11,Formulacion!$A:$BE,MATCH(AN$1,Formulacion!$1:$1,0),FALSE)="NA",1,VLOOKUP($B11,Formulacion!$A:$BE,MATCH(AN$1,Formulacion!$1:$1,0),FALSE)) -> 0.3 | AO11: CU | AP11: =IF(VLOOKUP($B11,Formulacion!$A:$BE,MATCH(AP$1,Formulacion!$1:$1,0),FALSE)="NA","NA",IF(D11=0,"",VLOOKUP($B11,Formulacion!$A:$BE,MATCH(AP$1,Formulacion!$1:$1,0),FALSE))) ->  | AQ11: X | AX11: NA | AY11: =IF(VLOOKUP($B11,Formulacion!$A:$BE,MATCH(AY$1,Formulacion!$1:$1,0),FALSE)="NA","NA",HLOOKUP(VLOOKUP($B11,Formulacion!$A:$BE,MATCH(AY$1,Formulacion!$1:$1,0),FALSE),$S:$AB,ROW(AY11),FALSE)) -> 254.7559 | AZ11: NA | BA11: 1 | BB11: =IF(VLOOKUP($B11,Formulacion!$A:$BE,MATCH(BB$1,Formulacion!$1:$1,0),FALSE)="NA",1,VLOOKUP($B11,Formulacion!$A:$BE,MATCH(BB$1,Formulacion!$1:$1,0),FALSE)) -> 0.9 | BC11: =IF(VLOOKUP($B11,Formulacion!$A:$BE,MATCH(BC$1,Formulacion!$1:$1,0),FALSE)="NA",1,VLOOKUP($B11,Formulacion!$A:$BE,MATCH(BC$1,Formulacion!$1:$1,0),FALSE)) -> 1 | BD11: 4794.084 | BF11: =VLOOKUP(C11,[3]Listado_Proyectos!$A$2:$I$815,9,FALSE) ->  | BG11: 2019-02-28
A12: Proyecto con cuenta ENSA 2024.xls | B12: =[1]Listado_Proyectos!K12 -> DLAMT-13,8 | C12: =[1]Listado_Proyectos!A12 -> 01-17.24.0019 | E12: =[1]Listado_Proyectos!I12 -> 2024-09-25 | F12: =[1]Listado_Proyectos!D12 -> PORTOBELO | H12: =[1]Listado_Proyectos!N12 -> 25585.29 | I12: =[1]Listado_Proyectos!M12 -> 15223.61 | K12: =[1]Listado_Proyectos!O12 -> 0 | N12: =[1]Listado_Proyectos!P12 -> 40808.9 | P12: =[1]Listado_Proyectos!Q12+[1]Listado_Proyectos!R12 -> 0 | Q12: =IFERROR(VLOOKUP(C12,'[2]Postes 2024'!$A:$C,3,FALSE),0) -> 7 | R12: =IFERROR(VLOOKUP(C12,'[2]Líneas 2024'!$A:$C,3,FALSE),0) -> 254.7559 | S12: =IF((VLOOKUP($B12,Formulacion!$A:$BE,MATCH(S$1,Formulacion!$1:$1,0),FALSE)="NA"),"NA",Q12) -> 7 | T12: =IF((VLOOKUP($B12,Formulacion!$A:$BE,MATCH(T$1,Formulacion!$1:$1,0),FALSE)="NA"),"NA",R12) -> 254.7559 | U12: 36.3937 | V12: =IF(OR(VLOOKUP($B12,Formulacion!$A:$BE,MATCH(V$1,Formulacion!$1:$1,0),FALSE)="NA",$D12=0),"NA",IF($B12="DLSBT",MID($D12,ZanjaInicioBT,ZanjaFinBT-ZanjaInicioBT+1)*1,MID($D12,ZanjaInicio,ZanjaFin-ZanjaInicio+1)*1)) -> NA | W12: 1 | X12: =IF(OR(VLOOKUP($B12,Formulacion!$A:$BE,MATCH(X$1,Formulacion!$1:$1,0),FALSE)="NA",$D12=0),"NA",MID($D12,m2Inicio+INDIRECT(B12),m2Fin-m2Inicio+1)*1) -> NA | Y12: =IF(OR(VLOOKUP($B12,Formulacion!$A:$BE,MATCH(Y$1,Formulacion!$1:$1,0),FALSE)="NA",$D12=0),"NA",RIGHT($D12,4)*1) -> NA | Z12: =IF(OR(VLOOKUP($B12,Formulacion!$A:$BE,MATCH(Z$1,Formulacion!$1:$1,0),FALSE)="NA",$D12=0),"NA",RIGHT($D12,3)*1) -> NA | AA12: 1 | AB12: =IF(VLOOKUP($B12,Formulacion!$A:$BE,MATCH(AB$1,Formulacion!$1:$1,0),FALSE)="NA",1,IF(X12<=m2Min,0,1)) -> 1 | AC12: =IF(VLOOKUP($B12,Formulacion!$A:$BE,MATCH(AC$1,Formulacion!$1:$1,0),FALSE)="NA",1,IF(OR(E12<=FechaMin,E12>FechaMax),0,1)) -> 1 | AD12: =IF(VLOOKUP($B12,Formulacion!$A:$BE,MATCH(AD$1,Formulacion!$1:$1,0),FALSE)="NA",1,IF(H12<=MaterialesMin,0,1)) -> 1 | AE12: =IF(VLOOKUP($B12,Formulacion!$A:$BE,MATCH(AE$1,Formulacion!$1:$1,0),FALSE)="NA",1,IF(N12=0,0,IF(OR(I12/N12<=MObraMin,I12/N12>=MObraMax),MDOmin,1))) -> 1 | AF12: =IF(VLOOKUP($B12,Formulacion!$A:$BE,MATCH(AF$1,Formulacion!$1:$1,0),FALSE)="NA",1,IF(N12<=CostoTotalMin,0,1)) -> 1 | AG12: =IF(VLOOKUP($B12,Formulacion!$A:$BE,MATCH(AG$1,Formulacion!$1:$1,0),FALSE)="NA",1,IF(S12<PostesMin,0,1)) -> 1 | AH12: =IF(VLOOKUP($B12,Formulacion!$A:$BE,MATCH(AH$1,Formulacion!$1:$1,0),FALSE)="NA",1,IF(T12<INDIRECT(VLOOKUP(B12,Formulacion!$A:$BE,2,FALSE)),0,1)) -> 1 | AI12: 1 | AJ12: 40808.9 | AK12: 1 | AL12: =IF(VLOOKUP($B12,Formulacion!$A:$BE,MATCH(AL$1,Formulacion!$1:$1,0),FALSE)="NA","NA",HLOOKUP(VLOOKUP($B12,Formulacion!$A:$BE,MATCH(AL$1,Formulacion!$1:$1,0),FALSE),$S:$AB,ROW(AL12),FALSE)) -> 36.3937 | AM12: =IF(VLOOKUP($B12,Formulacion!$A:$BE,MATCH(AM$1,Formulacion!$1:$1,0),FALSE)="NA",1,VLOOKUP($B12,Formulacion!$A:$BE,MATCH(AM$1,Formulacion!$1:$1,0),FALSE)) -> 45 | AN12: =IF(VLOOKUP($B12,Formulacion!$A:$BE,MATCH(AN$1,Formulacion!$1:$1,0),FALSE)="NA",1,VLOOKUP($B12,Formulacion!$A:$BE,MATCH(AN$1,Formulacion!$1:$1,0),FALSE)) -> 0.3 | AO12: CU | AP12: =IF(VLOOKUP($B12,Formulacion!$A:$BE,MATCH(AP$1,Formulacion!$1:$1,0),FALSE)="NA","NA",IF(D12=0,"",VLOOKUP($B12,Formulacion!$A:$BE,MATCH(AP$1,Formulacion!$1:$1,0),FALSE))) ->  | AQ12: X | AX12: NA | AY12: =IF(VLOOKUP($B12,Formulacion!$A:$BE,MATCH(AY$1,Formulacion!$1:$1,0),FALSE)="NA","NA",HLOOKUP(VLOOKUP($B12,Formulacion!$A:$BE,MATCH(AY$1,Formulacion!$1:$1,0),FALSE),$S:$AB,ROW(AY12),FALSE)) -> 254.7559 | AZ12: NA | BA12: 1 | BB12: =IF(VLOOKUP($B12,Formulacion!$A:$BE,MATCH(BB$1,Formulacion!$1:$1,0),FALSE)="NA",1,VLOOKUP($B12,Formulacion!$A:$BE,MATCH(BB$1,Formulacion!$1:$1,0),FALSE)) -> 0.9 | BC12: =IF(VLOOKUP($B12,Formulacion!$A:$BE,MATCH(BC$1,Formulacion!$1:$1,0),FALSE)="NA",1,VLOOKUP($B12,Formulacion!$A:$BE,MATCH(BC$1,Formulacion!$1:$1,0),FALSE)) -> 1 | BD12: 36728.01 | BF12: =VLOOKUP(C12,[3]Listado_Proyectos!$A$2:$I$815,9,FALSE) ->  | BG12: 2019-02-28
A13: Proyecto con cuenta ENSA 2024.xls | B13: =[1]Listado_Proyectos!K13 -> CMEDI | C13: =[1]Listado_Proyectos!A13 -> 01-06.24.0008 | E13: =[1]Listado_Proyectos!I13 -> 2024-08-22 | F13: =[1]Listado_Proyectos!D13 -> COLON | H13: =[1]Listado_Proyectos!N13 -> 8005.29 | I13: =[1]Listado_Proyectos!M13 -> 2345.19 | K13: =[1]Listado_Proyectos!O13 -> 0 | N13: =[1]Listado_Proyectos!P13 -> 10350.48 | P13: =[1]Listado_Proyectos!Q13+[1]Listado_Proyectos!R13 -> 0 | Q13: =IFERROR(VLOOKUP(C13,'[2]Postes 2024'!$A:$C,3,FALSE),0) -> 2 | R13: =IFERROR(VLOOKUP(C13,'[2]Líneas 2024'!$A:$C,3,FALSE),0) -> 77.8686 | S13: =IF((VLOOKUP($B13,Formulacion!$A:$BE,MATCH(S$1,Formulacion!$1:$1,0),FALSE)="NA"),"NA",Q13) -> NA | T13: =IF((VLOOKUP($B13,Formulacion!$A:$BE,MATCH(T$1,Formulacion!$1:$1,0),FALSE)="NA"),"NA",R13) -> NA | U13: NA | V13: =IF(OR(VLOOKUP($B13,Formulacion!$A:$BE,MATCH(V$1,Formulacion!$1:$1,0),FALSE)="NA",$D13=0),"NA",IF($B13="DLSBT",MID($D13,ZanjaInicioBT,ZanjaFinBT-ZanjaInicioBT+1)*1,MID($D13,ZanjaInicio,ZanjaFin-ZanjaInicio+1)*1)) -> NA | W13: 1 | X13: =IF(OR(VLOOKUP($B13,Formulacion!$A:$BE,MATCH(X$1,Formulacion!$1:$1,0),FALSE)="NA",$D13=0),"NA",MID($D13,m2Inicio+INDIRECT(B13),m2Fin-m2Inicio+1)*1) -> NA | Y13: =IF(OR(VLOOKUP($B13,Formulacion!$A:$BE,MATCH(Y$1,Formulacion!$1:$1,0),FALSE)="NA",$D13=0),"NA",RIGHT($D13,4)*1) -> NA | Z13: =IF(OR(VLOOKUP($B13,Formulacion!$A:$BE,MATCH(Z$1,Formulacion!$1:$1,0),FALSE)="NA",$D13=0),"NA",RIGHT($D13,3)*1) -> NA | AA13: 1 | AB13: =IF(VLOOKUP($B13,Formulacion!$A:$BE,MATCH(AB$1,Formulacion!$1:$1,0),FALSE)="NA",1,IF(X13<=m2Min,0,1)) -> 1 | AC13: =IF(VLOOKUP($B13,Formulacion!$A:$BE,MATCH(AC$1,Formulacion!$1:$1,0),FALSE)="NA",1,IF(OR(E13<=FechaMin,E13>FechaMax),0,1)) -> 1 | AD13: =IF(VLOOKUP($B13,Formulacion!$A:$BE,MATCH(AD$1,Formulacion!$1:$1,0),FALSE)="NA",1,IF(H13<=MaterialesMin,0,1)) -> 1 | AE13: =IF(VLOOKUP($B13,Formulacion!$A:$BE,MATCH(AE$1,Formulacion!$1:$1,0),FALSE)="NA",1,IF(N13=0,0,IF(OR(I13/N13<=MObraMin,I13/N13>=MObraMax),MDOmin,1))) -> 1 | AF13: =IF(VLOOKUP($B13,Formulacion!$A:$BE,MATCH(AF$1,Formulacion!$1:$1,0),FALSE)="NA",1,IF(N13<=CostoTotalMin,0,1)) -> 1 | AG13: =IF(VLOOKUP($B13,Formulacion!$A:$BE,MATCH(AG$1,Formulacion!$1:$1,0),FALSE)="NA",1,IF(S13<PostesMin,0,1)) -> 1 | AH13: =IF(VLOOKUP($B13,Formulacion!$A:$BE,MATCH(AH$1,Formulacion!$1:$1,0),FALSE)="NA",1,IF(T13<INDIRECT(VLOOKUP(B13,Formulacion!$A:$BE,2,FALSE)),0,1)) -> 1 | AI13: 1 | AJ13: 10350.48 | AK13: 1 | AL13: =IF(VLOOKUP($B13,Formulacion!$A:$BE,MATCH(AL$1,Formulacion!$1:$1,0),FALSE)="NA","NA",HLOOKUP(VLOOKUP($B13,Formulacion!$A:$BE,MATCH(AL$1,Formulacion!$1:$1,0),FALSE),$S:$AB,ROW(AL13),FALSE)) -> NA | AM13: =IF(VLOOKUP($B13,Formulacion!$A:$BE,MATCH(AM$1,Formulacion!$1:$1,0),FALSE)="NA",1,VLOOKUP($B13,Formulacion!$A:$BE,MATCH(AM$1,Formulacion!$1:$1,0),FALSE)) -> 1 | AN13: =IF(VLOOKUP($B13,Formulacion!$A:$BE,MATCH(AN$1,Formulacion!$1:$1,0),FALSE)="NA",1,VLOOKUP($B13,Formulacion!$A:$BE,MATCH(AN$1,Formulacion!$1:$1,0),FALSE)) -> 1 | AO13: 1 | AP13: =IF(VLOOKUP($B13,Formulacion!$A:$BE,MATCH(AP$1,Formulacion!$1:$1,0),FALSE)="NA","NA",IF(D13=0,"",VLOOKUP($B13,Formulacion!$A:$BE,MATCH(AP$1,Formulacion!$1:$1,0),FALSE))) -> NA | AQ13: X | AX13: NA | AY13: =IF(VLOOKUP($B13,Formulacion!$A:$BE,MATCH(AY$1,Formulacion!$1:$1,0),FALSE)="NA","NA",HLOOKUP(VLOOKUP($B13,Formulacion!$A:$BE,MATCH(AY$1,Formulacion!$1:$1,0),FALSE),$S:$AB,ROW(AY13),FALSE)) -> NA | AZ13: NA | BA13: 1 | BB13: =IF(VLOOKUP($B13,Formulacion!$A:$BE,MATCH(BB$1,Formulacion!$1:$1,0),FALSE)="NA",1,VLOOKUP($B13,Formulacion!$A:$BE,MATCH(BB$1,Formulacion!$1:$1,0),FALSE)) -> 0.9 | BC13: =IF(VLOOKUP($B13,Formulacion!$A:$BE,MATCH(BC$1,Formulacion!$1:$1,0),FALSE)="NA",1,VLOOKUP($B13,Formulacion!$A:$BE,MATCH(BC$1,Formulacion!$1:$1,0),FALSE)) -> 1 | BD13: 9315.432 | BF13: =VLOOKUP(C13,[3]Listado_Proyectos!$A$2:$I$815,9,FALSE) ->  | BG13: 2019-02-28
A14: Proyecto con cuenta ENSA 2024.xls | B14: =[1]Listado_Proyectos!K14 -> DACBT | C14: =[1]Listado_Proyectos!A14 -> 01-06.24.0008 | E14: =[1]Listado_Proyectos!I14 -> 2024-08-22 | F14: =[1]Listado_Proyectos!D14 -> COLON | H14: =[1]Listado_Proyectos!N14 -> 15215.53 | I14: =[1]Listado_Proyectos!M14 -> 4136.5 | K14: =[1]Listado_Proyectos!O14 -> 0 | N14: =[1]Listado_Proyectos!P14 -> 19352.03 | P14: =[1]Listado_Proyectos!Q14+[1]Listado_Proyectos!R14 -> 0 | Q14: =IFERROR(VLOOKUP(C14,'[2]Postes 2024'!$A:$C,3,FALSE),0) -> 2 | R14: =IFERROR(VLOOKUP(C14,'[2]Líneas 2024'!$A:$C,3,FALSE),0) -> 77.8686 | S14: =IF((VLOOKUP($B14,Formulacion!$A:$BE,MATCH(S$1,Formulacion!$1:$1,0),FALSE)="NA"),"NA",Q14) -> NA | T14: =IF((VLOOKUP($B14,Formulacion!$A:$BE,MATCH(T$1,Formulacion!$1:$1,0),FALSE)="NA"),"NA",R14) -> NA | U14: NA | V14: =IF(OR(VLOOKUP($B14,Formulacion!$A:$BE,MATCH(V$1,Formulacion!$1:$1,0),FALSE)="NA",$D14=0),"NA",IF($B14="DLSBT",MID($D14,ZanjaInicioBT,ZanjaFinBT-ZanjaInicioBT+1)*1,MID($D14,ZanjaInicio,ZanjaFin-ZanjaInicio+1)*1)) -> NA | W14: 1 | X14: =IF(OR(VLOOKUP($B14,Formulacion!$A:$BE,MATCH(X$1,Formulacion!$1:$1,0),FALSE)="NA",$D14=0),"NA",MID($D14,m2Inicio+INDIRECT(B14),m2Fin-m2Inicio+1)*1) -> NA | Y14: =IF(OR(VLOOKUP($B14,Formulacion!$A:$BE,MATCH(Y$1,Formulacion!$1:$1,0),FALSE)="NA",$D14=0),"NA",RIGHT($D14,4)*1) -> NA | Z14: =IF(OR(VLOOKUP($B14,Formulacion!$A:$BE,MATCH(Z$1,Formulacion!$1:$1,0),FALSE)="NA",$D14=0),"NA",RIGHT($D14,3)*1) -> NA | AA14: 1 | AB14: =IF(VLOOKUP($B14,Formulacion!$A:$BE,MATCH(AB$1,Formulacion!$1:$1,0),FALSE)="NA",1,IF(X14<=m2Min,0,1)) -> 1 | AC14: =IF(VLOOKUP($B14,Formulacion!$A:$BE,MATCH(AC$1,Formulacion!$1:$1,0),FALSE)="NA",1,IF(OR(E14<=FechaMin,E14>FechaMax),0,1)) -> 1 | AD14: =IF(VLOOKUP($B14,Formulacion!$A:$BE,MATCH(AD$1,Formulacion!$1:$1,0),FALSE)="NA",1,IF(H14<=MaterialesMin,0,1)) -> 1 | AE14: =IF(VLOOKUP($B14,Formulacion!$A:$BE,MATCH(AE$1,Formulacion!$1:$1,0),FALSE)="NA",1,IF(N14=0,0,IF(OR(I14/N14<=MObraMin,I14/N14>=MObraMax),MDOmin,1))) -> 1 | AF14: =IF(VLOOKUP($B14,Formulacion!$A:$BE,MATCH(AF$1,Formulacion!$1:$1,0),FALSE)="NA",1,IF(N14<=CostoTotalMin,0,1)) -> 1 | AG14: =IF(VLOOKUP($B14,Formulacion!$A:$BE,MATCH(AG$1,Formulacion!$1:$1,0),FALSE)="NA",1,IF(S14<PostesMin,0,1)) -> 1 | AH14: =IF(VLOOKUP($B14,Formulacion!$A:$BE,MATCH(AH$1,Formulacion!$1:$1,0),FALSE)="NA",1,IF(T14<INDIRECT(VLOOKUP(B14,Formulacion!$A:$BE,2,FALSE)),0,1)) -> 1 | AI14: 1 | AJ14: 19352.03 | AK14: 1 | AL14: =IF(VLOOKUP($B14,Formulacion!$A:$BE,MATCH(AL$1,Formulacion!$1:$1,0),FALSE)="NA","NA",HLOOKUP(VLOOKUP($B14,Formulacion!$A:$BE,MATCH(AL$1,Formulacion!$1:$1,0),FALSE),$S:$AB,ROW(AL14),FALSE)) -> NA | AM14: =IF(VLOOKUP($B14,Formulacion!$A:$BE,MATCH(AM$1,Formulacion!$1:$1,0),FALSE)="NA",1,VLOOKUP($B14,Formulacion!$A:$BE,MATCH(AM$1,Formulacion!$1:$1,0),FALSE)) -> 1 | AN14: =IF(VLOOKUP($B14,Formulacion!$A:$BE,MATCH(AN$1,Formulacion!$1:$1,0),FALSE)="NA",1,VLOOKUP($B14,Formulacion!$A:$BE,MATCH(AN$1,Formulacion!$1:$1,0),FALSE)) -> 1 | AO14: 1 | AP14: =IF(VLOOKUP($B14,Formulacion!$A:$BE,MATCH(AP$1,Formulacion!$1:$1,0),FALSE)="NA","NA",IF(D14=0,"",VLOOKUP($B14,Formulacion!$A:$BE,MATCH(AP$1,Formulacion!$1:$1,0),FALSE))) -> NA | AQ14: X | AX14: NA | AY14: =IF(VLOOKUP($B14,Formulacion!$A:$BE,MATCH(AY$1,Formulacion!$1:$1,0),FALSE)="NA","NA",HLOOKUP(VLOOKUP($B14,Formulacion!$A:$BE,MATCH(AY$1,Formulacion!$1:$1,0),FALSE),$S:$AB,ROW(AY14),FALSE)) -> NA | AZ14: NA | BA14: 1 | BB14: =IF(VLOOKUP($B14,Formulacion!$A:$BE,MATCH(BB$1,Formulacion!$1:$1,0),FALSE)="NA",1,VLOOKUP($B14,Formulacion!$A:$BE,MATCH(BB$1,Formulacion!$1:$1,0),FALSE)) -> 0.9 | BC14: =IF(VLOOKUP($B14,Formulacion!$A:$BE,MATCH(BC$1,Formulacion!$1:$1,0),FALSE)="NA",1,VLOOKUP($B14,Formulacion!$A:$BE,MATCH(BC$1,Formulacion!$1:$1,0),FALSE)) -> 1 | BD14: 17416.827 | BF14: =VLOOKUP(C14,[3]Listado_Proyectos!$A$2:$I$815,9,FALSE) ->  | BG14: 2019-02-28
A15: Proyecto con cuenta ENSA 2024.xls | B15: =[1]Listado_Proyectos!K15 -> DEQOT | C15: =[1]Listado_Proyectos!A15 -> 01-06.24.0008 | E15: =[1]Listado_Proyectos!I15 -> 2024-08-22 | F15: =[1]Listado_Proyectos!D15 -> COLON | H15: =[1]Listado_Proyectos!N15 -> 1216.51 | I15: =[1]Listado_Proyectos!M15 -> 600.73 | K15: =[1]Listado_Proyectos!O15 -> 0 | N15: =[1]Listado_Proyectos!P15 -> 1817.24 | P15: =[1]Listado_Proyectos!Q15+[1]Listado_Proyectos!R15 -> 0 | Q15: =IFERROR(VLOOKUP(C15,'[2]Postes 2024'!$A:$C,3,FALSE),0) -> 2 | R15: =IFERROR(VLOOKUP(C15,'[2]Líneas 2024'!$A:$C,3,FALSE),0) -> 77.8686 | S15: =IF((VLOOKUP($B15,Formulacion!$A:$BE,MATCH(S$1,Formulacion!$1:$1,0),FALSE)="NA"),"NA",Q15) -> NA | T15: =IF((VLOOKUP($B15,Formulacion!$A:$BE,MATCH(T$1,Formulacion!$1:$1,0),FALSE)="NA"),"NA",R15) -> NA | U15: NA | V15: =IF(OR(VLOOKUP($B15,Formulacion!$A:$BE,MATCH(V$1,Formulacion!$1:$1,0),FALSE)="NA",$D15=0),"NA",IF($B15="DLSBT",MID($D15,ZanjaInicioBT,ZanjaFinBT-ZanjaInicioBT+1)*1,MID($D15,ZanjaInicio,ZanjaFin-ZanjaInicio+1)*1)) -> NA | W15: 1 | X15: =IF(OR(VLOOKUP($B15,Formulacion!$A:$BE,MATCH(X$1,Formulacion!$1:$1,0),FALSE)="NA",$D15=0),"NA",MID($D15,m2Inicio+INDIRECT(B15),m2Fin-m2Inicio+1)*1) -> NA | Y15: =IF(OR(VLOOKUP($B15,Formulacion!$A:$BE,MATCH(Y$1,Formulacion!$1:$1,0),FALSE)="NA",$D15=0),"NA",RIGHT($D15,4)*1) -> NA | Z15: =IF(OR(VLOOKUP($B15,Formulacion!$A:$BE,MATCH(Z$1,Formulacion!$1:$1,0),FALSE)="NA",$D15=0),"NA",RIGHT($D15,3)*1) -> NA | AA15: 1 | AB15: =IF(VLOOKUP($B15,Formulacion!$A:$BE,MATCH(AB$1,Formulacion!$1:$1,0),FALSE)="NA",1,IF(X15<=m2Min,0,1)) -> 1 | AC15: =IF(VLOOKUP($B15,Formulacion!$A:$BE,MATCH(AC$1,Formulacion!$1:$1,0),FALSE)="NA",1,IF(OR(E15<=FechaMin,E15>FechaMax),0,1)) -> 1 | AD15: =IF(VLOOKUP($B15,Formulacion!$A:$BE,MATCH(AD$1,Formulacion!$1:$1,0),FALSE)="NA",1,IF(H15<=MaterialesMin,0,1)) -> 1 | AE15: =IF(VLOOKUP($B15,Formulacion!$A:$BE,MATCH(AE$1,Formulacion!$1:$1,0),FALSE)="NA",1,IF(N15=0,0,IF(OR(I15/N15<=MObraMin,I15/N15>=MObraMax),MDOmin,1))) -> 1 | AF15: =IF(VLOOKUP($B15,Formulacion!$A:$BE,MATCH(AF$1,Formulacion!$1:$1,0),FALSE)="NA",1,IF(N15<=CostoTotalMin,0,1)) -> 1 | AG15: =IF(VLOOKUP($B15,Formulacion!$A:$BE,MATCH(AG$1,Formulacion!$1:$1,0),FALSE)="NA",1,IF(S15<PostesMin,0,1)) -> 1 | AH15: =IF(VLOOKUP($B15,Formulacion!$A:$BE,MATCH(AH$1,Formulacion!$1:$1,0),FALSE)="NA",1,IF(T15<INDIRECT(VLOOKUP(B15,Formulacion!$A:$BE,2,FALSE)),0,1)) -> 1 | AI15: 1 | AJ15: 1817.24 | AK15: 1 | AL15: =IF(VLOOKUP($B15,Formulacion!$A:$BE,MATCH(AL$1,Formulacion!$1:$1,0),FALSE)="NA","NA",HLOOKUP(VLOOKUP($B15,Formulacion!$A:$BE,MATCH(AL$1,Formulacion!$1:$1,0),FALSE),$S:$AB,ROW(AL15),FALSE)) -> NA | AM15: =IF(VLOOKUP($B15,Formulacion!$A:$BE,MATCH(AM$1,Formulacion!$1:$1,0),FALSE)="NA",1,VLOOKUP($B15,Formulacion!$A:$BE,MATCH(AM$1,Formulacion!$1:$1,0),FALSE)) -> 1 | AN15: =IF(VLOOKUP($B15,Formulacion!$A:$BE,MATCH(AN$1,Formulacion!$1:$1,0),FALSE)="NA",1,VLOOKUP($B15,Formulacion!$A:$BE,MATCH(AN$1,Formulacion!$1:$1,0),FALSE)) -> 1 | AO15: 1 | AP15: =IF(VLOOKUP($B15,Formulacion!$A:$BE,MATCH(AP$1,Formulacion!$1:$1,0),FALSE)="NA","NA",IF(D15=0,"",VLOOKUP($B15,Formulacion!$A:$BE,MATCH(AP$1,Formulacion!$1:$1,0),FALSE))) -> NA | AQ15: X | AX15: NA | AY15: =IF(VLOOKUP($B15,Formulacion!$A:$BE,MATCH(AY$1,Formulacion!$1:$1,0),FALSE)="NA","NA",HLOOKUP(VLOOKUP($B15,Formulacion!$A:$BE,MATCH(AY$1,Formulacion!$1:$1,0),FALSE),$S:$AB,ROW(AY15),FALSE)) -> NA | AZ15: NA | BA15: 1 | BB15: =IF(VLOOKUP($B15,Formulacion!$A:$BE,MATCH(BB$1,Formulacion!$1:$1,0),FALSE)="NA",1,VLOOKUP($B15,Formulacion!$A:$BE,MATCH(BB$1,Formulacion!$1:$1,0),FALSE)) -> 0.9 | BC15: =IF(VLOOKUP($B15,Formulacion!$A:$BE,MATCH(BC$1,Formulacion!$1:$1,0),FALSE)="NA",1,VLOOKUP($B15,Formulacion!$A:$BE,MATCH(BC$1,Formulacion!$1:$1,0),FALSE)) -> 1 | BD15: 1635.516 | BF15: =VLOOKUP(C15,[3]Listado_Proyectos!$A$2:$I$815,9,FALSE) ->  | BG15: 2019-02-28
A16: Proyecto con cuenta ENSA 2024.xls | B16: =[1]Listado_Proyectos!K16 -> DLAMT-13,8 | C16: =[1]Listado_Proyectos!A16 -> 01-06.24.0008 | E16: =[1]Listado_Proyectos!I16 -> 2024-08-22 | F16: =[1]Listado_Proyectos!D16 -> COLON | H16: =[1]Listado_Proyectos!N16 -> 2033.91 | I16: =[1]Listado_Proyectos!M16 -> 2569.49 | K16: =[1]Listado_Proyectos!O16 -> 0 | N16: =[1]Listado_Proyectos!P16 -> 4603.4 | P16: =[1]Listado_Proyectos!Q16+[1]Listado_Proyectos!R16 -> 0 | Q16: =IFERROR(VLOOKUP(C16,'[2]Postes 2024'!$A:$C,3,FALSE),0) -> 2 | R16: =IFERROR(VLOOKUP(C16,'[2]Líneas 2024'!$A:$C,3,FALSE),0) -> 77.8686 | S16: =IF((VLOOKUP($B16,Formulacion!$A:$BE,MATCH(S$1,Formulacion!$1:$1,0),FALSE)="NA"),"NA",Q16) -> 2 | T16: =IF((VLOOKUP($B16,Formulacion!$A:$BE,MATCH(T$1,Formulacion!$1:$1,0),FALSE)="NA"),"NA",R16) -> 77.8686 | U16: 38.9343 | V16: =IF(OR(VLOOKUP($B16,Formulacion!$A:$BE,MATCH(V$1,Formulacion!$1:$1,0),FALSE)="NA",$D16=0),"NA",IF($B16="DLSBT",MID($D16,ZanjaInicioBT,ZanjaFinBT-ZanjaInicioBT+1)*1,MID($D16,ZanjaInicio,ZanjaFin-ZanjaInicio+1)*1)) -> NA | W16: 1 | X16: =IF(OR(VLOOKUP($B16,Formulacion!$A:$BE,MATCH(X$1,Formulacion!$1:$1,0),FALSE)="NA",$D16=0),"NA",MID($D16,m2Inicio+INDIRECT(B16),m2Fin-m2Inicio+1)*1) -> NA | Y16: =IF(OR(VLOOKUP($B16,Formulacion!$A:$BE,MATCH(Y$1,Formulacion!$1:$1,0),FALSE)="NA",$D16=0),"NA",RIGHT($D16,4)*1) -> NA | Z16: =IF(OR(VLOOKUP($B16,Formulacion!$A:$BE,MATCH(Z$1,Formulacion!$1:$1,0),FALSE)="NA",$D16=0),"NA",RIGHT($D16,3)*1) -> NA | AA16: 1 | AB16: =IF(VLOOKUP($B16,Formulacion!$A:$BE,MATCH(AB$1,Formulacion!$1:$1,0),FALSE)="NA",1,IF(X16<=m2Min,0,1)) -> 1 | AC16: =IF(VLOOKUP($B16,Formulacion!$A:$BE,MATCH(AC$1,Formulacion!$1:$1,0),FALSE)="NA",1,IF(OR(E16<=FechaMin,E16>FechaMax),0,1)) -> 1 | AD16: =IF(VLOOKUP($B16,Formulacion!$A:$BE,MATCH(AD$1,Formulacion!$1:$1,0),FALSE)="NA",1,IF(H16<=MaterialesMin,0,1)) -> 1 | AE16: =IF(VLOOKUP($B16,Formulacion!$A:$BE,MATCH(AE$1,Formulacion!$1:$1,0),FALSE)="NA",1,IF(N16=0,0,IF(OR(I16/N16<=MObraMin,I16/N16>=MObraMax),MDOmin,1))) -> 1 | AF16: =IF(VLOOKUP($B16,Formulacion!$A:$BE,MATCH(AF$1,Formulacion!$1:$1,0),FALSE)="NA",1,IF(N16<=CostoTotalMin,0,1)) -> 1 | AG16: =IF(VLOOKUP($B16,Formulacion!$A:$BE,MATCH(AG$1,Formulacion!$1:$1,0),FALSE)="NA",1,IF(S16<PostesMin,0,1)) -> 1 | AH16: =IF(VLOOKUP($B16,Formulacion!$A:$BE,MATCH(AH$1,Formulacion!$1:$1,0),FALSE)="NA",1,IF(T16<INDIRECT(VLOOKUP(B16,Formulacion!$A:$BE,2,FALSE)),0,1)) -> 1 | AI16: 1 | AJ16: 4603.4 | AK16: 1 | AL16: =IF(VLOOKUP($B16,Formulacion!$A:$BE,MATCH(AL$1,Formulacion!$1:$1,0),FALSE)="NA","NA",HLOOKUP(VLOOKUP($B16,Formulacion!$A:$BE,MATCH(AL$1,Formulacion!$1:$1,0),FALSE),$S:$AB,ROW(AL16),FALSE)) -> 38.9343 | AM16: =IF(VLOOKUP($B16,Formulacion!$A:$BE,MATCH(AM$1,Formulacion!$1:$1,0),FALSE)="NA",1,VLOOKUP($B16,Formulacion!$A:$BE,MATCH(AM$1,Formulacion!$1:$1,0),FALSE)) -> 45 | AN16: =IF(VLOOKUP($B16,Formulacion!$A:$BE,MATCH(AN$1,Formulacion!$1:$1,0),FALSE)="NA",1,VLOOKUP($B16,Formulacion!$A:$BE,MATCH(AN$1,Formulacion!$1:$1,0),FALSE)) -> 0.3 | AO16: CU | AP16: =IF(VLOOKUP($B16,Formulacion!$A:$BE,MATCH(AP$1,Formulacion!$1:$1,0),FALSE)="NA","NA",IF(D16=0,"",VLOOKUP($B16,Formulacion!$A:$BE,MATCH(AP$1,Formulacion!$1:$1,0),FALSE))) ->  | AQ16: X | AX16: NA | AY16: =IF(VLOOKUP($B16,Formulacion!$A:$BE,MATCH(AY$1,Formulacion!$1:$1,0),FALSE)="NA","NA",HLOOKUP(VLOOKUP($B16,Formulacion!$A:$BE,MATCH(AY$1,Formulacion!$1:$1,0),FALSE),$S:$AB,ROW(AY16),FALSE)) -> 77.8686 | AZ16: NA | BA16: 1 | BB16: =IF(VLOOKUP($B16,Formulacion!$A:$BE,MATCH(BB$1,Formulacion!$1:$1,0),FALSE)="NA",1,VLOOKUP($B16,Formulacion!$A:$BE,MATCH(BB$1,Formulacion!$1:$1,0),FALSE)) -> 0.9 | BC16: =IF(VLOOKUP($B16,Formulacion!$A:$BE,MATCH(BC$1,Formulacion!$1:$1,0),FALSE)="NA",1,VLOOKUP($B16,Formulacion!$A:$BE,MATCH(BC$1,Formulacion!$1:$1,0),FALSE)) -> 1 | BD16: 4143.06 | BF16: =VLOOKUP(C16,[3]Listado_Proyectos!$A$2:$I$815,9,FALSE) ->  | BG16: 2019-02-28
A17: Proyecto con cuenta ENSA 2024.xls | B17: =[1]Listado_Proyectos!K17 -> DLSBT | C17: =[1]Listado_Proyectos!A17 -> 01-06.24.0008 | E17: =[1]Listado_Proyectos!I17 -> 2024-08-22 | F17: =[1]Listado_Proyectos!D17 -> COLON | H17: =[1]Listado_Proyectos!N17 -> 1712.51 | I17: =[1]Listado_Proyectos!M17 -> 739.07 | K17: =[1]Listado_Proyectos!O17 -> 3.11 | N17: =[1]Listado_Proyectos!P17 -> 2454.69 | P17: =[1]Listado_Proyectos!Q17+[1]Listado_Proyectos!R17 -> 0 | Q17: =IFERROR(VLOOKUP(C17,'[2]Postes 2024'!$A:$C,3,FALSE),0) -> 2 | R17: =IFERROR(VLOOKUP(C17,'[2]Líneas 2024'!$A:$C,3,FALSE),0) -> 77.8686 | S17: =IF((VLOOKUP($B17,Formulacion!$A:$BE,MATCH(S$1,Formulacion!$1:$1,0),FALSE)="NA"),"NA",Q17) -> NA | T17: =IF((VLOOKUP($B17,Formulacion!$A:$BE,MATCH(T$1,Formulacion!$1:$1,0),FALSE)="NA"),"NA",R17) -> 77.8686 | U17: NA | V17: =IF(OR(VLOOKUP($B17,Formulacion!$A:$BE,MATCH(V$1,Formulacion!$1:$1,0),FALSE)="NA",$D17=0),"NA",IF($B17="DLSBT",MID($D17,ZanjaInicioBT,ZanjaFinBT-ZanjaInicioBT+1)*1,MID($D17,ZanjaInicio,ZanjaFin-ZanjaInicio+1)*1)) -> NA | W17: 1 | X17: =IF(OR(VLOOKUP($B17,Formulacion!$A:$BE,MATCH(X$1,Formulacion!$1:$1,0),FALSE)="NA",$D17=0),"NA",MID($D17,m2Inicio+INDIRECT(B17),m2Fin-m2Inicio+1)*1) -> NA | Y17: =IF(OR(VLOOKUP($B17,Formulacion!$A:$BE,MATCH(Y$1,Formulacion!$1:$1,0),FALSE)="NA",$D17=0),"NA",RIGHT($D17,4)*1) -> NA | Z17: =IF(OR(VLOOKUP($B17,Formulacion!$A:$BE,MATCH(Z$1,Formulacion!$1:$1,0),FALSE)="NA",$D17=0),"NA",RIGHT($D17,3)*1) -> NA | AA17: 1 | AB17: =IF(VLOOKUP($B17,Formulacion!$A:$BE,MATCH(AB$1,Formulacion!$1:$1,0),FALSE)="NA",1,IF(X17<=m2Min,0,1)) -> 1 | AC17: =IF(VLOOKUP($B17,Formulacion!$A:$BE,MATCH(AC$1,Formulacion!$1:$1,0),FALSE)="NA",1,IF(OR(E17<=FechaMin,E17>FechaMax),0,1)) -> 1 | AD17: =IF(VLOOKUP($B17,Formulacion!$A:$BE,MATCH(AD$1,Formulacion!$1:$1,0),FALSE)="NA",1,IF(H17<=MaterialesMin,0,1)) -> 1 | AE17: =IF(VLOOKUP($B17,Formulacion!$A:$BE,MATCH(AE$1,Formulacion!$1:$1,0),FALSE)="NA",1,IF(N17=0,0,IF(OR(I17/N17<=MObraMin,I17/N17>=MObraMax),MDOmin,1))) -> 1 | AF17: =IF(VLOOKUP($B17,Formulacion!$A:$BE,MATCH(AF$1,Formulacion!$1:$1,0),FALSE)="NA",1,IF(N17<=CostoTotalMin,0,1)) -> 1 | AG17: =IF(VLOOKUP($B17,Formulacion!$A:$BE,MATCH(AG$1,Formulacion!$1:$1,0),FALSE)="NA",1,IF(S17<PostesMin,0,1)) -> 1 | AH17: =IF(VLOOKUP($B17,Formulacion!$A:$BE,MATCH(AH$1,Formulacion!$1:$1,0),FALSE)="NA",1,IF(T17<INDIRECT(VLOOKUP(B17,Formulacion!$A:$BE,2,FALSE)),0,1)) -> 1 | AI17: 1 | AJ17: 2454.69 | AK17: 1 | AL17: =IF(VLOOKUP($B17,Formulacion!$A:$BE,MATCH(AL$1,Formulacion!$1:$1,0),FALSE)="NA","NA",HLOOKUP(VLOOKUP($B17,Formulacion!$A:$BE,MATCH(AL$1,Formulacion!$1:$1,0),FALSE),$S:$AB,ROW(AL17),FALSE)) -> NA | AM17: =IF(VLOOKUP($B17,Formulacion!$A:$BE,MATCH(AM$1,Formulacion!$1:$1,0),FALSE)="NA",1,VLOOKUP($B17,Formulacion!$A:$BE,MATCH(AM$1,Formulacion!$1:$1,0),FALSE)) -> 1000 | AN17: =IF(VLOOKUP($B17,Formulacion!$A:$BE,MATCH(AN$1,Formulacion!$1:$1,0),FALSE)="NA",1,VLOOKUP($B17,Formulacion!$A:$BE,MATCH(AN$1,Formulacion!$1:$1,0),FALSE)) -> 0.5 | AO17: 1 | AP17: =IF(VLOOKUP($B17,Formulacion!$A:$BE,MATCH(AP$1,Formulacion!$1:$1,0),FALSE)="NA","NA",IF(D17=0,"",VLOOKUP($B17,Formulacion!$A:$BE,MATCH(AP$1,Formulacion!$1:$1,0),FALSE))) ->  | AQ17: X | AX17: NA | AY17: =IF(VLOOKUP($B17,Formulacion!$A:$BE,MATCH(AY$1,Formulacion!$1:$1,0),FALSE)="NA","NA",HLOOKUP(VLOOKUP($B17,Formulacion!$A:$BE,MATCH(AY$1,Formulacion!$1:$1,0),FALSE),$S:$AB,ROW(AY17),FALSE)) -> 77.8686 | AZ17: NA | BA17: 1 | BB17: =IF(VLOOKUP($B17,Formulacion!$A:$BE,MATCH(BB$1,Formulacion!$1:$1,0),FALSE)="NA",1,VLOOKUP($B17,Formulacion!$A:$BE,MATCH(BB$1,Formulacion!$1:$1,0),FALSE)) -> 0.9 | BC17: =IF(VLOOKUP($B17,Formulacion!$A:$BE,MATCH(BC$1,Formulacion!$1:$1,0),FALSE)="NA",1,VLOOKUP($B17,Formulacion!$A:$BE,MATCH(BC$1,Formulacion!$1:$1,0),FALSE)) -> 1 | BD17: 2209.221 | BF17: =VLOOKUP(C17,[3]Listado_Proyectos!$A$2:$I$815,9,FALSE) ->  | BG17: 2019-02-28
A18: Proyecto con cuenta ENSA 2024.xls | B18: =[1]Listado_Proyectos!K18 -> DTRMB-13,8 | C18: =[1]Listado_Proyectos!A18 -> 01-06.24.0008 | E18: =[1]Listado_Proyectos!I18 -> 2024-08-22 | F18: =[1]Listado_Proyectos!D18 -> COLON | H18: =[1]Listado_Proyectos!N18 -> 29973.17 | I18: =[1]Listado_Proyectos!M18 -> 6287.59 | K18: =[1]Listado_Proyectos!O18 -> 0 | N18: =[1]Listado_Proyectos!P18 -> 36260.76 | P18: =[1]Listado_Proyectos!Q18+[1]Listado_Proyectos!R18 -> 0 | Q18: =IFERROR(VLOOKUP(C18,'[2]Postes 2024'!$A:$C,3,FALSE),0) -> 2 | R18: =IFERROR(VLOOKUP(C18,'[2]Líneas 2024'!$A:$C,3,FALSE),0) -> 77.8686 | S18: =IF((VLOOKUP($B18,Formulacion!$A:$BE,MATCH(S$1,Formulacion!$1:$1,0),FALSE)="NA"),"NA",Q18) -> NA | T18: =IF((VLOOKUP($B18,Formulacion!$A:$BE,MATCH(T$1,Formulacion!$1:$1,0),FALSE)="NA"),"NA",R18) -> NA | U18: NA | V18: =IF(OR(VLOOKUP($B18,Formulacion!$A:$BE,MATCH(V$1,Formulacion!$1:$1,0),FALSE)="NA",$D18=0),"NA",IF($B18="DLSBT",MID($D18,ZanjaInicioBT,ZanjaFinBT-ZanjaInicioBT+1)*1,MID($D18,ZanjaInicio,ZanjaFin-ZanjaInicio+1)*1)) -> NA | W18: 1 | X18: =IF(OR(VLOOKUP($B18,Formulacion!$A:$BE,MATCH(X$1,Formulacion!$1:$1,0),FALSE)="NA",$D18=0),"NA",MID($D18,m2Inicio+INDIRECT(B18),m2Fin-m2Inicio+1)*1) -> NA | Y18: =IF(OR(VLOOKUP($B18,Formulacion!$A:$BE,MATCH(Y$1,Formulacion!$1:$1,0),FALSE)="NA",$D18=0),"NA",RIGHT($D18,4)*1) -> NA | Z18: =IF(OR(VLOOKUP($B18,Formulacion!$A:$BE,MATCH(Z$1,Formulacion!$1:$1,0),FALSE)="NA",$D18=0),"NA",RIGHT($D18,3)*1) -> NA | AA18: 1 | AB18: =IF(VLOOKUP($B18,Formulacion!$A:$BE,MATCH(AB$1,Formulacion!$1:$1,0),FALSE)="NA",1,IF(X18<=m2Min,0,1)) -> 1 | AC18: =IF(VLOOKUP($B18,Formulacion!$A:$BE,MATCH(AC$1,Formulacion!$1:$1,0),FALSE)="NA",1,IF(OR(E18<=FechaMin,E18>FechaMax),0,1)) -> 1 | AD18: =IF(VLOOKUP($B18,Formulacion!$A:$BE,MATCH(AD$1,Formulacion!$1:$1,0),FALSE)="NA",1,IF(H18<=MaterialesMin,0,1)) -> 1 | AE18: =IF(VLOOKUP($B18,Formulacion!$A:$BE,MATCH(AE$1,Formulacion!$1:$1,0),FALSE)="NA",1,IF(N18=0,0,IF(OR(I18/N18<=MObraMin,I18/N18>=MObraMax),MDOmin,1))) -> 1 | AF18: =IF(VLOOKUP($B18,Formulacion!$A:$BE,MATCH(AF$1,Formulacion!$1:$1,0),FALSE)="NA",1,IF(N18<=CostoTotalMin,0,1)) -> 1 | AG18: =IF(VLOOKUP($B18,Formulacion!$A:$BE,MATCH(AG$1,Formulacion!$1:$1,0),FALSE)="NA",1,IF(S18<PostesMin,0,1)) -> 1 | AH18: =IF(VLOOKUP($B18,Formulacion!$A:$BE,MATCH(AH$1,Formulacion!$1:$1,0),FALSE)="NA",1,IF(T18<INDIRECT(VLOOKUP(B18,Formulacion!$A:$BE,2,FALSE)),0,1)) -> 1 | AI18: 1 | AJ18: 36260.76 | AK18: 1 | AL18: =IF(VLOOKUP($B18,Formulacion!$A:$BE,MATCH(AL$1,Formulacion!$1:$1,0),FALSE)="NA","NA",HLOOKUP(VLOOKUP($B18,Formulacion!$A:$BE,MATCH(AL$1,Formulacion!$1:$1,0),FALSE),$S:$AB,ROW(AL18),FALSE)) -> NA | AM18: =IF(VLOOKUP($B18,Formulacion!$A:$BE,MATCH(AM$1,Formulacion!$1:$1,0),FALSE)="NA",1,VLOOKUP($B18,Formulacion!$A:$BE,MATCH(AM$1,Formulacion!$1:$1,0),FALSE)) -> 1 | AN18: =IF(VLOOKUP($B18,Formulacion!$A:$BE,MATCH(AN$1,Formulacion!$1:$1,0),FALSE)="NA",1,VLOOKUP($B18,Formulacion!$A:$BE,MATCH(AN$1,Formulacion!$1:$1,0),FALSE)) -> 1 | AO18: 1 | AP18: =IF(VLOOKUP($B18,Formulacion!$A:$BE,MATCH(AP$1,Formulacion!$1:$1,0),FALSE)="NA","NA",IF(D18=0,"",VLOOKUP($B18,Formulacion!$A:$BE,MATCH(AP$1,Formulacion!$1:$1,0),FALSE))) ->  | AQ18: X | AX18: NA | AY18: =IF(VLOOKUP($B18,Formulacion!$A:$BE,MATCH(AY$1,Formulacion!$1:$1,0),FALSE)="NA","NA",HLOOKUP(VLOOKUP($B18,Formulacion!$A:$BE,MATCH(AY$1,Formulacion!$1:$1,0),FALSE),$S:$AB,ROW(AY18),FALSE)) -> NA | AZ18: NA | BA18: 1 | BB18: =IF(VLOOKUP($B18,Formulacion!$A:$BE,MATCH(BB$1,Formulacion!$1:$1,0),FALSE)="NA",1,VLOOKUP($B18,Formulacion!$A:$BE,MATCH(BB$1,Formulacion!$1:$1,0),FALSE)) -> 0.9 | BC18: =IF(VLOOKUP($B18,Formulacion!$A:$BE,MATCH(BC$1,Formulacion!$1:$1,0),FALSE)="NA",1,VLOOKUP($B18,Formulacion!$A:$BE,MATCH(BC$1,Formulacion!$1:$1,0),FALSE)) -> 1 | BD18: 32634.684 | BF18: =VLOOKUP(C18,[3]Listado_Proyectos!$A$2:$I$815,9,FALSE) ->  | BG18: 2019-02-28
A19: Proyecto con cuenta ENSA 2024.xls | B19: =[1]Listado_Proyectos!K19 -> DTRMB-34,5 | C19: =[1]Listado_Proyectos!A19 -> 01-06.24.0008 | E19: =[1]Listado_Proyectos!I19 -> 2024-08-22 | F19: =[1]Listado_Proyectos!D19 -> COLON | H19: =[1]Listado_Proyectos!N19 -> 1615.51 | I19: =[1]Listado_Proyectos!M19 -> 1051.58 | K19: =[1]Listado_Proyectos!O19 -> 0 | N19: =[1]Listado_Proyectos!P19 -> 2667.09 | P19: =[1]Listado_Proyectos!Q19+[1]Listado_Proyectos!R19 -> 0 | Q19: =IFERROR(VLOOKUP(C19,'[2]Postes 2024'!$A:$C,3,FALSE),0) -> 2 | R19: =IFERROR(VLOOKUP(C19,'[2]Líneas 2024'!$A:$C,3,FALSE),0) -> 77.8686 | S19: =IF((VLOOKUP($B19,Formulacion!$A:$BE,MATCH(S$1,Formulacion!$1:$1,0),FALSE)="NA"),"NA",Q19) -> NA | T19: =IF((VLOOKUP($B19,Formulacion!$A:$BE,MATCH(T$1,Formulacion!$1:$1,0),FALSE)="NA"),"NA",R19) -> NA | U19: NA | V19: =IF(OR(VLOOKUP($B19,Formulacion!$A:$BE,MATCH(V$1,Formulacion!$1:$1,0),FALSE)="NA",$D19=0),"NA",IF($B19="DLSBT",MID($D19,ZanjaInicioBT,ZanjaFinBT-ZanjaInicioBT+1)*1,MID($D19,ZanjaInicio,ZanjaFin-ZanjaInicio+1)*1)) -> NA | W19: 1 | X19: =IF(OR(VLOOKUP($B19,Formulacion!$A:$BE,MATCH(X$1,Formulacion!$1:$1,0),FALSE)="NA",$D19=0),"NA",MID($D19,m2Inicio+INDIRECT(B19),m2Fin-m2Inicio+1)*1) -> NA | Y19: =IF(OR(VLOOKUP($B19,Formulacion!$A:$BE,MATCH(Y$1,Formulacion!$1:$1,0),FALSE)="NA",$D19=0),"NA",RIGHT($D19,4)*1) -> NA | Z19: =IF(OR(VLOOKUP($B19,Formulacion!$A:$BE,MATCH(Z$1,Formulacion!$1:$1,0),FALSE)="NA",$D19=0),"NA",RIGHT($D19,3)*1) -> NA | AA19: 1 | AB19: =IF(VLOOKUP($B19,Formulacion!$A:$BE,MATCH(AB$1,Formulacion!$1:$1,0),FALSE)="NA",1,IF(X19<=m2Min,0,1)) -> 1 | AC19: =IF(VLOOKUP($B19,Formulacion!$A:$BE,MATCH(AC$1,Formulacion!$1:$1,0),FALSE)="NA",1,IF(OR(E19<=FechaMin,E19>FechaMax),0,1)) -> 1 | AD19: =IF(VLOOKUP($B19,Formulacion!$A:$BE,MATCH(AD$1,Formulacion!$1:$1,0),FALSE)="NA",1,IF(H19<=MaterialesMin,0,1)) -> 1 | AE19: =IF(VLOOKUP($B19,Formulacion!$A:$BE,MATCH(AE$1,Formulacion!$1:$1,0),FALSE)="NA",1,IF(N19=0,0,IF(OR(I19/N19<=MObraMin,I19/N19>=MObraMax),MDOmin,1))) -> 1 | AF19: =IF(VLOOKUP($B19,Formulacion!$A:$BE,MATCH(AF$1,Formulacion!$1:$1,0),FALSE)="NA",1,IF(N19<=CostoTotalMin,0,1)) -> 1 | AG19: =IF(VLOOKUP($B19,Formulacion!$A:$BE,MATCH(AG$1,Formulacion!$1:$1,0),FALSE)="NA",1,IF(S19<PostesMin,0,1)) -> 1 | AH19: =IF(VLOOKUP($B19,Formulacion!$A:$BE,MATCH(AH$1,Formulacion!$1:$1,0),FALSE)="NA",1,IF(T19<INDIRECT(VLOOKUP(B19,Formulacion!$A:$BE,2,FALSE)),0,1)) -> 1 | AI19: 1 | AJ19: 2667.09 | AK19: 1 | AL19: =IF(VLOOKUP($B19,Formulacion!$A:$BE,MATCH(AL$1,Formulacion!$1:$1,0),FALSE)="NA","NA",HLOOKUP(VLOOKUP($B19,Formulacion!$A:$BE,MATCH(AL$1,Formulacion!$1:$1,0),FALSE),$S:$AB,ROW(AL19),FALSE)) -> NA | AM19: =IF(VLOOKUP($B19,Formulacion!$A:$BE,MATCH(AM$1,Formulacion!$1:$1,0),FALSE)="NA",1,VLOOKUP($B19,Formulacion!$A:$BE,MATCH(AM$1,Formulacion!$1:$1,0),FALSE)) -> 1 | AN19: =IF(VLOOKUP($B19,Formulacion!$A:$BE,MATCH(AN$1,Formulacion!$1:$1,0),FALSE)="NA",1,VLOOKUP($B19,Formulacion!$A:$BE,MATCH(AN$1,Formulacion!$1:$1,0),FALSE)) -> 1 | AO19: 1 | AP19: =IF(VLOOKUP($B19,Formulacion!$A:$BE,MATCH(AP$1,Formulacion!$1:$1,0),FALSE)="NA","NA",IF(D19=0,"",VLOOKUP($B19,Formulacion!$A:$BE,MATCH(AP$1,Formulacion!$1:$1,0),FALSE))) ->  | AQ19: X | AX19: NA | AY19: =IF(VLOOKUP($B19,Formulacion!$A:$BE,MATCH(AY$1,Formulacion!$1:$1,0),FALSE)="NA","NA",HLOOKUP(VLOOKUP($B19,Formulacion!$A:$BE,MATCH(AY$1,Formulacion!$1:$1,0),FALSE),$S:$AB,ROW(AY19),FALSE)) -> NA | AZ19: NA | BA19: 1 | BB19: =IF(VLOOKUP($B19,Formulacion!$A:$BE,MATCH(BB$1,Formulacion!$1:$1,0),FALSE)="NA",1,VLOOKUP($B19,Formulacion!$A:$BE,MATCH(BB$1,Formulacion!$1:$1,0),FALSE)) -> 0.9 | BC19: =IF(VLOOKUP($B19,Formulacion!$A:$BE,MATCH(BC$1,Formulacion!$1:$1,0),FALSE)="NA",1,VLOOKUP($B19,Formulacion!$A:$BE,MATCH(BC$1,Formulacion!$1:$1,0),FALSE)) -> 1 | BD19: 2400.381 | BF19: =VLOOKUP(C19,[3]Listado_Proyectos!$A$2:$I$815,9,FALSE) ->  | BG19: 2019-02-28
A20: Proyecto con cuenta ENSA 2024.xls | B20: =[1]Listado_Proyectos!K20 -> CMEDI | C20: =[1]Listado_Proyectos!A20 -> 01-17.23.0029 | E20: =[1]Listado_Proyectos!I20 -> 2024-02-29 | F20: =[1]Listado_Proyectos!D20 -> COLON | H20: =[1]Listado_Proyectos!N20 -> 370.95 | I20: =[1]Listado_Proyectos!M20 -> 160.09 | K20: =[1]Listado_Proyectos!O20 -> 0 | N20: =[1]Listado_Proyectos!P20 -> 531.04 | P20: =[1]Listado_Proyectos!Q20+[1]Listado_Proyectos!R20 -> 0 | Q20: =IFERROR(VLOOKUP(C20,'[2]Postes 2024'!$A:$C,3,FALSE),0) -> 0 | R20: =IFERROR(VLOOKUP(C20,'[2]Líneas 2024'!$A:$C,3,FALSE),0) -> 0 | S20: =IF((VLOOKUP($B20,Formulacion!$A:$BE,MATCH(S$1,Formulacion!$1:$1,0),FALSE)="NA"),"NA",Q20) -> NA | T20: =IF((VLOOKUP($B20,Formulacion!$A:$BE,MATCH(T$1,Formulacion!$1:$1,0),FALSE)="NA"),"NA",R20) -> NA | U20: NA | V20: =IF(OR(VLOOKUP($B20,Formulacion!$A:$BE,MATCH(V$1,Formulacion!$1:$1,0),FALSE)="NA",$D20=0),"NA",IF($B20="DLSBT",MID($D20,ZanjaInicioBT,ZanjaFinBT-ZanjaInicioBT+1)*1,MID($D20,ZanjaInicio,ZanjaFin-ZanjaInicio+1)*1)) -> NA | W20: 1 | X20: =IF(OR(VLOOKUP($B20,Formulacion!$A:$BE,MATCH(X$1,Formulacion!$1:$1,0),FALSE)="NA",$D20=0),"NA",MID($D20,m2Inicio+INDIRECT(B20),m2Fin-m2Inicio+1)*1) -> NA | Y20: =IF(OR(VLOOKUP($B20,Formulacion!$A:$BE,MATCH(Y$1,Formulacion!$1:$1,0),FALSE)="NA",$D20=0),"NA",RIGHT($D20,4)*1) -> NA | Z20: =IF(OR(VLOOKUP($B20,Formulacion!$A:$BE,MATCH(Z$1,Formulacion!$1:$1,0),FALSE)="NA",$D20=0),"NA",RIGHT($D20,3)*1) -> NA | AA20: 1 | AB20: =IF(VLOOKUP($B20,Formulacion!$A:$BE,MATCH(AB$1,Formulacion!$1:$1,0),FALSE)="NA",1,IF(X20<=m2Min,0,1)) -> 1 | AC20: =IF(VLOOKUP($B20,Formulacion!$A:$BE,MATCH(AC$1,Formulacion!$1:$1,0),FALSE)="NA",1,IF(OR(E20<=FechaMin,E20>FechaMax),0,1)) -> 1 | AD20: =IF(VLOOKUP($B20,Formulacion!$A:$BE,MATCH(AD$1,Formulacion!$1:$1,0),FALSE)="NA",1,IF(H20<=MaterialesMin,0,1)) -> 1 | AE20: =IF(VLOOKUP($B20,Formulacion!$A:$BE,MATCH(AE$1,Formulacion!$1:$1,0),FALSE)="NA",1,IF(N20=0,0,IF(OR(I20/N20<=MObraMin,I20/N20>=MObraMax),MDOmin,1))) -> 1 | AF20: =IF(VLOOKUP($B20,Formulacion!$A:$BE,MATCH(AF$1,Formulacion!$1:$1,0),FALSE)="NA",1,IF(N20<=CostoTotalMin,0,1)) -> 1 | AG20: =IF(VLOOKUP($B20,Formulacion!$A:$BE,MATCH(AG$1,Formulacion!$1:$1,0),FALSE)="NA",1,IF(S20<PostesMin,0,1)) -> 1 | AH20: =IF(VLOOKUP($B20,Formulacion!$A:$BE,MATCH(AH$1,Formulacion!$1:$1,0),FALSE)="NA",1,IF(T20<INDIRECT(VLOOKUP(B20,Formulacion!$A:$BE,2,FALSE)),0,1)) -> 1 | AI20: 1 | AJ20: 531.04 | AK20: 1 | AL20: =IF(VLOOKUP($B20,Formulacion!$A:$BE,MATCH(AL$1,Formulacion!$1:$1,0),FALSE)="NA","NA",HLOOKUP(VLOOKUP($B20,Formulacion!$A:$BE,MATCH(AL$1,Formulacion!$1:$1,0),FALSE),$S:$AB,ROW(AL20),FALSE)) -> NA | AM20: =IF(VLOOKUP($B20,Formulacion!$A:$BE,MATCH(AM$1,Formulacion!$1:$1,0),FALSE)="NA",1,VLOOKUP($B20,Formulacion!$A:$BE,MATCH(AM$1,Formulacion!$1:$1,0),FALSE)) -> 1 | AN20: =IF(VLOOKUP($B20,Formulacion!$A:$BE,MATCH(AN$1,Formulacion!$1:$1,0),FALSE)="NA",1,VLOOKUP($B20,Formulacion!$A:$BE,MATCH(AN$1,Formulacion!$1:$1,0),FALSE)) -> 1 | AO20: 1 | AP20: =IF(VLOOKUP($B20,Formulacion!$A:$BE,MATCH(AP$1,Formulacion!$1:$1,0),FALSE)="NA","NA",IF(D20=0,"",VLOOKUP($B20,Formulacion!$A:$BE,MATCH(AP$1,Formulacion!$1:$1,0),FALSE))) -> NA | AQ20: X | AX20: NA | AY20: =IF(VLOOKUP($B20,Formulacion!$A:$BE,MATCH(AY$1,Formulacion!$1:$1,0),FALSE)="NA","NA",HLOOKUP(VLOOKUP($B20,Formulacion!$A:$BE,MATCH(AY$1,Formulacion!$1:$1,0),FALSE),$S:$AB,ROW(AY20),FALSE)) -> NA | AZ20: NA | BA20: 1 | BB20: =IF(VLOOKUP($B20,Formulacion!$A:$BE,MATCH(BB$1,Formulacion!$1:$1,0),FALSE)="NA",1,VLOOKUP($B20,Formulacion!$A:$BE,MATCH(BB$1,Formulacion!$1:$1,0),FALSE)) -> 0.9 | BC20: =IF(VLOOKUP($B20,Formulacion!$A:$BE,MATCH(BC$1,Formulacion!$1:$1,0),FALSE)="NA",1,VLOOKUP($B20,Formulacion!$A:$BE,MATCH(BC$1,Formulacion!$1:$1,0),FALSE)) -> 1 | BD20: 477.936 | BF20: =VLOOKUP(C20,[3]Listado_Proyectos!$A$2:$I$815,9,FALSE) ->  | BG20: 2019-02-28
A21: Proyecto con cuenta ENSA 2024.xls | B21: =[1]Listado_Proyectos!K21 -> DACBT | C21: =[1]Listado_Proyectos!A21 -> 01-17.23.0029 | E21: =[1]Listado_Proyectos!I21 -> 2024-02-29 | F21: =[1]Listado_Proyectos!D21 -> COLON | H21: =[1]Listado_Proyectos!N21 -> 547.26 | I21: =[1]Listado_Proyectos!M21 -> 265.04 | K21: =[1]Listado_Proyectos!O21 -> 0 | N21: =[1]Listado_Proyectos!P21 -> 812.3 | P21: =[1]Listado_Proyectos!Q21+[1]Listado_Proyectos!R21 -> 0 | Q21: =IFERROR(VLOOKUP(C21,'[2]Postes 2024'!$A:$C,3,FALSE),0) -> 0 | R21: =IFERROR(VLOOKUP(C21,'[2]Líneas 2024'!$A:$C,3,FALSE),0) -> 0 | S21: =IF((VLOOKUP($B21,Formulacion!$A:$BE,MATCH(S$1,Formulacion!$1:$1,0),FALSE)="NA"),"NA",Q21) -> NA | T21: =IF((VLOOKUP($B21,Formulacion!$A:$BE,MATCH(T$1,Formulacion!$1:$1,0),FALSE)="NA"),"NA",R21) -> NA | U21: NA | V21: =IF(OR(VLOOKUP($B21,Formulacion!$A:$BE,MATCH(V$1,Formulacion!$1:$1,0),FALSE)="NA",$D21=0),"NA",IF($B21="DLSBT",MID($D21,ZanjaInicioBT,ZanjaFinBT-ZanjaInicioBT+1)*1,MID($D21,ZanjaInicio,ZanjaFin-ZanjaInicio+1)*1)) -> NA | W21: 1 | X21: =IF(OR(VLOOKUP($B21,Formulacion!$A:$BE,MATCH(X$1,Formulacion!$1:$1,0),FALSE)="NA",$D21=0),"NA",MID($D21,m2Inicio+INDIRECT(B21),m2Fin-m2Inicio+1)*1) -> NA | Y21: =IF(OR(VLOOKUP($B21,Formulacion!$A:$BE,MATCH(Y$1,Formulacion!$1:$1,0),FALSE)="NA",$D21=0),"NA",RIGHT($D21,4)*1) -> NA | Z21: =IF(OR(VLOOKUP($B21,Formulacion!$A:$BE,MATCH(Z$1,Formulacion!$1:$1,0),FALSE)="NA",$D21=0),"NA",RIGHT($D21,3)*1) -> NA | AA21: 1 | AB21: =IF(VLOOKUP($B21,Formulacion!$A:$BE,MATCH(AB$1,Formulacion!$1:$1,0),FALSE)="NA",1,IF(X21<=m2Min,0,1)) -> 1 | AC21: =IF(VLOOKUP($B21,Formulacion!$A:$BE,MATCH(AC$1,Formulacion!$1:$1,0),FALSE)="NA",1,IF(OR(E21<=FechaMin,E21>FechaMax),0,1)) -> 1 | AD21: =IF(VLOOKUP($B21,Formulacion!$A:$BE,MATCH(AD$1,Formulacion!$1:$1,0),FALSE)="NA",1,IF(H21<=MaterialesMin,0,1)) -> 1 | AE21: =IF(VLOOKUP($B21,Formulacion!$A:$BE,MATCH(AE$1,Formulacion!$1:$1,0),FALSE)="NA",1,IF(N21=0,0,IF(OR(I21/N21<=MObraMin,I21/N21>=MObraMax),MDOmin,1))) -> 1 | AF21: =IF(VLOOKUP($B21,Formulacion!$A:$BE,MATCH(AF$1,Formulacion!$1:$1,0),FALSE)="NA",1,IF(N21<=CostoTotalMin,0,1)) -> 1 | AG21: =IF(VLOOKUP($B21,Formulacion!$A:$BE,MATCH(AG$1,Formulacion!$1:$1,0),FALSE)="NA",1,IF(S21<PostesMin,0,1)) -> 1 | AH21: =IF(VLOOKUP($B21,Formulacion!$A:$BE,MATCH(AH$1,Formulacion!$1:$1,0),FALSE)="NA",1,IF(T21<INDIRECT(VLOOKUP(B21,Formulacion!$A:$BE,2,FALSE)),0,1)) -> 1 | AI21: 1 | AJ21: 812.3 | AK21: 1 | AL21: =IF(VLOOKUP($B21,Formulacion!$A:$BE,MATCH(AL$1,Formulacion!$1:$1,0),FALSE)="NA","NA",HLOOKUP(VLOOKUP($B21,Formulacion!$A:$BE,MATCH(AL$1,Formulacion!$1:$1,0),FALSE),$S:$AB,ROW(AL21),FALSE)) -> NA | AM21: =IF(VLOOKUP($B21,Formulacion!$A:$BE,MATCH(AM$1,Formulacion!$1:$1,0),FALSE)="NA",1,VLOOKUP($B21,Formulacion!$A:$BE,MATCH(AM$1,Formulacion!$1:$1,0),FALSE)) -> 1 | AN21: =IF(VLOOKUP($B21,Formulacion!$A:$BE,MATCH(AN$1,Formulacion!$1:$1,0),FALSE)="NA",1,VLOOKUP($B21,Formulacion!$A:$BE,MATCH(AN$1,Formulacion!$1:$1,0),FALSE)) -> 1 | AO21: 1 | AP21: =IF(VLOOKUP($B21,Formulacion!$A:$BE,MATCH(AP$1,Formulacion!$1:$1,0),FALSE)="NA","NA",IF(D21=0,"",VLOOKUP($B21,Formulacion!$A:$BE,MATCH(AP$1,Formulacion!$1:$1,0),FALSE))) -> NA | AQ21: X | AX21: NA | AY21: =IF(VLOOKUP($B21,Formulacion!$A:$BE,MATCH(AY$1,Formulacion!$1:$1,0),FALSE)="NA","NA",HLOOKUP(VLOOKUP($B21,Formulacion!$A:$BE,MATCH(AY$1,Formulacion!$1:$1,0),FALSE),$S:$AB,ROW(AY21),FALSE)) -> NA | AZ21: NA | BA21: 1 | BB21: =IF(VLOOKUP($B21,Formulacion!$A:$BE,MATCH(BB$1,Formulacion!$1:$1,0),FALSE)="NA",1,VLOOKUP($B21,Formulacion!$A:$BE,MATCH(BB$1,Formulacion!$1:$1,0),FALSE)) -> 0.9 | BC21: =IF(VLOOKUP($B21,Formulacion!$A:$BE,MATCH(BC$1,Formulacion!$1:$1,0),FALSE)="NA",1,VLOOKUP($B21,Formulacion!$A:$BE,MATCH(BC$1,Formulacion!$1:$1,0),FALSE)) -> 1 | BD21: 731.07 | BF21: =VLOOKUP(C21,[3]Listado_Proyectos!$A$2:$I$815,9,FALSE) ->  | BG21: 2019-02-28
A22: Proyecto con cuenta ENSA 2024.xls | B22: =[1]Listado_Proyectos!K22 -> DEQOT | C22: =[1]Listado_Proyectos!A22 -> 01-17.23.0029 | E22: =[1]Listado_Proyectos!I22 -> 2024-02-29 | F22: =[1]Listado_Proyectos!D22 -> COLON | H22: =[1]Listado_Proyectos!N22 -> 1088.98 | I22: =[1]Listado_Proyectos!M22 -> 349.85 | K22: =[1]Listado_Proyectos!O22 -> 0 | N22: =[1]Listado_Proyectos!P22 -> 1438.83 | P22: =[1]Listado_Proyectos!Q22+[1]Listado_Proyectos!R22 -> 0 | Q22: =IFERROR(VLOOKUP(C22,'[2]Postes 2024'!$A:$C,3,FALSE),0) -> 0 | R22: =IFERROR(VLOOKUP(C22,'[2]Líneas 2024'!$A:$C,3,FALSE),0) -> 0 | S22: =IF((VLOOKUP($B22,Formulacion!$A:$BE,MATCH(S$1,Formulacion!$1:$1,0),FALSE)="NA"),"NA",Q22) -> NA | T22: =IF((VLOOKUP($B22,Formulacion!$A:$BE,MATCH(T$1,Formulacion!$1:$1,0),FALSE)="NA"),"NA",R22) -> NA | U22: NA | V22: =IF(OR(VLOOKUP($B22,Formulacion!$A:$BE,MATCH(V$1,Formulacion!$1:$1,0),FALSE)="NA",$D22=0),"NA",IF($B22="DLSBT",MID($D22,ZanjaInicioBT,ZanjaFinBT-ZanjaInicioBT+1)*1,MID($D22,ZanjaInicio,ZanjaFin-ZanjaInicio+1)*1)) -> NA | W22: 1 | X22: =IF(OR(VLOOKUP($B22,Formulacion!$A:$BE,MATCH(X$1,Formulacion!$1:$1,0),FALSE)="NA",$D22=0),"NA",MID($D22,m2Inicio+INDIRECT(B22),m2Fin-m2Inicio+1)*1) -> NA | Y22: =IF(OR(VLOOKUP($B22,Formulacion!$A:$BE,MATCH(Y$1,Formulacion!$1:$1,0),FALSE)="NA",$D22=0),"NA",RIGHT($D22,4)*1) -> NA | Z22: =IF(OR(VLOOKUP($B22,Formulacion!$A:$BE,MATCH(Z$1,Formulacion!$1:$1,0),FALSE)="NA",$D22=0),"NA",RIGHT($D22,3)*1) -> NA | AA22: 1 | AB22: =IF(VLOOKUP($B22,Formulacion!$A:$BE,MATCH(AB$1,Formulacion!$1:$1,0),FALSE)="NA",1,IF(X22<=m2Min,0,1)) -> 1 | AC22: =IF(VLOOKUP($B22,Formulacion!$A:$BE,MATCH(AC$1,Formulacion!$1:$1,0),FALSE)="NA",1,IF(OR(E22<=FechaMin,E22>FechaMax),0,1)) -> 1 | AD22: =IF(VLOOKUP($B22,Formulacion!$A:$BE,MATCH(AD$1,Formulacion!$1:$1,0),FALSE)="NA",1,IF(H22<=MaterialesMin,0,1)) -> 1 | AE22: =IF(VLOOKUP($B22,Formulacion!$A:$BE,MATCH(AE$1,Formulacion!$1:$1,0),FALSE)="NA",1,IF(N22=0,0,IF(OR(I22/N22<=MObraMin,I22/N22>=MObraMax),MDOmin,1))) -> 1 | AF22: =IF(VLOOKUP($B22,Formulacion!$A:$BE,MATCH(AF$1,Formulacion!$1:$1,0),FALSE)="NA",1,IF(N22<=CostoTotalMin,0,1)) -> 1 | AG22: =IF(VLOOKUP($B22,Formulacion!$A:$BE,MATCH(AG$1,Formulacion!$1:$1,0),FALSE)="NA",1,IF(S22<PostesMin,0,1)) -> 1 | AH22: =IF(VLOOKUP($B22,Formulacion!$A:$BE,MATCH(AH$1,Formulacion!$1:$1,0),FALSE)="NA",1,IF(T22<INDIRECT(VLOOKUP(B22,Formulacion!$A:$BE,2,FALSE)),0,1)) -> 1 | AI22: 1 | AJ22: 1438.83 | AK22: 1 | AL22: =IF(VLOOKUP($B22,Formulacion!$A:$BE,MATCH(AL$1,Formulacion!$1:$1,0),FALSE)="NA","NA",HLOOKUP(VLOOKUP($B22,Formulacion!$A:$BE,MATCH(AL$1,Formulacion!$1:$1,0),FALSE),$S:$AB,ROW(AL22),FALSE)) -> NA | AM22: =IF(VLOOKUP($B22,Formulacion!$A:$BE,MATCH(AM$1,Formulacion!$1:$1,0),FALSE)="NA",1,VLOOKUP($B22,Formulacion!$A:$BE,MATCH(AM$1,Formulacion!$1:$1,0),FALSE)) -> 1 | AN22: =IF(VLOOKUP($B22,Formulacion!$A:$BE,MATCH(AN$1,Formulacion!$1:$1,0),FALSE)="NA",1,VLOOKUP($B22,Formulacion!$A:$BE,MATCH(AN$1,Formulacion!$1:$1,0),FALSE)) -> 1 | AO22: 1 | AP22: =IF(VLOOKUP($B22,Formulacion!$A:$BE,MATCH(AP$1,Formulacion!$1:$1,0),FALSE)="NA","NA",IF(D22=0,"",VLOOKUP($B22,Formulacion!$A:$BE,MATCH(AP$1,Formulacion!$1:$1,0),FALSE))) -> NA | AQ22: X | AX22: NA | AY22: =IF(VLOOKUP($B22,Formulacion!$A:$BE,MATCH(AY$1,Formulacion!$1:$1,0),FALSE)="NA","NA",HLOOKUP(VLOOKUP($B22,Formulacion!$A:$BE,MATCH(AY$1,Formulacion!$1:$1,0),FALSE),$S:$AB,ROW(AY22),FALSE)) -> NA | AZ22: NA | BA22: 1 | BB22: =IF(VLOOKUP($B22,Formulacion!$A:$BE,MATCH(BB$1,Formulacion!$1:$1,0),FALSE)="NA",1,VLOOKUP($B22,Formulacion!$A:$BE,MATCH(BB$1,Formulacion!$1:$1,0),FALSE)) -> 0.9 | BC22: =IF(VLOOKUP($B22,Formulacion!$A:$BE,MATCH(BC$1,Formulacion!$1:$1,0),FALSE)="NA",1,VLOOKUP($B22,Formulacion!$A:$BE,MATCH(BC$1,Formulacion!$1:$1,0),FALSE)) -> 1 | BD22: 1294.947 | BF22: =VLOOKUP(C22,[3]Listado_Proyectos!$A$2:$I$815,9,FALSE) ->  | BG22: 2019-02-28
A23: Proyecto con cuenta ENSA 2024.xls | B23: =[1]Listado_Proyectos!K23 -> DLABT | C23: =[1]Listado_Proyectos!A23 -> 01-17.23.0029 | E23: =[1]Listado_Proyectos!I23 -> 2024-02-29 | F23: =[1]Listado_Proyectos!D23 -> COLON | H23: =[1]Listado_Proyectos!N23 -> 244.34 | I23: =[1]Listado_Proyectos!M23 -> 110.02 | K23: =[1]Listado_Proyectos!O23 -> 0 | N23: =[1]Listado_Proyectos!P23 -> 354.36 | P23: =[1]Listado_Proyectos!Q23+[1]Listado_Proyectos!R23 -> 0 | Q23: =IFERROR(VLOOKUP(C23,'[2]Postes 2024'!$A:$C,3,FALSE),0) -> 0 | R23: =IFERROR(VLOOKUP(C23,'[2]Líneas 2024'!$A:$C,3,FALSE),0) -> 0 | S23: =IF((VLOOKUP($B23,Formulacion!$A:$BE,MATCH(S$1,Formulacion!$1:$1,0),FALSE)="NA"),"NA",Q23) -> 0 | T23: =IF((VLOOKUP($B23,Formulacion!$A:$BE,MATCH(T$1,Formulacion!$1:$1,0),FALSE)="NA"),"NA",R23) -> 0 | U23: SP | V23: =IF(OR(VLOOKUP($B23,Formulacion!$A:$BE,MATCH(V$1,Formulacion!$1:$1,0),FALSE)="NA",$D23=0),"NA",IF($B23="DLSBT",MID($D23,ZanjaInicioBT,ZanjaFinBT-ZanjaInicioBT+1)*1,MID($D23,ZanjaInicio,ZanjaFin-ZanjaInicio+1)*1)) -> NA | W23: 1 | X23: =IF(OR(VLOOKUP($B23,Formulacion!$A:$BE,MATCH(X$1,Formulacion!$1:$1,0),FALSE)="NA",$D23=0),"NA",MID($D23,m2Inicio+INDIRECT(B23),m2Fin-m2Inicio+1)*1) -> NA | Y23: =IF(OR(VLOOKUP($B23,Formulacion!$A:$BE,MATCH(Y$1,Formulacion!$1:$1,0),FALSE)="NA",$D23=0),"NA",RIGHT($D23,4)*1) -> NA | Z23: =IF(OR(VLOOKUP($B23,Formulacion!$A:$BE,MATCH(Z$1,Formulacion!$1:$1,0),FALSE)="NA",$D23=0),"NA",RIGHT($D23,3)*1) -> NA | AA23: 1 | AB23: =IF(VLOOKUP($B23,Formulacion!$A:$BE,MATCH(AB$1,Formulacion!$1:$1,0),FALSE)="NA",1,IF(X23<=m2Min,0,1)) -> 1 | AC23: =IF(VLOOKUP($B23,Formulacion!$A:$BE,MATCH(AC$1,Formulacion!$1:$1,0),FALSE)="NA",1,IF(OR(E23<=FechaMin,E23>FechaMax),0,1)) -> 1 | AD23: =IF(VLOOKUP($B23,Formulacion!$A:$BE,MATCH(AD$1,Formulacion!$1:$1,0),FALSE)="NA",1,IF(H23<=MaterialesMin,0,1)) -> 1 | AE23: =IF(VLOOKUP($B23,Formulacion!$A:$BE,MATCH(AE$1,Formulacion!$1:$1,0),FALSE)="NA",1,IF(N23=0,0,IF(OR(I23/N23<=MObraMin,I23/N23>=MObraMax),MDOmin,1))) -> 1 | AF23: =IF(VLOOKUP($B23,Formulacion!$A:$BE,MATCH(AF$1,Formulacion!$1:$1,0),FALSE)="NA",1,IF(N23<=CostoTotalMin,0,1)) -> 1 | AG23: =IF(VLOOKUP($B23,Formulacion!$A:$BE,MATCH(AG$1,Formulacion!$1:$1,0),FALSE)="NA",1,IF(S23<PostesMin,0,1)) -> 0 | AH23: =IF(VLOOKUP($B23,Formulacion!$A:$BE,MATCH(AH$1,Formulacion!$1:$1,0),FALSE)="NA",1,IF(T23<INDIRECT(VLOOKUP(B23,Formulacion!$A:$BE,2,FALSE)),0,1)) -> 0 | AI23: 0 | AJ23: 0 | AK23: 1 | AL23: =IF(VLOOKUP($B23,Formulacion!$A:$BE,MATCH(AL$1,Formulacion!$1:$1,0),FALSE)="NA","NA",HLOOKUP(VLOOKUP($B23,Formulacion!$A:$BE,MATCH(AL$1,Formulacion!$1:$1,0),FALSE),$S:$AB,ROW(AL23),FALSE)) -> SP | AM23: =IF(VLOOKUP($B23,Formulacion!$A:$BE,MATCH(AM$1,Formulacion!$1:$1,0),FALSE)="NA",1,VLOOKUP($B23,Formulacion!$A:$BE,MATCH(AM$1,Formulacion!$1:$1,0),FALSE)) -> 30 | AN23: =IF(VLOOKUP($B23,Formulacion!$A:$BE,MATCH(AN$1,Formulacion!$1:$1,0),FALSE)="NA",1,VLOOKUP($B23,Formulacion!$A:$BE,MATCH(AN$1,Formulacion!$1:$1,0),FALSE)) -> 0.3 | AO23: NC | AP23: =IF(VLOOKUP($B23,Formulacion!$A:$BE,MATCH(AP$1,Formulacion!$1:$1,0),FALSE)="NA","NA",IF(D23=0,"",VLOOKUP($B23,Formulacion!$A:$BE,MATCH(AP$1,Formulacion!$1:$1,0),FALSE))) ->  | AQ23: X | AX23: NA | AY23: =IF(VLOOKUP($B23,Formulacion!$A:$BE,MATCH(AY$1,Formulacion!$1:$1,0),FALSE)="NA","NA",HLOOKUP(VLOOKUP($B23,Formulacion!$A:$BE,MATCH(AY$1,Formulacion!$1:$1,0),FALSE),$S:$AB,ROW(AY23),FALSE)) -> 0 | AZ23: NA | BA23: 1 | BB23: =IF(VLOOKUP($B23,Formulacion!$A:$BE,MATCH(BB$1,Formulacion!$1:$1,0),FALSE)="NA",1,VLOOKUP($B23,Formulacion!$A:$BE,MATCH(BB$1,Formulacion!$1:$1,0),FALSE)) -> 0.9 | BC23: =IF(VLOOKUP($B23,Formulacion!$A:$BE,MATCH(BC$1,Formulacion!$1:$1,0),FALSE)="NA",1,VLOOKUP($B23,Formulacion!$A:$BE,MATCH(BC$1,Formulacion!$1:$1,0),FALSE)) -> 1 | BD23: 0 | BF23: =VLOOKUP(C23,[3]Listado_Proyectos!$A$2:$I$815,9,FALSE) ->  | BG23: 2019-02-28
A24: Proyecto con cuenta ENSA 2024.xls | B24: =[1]Listado_Proyectos!K24 -> DTRMB-13,8 | C24: =[1]Listado_Proyectos!A24 -> 01-17.23.0029 | E24: =[1]Listado_Proyectos!I24 -> 2024-02-29 | F24: =[1]Listado_Proyectos!D24 -> COLON | H24: =[1]Listado_Proyectos!N24 -> 9847.51 | I24: =[1]Listado_Proyectos!M24 -> 2112.92 | K24: =[1]Listado_Proyectos!O24 -> 0 | N24: =[1]Listado_Proyectos!P24 -> 11960.43 | P24: =[1]Listado_Proyectos!Q24+[1]Listado_Proyectos!R24 -> 0 | Q24: =IFERROR(VLOOKUP(C24,'[2]Postes 2024'!$A:$C,3,FALSE),0) -> 0 | R24: =IFERROR(VLOOKUP(C24,'[2]Líneas 2024'!$A:$C,3,FALSE),0) -> 0 | S24: =IF((VLOOKUP($B24,Formulacion!$A:$BE,MATCH(S$1,Formulacion!$1:$1,0),FALSE)="NA"),"NA",Q24) -> NA | T24: =IF((VLOOKUP($B24,Formulacion!$A:$BE,MATCH(T$1,Formulacion!$1:$1,0),FALSE)="NA"),"NA",R24) -> NA | U24: NA | V24: =IF(OR(VLOOKUP($B24,Formulacion!$A:$BE,MATCH(V$1,Formulacion!$1:$1,0),FALSE)="NA",$D24=0),"NA",IF($B24="DLSBT",MID($D24,ZanjaInicioBT,ZanjaFinBT-ZanjaInicioBT+1)*1,MID($D24,ZanjaInicio,ZanjaFin-ZanjaInicio+1)*1)) -> NA | W24: 1 | X24: =IF(OR(VLOOKUP($B24,Formulacion!$A:$BE,MATCH(X$1,Formulacion!$1:$1,0),FALSE)="NA",$D24=0),"NA",MID($D24,m2Inicio+INDIRECT(B24),m2Fin-m2Inicio+1)*1) -> NA | Y24: =IF(OR(VLOOKUP($B24,Formulacion!$A:$BE,MATCH(Y$1,Formulacion!$1:$1,0),FALSE)="NA",$D24=0),"NA",RIGHT($D24,4)*1) -> NA | Z24: =IF(OR(VLOOKUP($B24,Formulacion!$A:$BE,MATCH(Z$1,Formulacion!$1:$1,0),FALSE)="NA",$D24=0),"NA",RIGHT($D24,3)*1) -> NA | AA24: 1 | AB24: =IF(VLOOKUP($B24,Formulacion!$A:$BE,MATCH(AB$1,Formulacion!$1:$1,0),FALSE)="NA",1,IF(X24<=m2Min,0,1)) -> 1 | AC24: =IF(VLOOKUP($B24,Formulacion!$A:$BE,MATCH(AC$1,Formulacion!$1:$1,0),FALSE)="NA",1,IF(OR(E24<=FechaMin,E24>FechaMax),0,1)) -> 1 | AD24: =IF(VLOOKUP($B24,Formulacion!$A:$BE,MATCH(AD$1,Formulacion!$1:$1,0),FALSE)="NA",1,IF(H24<=MaterialesMin,0,1)) -> 1 | AE24: =IF(VLOOKUP($B24,Formulacion!$A:$BE,MATCH(AE$1,Formulacion!$1:$1,0),FALSE)="NA",1,IF(N24=0,0,IF(OR(I24/N24<=MObraMin,I24/N24>=MObraMax),MDOmin,1))) -> 1 | AF24: =IF(VLOOKUP($B24,Formulacion!$A:$BE,MATCH(AF$1,Formulacion!$1:$1,0),FALSE)="NA",1,IF(N24<=CostoTotalMin,0,1)) -> 1 | AG24: =IF(VLOOKUP($B24,Formulacion!$A:$BE,MATCH(AG$1,Formulacion!$1:$1,0),FALSE)="NA",1,IF(S24<PostesMin,0,1)) -> 1 | AH24: =IF(VLOOKUP($B24,Formulacion!$A:$BE,MATCH(AH$1,Formulacion!$1:$1,0),FALSE)="NA",1,IF(T24<INDIRECT(VLOOKUP(B24,Formulacion!$A:$BE,2,FALSE)),0,1)) -> 1 | AI24: 1 | AJ24: 11960.43 | AK24: 1 | AL24: =IF(VLOOKUP($B24,Formulacion!$A:$BE,MATCH(AL$1,Formulacion!$1:$1,0),FALSE)="NA","NA",HLOOKUP(VLOOKUP($B24,Formulacion!$A:$BE,MATCH(AL$1,Formulacion!$1:$1,0),FALSE),$S:$AB,ROW(AL24),FALSE)) -> NA | AM24: =IF(VLOOKUP($B24,Formulacion!$A:$BE,MATCH(AM$1,Formulacion!$1:$1,0),FALSE)="NA",1,VLOOKUP($B24,Formulacion!$A:$BE,MATCH(AM$1,Formulacion!$1:$1,0),FALSE)) -> 1 | AN24: =IF(VLOOKUP($B24,Formulacion!$A:$BE,MATCH(AN$1,Formulacion!$1:$1,0),FALSE)="NA",1,VLOOKUP($B24,Formulacion!$A:$BE,MATCH(AN$1,Formulacion!$1:$1,0),FALSE)) -> 1 | AO24: 1 | AP24: =IF(VLOOKUP($B24,Formulacion!$A:$BE,MATCH(AP$1,Formulacion!$1:$1,0),FALSE)="NA","NA",IF(D24=0,"",VLOOKUP($B24,Formulacion!$A:$BE,MATCH(AP$1,Formulacion!$1:$1,0),FALSE))) ->  | AQ24: X | AX24: NA | AY24: =IF(VLOOKUP($B24,Formulacion!$A:$BE,MATCH(AY$1,Formulacion!$1:$1,0),FALSE)="NA","NA",HLOOKUP(VLOOKUP($B24,Formulacion!$A:$BE,MATCH(AY$1,Formulacion!$1:$1,0),FALSE),$S:$AB,ROW(AY24),FALSE)) -> NA | AZ24: NA | BA24: 1 | BB24: =IF(VLOOKUP($B24,Formulacion!$A:$BE,MATCH(BB$1,Formulacion!$1:$1,0),FALSE)="NA",1,VLOOKUP($B24,Formulacion!$A:$BE,MATCH(BB$1,Formulacion!$1:$1,0),FALSE)) -> 0.9 | BC24: =IF(VLOOKUP($B24,Formulacion!$A:$BE,MATCH(BC$1,Formulacion!$1:$1,0),FALSE)="NA",1,VLOOKUP($B24,Formulacion!$A:$BE,MATCH(BC$1,Formulacion!$1:$1,0),FALSE)) -> 1 | BD24: 10764.387 | BF24: =VLOOKUP(C24,[3]Listado_Proyectos!$A$2:$I$815,9,FALSE) ->  | BG24: 2019-02-28
A25: Proyecto con cuenta ENSA 2024.xls | B25: =[1]Listado_Proyectos!K25 -> AINAP | C25: =[1]Listado_Proyectos!A25 -> 01-73.23.0009 | E25: =[1]Listado_Proyectos!I25 -> 2024-09-13 | F25: =[1]Listado_Proyectos!D25 -> PANAMA | H25: =[1]Listado_Proyectos!N25 -> 1566.84 | I25: =[1]Listado_Proyectos!M25 -> 1249.89 | K25: =[1]Listado_Proyectos!O25 -> 0 | N25: =[1]Listado_Proyectos!P25 -> 2816.73 | P25: =[1]Listado_Proyectos!Q25+[1]Listado_Proyectos!R25 -> 0 | Q25: =IFERROR(VLOOKUP(C25,'[2]Postes 2024'!$A:$C,3,FALSE),0) -> 14 | R25: =IFERROR(VLOOKUP(C25,'[2]Líneas 2024'!$A:$C,3,FALSE),0) -> 527.653 | S25: =IF((VLOOKUP($B25,Formulacion!$A:$BE,MATCH(S$1,Formulacion!$1:$1,0),FALSE)="NA"),"NA",Q25) -> NA | T25: =IF((VLOOKUP($B25,Formulacion!$A:$BE,MATCH(T$1,Formulacion!$1:$1,0),FALSE)="NA"),"NA",R25) -> NA | U25: NA | V25: =IF(OR(VLOOKUP($B25,Formulacion!$A:$BE,MATCH(V$1,Formulacion!$1:$1,0),FALSE)="NA",$D25=0),"NA",IF($B25="DLSBT",MID($D25,ZanjaInicioBT,ZanjaFinBT-ZanjaInicioBT+1)*1,MID($D25,ZanjaInicio,ZanjaFin-ZanjaInicio+1)*1)) -> NA | W25: 1 | X25: =IF(OR(VLOOKUP($B25,Formulacion!$A:$BE,MATCH(X$1,Formulacion!$1:$1,0),FALSE)="NA",$D25=0),"NA",MID($D25,m2Inicio+INDIRECT(B25),m2Fin-m2Inicio+1)*1) -> NA | Y25: =IF(OR(VLOOKUP($B25,Formulacion!$A:$BE,MATCH(Y$1,Formulacion!$1:$1,0),FALSE)="NA",$D25=0),"NA",RIGHT($D25,4)*1) -> NA | Z25: =IF(OR(VLOOKUP($B25,Formulacion!$A:$BE,MATCH(Z$1,Formulacion!$1:$1,0),FALSE)="NA",$D25=0),"NA",RIGHT($D25,3)*1) -> NA | AA25: 1 | AB25: =IF(VLOOKUP($B25,Formulacion!$A:$BE,MATCH(AB$1,Formulacion!$1:$1,0),FALSE)="NA",1,IF(X25<=m2Min,0,1)) -> 1 | AC25: =IF(VLOOKUP($B25,Formulacion!$A:$BE,MATCH(AC$1,Formulacion!$1:$1,0),FALSE)="NA",1,IF(OR(E25<=FechaMin,E25>FechaMax),0,1)) -> 1 | AD25: =IF(VLOOKUP($B25,Formulacion!$A:$BE,MATCH(AD$1,Formulacion!$1:$1,0),FALSE)="NA",1,IF(H25<=MaterialesMin,0,1)) -> 1 | AE25: =IF(VLOOKUP($B25,Formulacion!$A:$BE,MATCH(AE$1,Formulacion!$1:$1,0),FALSE)="NA",1,IF(N25=0,0,IF(OR(I25/N25<=MObraMin,I25/N25>=MObraMax),MDOmin,1))) -> 1 | AF25: =IF(VLOOKUP($B25,Formulacion!$A:$BE,MATCH(AF$1,Formulacion!$1:$1,0),FALSE)="NA",1,IF(N25<=CostoTotalMin,0,1)) -> 1 | AG25: =IF(VLOOKUP($B25,Formulacion!$A:$BE,MATCH(AG$1,Formulacion!$1:$1,0),FALSE)="NA",1,IF(S25<PostesMin,0,1)) -> 1 | AH25: =IF(VLOOKUP($B25,Formulacion!$A:$BE,MATCH(AH$1,Formulacion!$1:$1,0),FALSE)="NA",1,IF(T25<INDIRECT(VLOOKUP(B25,Formulacion!$A:$BE,2,FALSE)),0,1)) -> 1 | AI25: 1 | AJ25: 2816.73 | AK25: 1 | AL25: =IF(VLOOKUP($B25,Formulacion!$A:$BE,MATCH(AL$1,Formulacion!$1:$1,0),FALSE)="NA","NA",HLOOKUP(VLOOKUP($B25,Formulacion!$A:$BE,MATCH(AL$1,Formulacion!$1:$1,0),FALSE),$S:$AB,ROW(AL25),FALSE)) -> NA | AM25: =IF(VLOOKUP($B25,Formulacion!$A:$BE,MATCH(AM$1,Formulacion!$1:$1,0),FALSE)="NA",1,VLOOKUP($B25,Formulacion!$A:$BE,MATCH(AM$1,Formulacion!$1:$1,0),FALSE)) -> 1 | AN25: =IF(VLOOKUP($B25,Formulacion!$A:$BE,MATCH(AN$1,Formulacion!$1:$1,0),FALSE)="NA",1,VLOOKUP($B25,Formulacion!$A:$BE,MATCH(AN$1,Formulacion!$1:$1,0),FALSE)) -> 1 | AO25: 1 | AP25: =IF(VLOOKUP($B25,Formulacion!$A:$BE,MATCH(AP$1,Formulacion!$1:$1,0),FALSE)="NA","NA",IF(D25=0,"",VLOOKUP($B25,Formulacion!$A:$BE,MATCH(AP$1,Formulacion!$1:$1,0),FALSE))) -> NA | AQ25: X | AX25: NA | AY25: =IF(VLOOKUP($B25,Formulacion!$A:$BE,MATCH(AY$1,Formulacion!$1:$1,0),FALSE)="NA","NA",HLOOKUP(VLOOKUP($B25,Formulacion!$A:$BE,MATCH(AY$1,Formulacion!$1:$1,0),FALSE),$S:$AB,ROW(AY25),FALSE)) -> NA | AZ25: NA | BA25: 1 | BB25: =IF(VLOOKUP($B25,Formulacion!$A:$BE,MATCH(BB$1,Formulacion!$1:$1,0),FALSE)="NA",1,VLOOKUP($B25,Formulacion!$A:$BE,MATCH(BB$1,Formulacion!$1:$1,0),FALSE)) -> 0.9 | BC25: =IF(VLOOKUP($B25,Formulacion!$A:$BE,MATCH(BC$1,Formulacion!$1:$1,0),FALSE)="NA",1,VLOOKUP($B25,Formulacion!$A:$BE,MATCH(BC$1,Formulacion!$1:$1,0),FALSE)) -> 1 | BD25: 2535.057 | BF25: =VLOOKUP(C25,[3]Listado_Proyectos!$A$2:$I$815,9,FALSE) ->  | BG25: 2019-02-28
A26: Proyecto con cuenta ENSA 2024.xls | B26: =[1]Listado_Proyectos!K26 -> DLAMT-13,8 | C26: =[1]Listado_Proyectos!A26 -> 01-73.23.0009 | E26: =[1]Listado_Proyectos!I26 -> 2024-09-13 | F26: =[1]Listado_Proyectos!D26 -> PANAMA | H26: =[1]Listado_Proyectos!N26 -> 30035.33 | I26: =[1]Listado_Proyectos!M26 -> 40684.55 | K26: =[1]Listado_Proyectos!O26 -> 584.85 | N26: =[1]Listado_Proyectos!P26 -> 71304.73 | P26: =[1]Listado_Proyectos!Q26+[1]Listado_Proyectos!R26 -> 0 | Q26: =IFERROR(VLOOKUP(C26,'[2]Postes 2024'!$A:$C,3,FALSE),0) -> 14 | R26: =IFERROR(VLOOKUP(C26,'[2]Líneas 2024'!$A:$C,3,FALSE),0) -> 527.653 | S26: =IF((VLOOKUP($B26,Formulacion!$A:$BE,MATCH(S$1,Formulacion!$1:$1,0),FALSE)="NA"),"NA",Q26) -> 14 | T26: =IF((VLOOKUP($B26,Formulacion!$A:$BE,MATCH(T$1,Formulacion!$1:$1,0),FALSE)="NA"),"NA",R26) -> 527.653 | U26: 37.6895 | V26: =IF(OR(VLOOKUP($B26,Formulacion!$A:$BE,MATCH(V$1,Formulacion!$1:$1,0),FALSE)="NA",$D26=0),"NA",IF($B26="DLSBT",MID($D26,ZanjaInicioBT,ZanjaFinBT-ZanjaInicioBT+1)*1,MID($D26,ZanjaInicio,ZanjaFin-ZanjaInicio+1)*1)) -> NA | W26: 1 | X26: =IF(OR(VLOOKUP($B26,Formulacion!$A:$BE,MATCH(X$1,Formulacion!$1:$1,0),FALSE)="NA",$D26=0),"NA",MID($D26,m2Inicio+INDIRECT(B26),m2Fin-m2Inicio+1)*1) -> NA | Y26: =IF(OR(VLOOKUP($B26,Formulacion!$A:$BE,MATCH(Y$1,Formulacion!$1:$1,0),FALSE)="NA",$D26=0),"NA",RIGHT($D26,4)*1) -> NA | Z26: =IF(OR(VLOOKUP($B26,Formulacion!$A:$BE,MATCH(Z$1,Formulacion!$1:$1,0),FALSE)="NA",$D26=0),"NA",RIGHT($D26,3)*1) -> NA | AA26: 1 | AB26: =IF(VLOOKUP($B26,Formulacion!$A:$BE,MATCH(AB$1,Formulacion!$1:$1,0),FALSE)="NA",1,IF(X26<=m2Min,0,1)) -> 1 | AC26: =IF(VLOOKUP($B26,Formulacion!$A:$BE,MATCH(AC$1,Formulacion!$1:$1,0),FALSE)="NA",1,IF(OR(E26<=FechaMin,E26>FechaMax),0,1)) -> 1 | AD26: =IF(VLOOKUP($B26,Formulacion!$A:$BE,MATCH(AD$1,Formulacion!$1:$1,0),FALSE)="NA",1,IF(H26<=MaterialesMin,0,1)) -> 1 | AE26: =IF(VLOOKUP($B26,Formulacion!$A:$BE,MATCH(AE$1,Formulacion!$1:$1,0),FALSE)="NA",1,IF(N26=0,0,IF(OR(I26/N26<=MObraMin,I26/N26>=MObraMax),MDOmin,1))) -> 1 | AF26: =IF(VLOOKUP($B26,Formulacion!$A:$BE,MATCH(AF$1,Formulacion!$1:$1,0),FALSE)="NA",1,IF(N26<=CostoTotalMin,0,1)) -> 1 | AG26: =IF(VLOOKUP($B26,Formulacion!$A:$BE,MATCH(AG$1,Formulacion!$1:$1,0),FALSE)="NA",1,IF(S26<PostesMin,0,1)) -> 1 | AH26: =IF(VLOOKUP($B26,Formulacion!$A:$BE,MATCH(AH$1,Formulacion!$1:$1,0),FALSE)="NA",1,IF(T26<INDIRECT(VLOOKUP(B26,Formulacion!$A:$BE,2,FALSE)),0,1)) -> 1 | AI26: 1 | AJ26: 71304.73 | AK26: 1 | AL26: =IF(VLOOKUP($B26,Formulacion!$A:$BE,MATCH(AL$1,Formulacion!$1:$1,0),FALSE)="NA","NA",HLOOKUP(VLOOKUP($B26,Formulacion!$A:$BE,MATCH(AL$1,Formulacion!$1:$1,0),FALSE),$S:$AB,ROW(AL26),FALSE)) -> 37.6895 | AM26: =IF(VLOOKUP($B26,Formulacion!$A:$BE,MATCH(AM$1,Formulacion!$1:$1,0),FALSE)="NA",1,VLOOKUP($B26,Formulacion!$A:$BE,MATCH(AM$1,Formulacion!$1:$1,0),FALSE)) -> 45 | AN26: =IF(VLOOKUP($B26,Formulacion!$A:$BE,MATCH(AN$1,Formulacion!$1:$1,0),FALSE)="NA",1,VLOOKUP($B26,Formulacion!$A:$BE,MATCH(AN$1,Formulacion!$1:$1,0),FALSE)) -> 0.3 | AO26: CU | AP26: =IF(VLOOKUP($B26,Formulacion!$A:$BE,MATCH(AP$1,Formulacion!$1:$1,0),FALSE)="NA","NA",IF(D26=0,"",VLOOKUP($B26,Formulacion!$A:$BE,MATCH(AP$1,Formulacion!$1:$1,0),FALSE))) ->  | AQ26: X | AX26: NA | AY26: =IF(VLOOKUP($B26,Formulacion!$A:$BE,MATCH(AY$1,Formulacion!$1:$1,0),FALSE)="NA","NA",HLOOKUP(VLOOKUP($B26,Formulacion!$A:$BE,MATCH(AY$1,Formulacion!$1:$1,0),FALSE),$S:$AB,ROW(AY26),FALSE)) -> 527.653 | AZ26: NA | BA26: 1 | BB26: =IF(VLOOKUP($B26,Formulacion!$A:$BE,MATCH(BB$1,Formulacion!$1:$1,0),FALSE)="NA",1,VLOOKUP($B26,Formulacion!$A:$BE,MATCH(BB$1,Formulacion!$1:$1,0),FALSE)) -> 0.9 | BC26: =IF(VLOOKUP($B26,Formulacion!$A:$BE,MATCH(BC$1,Formulacion!$1:$1,0),FALSE)="NA",1,VLOOKUP($B26,Formulacion!$A:$BE,MATCH(BC$1,Formulacion!$1:$1,0),FALSE)) -> 1 | BD26: 64174.257 | BF26: =VLOOKUP(C26,[3]Listado_Proyectos!$A$2:$I$815,9,FALSE) ->  | BG26: 2019-02-28
A27: Proyecto con cuenta ENSA 2024.xls | B27: =[1]Listado_Proyectos!K27 -> DTRMB-13,8 | C27: =[1]Listado_Proyectos!A27 -> 01-73.23.0009 | E27: =[1]Listado_Proyectos!I27 -> 2024-09-13 | F27: =[1]Listado_Proyectos!D27 -> PANAMA | H27: =[1]Listado_Proyectos!N27 -> 5587.81 | I27: =[1]Listado_Proyectos!M27 -> 1142.41 | K27: =[1]Listado_Proyectos!O27 -> 494.79 | N27: =[1]Listado_Proyectos!P27 -> 7225.01 | P27: =[1]Listado_Proyectos!Q27+[1]Listado_Proyectos!R27 -> 0 | Q27: =IFERROR(VLOOKUP(C27,'[2]Postes 2024'!$A:$C,3,FALSE),0) -> 14 | R27: =IFERROR(VLOOKUP(C27,'[2]Líneas 2024'!$A:$C,3,FALSE),0) -> 527.653 | S27: =IF((VLOOKUP($B27,Formulacion!$A:$BE,MATCH(S$1,Formulacion!$1:$1,0),FALSE)="NA"),"NA",Q27) -> NA | T27: =IF((VLOOKUP($B27,Formulacion!$A:$BE,MATCH(T$1,Formulacion!$1:$1,0),FALSE)="NA"),"NA",R27) -> NA | U27: NA | V27: =IF(OR(VLOOKUP($B27,Formulacion!$A:$BE,MATCH(V$1,Formulacion!$1:$1,0),FALSE)="NA",$D27=0),"NA",IF($B27="DLSBT",MID($D27,ZanjaInicioBT,ZanjaFinBT-ZanjaInicioBT+1)*1,MID($D27,ZanjaInicio,ZanjaFin-ZanjaInicio+1)*1)) -> NA | W27: 1 | X27: =IF(OR(VLOOKUP($B27,Formulacion!$A:$BE,MATCH(X$1,Formulacion!$1:$1,0),FALSE)="NA",$D27=0),"NA",MID($D27,m2Inicio+INDIRECT(B27),m2Fin-m2Inicio+1)*1) -> NA | Y27: =IF(OR(VLOOKUP($B27,Formulacion!$A:$BE,MATCH(Y$1,Formulacion!$1:$1,0),FALSE)="NA",$D27=0),"NA",RIGHT($D27,4)*1) -> NA | Z27: =IF(OR(VLOOKUP($B27,Formulacion!$A:$BE,MATCH(Z$1,Formulacion!$1:$1,0),FALSE)="NA",$D27=0),"NA",RIGHT($D27,3)*1) -> NA | AA27: 1 | AB27: =IF(VLOOKUP($B27,Formulacion!$A:$BE,MATCH(AB$1,Formulacion!$1:$1,0),FALSE)="NA",1,IF(X27<=m2Min,0,1)) -> 1 | AC27: =IF(VLOOKUP($B27,Formulacion!$A:$BE,MATCH(AC$1,Formulacion!$1:$1,0),FALSE)="NA",1,IF(OR(E27<=FechaMin,E27>FechaMax),0,1)) -> 1 | AD27: =IF(VLOOKUP($B27,Formulacion!$A:$BE,MATCH(AD$1,Formulacion!$1:$1,0),FALSE)="NA",1,IF(H27<=MaterialesMin,0,1)) -> 1 | AE27: =IF(VLOOKUP($B27,Formulacion!$A:$BE,MATCH(AE$1,Formulacion!$1:$1,0),FALSE)="NA",1,IF(N27=0,0,IF(OR(I27/N27<=MObraMin,I27/N27>=MObraMax),MDOmin,1))) -> 1 | AF27: =IF(VLOOKUP($B27,Formulacion!$A:$BE,MATCH(AF$1,Formulacion!$1:$1,0),FALSE)="NA",1,IF(N27<=CostoTotalMin,0,1)) -> 1 | AG27: =IF(VLOOKUP($B27,Formulacion!$A:$BE,MATCH(AG$1,Formulacion!$1:$1,0),FALSE)="NA",1,IF(S27<PostesMin,0,1)) -> 1 | AH27: =IF(VLOOKUP($B27,Formulacion!$A:$BE,MATCH(AH$1,Formulacion!$1:$1,0),FALSE)="NA",1,IF(T27<INDIRECT(VLOOKUP(B27,Formulacion!$A:$BE,2,FALSE)),0,1)) -> 1 | AI27: 1 | AJ27: 7225.01 | AK27: 1 | AL27: =IF(VLOOKUP($B27,Formulacion!$A:$BE,MATCH(AL$1,Formulacion!$1:$1,0),FALSE)="NA","NA",HLOOKUP(VLOOKUP($B27,Formulacion!$A:$BE,MATCH(AL$1,Formulacion!$1:$1,0),FALSE),$S:$AB,ROW(AL27),FALSE)) -> NA | AM27: =IF(VLOOKUP($B27,Formulacion!$A:$BE,MATCH(AM$1,Formulacion!$1:$1,0),FALSE)="NA",1,VLOOKUP($B27,Formulacion!$A:$BE,MATCH(AM$1,Formulacion!$1:$1,0),FALSE)) -> 1 | AN27: =IF(VLOOKUP($B27,Formulacion!$A:$BE,MATCH(AN$1,Formulacion!$1:$1,0),FALSE)="NA",1,VLOOKUP($B27,Formulacion!$A:$BE,MATCH(AN$1,Formulacion!$1:$1,0),FALSE)) -> 1 | AO27: 1 | AP27: =IF(VLOOKUP($B27,Formulacion!$A:$BE,MATCH(AP$1,Formulacion!$1:$1,0),FALSE)="NA","NA",IF(D27=0,"",VLOOKUP($B27,Formulacion!$A:$BE,MATCH(AP$1,Formulacion!$1:$1,0),FALSE))) ->  | AQ27: X | AX27: NA | AY27: =IF(VLOOKUP($B27,Formulacion!$A:$BE,MATCH(AY$1,Formulacion!$1:$1,0),FALSE)="NA","NA",HLOOKUP(VLOOKUP($B27,Formulacion!$A:$BE,MATCH(AY$1,Formulacion!$1:$1,0),FALSE),$S:$AB,ROW(AY27),FALSE)) -> NA | AZ27: NA | BA27: 1 | BB27: =IF(VLOOKUP($B27,Formulacion!$A:$BE,MATCH(BB$1,Formulacion!$1:$1,0),FALSE)="NA",1,VLOOKUP($B27,Formulacion!$A:$BE,MATCH(BB$1,Formulacion!$1:$1,0),FALSE)) -> 0.9 | BC27: =IF(VLOOKUP($B27,Formulacion!$A:$BE,MATCH(BC$1,Formulacion!$1:$1,0),FALSE)="NA",1,VLOOKUP($B27,Formulacion!$A:$BE,MATCH(BC$1,Formulacion!$1:$1,0),FALSE)) -> 1 | BD27: 6502.509 | BF27: =VLOOKUP(C27,[3]Listado_Proyectos!$A$2:$I$815,9,FALSE) ->  | BG27: 2019-02-28
A28: Proyecto con cuenta ENSA 2024.xls | B28: =[1]Listado_Proyectos!K28 -> DTRMB-OTRAS | C28: =[1]Listado_Proyectos!A28 -> 01-73.23.0009 | E28: =[1]Listado_Proyectos!I28 -> 2024-09-13 | F28: =[1]Listado_Proyectos!D28 -> PANAMA | H28: =[1]Listado_Proyectos!N28 -> 10009.33 | I28: =[1]Listado_Proyectos!M28 -> 5859.81 | K28: =[1]Listado_Proyectos!O28 -> 196.63 | N28: =[1]Listado_Proyectos!P28 -> 16065.77 | P28: =[1]Listado_Proyectos!Q28+[1]Listado_Proyectos!R28 -> 0 | Q28: =IFERROR(VLOOKUP(C28,'[2]Postes 2024'!$A:$C,3,FALSE),0) -> 14 | R28: =IFERROR(VLOOKUP(C28,'[2]Líneas 2024'!$A:$C,3,FALSE),0) -> 527.653 | S28: =IF((VLOOKUP($B28,Formulacion!$A:$BE,MATCH(S$1,Formulacion!$1:$1,0),FALSE)="NA"),"NA",Q28) -> NA | T28: =IF((VLOOKUP($B28,Formulacion!$A:$BE,MATCH(T$1,Formulacion!$1:$1,0),FALSE)="NA"),"NA",R28) -> NA | U28: NA | V28: =IF(OR(VLOOKUP($B28,Formulacion!$A:$BE,MATCH(V$1,Formulacion!$1:$1,0),FALSE)="NA",$D28=0),"NA",IF($B28="DLSBT",MID($D28,ZanjaInicioBT,ZanjaFinBT-ZanjaInicioBT+1)*1,MID($D28,ZanjaInicio,ZanjaFin-ZanjaInicio+1)*1)) -> NA | W28: 1 | X28: =IF(OR(VLOOKUP($B28,Formulacion!$A:$BE,MATCH(X$1,Formulacion!$1:$1,0),FALSE)="NA",$D28=0),"NA",MID($D28,m2Inicio+INDIRECT(B28),m2Fin-m2Inicio+1)*1) -> NA | Y28: =IF(OR(VLOOKUP($B28,Formulacion!$A:$BE,MATCH(Y$1,Formulacion!$1:$1,0),FALSE)="NA",$D28=0),"NA",RIGHT($D28,4)*1) -> NA | Z28: =IF(OR(VLOOKUP($B28,Formulacion!$A:$BE,MATCH(Z$1,Formulacion!$1:$1,0),FALSE)="NA",$D28=0),"NA",RIGHT($D28,3)*1) -> NA | AA28: 1 | AB28: =IF(VLOOKUP($B28,Formulacion!$A:$BE,MATCH(AB$1,Formulacion!$1:$1,0),FALSE)="NA",1,IF(X28<=m2Min,0,1)) -> 1 | AC28: =IF(VLOOKUP($B28,Formulacion!$A:$BE,MATCH(AC$1,Formulacion!$1:$1,0),FALSE)="NA",1,IF(OR(E28<=FechaMin,E28>FechaMax),0,1)) -> 1 | AD28: =IF(VLOOKUP($B28,Formulacion!$A:$BE,MATCH(AD$1,Formulacion!$1:$1,0),FALSE)="NA",1,IF(H28<=MaterialesMin,0,1)) -> 1 | AE28: =IF(VLOOKUP($B28,Formulacion!$A:$BE,MATCH(AE$1,Formulacion!$1:$1,0),FALSE)="NA",1,IF(N28=0,0,IF(OR(I28/N28<=MObraMin,I28/N28>=MObraMax),MDOmin,1))) -> 1 | AF28: =IF(VLOOKUP($B28,Formulacion!$A:$BE,MATCH(AF$1,Formulacion!$1:$1,0),FALSE)="NA",1,IF(N28<=CostoTotalMin,0,1)) -> 1 | AG28: =IF(VLOOKUP($B28,Formulacion!$A:$BE,MATCH(AG$1,Formulacion!$1:$1,0),FALSE)="NA",1,IF(S28<PostesMin,0,1)) -> 1 | AH28: =IF(VLOOKUP($B28,Formulacion!$A:$BE,MATCH(AH$1,Formulacion!$1:$1,0),FALSE)="NA",1,IF(T28<INDIRECT(VLOOKUP(B28,Formulacion!$A:$BE,2,FALSE)),0,1)) -> 1 | AI28: 1 | AJ28: 16065.77 | AK28: 1 | AL28: =IF(VLOOKUP($B28,Formulacion!$A:$BE,MATCH(AL$1,Formulacion!$1:$1,0),FALSE)="NA","NA",HLOOKUP(VLOOKUP($B28,Formulacion!$A:$BE,MATCH(AL$1,Formulacion!$1:$1,0),FALSE),$S:$AB,ROW(AL28),FALSE)) -> NA | AM28: =IF(VLOOKUP($B28,Formulacion!$A:$BE,MATCH(AM$1,Formulacion!$1:$1,0),FALSE)="NA",1,VLOOKUP($B28,Formulacion!$A:$BE,MATCH(AM$1,Formulacion!$1:$1,0),FALSE)) -> 1 | AN28: =IF(VLOOKUP($B28,Formulacion!$A:$BE,MATCH(AN$1,Formulacion!$1:$1,0),FALSE)="NA",1,VLOOKUP($B28,Formulacion!$A:$BE,MATCH(AN$1,Formulacion!$1:$1,0),FALSE)) -> 1 | AO28: 1 | AP28: =IF(VLOOKUP($B28,Formulacion!$A:$BE,MATCH(AP$1,Formulacion!$1:$1,0),FALSE)="NA","NA",IF(D28=0,"",VLOOKUP($B28,Formulacion!$A:$BE,MATCH(AP$1,Formulacion!$1:$1,0),FALSE))) ->  | AQ28: X | AX28: NA | AY28: =IF(VLOOKUP($B28,Formulacion!$A:$BE,MATCH(AY$1,Formulacion!$1:$1,0),FALSE)="NA","NA",HLOOKUP(VLOOKUP($B28,Formulacion!$A:$BE,MATCH(AY$1,Formulacion!$1:$1,0),FALSE),$S:$AB,ROW(AY28),FALSE)) -> NA | AZ28: NA | BA28: 1 | BB28: =IF(VLOOKUP($B28,Formulacion!$A:$BE,MATCH(BB$1,Formulacion!$1:$1,0),FALSE)="NA",1,VLOOKUP($B28,Formulacion!$A:$BE,MATCH(BB$1,Formulacion!$1:$1,0),FALSE)) -> 0.9 | BC28: =IF(VLOOKUP($B28,Formulacion!$A:$BE,MATCH(BC$1,Formulacion!$1:$1,0),FALSE)="NA",1,VLOOKUP($B28,Formulacion!$A:$BE,MATCH(BC$1,Formulacion!$1:$1,0),FALSE)) -> 1 | BD28: 14459.193 | BF28: =VLOOKUP(C28,[3]Listado_Proyectos!$A$2:$I$815,9,FALSE) ->  | BG28: 2019-02-28
A29: Proyecto con cuenta ENSA 2024.xls | B29: =[1]Listado_Proyectos!K29 -> PPLIN | C29: =[1]Listado_Proyectos!A29 -> 01-32.23.0012 | E29: =[1]Listado_Proyectos!I29 -> 2024-04-29 | F29: =[1]Listado_Proyectos!D29 -> PANAMA | H29: =[1]Listado_Proyectos!N29 -> 43549.23 | I29: =[1]Listado_Proyectos!M29 -> 0 | K29: =[1]Listado_Proyectos!O29 -> 0 | N29: =[1]Listado_Proyectos!P29 -> 43549.23 | P29: =[1]Listado_Proyectos!Q29+[1]Listado_Proyectos!R29 -> 0 | Q29: =IFERROR(VLOOKUP(C29,'[2]Postes 2024'!$A:$C,3,FALSE),0) -> 0 | R29: =IFERROR(VLOOKUP(C29,'[2]Líneas 2024'!$A:$C,3,FALSE),0) -> 0 | S29: =IF((VLOOKUP($B29,Formulacion!$A:$BE,MATCH(S$1,Formulacion!$1:$1,0),FALSE)="NA"),"NA",Q29) -> NA | T29: =IF((VLOOKUP($B29,Formulacion!$A:$BE,MATCH(T$1,Formulacion!$1:$1,0),FALSE)="NA"),"NA",R29) -> NA | U29: NA | V29: =IF(OR(VLOOKUP($B29,Formulacion!$A:$BE,MATCH(V$1,Formulacion!$1:$1,0),FALSE)="NA",$D29=0),"NA",IF($B29="DLSBT",MID($D29,ZanjaInicioBT,ZanjaFinBT-ZanjaInicioBT+1)*1,MID($D29,ZanjaInicio,ZanjaFin-ZanjaInicio+1)*1)) -> NA | W29: 1 | X29: =IF(OR(VLOOKUP($B29,Formulacion!$A:$BE,MATCH(X$1,Formulacion!$1:$1,0),FALSE)="NA",$D29=0),"NA",MID($D29,m2Inicio+INDIRECT(B29),m2Fin-m2Inicio+1)*1) -> NA | Y29: =IF(OR(VLOOKUP($B29,Formulacion!$A:$BE,MATCH(Y$1,Formulacion!$1:$1,0),FALSE)="NA",$D29=0),"NA",RIGHT($D29,4)*1) -> NA | Z29: =IF(OR(VLOOKUP($B29,Formulacion!$A:$BE,MATCH(Z$1,Formulacion!$1:$1,0),FALSE)="NA",$D29=0),"NA",RIGHT($D29,3)*1) -> NA | AA29: 1 | AB29: =IF(VLOOKUP($B29,Formulacion!$A:$BE,MATCH(AB$1,Formulacion!$1:$1,0),FALSE)="NA",1,IF(X29<=m2Min,0,1)) -> 1 | AC29: =IF(VLOOKUP($B29,Formulacion!$A:$BE,MATCH(AC$1,Formulacion!$1:$1,0),FALSE)="NA",1,IF(OR(E29<=FechaMin,E29>FechaMax),0,1)) -> 1 | AD29: =IF(VLOOKUP($B29,Formulacion!$A:$BE,MATCH(AD$1,Formulacion!$1:$1,0),FALSE)="NA",1,IF(H29<=MaterialesMin,0,1)) -> 1 | AE29: =IF(VLOOKUP($B29,Formulacion!$A:$BE,MATCH(AE$1,Formulacion!$1:$1,0),FALSE)="NA",1,IF(N29=0,0,IF(OR(I29/N29<=MObraMin,I29/N29>=MObraMax),MDOmin,1))) -> 1 | AF29: =IF(VLOOKUP($B29,Formulacion!$A:$BE,MATCH(AF$1,Formulacion!$1:$1,0),FALSE)="NA",1,IF(N29<=CostoTotalMin,0,1)) -> 1 | AG29: =IF(VLOOKUP($B29,Formulacion!$A:$BE,MATCH(AG$1,Formulacion!$1:$1,0),FALSE)="NA",1,IF(S29<PostesMin,0,1)) -> 1 | AH29: =IF(VLOOKUP($B29,Formulacion!$A:$BE,MATCH(AH$1,Formulacion!$1:$1,0),FALSE)="NA",1,IF(T29<INDIRECT(VLOOKUP(B29,Formulacion!$A:$BE,2,FALSE)),0,1)) -> 1 | AI29: 1 | AJ29: 43549.23 | AK29: 1 | AL29: =IF(VLOOKUP($B29,Formulacion!$A:$BE,MATCH(AL$1,Formulacion!$1:$1,0),FALSE)="NA","NA",HLOOKUP(VLOOKUP($B29,Formulacion!$A:$BE,MATCH(AL$1,Formulacion!$1:$1,0),FALSE),$S:$AB,ROW(AL29),FALSE)) -> NA | AM29: =IF(VLOOKUP($B29,Formulacion!$A:$BE,MATCH(AM$1,Formulacion!$1:$1,0),FALSE)="NA",1,VLOOKUP($B29,Formulacion!$A:$BE,MATCH(AM$1,Formulacion!$1:$1,0),FALSE)) -> 1 | AN29: =IF(VLOOKUP($B29,Formulacion!$A:$BE,MATCH(AN$1,Formulacion!$1:$1,0),FALSE)="NA",1,VLOOKUP($B29,Formulacion!$A:$BE,MATCH(AN$1,Formulacion!$1:$1,0),FALSE)) -> 1 | AO29: 1 | AP29: =IF(VLOOKUP($B29,Formulacion!$A:$BE,MATCH(AP$1,Formulacion!$1:$1,0),FALSE)="NA","NA",IF(D29=0,"",VLOOKUP($B29,Formulacion!$A:$BE,MATCH(AP$1,Formulacion!$1:$1,0),FALSE))) -> NA | AQ29: X | AX29: NA | AY29: =IF(VLOOKUP($B29,Formulacion!$A:$BE,MATCH(AY$1,Formulacion!$1:$1,0),FALSE)="NA","NA",HLOOKUP(VLOOKUP($B29,Formulacion!$A:$BE,MATCH(AY$1,Formulacion!$1:$1,0),FALSE),$S:$AB,ROW(AY29),FALSE)) -> NA | AZ29: NA | BA29: 1 | BB29: =IF(VLOOKUP($B29,Formulacion!$A:$BE,MATCH(BB$1,Formulacion!$1:$1,0),FALSE)="NA",1,VLOOKUP($B29,Formulacion!$A:$BE,MATCH(BB$1,Formulacion!$1:$1,0),FALSE)) -> 0.9 | BC29: =IF(VLOOKUP($B29,Formulacion!$A:$BE,MATCH(BC$1,Formulacion!$1:$1,0),FALSE)="NA",1,VLOOKUP($B29,Formulacion!$A:$BE,MATCH(BC$1,Formulacion!$1:$1,0),FALSE)) -> 1 | BD29: 39194.307 | BF29: =VLOOKUP(C29,[3]Listado_Proyectos!$A$2:$I$815,9,FALSE) ->  | BG29: 2019-02-28
A30: Proyecto con cuenta ENSA 2024.xls | B30: =[1]Listado_Proyectos!K30 -> AINAP | C30: =[1]Listado_Proyectos!A30 -> 01-17.23.0122 | E30: =[1]Listado_Proyectos!I30 -> 2024-02-28 | F30: =[1]Listado_Proyectos!D30 -> PANAMA | H30: =[1]Listado_Proyectos!N30 -> 569.66 | I30: =[1]Listado_Proyectos!M30 -> 1385.83 | K30: =[1]Listado_Proyectos!O30 -> 0 | N30: =[1]Listado_Proyectos!P30 -> 1955.49 | P30: =[1]Listado_Proyectos!Q30+[1]Listado_Proyectos!R30 -> 0 | Q30: =IFERROR(VLOOKUP(C30,'[2]Postes 2024'!$A:$C,3,FALSE),0) -> 3 | R30: =IFERROR(VLOOKUP(C30,'[2]Líneas 2024'!$A:$C,3,FALSE),0) -> 0 | S30: =IF((VLOOKUP($B30,Formulacion!$A:$BE,MATCH(S$1,Formulacion!$1:$1,0),FALSE)="NA"),"NA",Q30) -> NA | T30: =IF((VLOOKUP($B30,Formulacion!$A:$BE,MATCH(T$1,Formulacion!$1:$1,0),FALSE)="NA"),"NA",R30) -> NA | U30: NA | V30: =IF(OR(VLOOKUP($B30,Formulacion!$A:$BE,MATCH(V$1,Formulacion!$1:$1,0),FALSE)="NA",$D30=0),"NA",IF($B30="DLSBT",MID($D30,ZanjaInicioBT,ZanjaFinBT-ZanjaInicioBT+1)*1,MID($D30,ZanjaInicio,ZanjaFin-ZanjaInicio+1)*1)) -> NA | W30: 1 | X30: =IF(OR(VLOOKUP($B30,Formulacion!$A:$BE,MATCH(X$1,Formulacion!$1:$1,0),FALSE)="NA",$D30=0),"NA",MID($D30,m2Inicio+INDIRECT(B30),m2Fin-m2Inicio+1)*1) -> NA | Y30: =IF(OR(VLOOKUP($B30,Formulacion!$A:$BE,MATCH(Y$1,Formulacion!$1:$1,0),FALSE)="NA",$D30=0),"NA",RIGHT($D30,4)*1) -> NA | Z30: =IF(OR(VLOOKUP($B30,Formulacion!$A:$BE,MATCH(Z$1,Formulacion!$1:$1,0),FALSE)="NA",$D30=0),"NA",RIGHT($D30,3)*1) -> NA | AA30: 1 | AB30: =IF(VLOOKUP($B30,Formulacion!$A:$BE,MATCH(AB$1,Formulacion!$1:$1,0),FALSE)="NA",1,IF(X30<=m2Min,0,1)) -> 1 | AC30: =IF(VLOOKUP($B30,Formulacion!$A:$BE,MATCH(AC$1,Formulacion!$1:$1,0),FALSE)="NA",1,IF(OR(E30<=FechaMin,E30>FechaMax),0,1)) -> 1 | AD30: =IF(VLOOKUP($B30,Formulacion!$A:$BE,MATCH(AD$1,Formulacion!$1:$1,0),FALSE)="NA",1,IF(H30<=MaterialesMin,0,1)) -> 1 | AE30: =IF(VLOOKUP($B30,Formulacion!$A:$BE,MATCH(AE$1,Formulacion!$1:$1,0),FALSE)="NA",1,IF(N30=0,0,IF(OR(I30/N30<=MObraMin,I30/N30>=MObraMax),MDOmin,1))) -> 1 | AF30: =IF(VLOOKUP($B30,Formulacion!$A:$BE,MATCH(AF$1,Formulacion!$1:$1,0),FALSE)="NA",1,IF(N30<=CostoTotalMin,0,1)) -> 1 | AG30: =IF(VLOOKUP($B30,Formulacion!$A:$BE,MATCH(AG$1,Formulacion!$1:$1,0),FALSE)="NA",1,IF(S30<PostesMin,0,1)) -> 1 | AH30: =IF(VLOOKUP($B30,Formulacion!$A:$BE,MATCH(AH$1,Formulacion!$1:$1,0),FALSE)="NA",1,IF(T30<INDIRECT(VLOOKUP(B30,Formulacion!$A:$BE,2,FALSE)),0,1)) -> 1 | AI30: 1 | AJ30: 1955.49 | AK30: 1 | AL30: =IF(VLOOKUP($B30,Formulacion!$A:$BE,MATCH(AL$1,Formulacion!$1:$1,0),FALSE)="NA","NA",HLOOKUP(VLOOKUP($B30,Formulacion!$A:$BE,MATCH(AL$1,Formulacion!$1:$1,0),FALSE),$S:$AB,ROW(AL30),FALSE)) -> NA | AM30: =IF(VLOOKUP($B30,Formulacion!$A:$BE,MATCH(AM$1,Formulacion!$1:$1,0),FALSE)="NA",1,VLOOKUP($B30,Formulacion!$A:$BE,MATCH(AM$1,Formulacion!$1:$1,0),FALSE)) -> 1 | AN30: =IF(VLOOKUP($B30,Formulacion!$A:$BE,MATCH(AN$1,Formulacion!$1:$1,0),FALSE)="NA",1,VLOOKUP($B30,Formulacion!$A:$BE,MATCH(AN$1,Formulacion!$1:$1,0),FALSE)) -> 1 | AO30: 1 | AP30: =IF(VLOOKUP($B30,Formulacion!$A:$BE,MATCH(AP$1,Formulacion!$1:$1,0),FALSE)="NA","NA",IF(D30=0,"",VLOOKUP($B30,Formulacion!$A:$BE,MATCH(AP$1,Formulacion!$1:$1,0),FALSE))) -> NA | AQ30: X | AX30: NA | AY30: =IF(VLOOKUP($B30,Formulacion!$A:$BE,MATCH(AY$1,Formulacion!$1:$1,0),FALSE)="NA","NA",HLOOKUP(VLOOKUP($B30,Formulacion!$A:$BE,MATCH(AY$1,Formulacion!$1:$1,0),FALSE),$S:$AB,ROW(AY30),FALSE)) -> NA | AZ30: NA | BA30: 1 | BB30: =IF(VLOOKUP($B30,Formulacion!$A:$BE,MATCH(BB$1,Formulacion!$1:$1,0),FALSE)="NA",1,VLOOKUP($B30,Formulacion!$A:$BE,MATCH(BB$1,Formulacion!$1:$1,0),FALSE)) -> 0.9 | BC30: =IF(VLOOKUP($B30,Formulacion!$A:$BE,MATCH(BC$1,Formulacion!$1:$1,0),FALSE)="NA",1,VLOOKUP($B30,Formulacion!$A:$BE,MATCH(BC$1,Formulacion!$1:$1,0),FALSE)) -> 1 | BD30: 1759.941 | BF30: =VLOOKUP(C30,[3]Listado_Proyectos!$A$2:$I$815,9,FALSE) ->  | BG30: 2019-02-28
A31: Proyecto con cuenta ENSA 2024.xls | B31: =[1]Listado_Proyectos!K31 -> DACBT | C31: =[1]Listado_Proyectos!A31 -> 01-17.23.0122 | E31: =[1]Listado_Proyectos!I31 -> 2024-02-28 | F31: =[1]Listado_Proyectos!D31 -> PANAMA | H31: =[1]Listado_Proyectos!N31 -> 963.13 | I31: =[1]Listado_Proyectos!M31 -> 341.18 | K31: =[1]Listado_Proyectos!O31 -> 0 | N31: =[1]Listado_Proyectos!P31 -> 1304.31 | P31: =[1]Listado_Proyectos!Q31+[1]Listado_Proyectos!R31 -> 0 | Q31: =IFERROR(VLOOKUP(C31,'[2]Postes 2024'!$A:$C,3,FALSE),0) -> 3 | R31: =IFERROR(VLOOKUP(C31,'[2]Líneas 2024'!$A:$C,3,FALSE),0) -> 0 | S31: =IF((VLOOKUP($B31,Formulacion!$A:$BE,MATCH(S$1,Formulacion!$1:$1,0),FALSE)="NA"),"NA",Q31) -> NA | T31: =IF((VLOOKUP($B31,Formulacion!$A:$BE,MATCH(T$1,Formulacion!$1:$1,0),FALSE)="NA"),"NA",R31) -> NA | U31: NA | V31: =IF(OR(VLOOKUP($B31,Formulacion!$A:$BE,MATCH(V$1,Formulacion!$1:$1,0),FALSE)="NA",$D31=0),"NA",IF($B31="DLSBT",MID($D31,ZanjaInicioBT,ZanjaFinBT-ZanjaInicioBT+1)*1,MID($D31,ZanjaInicio,ZanjaFin-ZanjaInicio+1)*1)) -> NA | W31: 1 | X31: =IF(OR(VLOOKUP($B31,Formulacion!$A:$BE,MATCH(X$1,Formulacion!$1:$1,0),FALSE)="NA",$D31=0),"NA",MID($D31,m2Inicio+INDIRECT(B31),m2Fin-m2Inicio+1)*1) -> NA | Y31: =IF(OR(VLOOKUP($B31,Formulacion!$A:$BE,MATCH(Y$1,Formulacion!$1:$1,0),FALSE)="NA",$D31=0),"NA",RIGHT($D31,4)*1) -> NA | Z31: =IF(OR(VLOOKUP($B31,Formulacion!$A:$BE,MATCH(Z$1,Formulacion!$1:$1,0),FALSE)="NA",$D31=0),"NA",RIGHT($D31,3)*1) -> NA | AA31: 1 | AB31: =IF(VLOOKUP($B31,Formulacion!$A:$BE,MATCH(AB$1,Formulacion!$1:$1,0),FALSE)="NA",1,IF(X31<=m2Min,0,1)) -> 1 | AC31: =IF(VLOOKUP($B31,Formulacion!$A:$BE,MATCH(AC$1,Formulacion!$1:$1,0),FALSE)="NA",1,IF(OR(E31<=FechaMin,E31>FechaMax),0,1)) -> 1 | AD31: =IF(VLOOKUP($B31,Formulacion!$A:$BE,MATCH(AD$1,Formulacion!$1:$1,0),FALSE)="NA",1,IF(H31<=MaterialesMin,0,1)) -> 1 | AE31: =IF(VLOOKUP($B31,Formulacion!$A:$BE,MATCH(AE$1,Formulacion!$1:$1,0),FALSE)="NA",1,IF(N31=0,0,IF(OR(I31/N31<=MObraMin,I31/N31>=MObraMax),MDOmin,1))) -> 1 | AF31: =IF(VLOOKUP($B31,Formulacion!$A:$BE,MATCH(AF$1,Formulacion!$1:$1,0),FALSE)="NA",1,IF(N31<=CostoTotalMin,0,1)) -> 1 | AG31: =IF(VLOOKUP($B31,Formulacion!$A:$BE,MATCH(AG$1,Formulacion!$1:$1,0),FALSE)="NA",1,IF(S31<PostesMin,0,1)) -> 1 | AH31: =IF(VLOOKUP($B31,Formulacion!$A:$BE,MATCH(AH$1,Formulacion!$1:$1,0),FALSE)="NA",1,IF(T31<INDIRECT(VLOOKUP(B31,Formulacion!$A:$BE,2,FALSE)),0,1)) -> 1 | AI31: 1 | AJ31: 1304.31 | AK31: 1 | AL31: =IF(VLOOKUP($B31,Formulacion!$A:$BE,MATCH(AL$1,Formulacion!$1:$1,0),FALSE)="NA","NA",HLOOKUP(VLOOKUP($B31,Formulacion!$A:$BE,MATCH(AL$1,Formulacion!$1:$1,0),FALSE),$S:$AB,ROW(AL31),FALSE)) -> NA | AM31: =IF(VLOOKUP($B31,Formulacion!$A:$BE,MATCH(AM$1,Formulacion!$1:$1,0),FALSE)="NA",1,VLOOKUP($B31,Formulacion!$A:$BE,MATCH(AM$1,Formulacion!$1:$1,0),FALSE)) -> 1 | AN31: =IF(VLOOKUP($B31,Formulacion!$A:$BE,MATCH(AN$1,Formulacion!$1:$1,0),FALSE)="NA",1,VLOOKUP($B31,Formulacion!$A:$BE,MATCH(AN$1,Formulacion!$1:$1,0),FALSE)) -> 1 | AO31: 1 | AP31: =IF(VLOOKUP($B31,Formulacion!$A:$BE,MATCH(AP$1,Formulacion!$1:$1,0),FALSE)="NA","NA",IF(D31=0,"",VLOOKUP($B31,Formulacion!$A:$BE,MATCH(AP$1,Formulacion!$1:$1,0),FALSE))) -> NA | AQ31: X | AX31: NA | AY31: =IF(VLOOKUP($B31,Formulacion!$A:$BE,MATCH(AY$1,Formulacion!$1:$1,0),FALSE)="NA","NA",HLOOKUP(VLOOKUP($B31,Formulacion!$A:$BE,MATCH(AY$1,Formulacion!$1:$1,0),FALSE),$S:$AB,ROW(AY31),FALSE)) -> NA | AZ31: NA | BA31: 1 | BB31: =IF(VLOOKUP($B31,Formulacion!$A:$BE,MATCH(BB$1,Formulacion!$1:$1,0),FALSE)="NA",1,VLOOKUP($B31,Formulacion!$A:$BE,MATCH(BB$1,Formulacion!$1:$1,0),FALSE)) -> 0.9 | BC31: =IF(VLOOKUP($B31,Formulacion!$A:$BE,MATCH(BC$1,Formulacion!$1:$1,0),FALSE)="NA",1,VLOOKUP($B31,Formulacion!$A:$BE,MATCH(BC$1,Formulacion!$1:$1,0),FALSE)) -> 1 | BD31: 1173.879 | BF31: =VLOOKUP(C31,[3]Listado_Proyectos!$A$2:$I$815,9,FALSE) ->  | BG31: 2019-02-28
A32: Proyecto con cuenta ENSA 2024.xls | B32: =[1]Listado_Proyectos!K32 -> DLAMT-13,8 | C32: =[1]Listado_Proyectos!A32 -> 01-17.23.0122 | E32: =[1]Listado_Proyectos!I32 -> 2024-02-28 | F32: =[1]Listado_Proyectos!D32 -> PANAMA | H32: =[1]Listado_Proyectos!N32 -> 2011.77 | I32: =[1]Listado_Proyectos!M32 -> 3582.56 | K32: =[1]Listado_Proyectos!O32 -> 0 | N32: =[1]Listado_Proyectos!P32 -> 5594.33 | P32: =[1]Listado_Proyectos!Q32+[1]Listado_Proyectos!R32 -> 0 | Q32: =IFERROR(VLOOKUP(C32,'[2]Postes 2024'!$A:$C,3,FALSE),0) -> 3 | R32: =IFERROR(VLOOKUP(C32,'[2]Líneas 2024'!$A:$C,3,FALSE),0) -> 0 | S32: =IF((VLOOKUP($B32,Formulacion!$A:$BE,MATCH(S$1,Formulacion!$1:$1,0),FALSE)="NA"),"NA",Q32) -> 3 | T32: =IF((VLOOKUP($B32,Formulacion!$A:$BE,MATCH(T$1,Formulacion!$1:$1,0),FALSE)="NA"),"NA",R32) -> 0 | U32: 0 | V32: =IF(OR(VLOOKUP($B32,Formulacion!$A:$BE,MATCH(V$1,Formulacion!$1:$1,0),FALSE)="NA",$D32=0),"NA",IF($B32="DLSBT",MID($D32,ZanjaInicioBT,ZanjaFinBT-ZanjaInicioBT+1)*1,MID($D32,ZanjaInicio,ZanjaFin-ZanjaInicio+1)*1)) -> NA | W32: 1 | X32: =IF(OR(VLOOKUP($B32,Formulacion!$A:$BE,MATCH(X$1,Formulacion!$1:$1,0),FALSE)="NA",$D32=0),"NA",MID($D32,m2Inicio+INDIRECT(B32),m2Fin-m2Inicio+1)*1) -> NA | Y32: =IF(OR(VLOOKUP($B32,Formulacion!$A:$BE,MATCH(Y$1,Formulacion!$1:$1,0),FALSE)="NA",$D32=0),"NA",RIGHT($D32,4)*1) -> NA | Z32: =IF(OR(VLOOKUP($B32,Formulacion!$A:$BE,MATCH(Z$1,Formulacion!$1:$1,0),FALSE)="NA",$D32=0),"NA",RIGHT($D32,3)*1) -> NA | AA32: 1 | AB32: =IF(VLOOKUP($B32,Formulacion!$A:$BE,MATCH(AB$1,Formulacion!$1:$1,0),FALSE)="NA",1,IF(X32<=m2Min,0,1)) -> 1 | AC32: =IF(VLOOKUP($B32,Formulacion!$A:$BE,MATCH(AC$1,Formulacion!$1:$1,0),FALSE)="NA",1,IF(OR(E32<=FechaMin,E32>FechaMax),0,1)) -> 1 | AD32: =IF(VLOOKUP($B32,Formulacion!$A:$BE,MATCH(AD$1,Formulacion!$1:$1,0),FALSE)="NA",1,IF(H32<=MaterialesMin,0,1)) -> 1 | AE32: =IF(VLOOKUP($B32,Formulacion!$A:$BE,MATCH(AE$1,Formulacion!$1:$1,0),FALSE)="NA",1,IF(N32=0,0,IF(OR(I32/N32<=MObraMin,I32/N32>=MObraMax),MDOmin,1))) -> 1 | AF32: =IF(VLOOKUP($B32,Formulacion!$A:$BE,MATCH(AF$1,Formulacion!$1:$1,0),FALSE)="NA",1,IF(N32<=CostoTotalMin,0,1)) -> 1 | AG32: =IF(VLOOKUP($B32,Formulacion!$A:$BE,MATCH(AG$1,Formulacion!$1:$1,0),FALSE)="NA",1,IF(S32<PostesMin,0,1)) -> 1 | AH32: =IF(VLOOKUP($B32,Formulacion!$A:$BE,MATCH(AH$1,Formulacion!$1:$1,0),FALSE)="NA",1,IF(T32<INDIRECT(VLOOKUP(B32,Formulacion!$A:$BE,2,FALSE)),0,1)) -> 0 | AI32: 1 | AJ32: 5594.33 | AK32: 1 | AL32: =IF(VLOOKUP($B32,Formulacion!$A:$BE,MATCH(AL$1,Formulacion!$1:$1,0),FALSE)="NA","NA",HLOOKUP(VLOOKUP($B32,Formulacion!$A:$BE,MATCH(AL$1,Formulacion!$1:$1,0),FALSE),$S:$AB,ROW(AL32),FALSE)) -> 0 | AM32: =IF(VLOOKUP($B32,Formulacion!$A:$BE,MATCH(AM$1,Formulacion!$1:$1,0),FALSE)="NA",1,VLOOKUP($B32,Formulacion!$A:$BE,MATCH(AM$1,Formulacion!$1:$1,0),FALSE)) -> 45 | AN32: =IF(VLOOKUP($B32,Formulacion!$A:$BE,MATCH(AN$1,Formulacion!$1:$1,0),FALSE)="NA",1,VLOOKUP($B32,Formulacion!$A:$BE,MATCH(AN$1,Formulacion!$1:$1,0),FALSE)) -> 0.3 | AO32: CU | AP32: =IF(VLOOKUP($B32,Formulacion!$A:$BE,MATCH(AP$1,Formulacion!$1:$1,0),FALSE)="NA","NA",IF(D32=0,"",VLOOKUP($B32,Formulacion!$A:$BE,MATCH(AP$1,Formulacion!$1:$1,0),FALSE))) ->  | AQ32: X | AX32: NA | AY32: =IF(VLOOKUP($B32,Formulacion!$A:$BE,MATCH(AY$1,Formulacion!$1:$1,0),FALSE)="NA","NA",HLOOKUP(VLOOKUP($B32,Formulacion!$A:$BE,MATCH(AY$1,Formulacion!$1:$1,0),FALSE),$S:$AB,ROW(AY32),FALSE)) -> 0 | AZ32: NA | BA32: 1 | BB32: =IF(VLOOKUP($B32,Formulacion!$A:$BE,MATCH(BB$1,Formulacion!$1:$1,0),FALSE)="NA",1,VLOOKUP($B32,Formulacion!$A:$BE,MATCH(BB$1,Formulacion!$1:$1,0),FALSE)) -> 0.9 | BC32: =IF(VLOOKUP($B32,Formulacion!$A:$BE,MATCH(BC$1,Formulacion!$1:$1,0),FALSE)="NA",1,VLOOKUP($B32,Formulacion!$A:$BE,MATCH(BC$1,Formulacion!$1:$1,0),FALSE)) -> 1 | BD32: 5034.897 | BF32: =VLOOKUP(C32,[3]Listado_Proyectos!$A$2:$I$815,9,FALSE) ->  | BG32: 2019-02-28
A33: Proyecto con cuenta ENSA 2024.xls | B33: =[1]Listado_Proyectos!K33 -> DLSMT-13,8 | C33: =[1]Listado_Proyectos!A33 -> 01-17.23.0122 | E33: =[1]Listado_Proyectos!I33 -> 2024-02-28 | F33: =[1]Listado_Proyectos!D33 -> PANAMA | H33: =[1]Listado_Proyectos!N33 -> 1327.87 | I33: =[1]Listado_Proyectos!M33 -> 620.6 | K33: =[1]Listado_Proyectos!O33 -> 0 | N33: =[1]Listado_Proyectos!P33 -> 1948.47 | P33: =[1]Listado_Proyectos!Q33+[1]Listado_Proyectos!R33 -> 0 | Q33: =IFERROR(VLOOKUP(C33,'[2]Postes 2024'!$A:$C,3,FALSE),0) -> 3 | R33: =IFERROR(VLOOKUP(C33,'[2]Líneas 2024'!$A:$C,3,FALSE),0) -> 0 | S33: =IF((VLOOKUP($B33,Formulacion!$A:$BE,MATCH(S$1,Formulacion!$1:$1,0),FALSE)="NA"),"NA",Q33) -> NA | T33: =IF((VLOOKUP($B33,Formulacion!$A:$BE,MATCH(T$1,Formulacion!$1:$1,0),FALSE)="NA"),"NA",R33) -> 0 | U33: NA | V33: =IF(OR(VLOOKUP($B33,Formulacion!$A:$BE,MATCH(V$1,Formulacion!$1:$1,0),FALSE)="NA",$D33=0),"NA",IF($B33="DLSBT",MID($D33,ZanjaInicioBT,ZanjaFinBT-ZanjaInicioBT+1)*1,MID($D33,ZanjaInicio,ZanjaFin-ZanjaInicio+1)*1)) -> NA | W33: 1 | X33: =IF(OR(VLOOKUP($B33,Formulacion!$A:$BE,MATCH(X$1,Formulacion!$1:$1,0),FALSE)="NA",$D33=0),"NA",MID($D33,m2Inicio+INDIRECT(B33),m2Fin-m2Inicio+1)*1) -> NA | Y33: =IF(OR(VLOOKUP($B33,Formulacion!$A:$BE,MATCH(Y$1,Formulacion!$1:$1,0),FALSE)="NA",$D33=0),"NA",RIGHT($D33,4)*1) -> NA | Z33: =IF(OR(VLOOKUP($B33,Formulacion!$A:$BE,MATCH(Z$1,Formulacion!$1:$1,0),FALSE)="NA",$D33=0),"NA",RIGHT($D33,3)*1) -> NA | AA33: 1 | AB33: =IF(VLOOKUP($B33,Formulacion!$A:$BE,MATCH(AB$1,Formulacion!$1:$1,0),FALSE)="NA",1,IF(X33<=m2Min,0,1)) -> 1 | AC33: =IF(VLOOKUP($B33,Formulacion!$A:$BE,MATCH(AC$1,Formulacion!$1:$1,0),FALSE)="NA",1,IF(OR(E33<=FechaMin,E33>FechaMax),0,1)) -> 1 | AD33: =IF(VLOOKUP($B33,Formulacion!$A:$BE,MATCH(AD$1,Formulacion!$1:$1,0),FALSE)="NA",1,IF(H33<=MaterialesMin,0,1)) -> 1 | AE33: =IF(VLOOKUP($B33,Formulacion!$A:$BE,MATCH(AE$1,Formulacion!$1:$1,0),FALSE)="NA",1,IF(N33=0,0,IF(OR(I33/N33<=MObraMin,I33/N33>=MObraMax),MDOmin,1))) -> 1 | AF33: =IF(VLOOKUP($B33,Formulacion!$A:$BE,MATCH(AF$1,Formulacion!$1:$1,0),FALSE)="NA",1,IF(N33<=CostoTotalMin,0,1)) -> 1 | AG33: =IF(VLOOKUP($B33,Formulacion!$A:$BE,MATCH(AG$1,Formulacion!$1:$1,0),FALSE)="NA",1,IF(S33<PostesMin,0,1)) -> 1 | AH33: =IF(VLOOKUP($B33,Formulacion!$A:$BE,MATCH(AH$1,Formulacion!$1:$1,0),FALSE)="NA",1,IF(T33<INDIRECT(VLOOKUP(B33,Formulacion!$A:$BE,2,FALSE)),0,1)) -> 0 | AI33: 1 | AJ33: 1948.47 | AK33: 1 | AL33: =IF(VLOOKUP($B33,Formulacion!$A:$BE,MATCH(AL$1,Formulacion!$1:$1,0),FALSE)="NA","NA",HLOOKUP(VLOOKUP($B33,Formulacion!$A:$BE,MATCH(AL$1,Formulacion!$1:$1,0),FALSE),$S:$AB,ROW(AL33),FALSE)) -> NA | AM33: =IF(VLOOKUP($B33,Formulacion!$A:$BE,MATCH(AM$1,Formulacion!$1:$1,0),FALSE)="NA",1,VLOOKUP($B33,Formulacion!$A:$BE,MATCH(AM$1,Formulacion!$1:$1,0),FALSE)) -> 1000 | AN33: =IF(VLOOKUP($B33,Formulacion!$A:$BE,MATCH(AN$1,Formulacion!$1:$1,0),FALSE)="NA",1,VLOOKUP($B33,Formulacion!$A:$BE,MATCH(AN$1,Formulacion!$1:$1,0),FALSE)) -> 0.5 | AO33: 1 | AP33: =IF(VLOOKUP($B33,Formulacion!$A:$BE,MATCH(AP$1,Formulacion!$1:$1,0),FALSE)="NA","NA",IF(D33=0,"",VLOOKUP($B33,Formulacion!$A:$BE,MATCH(AP$1,Formulacion!$1:$1,0),FALSE))) ->  | AQ33: X | AX33: NA | AY33: =IF(VLOOKUP($B33,Formulacion!$A:$BE,MATCH(AY$1,Formulacion!$1:$1,0),FALSE)="NA","NA",HLOOKUP(VLOOKUP($B33,Formulacion!$A:$BE,MATCH(AY$1,Formulacion!$1:$1,0),FALSE),$S:$AB,ROW(AY33),FALSE)) -> 0 | AZ33: NA | BA33: 1 | BB33: =IF(VLOOKUP($B33,Formulacion!$A:$BE,MATCH(BB$1,Formulacion!$1:$1,0),FALSE)="NA",1,VLOOKUP($B33,Formulacion!$A:$BE,MATCH(BB$1,Formulacion!$1:$1,0),FALSE)) -> 0.9 | BC33: =IF(VLOOKUP($B33,Formulacion!$A:$BE,MATCH(BC$1,Formulacion!$1:$1,0),FALSE)="NA",1,VLOOKUP($B33,Formulacion!$A:$BE,MATCH(BC$1,Formulacion!$1:$1,0),FALSE)) -> 1 | BD33: 1753.623 | BF33: =VLOOKUP(C33,[3]Listado_Proyectos!$A$2:$I$815,9,FALSE) ->  | BG33: 2019-02-28
A34: Proyecto con cuenta ENSA 2024.xls | B34: =[1]Listado_Proyectos!K34 -> DTRMB-13,8 | C34: =[1]Listado_Proyectos!A34 -> 01-17.23.0122 | E34: =[1]Listado_Proyectos!I34 -> 2024-02-28 | F34: =[1]Listado_Proyectos!D34 -> PANAMA | H34: =[1]Listado_Proyectos!N34 -> 13168.24 | I34: =[1]Listado_Proyectos!M34 -> 12046.09 | K34: =[1]Listado_Proyectos!O34 -> 0 | N34: =[1]Listado_Proyectos!P34 -> 25214.33 | P34: =[1]Listado_Proyectos!Q34+[1]Listado_Proyectos!R34 -> 0 | Q34: =IFERROR(VLOOKUP(C34,'[2]Postes 2024'!$A:$C,3,FALSE),0) -> 3 | R34: =IFERROR(VLOOKUP(C34,'[2]Líneas 2024'!$A:$C,3,FALSE),0) -> 0 | S34: =IF((VLOOKUP($B34,Formulacion!$A:$BE,MATCH(S$1,Formulacion!$1:$1,0),FALSE)="NA"),"NA",Q34) -> NA | T34: =IF((VLOOKUP($B34,Formulacion!$A:$BE,MATCH(T$1,Formulacion!$1:$1,0),FALSE)="NA"),"NA",R34) -> NA | U34: NA | V34: =IF(OR(VLOOKUP($B34,Formulacion!$A:$BE,MATCH(V$1,Formulacion!$1:$1,0),FALSE)="NA",$D34=0),"NA",IF($B34="DLSBT",MID($D34,ZanjaInicioBT,ZanjaFinBT-ZanjaInicioBT+1)*1,MID($D34,ZanjaInicio,ZanjaFin-ZanjaInicio+1)*1)) -> NA | W34: 1 | X34: =IF(OR(VLOOKUP($B34,Formulacion!$A:$BE,MATCH(X$1,Formulacion!$1:$1,0),FALSE)="NA",$D34=0),"NA",MID($D34,m2Inicio+INDIRECT(B34),m2Fin-m2Inicio+1)*1) -> NA | Y34: =IF(OR(VLOOKUP($B34,Formulacion!$A:$BE,MATCH(Y$1,Formulacion!$1:$1,0),FALSE)="NA",$D34=0),"NA",RIGHT($D34,4)*1) -> NA | Z34: =IF(OR(VLOOKUP($B34,Formulacion!$A:$BE,MATCH(Z$1,Formulacion!$1:$1,0),FALSE)="NA",$D34=0),"NA",RIGHT($D34,3)*1) -> NA | AA34: 1 | AB34: =IF(VLOOKUP($B34,Formulacion!$A:$BE,MATCH(AB$1,Formulacion!$1:$1,0),FALSE)="NA",1,IF(X34<=m2Min,0,1)) -> 1 | AC34: =IF(VLOOKUP($B34,Formulacion!$A:$BE,MATCH(AC$1,Formulacion!$1:$1,0),FALSE)="NA",1,IF(OR(E34<=FechaMin,E34>FechaMax),0,1)) -> 1 | AD34: =IF(VLOOKUP($B34,Formulacion!$A:$BE,MATCH(AD$1,Formulacion!$1:$1,0),FALSE)="NA",1,IF(H34<=MaterialesMin,0,1)) -> 1 | AE34: =IF(VLOOKUP($B34,Formulacion!$A:$BE,MATCH(AE$1,Formulacion!$1:$1,0),FALSE)="NA",1,IF(N34=0,0,IF(OR(I34/N34<=MObraMin,I34/N34>=MObraMax),MDOmin,1))) -> 1 | AF34: =IF(VLOOKUP($B34,Formulacion!$A:$BE,MATCH(AF$1,Formulacion!$1:$1,0),FALSE)="NA",1,IF(N34<=CostoTotalMin,0,1)) -> 1 | AG34: =IF(VLOOKUP($B34,Formulacion!$A:$BE,MATCH(AG$1,Formulacion!$1:$1,0),FALSE)="NA",1,IF(S34<PostesMin,0,1)) -> 1 | AH34: =IF(VLOOKUP($B34,Formulacion!$A:$BE,MATCH(AH$1,Formulacion!$1:$1,0),FALSE)="NA",1,IF(T34<INDIRECT(VLOOKUP(B34,Formulacion!$A:$BE,2,FALSE)),0,1)) -> 1 | AI34: 1 | AJ34: 25214.33 | AK34: 1 | AL34: =IF(VLOOKUP($B34,Formulacion!$A:$BE,MATCH(AL$1,Formulacion!$1:$1,0),FALSE)="NA","NA",HLOOKUP(VLOOKUP($B34,Formulacion!$A:$BE,MATCH(AL$1,Formulacion!$1:$1,0),FALSE),$S:$AB,ROW(AL34),FALSE)) -> NA | AM34: =IF(VLOOKUP($B34,Formulacion!$A:$BE,MATCH(AM$1,Formulacion!$1:$1,0),FALSE)="NA",1,VLOOKUP($B34,Formulacion!$A:$BE,MATCH(AM$1,Formulacion!$1:$1,0),FALSE)) -> 1 | AN34: =IF(VLOOKUP($B34,Formulacion!$A:$BE,MATCH(AN$1,Formulacion!$1:$1,0),FALSE)="NA",1,VLOOKUP($B34,Formulacion!$A:$BE,MATCH(AN$1,Formulacion!$1:$1,0),FALSE)) -> 1 | AO34: 1 | AP34: =IF(VLOOKUP($B34,Formulacion!$A:$BE,MATCH(AP$1,Formulacion!$1:$1,0),FALSE)="NA","NA",IF(D34=0,"",VLOOKUP($B34,Formulacion!$A:$BE,MATCH(AP$1,Formulacion!$1:$1,0),FALSE))) ->  | AQ34: X | AX34: NA | AY34: =IF(VLOOKUP($B34,Formulacion!$A:$BE,MATCH(AY$1,Formulacion!$1:$1,0),FALSE)="NA","NA",HLOOKUP(VLOOKUP($B34,Formulacion!$A:$BE,MATCH(AY$1,Formulacion!$1:$1,0),FALSE),$S:$AB,ROW(AY34),FALSE)) -> NA | AZ34: NA | BA34: 1 | BB34: =IF(VLOOKUP($B34,Formulacion!$A:$BE,MATCH(BB$1,Formulacion!$1:$1,0),FALSE)="NA",1,VLOOKUP($B34,Formulacion!$A:$BE,MATCH(BB$1,Formulacion!$1:$1,0),FALSE)) -> 0.9 | BC34: =IF(VLOOKUP($B34,Formulacion!$A:$BE,MATCH(BC$1,Formulacion!$1:$1,0),FALSE)="NA",1,VLOOKUP($B34,Formulacion!$A:$BE,MATCH(BC$1,Formulacion!$1:$1,0),FALSE)) -> 1 | BD34: 22692.897 | BF34: =VLOOKUP(C34,[3]Listado_Proyectos!$A$2:$I$815,9,FALSE) ->  | BG34: 2019-02-28
A35: Proyecto con cuenta ENSA 2024.xls | B35: =[1]Listado_Proyectos!K35 -> PEQOT | C35: =[1]Listado_Proyectos!A35 -> 01-23.24.0003 | E35: =[1]Listado_Proyectos!I35 -> 2024-09-30 | F35: =[1]Listado_Proyectos!D35 -> PANAMA | H35: =[1]Listado_Proyectos!N35 -> 14646.18 | I35: =[1]Listado_Proyectos!M35 -> 0 | K35: =[1]Listado_Proyectos!O35 -> 0 | N35: =[1]Listado_Proyectos!P35 -> 14646.18 | P35: =[1]Listado_Proyectos!Q35+[1]Listado_Proyectos!R35 -> 0 | Q35: =IFERROR(VLOOKUP(C35,'[2]Postes 2024'!$A:$C,3,FALSE),0) -> 0 | R35: =IFERROR(VLOOKUP(C35,'[2]Líneas 2024'!$A:$C,3,FALSE),0) -> 0 | S35: =IF((VLOOKUP($B35,Formulacion!$A:$BE,MATCH(S$1,Formulacion!$1:$1,0),FALSE)="NA"),"NA",Q35) -> NA | T35: =IF((VLOOKUP($B35,Formulacion!$A:$BE,MATCH(T$1,Formulacion!$1:$1,0),FALSE)="NA"),"NA",R35) -> NA | U35: NA | V35: =IF(OR(VLOOKUP($B35,Formulacion!$A:$BE,MATCH(V$1,Formulacion!$1:$1,0),FALSE)="NA",$D35=0),"NA",IF($B35="DLSBT",MID($D35,ZanjaInicioBT,ZanjaFinBT-ZanjaInicioBT+1)*1,MID($D35,ZanjaInicio,ZanjaFin-ZanjaInicio+1)*1)) -> NA | W35: 1 | X35: =IF(OR(VLOOKUP($B35,Formulacion!$A:$BE,MATCH(X$1,Formulacion!$1:$1,0),FALSE)="NA",$D35=0),"NA",MID($D35,m2Inicio+INDIRECT(B35),m2Fin-m2Inicio+1)*1) -> NA | Y35: =IF(OR(VLOOKUP($B35,Formulacion!$A:$BE,MATCH(Y$1,Formulacion!$1:$1,0),FALSE)="NA",$D35=0),"NA",RIGHT($D35,4)*1) -> NA | Z35: =IF(OR(VLOOKUP($B35,Formulacion!$A:$BE,MATCH(Z$1,Formulacion!$1:$1,0),FALSE)="NA",$D35=0),"NA",RIGHT($D35,3)*1) -> NA | AA35: 1 | AB35: =IF(VLOOKUP($B35,Formulacion!$A:$BE,MATCH(AB$1,Formulacion!$1:$1,0),FALSE)="NA",1,IF(X35<=m2Min,0,1)) -> 1 | AC35: =IF(VLOOKUP($B35,Formulacion!$A:$BE,MATCH(AC$1,Formulacion!$1:$1,0),FALSE)="NA",1,IF(OR(E35<=FechaMin,E35>FechaMax),0,1)) -> 1 | AD35: =IF(VLOOKUP($B35,Formulacion!$A:$BE,MATCH(AD$1,Formulacion!$1:$1,0),FALSE)="NA",1,IF(H35<=MaterialesMin,0,1)) -> 1 | AE35: =IF(VLOOKUP($B35,Formulacion!$A:$BE,MATCH(AE$1,Formulacion!$1:$1,0),FALSE)="NA",1,IF(N35=0,0,IF(OR(I35/N35<=MObraMin,I35/N35>=MObraMax),MDOmin,1))) -> 1 | AF35: =IF(VLOOKUP($B35,Formulacion!$A:$BE,MATCH(AF$1,Formulacion!$1:$1,0),FALSE)="NA",1,IF(N35<=CostoTotalMin,0,1)) -> 1 | AG35: =IF(VLOOKUP($B35,Formulacion!$A:$BE,MATCH(AG$1,Formulacion!$1:$1,0),FALSE)="NA",1,IF(S35<PostesMin,0,1)) -> 1 | AH35: =IF(VLOOKUP($B35,Formulacion!$A:$BE,MATCH(AH$1,Formulacion!$1:$1,0),FALSE)="NA",1,IF(T35<INDIRECT(VLOOKUP(B35,Formulacion!$A:$BE,2,FALSE)),0,1)) -> 1 | AI35: 1 | AJ35: 14646.18 | AK35: 1 | AL35: =IF(VLOOKUP($B35,Formulacion!$A:$BE,MATCH(AL$1,Formulacion!$1:$1,0),FALSE)="NA","NA",HLOOKUP(VLOOKUP($B35,Formulacion!$A:$BE,MATCH(AL$1,Formulacion!$1:$1,0),FALSE),$S:$AB,ROW(AL35),FALSE)) -> NA | AM35: =IF(VLOOKUP($B35,Formulacion!$A:$BE,MATCH(AM$1,Formulacion!$1:$1,0),FALSE)="NA",1,VLOOKUP($B35,Formulacion!$A:$BE,MATCH(AM$1,Formulacion!$1:$1,0),FALSE)) -> 1 | AN35: =IF(VLOOKUP($B35,Formulacion!$A:$BE,MATCH(AN$1,Formulacion!$1:$1,0),FALSE)="NA",1,VLOOKUP($B35,Formulacion!$A:$BE,MATCH(AN$1,Formulacion!$1:$1,0),FALSE)) -> 1 | AO35: 1 | AP35: =IF(VLOOKUP($B35,Formulacion!$A:$BE,MATCH(AP$1,Formulacion!$1:$1,0),FALSE)="NA","NA",IF(D35=0,"",VLOOKUP($B35,Formulacion!$A:$BE,MATCH(AP$1,Formulacion!$1:$1,0),FALSE))) -> NA | AQ35: X | AX35: NA | AY35: =IF(VLOOKUP($B35,Formulacion!$A:$BE,MATCH(AY$1,Formulacion!$1:$1,0),FALSE)="NA","NA",HLOOKUP(VLOOKUP($B35,Formulacion!$A:$BE,MATCH(AY$1,Formulacion!$1:$1,0),FALSE),$S:$AB,ROW(AY35),FALSE)) -> NA | AZ35: NA | BA35: 1 | BB35: =IF(VLOOKUP($B35,Formulacion!$A:$BE,MATCH(BB$1,Formulacion!$1:$1,0),FALSE)="NA",1,VLOOKUP($B35,Formulacion!$A:$BE,MATCH(BB$1,Formulacion!$1:$1,0),FALSE)) -> 0.9 | BC35: =IF(VLOOKUP($B35,Formulacion!$A:$BE,MATCH(BC$1,Formulacion!$1:$1,0),FALSE)="NA",1,VLOOKUP($B35,Formulacion!$A:$BE,MATCH(BC$1,Formulacion!$1:$1,0),FALSE)) -> 1 | BD35: 13181.562 | BF35: =VLOOKUP(C35,[3]Listado_Proyectos!$A$2:$I$815,9,FALSE) ->  | BG35: 2019-02-28
A36: Proyecto con cuenta ENSA 2024.xls | B36: =[1]Listado_Proyectos!K36 -> AINAP | C36: =[1]Listado_Proyectos!A36 -> 01-02.24.0004 | E36: =[1]Listado_Proyectos!I36 -> 2024-07-29 | F36: =[1]Listado_Proyectos!D36 -> SAN MIGUELITO | H36: =[1]Listado_Proyectos!N36 -> 1112.51 | I36: =[1]Listado_Proyectos!M36 -> 691.79 | K36: =[1]Listado_Proyectos!O36 -> 40 | N36: =[1]Listado_Proyectos!P36 -> 1844.3 | P36: =[1]Listado_Proyectos!Q36+[1]Listado_Proyectos!R36 -> 0 | Q36: =IFERROR(VLOOKUP(C36,'[2]Postes 2024'!$A:$C,3,FALSE),0) -> 0 | R36: =IFERROR(VLOOKUP(C36,'[2]Líneas 2024'!$A:$C,3,FALSE),0) -> 0 | S36: =IF((VLOOKUP($B36,Formulacion!$A:$BE,MATCH(S$1,Formulacion!$1:$1,0),FALSE)="NA"),"NA",Q36) -> NA | T36: =IF((VLOOKUP($B36,Formulacion!$A:$BE,MATCH(T$1,Formulacion!$1:$1,0),FALSE)="NA"),"NA",R36) -> NA | U36: NA | V36: =IF(OR(VLOOKUP($B36,Formulacion!$A:$BE,MATCH(V$1,Formulacion!$1:$1,0),FALSE)="NA",$D36=0),"NA",IF($B36="DLSBT",MID($D36,ZanjaInicioBT,ZanjaFinBT-ZanjaInicioBT+1)*1,MID($D36,ZanjaInicio,ZanjaFin-ZanjaInicio+1)*1)) -> NA | W36: 1 | X36: =IF(OR(VLOOKUP($B36,Formulacion!$A:$BE,MATCH(X$1,Formulacion!$1:$1,0),FALSE)="NA",$D36=0),"NA",MID($D36,m2Inicio+INDIRECT(B36),m2Fin-m2Inicio+1)*1) -> NA | Y36: =IF(OR(VLOOKUP($B36,Formulacion!$A:$BE,MATCH(Y$1,Formulacion!$1:$1,0),FALSE)="NA",$D36=0),"NA",RIGHT($D36,4)*1) -> NA | Z36: =IF(OR(VLOOKUP($B36,Formulacion!$A:$BE,MATCH(Z$1,Formulacion!$1:$1,0),FALSE)="NA",$D36=0),"NA",RIGHT($D36,3)*1) -> NA | AA36: 1 | AB36: =IF(VLOOKUP($B36,Formulacion!$A:$BE,MATCH(AB$1,Formulacion!$1:$1,0),FALSE)="NA",1,IF(X36<=m2Min,0,1)) -> 1 | AC36: =IF(VLOOKUP($B36,Formulacion!$A:$BE,MATCH(AC$1,Formulacion!$1:$1,0),FALSE)="NA",1,IF(OR(E36<=FechaMin,E36>FechaMax),0,1)) -> 1 | AD36: =IF(VLOOKUP($B36,Formulacion!$A:$BE,MATCH(AD$1,Formulacion!$1:$1,0),FALSE)="NA",1,IF(H36<=MaterialesMin,0,1)) -> 1 | AE36: =IF(VLOOKUP($B36,Formulacion!$A:$BE,MATCH(AE$1,Formulacion!$1:$1,0),FALSE)="NA",1,IF(N36=0,0,IF(OR(I36/N36<=MObraMin,I36/N36>=MObraMax),MDOmin,1))) -> 1 | AF36: =IF(VLOOKUP($B36,Formulacion!$A:$BE,MATCH(AF$1,Formulacion!$1:$1,0),FALSE)="NA",1,IF(N36<=CostoTotalMin,0,1)) -> 1 | AG36: =IF(VLOOKUP($B36,Formulacion!$A:$BE,MATCH(AG$1,Formulacion!$1:$1,0),FALSE)="NA",1,IF(S36<PostesMin,0,1)) -> 1 | AH36: =IF(VLOOKUP($B36,Formulacion!$A:$BE,MATCH(AH$1,Formulacion!$1:$1,0),FALSE)="NA",1,IF(T36<INDIRECT(VLOOKUP(B36,Formulacion!$A:$BE,2,FALSE)),0,1)) -> 1 | AI36: 1 | AJ36: 1844.3 | AK36: 1 | AL36: =IF(VLOOKUP($B36,Formulacion!$A:$BE,MATCH(AL$1,Formulacion!$1:$1,0),FALSE)="NA","NA",HLOOKUP(VLOOKUP($B36,Formulacion!$A:$BE,MATCH(AL$1,Formulacion!$1:$1,0),FALSE),$S:$AB,ROW(AL36),FALSE)) -> NA | AM36: =IF(VLOOKUP($B36,Formulacion!$A:$BE,MATCH(AM$1,Formulacion!$1:$1,0),FALSE)="NA",1,VLOOKUP($B36,Formulacion!$A:$BE,MATCH(AM$1,Formulacion!$1:$1,0),FALSE)) -> 1 | AN36: =IF(VLOOKUP($B36,Formulacion!$A:$BE,MATCH(AN$1,Formulacion!$1:$1,0),FALSE)="NA",1,VLOOKUP($B36,Formulacion!$A:$BE,MATCH(AN$1,Formulacion!$1:$1,0),FALSE)) -> 1 | AO36: 1 | AP36: =IF(VLOOKUP($B36,Formulacion!$A:$BE,MATCH(AP$1,Formulacion!$1:$1,0),FALSE)="NA","NA",IF(D36=0,"",VLOOKUP($B36,Formulacion!$A:$BE,MATCH(AP$1,Formulacion!$1:$1,0),FALSE))) -> NA | AQ36: X | AX36: NA | AY36: =IF(VLOOKUP($B36,Formulacion!$A:$BE,MATCH(AY$1,Formulacion!$1:$1,0),FALSE)="NA","NA",HLOOKUP(VLOOKUP($B36,Formulacion!$A:$BE,MATCH(AY$1,Formulacion!$1:$1,0),FALSE),$S:$AB,ROW(AY36),FALSE)) -> NA | AZ36: NA | BA36: 1 | BB36: =IF(VLOOKUP($B36,Formulacion!$A:$BE,MATCH(BB$1,Formulacion!$1:$1,0),FALSE)="NA",1,VLOOKUP($B36,Formulacion!$A:$BE,MATCH(BB$1,Formulacion!$1:$1,0),FALSE)) -> 0.9 | BC36: =IF(VLOOKUP($B36,Formulacion!$A:$BE,MATCH(BC$1,Formulacion!$1:$1,0),FALSE)="NA",1,VLOOKUP($B36,Formulacion!$A:$BE,MATCH(BC$1,Formulacion!$1:$1,0),FALSE)) -> 1 | BD36: 1659.87 | BF36: =VLOOKUP(C36,[3]Listado_Proyectos!$A$2:$I$815,9,FALSE) ->  | BG36: 2019-02-28
A37: Proyecto con cuenta ENSA 2024.xls | B37: =[1]Listado_Proyectos!K37 -> DLAMT-13,8 | C37: =[1]Listado_Proyectos!A37 -> 01-02.24.0004 | E37: =[1]Listado_Proyectos!I37 -> 2024-07-29 | F37: =[1]Listado_Proyectos!D37 -> SAN MIGUELITO | H37: =[1]Listado_Proyectos!N37 -> 1719.94 | I37: =[1]Listado_Proyectos!M37 -> 1500.07 | K37: =[1]Listado_Proyectos!O37 -> 40 | N37: =[1]Listado_Proyectos!P37 -> 3260.01 | P37: =[1]Listado_Proyectos!Q37+[1]Listado_Proyectos!R37 -> 0 | Q37: =IFERROR(VLOOKUP(C37,'[2]Postes 2024'!$A:$C,3,FALSE),0) -> 0 | R37: =IFERROR(VLOOKUP(C37,'[2]Líneas 2024'!$A:$C,3,FALSE),0) -> 0 | S37: =IF((VLOOKUP($B37,Formulacion!$A:$BE,MATCH(S$1,Formulacion!$1:$1,0),FALSE)="NA"),"NA",Q37) -> 0 | T37: =IF((VLOOKUP($B37,Formulacion!$A:$BE,MATCH(T$1,Formulacion!$1:$1,0),FALSE)="NA"),"NA",R37) -> 0 | U37: SP | V37: =IF(OR(VLOOKUP($B37,Formulacion!$A:$BE,MATCH(V$1,Formulacion!$1:$1,0),FALSE)="NA",$D37=0),"NA",IF($B37="DLSBT",MID($D37,ZanjaInicioBT,ZanjaFinBT-ZanjaInicioBT+1)*1,MID($D37,ZanjaInicio,ZanjaFin-ZanjaInicio+1)*1)) -> NA | W37: 1 | X37: =IF(OR(VLOOKUP($B37,Formulacion!$A:$BE,MATCH(X$1,Formulacion!$1:$1,0),FALSE)="NA",$D37=0),"NA",MID($D37,m2Inicio+INDIRECT(B37),m2Fin-m2Inicio+1)*1) -> NA | Y37: =IF(OR(VLOOKUP($B37,Formulacion!$A:$BE,MATCH(Y$1,Formulacion!$1:$1,0),FALSE)="NA",$D37=0),"NA",RIGHT($D37,4)*1) -> NA | Z37: =IF(OR(VLOOKUP($B37,Formulacion!$A:$BE,MATCH(Z$1,Formulacion!$1:$1,0),FALSE)="NA",$D37=0),"NA",RIGHT($D37,3)*1) -> NA | AA37: 1 | AB37: =IF(VLOOKUP($B37,Formulacion!$A:$BE,MATCH(AB$1,Formulacion!$1:$1,0),FALSE)="NA",1,IF(X37<=m2Min,0,1)) -> 1 | AC37: =IF(VLOOKUP($B37,Formulacion!$A:$BE,MATCH(AC$1,Formulacion!$1:$1,0),FALSE)="NA",1,IF(OR(E37<=FechaMin,E37>FechaMax),0,1)) -> 1 | AD37: =IF(VLOOKUP($B37,Formulacion!$A:$BE,MATCH(AD$1,Formulacion!$1:$1,0),FALSE)="NA",1,IF(H37<=MaterialesMin,0,1)) -> 1 | AE37: =IF(VLOOKUP($B37,Formulacion!$A:$BE,MATCH(AE$1,Formulacion!$1:$1,0),FALSE)="NA",1,IF(N37=0,0,IF(OR(I37/N37<=MObraMin,I37/N37>=MObraMax),MDOmin,1))) -> 1 | AF37: =IF(VLOOKUP($B37,Formulacion!$A:$BE,MATCH(AF$1,Formulacion!$1:$1,0),FALSE)="NA",1,IF(N37<=CostoTotalMin,0,1)) -> 1 | AG37: =IF(VLOOKUP($B37,Formulacion!$A:$BE,MATCH(AG$1,Formulacion!$1:$1,0),FALSE)="NA",1,IF(S37<PostesMin,0,1)) -> 0 | AH37: =IF(VLOOKUP($B37,Formulacion!$A:$BE,MATCH(AH$1,Formulacion!$1:$1,0),FALSE)="NA",1,IF(T37<INDIRECT(VLOOKUP(B37,Formulacion!$A:$BE,2,FALSE)),0,1)) -> 0 | AI37: 0 | AJ37: 0 | AK37: 1 | AL37: =IF(VLOOKUP($B37,Formulacion!$A:$BE,MATCH(AL$1,Formulacion!$1:$1,0),FALSE)="NA","NA",HLOOKUP(VLOOKUP($B37,Formulacion!$A:$BE,MATCH(AL$1,Formulacion!$1:$1,0),FALSE),$S:$AB,ROW(AL37),FALSE)) -> SP | AM37: =IF(VLOOKUP($B37,Formulacion!$A:$BE,MATCH(AM$1,Formulacion!$1:$1,0),FALSE)="NA",1,VLOOKUP($B37,Formulacion!$A:$BE,MATCH(AM$1,Formulacion!$1:$1,0),FALSE)) -> 45 | AN37: =IF(VLOOKUP($B37,Formulacion!$A:$BE,MATCH(AN$1,Formulacion!$1:$1,0),FALSE)="NA",1,VLOOKUP($B37,Formulacion!$A:$BE,MATCH(AN$1,Formulacion!$1:$1,0),FALSE)) -> 0.3 | AO37: NC | AP37: =IF(VLOOKUP($B37,Formulacion!$A:$BE,MATCH(AP$1,Formulacion!$1:$1,0),FALSE)="NA","NA",IF(D37=0,"",VLOOKUP($B37,Formulacion!$A:$BE,MATCH(AP$1,Formulacion!$1:$1,0),FALSE))) ->  | AQ37: X | AX37: NA | AY37: =IF(VLOOKUP($B37,Formulacion!$A:$BE,MATCH(AY$1,Formulacion!$1:$1,0),FALSE)="NA","NA",HLOOKUP(VLOOKUP($B37,Formulacion!$A:$BE,MATCH(AY$1,Formulacion!$1:$1,0),FALSE),$S:$AB,ROW(AY37),FALSE)) -> 0 | AZ37: NA | BA37: 1 | BB37: =IF(VLOOKUP($B37,Formulacion!$A:$BE,MATCH(BB$1,Formulacion!$1:$1,0),FALSE)="NA",1,VLOOKUP($B37,Formulacion!$A:$BE,MATCH(BB$1,Formulacion!$1:$1,0),FALSE)) -> 0.9 | BC37: =IF(VLOOKUP($B37,Formulacion!$A:$BE,MATCH(BC$1,Formulacion!$1:$1,0),FALSE)="NA",1,VLOOKUP($B37,Formulacion!$A:$BE,MATCH(BC$1,Formulacion!$1:$1,0),FALSE)) -> 1 | BD37: 0 | BF37: =VLOOKUP(C37,[3]Listado_Proyectos!$A$2:$I$815,9,FALSE) ->  | BG37: 2019-02-28
A38: Proyecto con cuenta ENSA 2024.xls | B38: =[1]Listado_Proyectos!K38 -> AINAP | C38: =[1]Listado_Proyectos!A38 -> 01-17.23.0189 | E38: =[1]Listado_Proyectos!I38 -> 2024-01-22 | F38: =[1]Listado_Proyectos!D38 -> PANAMA | H38: =[1]Listado_Proyectos!N38 -> 280.15 | I38: =[1]Listado_Proyectos!M38 -> 534.66 | K38: =[1]Listado_Proyectos!O38 -> 0 | N38: =[1]Listado_Proyectos!P38 -> 814.81 | P38: =[1]Listado_Proyectos!Q38+[1]Listado_Proyectos!R38 -> 0 | Q38: =IFERROR(VLOOKUP(C38,'[2]Postes 2024'!$A:$C,3,FALSE),0) -> 3 | R38: =IFERROR(VLOOKUP(C38,'[2]Líneas 2024'!$A:$C,3,FALSE),0) -> 16.7001 | S38: =IF((VLOOKUP($B38,Formulacion!$A:$BE,MATCH(S$1,Formulacion!$1:$1,0),FALSE)="NA"),"NA",Q38) -> NA | T38: =IF((VLOOKUP($B38,Formulacion!$A:$BE,MATCH(T$1,Formulacion!$1:$1,0),FALSE)="NA"),"NA",R38) -> NA | U38: NA | V38: =IF(OR(VLOOKUP($B38,Formulacion!$A:$BE,MATCH(V$1,Formulacion!$1:$1,0),FALSE)="NA",$D38=0),"NA",IF($B38="DLSBT",MID($D38,ZanjaInicioBT,ZanjaFinBT-ZanjaInicioBT+1)*1,MID($D38,ZanjaInicio,ZanjaFin-ZanjaInicio+1)*1)) -> NA | W38: 1 | X38: =IF(OR(VLOOKUP($B38,Formulacion!$A:$BE,MATCH(X$1,Formulacion!$1:$1,0),FALSE)="NA",$D38=0),"NA",MID($D38,m2Inicio+INDIRECT(B38),m2Fin-m2Inicio+1)*1) -> NA | Y38: =IF(OR(VLOOKUP($B38,Formulacion!$A:$BE,MATCH(Y$1,Formulacion!$1:$1,0),FALSE)="NA",$D38=0),"NA",RIGHT($D38,4)*1) -> NA | Z38: =IF(OR(VLOOKUP($B38,Formulacion!$A:$BE,MATCH(Z$1,Formulacion!$1:$1,0),FALSE)="NA",$D38=0),"NA",RIGHT($D38,3)*1) -> NA | AA38: 1 | AB38: =IF(VLOOKUP($B38,Formulacion!$A:$BE,MATCH(AB$1,Formulacion!$1:$1,0),FALSE)="NA",1,IF(X38<=m2Min,0,1)) -> 1 | AC38: =IF(VLOOKUP($B38,Formulacion!$A:$BE,MATCH(AC$1,Formulacion!$1:$1,0),FALSE)="NA",1,IF(OR(E38<=FechaMin,E38>FechaMax),0,1)) -> 1 | AD38: =IF(VLOOKUP($B38,Formulacion!$A:$BE,MATCH(AD$1,Formulacion!$1:$1,0),FALSE)="NA",1,IF(H38<=MaterialesMin,0,1)) -> 1 | AE38: =IF(VLOOKUP($B38,Formulacion!$A:$BE,MATCH(AE$1,Formulacion!$1:$1,0),FALSE)="NA",1,IF(N38=0,0,IF(OR(I38/N38<=MObraMin,I38/N38>=MObraMax),MDOmin,1))) -> 1 | AF38: =IF(VLOOKUP($B38,Formulacion!$A:$BE,MATCH(AF$1,Formulacion!$1:$1,0),FALSE)="NA",1,IF(N38<=CostoTotalMin,0,1)) -> 1 | AG38: =IF(VLOOKUP($B38,Formulacion!$A:$BE,MATCH(AG$1,Formulacion!$1:$1,0),FALSE)="NA",1,IF(S38<PostesMin,0,1)) -> 1 | AH38: =IF(VLOOKUP($B38,Formulacion!$A:$BE,MATCH(AH$1,Formulacion!$1:$1,0),FALSE)="NA",1,IF(T38<INDIRECT(VLOOKUP(B38,Formulacion!$A:$BE,2,FALSE)),0,1)) -> 1 | AI38: 1 | AJ38: 814.81 | AK38: 1 | AL38: =IF(VLOOKUP($B38,Formulacion!$A:$BE,MATCH(AL$1,Formulacion!$1:$1,0),FALSE)="NA","NA",HLOOKUP(VLOOKUP($B38,Formulacion!$A:$BE,MATCH(AL$1,Formulacion!$1:$1,0),FALSE),$S:$AB,ROW(AL38),FALSE)) -> NA | AM38: =IF(VLOOKUP($B38,Formulacion!$A:$BE,MATCH(AM$1,Formulacion!$1:$1,0),FALSE)="NA",1,VLOOKUP($B38,Formulacion!$A:$BE,MATCH(AM$1,Formulacion!$1:$1,0),FALSE)) -> 1 | AN38: =IF(VLOOKUP($B38,Formulacion!$A:$BE,MATCH(AN$1,Formulacion!$1:$1,0),FALSE)="NA",1,VLOOKUP($B38,Formulacion!$A:$BE,MATCH(AN$1,Formulacion!$1:$1,0),FALSE)) -> 1 | AO38: 1 | AP38: =IF(VLOOKUP($B38,Formulacion!$A:$BE,MATCH(AP$1,Formulacion!$1:$1,0),FALSE)="NA","NA",IF(D38=0,"",VLOOKUP($B38,Formulacion!$A:$BE,MATCH(AP$1,Formulacion!$1:$1,0),FALSE))) -> NA | AQ38: X | AX38: NA | AY38: =IF(VLOOKUP($B38,Formulacion!$A:$BE,MATCH(AY$1,Formulacion!$1:$1,0),FALSE)="NA","NA",HLOOKUP(VLOOKUP($B38,Formulacion!$A:$BE,MATCH(AY$1,Formulacion!$1:$1,0),FALSE),$S:$AB,ROW(AY38),FALSE)) -> NA | AZ38: NA | BA38: 1 | BB38: =IF(VLOOKUP($B38,Formulacion!$A:$BE,MATCH(BB$1,Formulacion!$1:$1,0),FALSE)="NA",1,VLOOKUP($B38,Formulacion!$A:$BE,MATCH(BB$1,Formulacion!$1:$1,0),FALSE)) -> 0.9 | BC38: =IF(VLOOKUP($B38,Formulacion!$A:$BE,MATCH(BC$1,Formulacion!$1:$1,0),FALSE)="NA",1,VLOOKUP($B38,Formulacion!$A:$BE,MATCH(BC$1,Formulacion!$1:$1,0),FALSE)) -> 1 | BD38: 733.329 | BF38: =VLOOKUP(C38,[3]Listado_Proyectos!$A$2:$I$815,9,FALSE) ->  | BG38: 2019-02-28
A39: Proyecto con cuenta ENSA 2024.xls | B39: =[1]Listado_Proyectos!K39 -> DEQDM | C39: =[1]Listado_Proyectos!A39 -> 01-17.23.0189 | E39: =[1]Listado_Proyectos!I39 -> 2024-01-22 | F39: =[1]Listado_Proyectos!D39 -> PANAMA | H39: =[1]Listado_Proyectos!N39 -> 1783.85 | I39: =[1]Listado_Proyectos!M39 -> 502.64 | K39: =[1]Listado_Proyectos!O39 -> 0 | N39: =[1]Listado_Proyectos!P39 -> 2286.49 | P39: =[1]Listado_Proyectos!Q39+[1]Listado_Proyectos!R39 -> 0 | Q39: =IFERROR(VLOOKUP(C39,'[2]Postes 2024'!$A:$C,3,FALSE),0) -> 3 | R39: =IFERROR(VLOOKUP(C39,'[2]Líneas 2024'!$A:$C,3,FALSE),0) -> 16.7001 | S39: =IF((VLOOKUP($B39,Formulacion!$A:$BE,MATCH(S$1,Formulacion!$1:$1,0),FALSE)="NA"),"NA",Q39) -> NA | T39: =IF((VLOOKUP($B39,Formulacion!$A:$BE,MATCH(T$1,Formulacion!$1:$1,0),FALSE)="NA"),"NA",R39) -> NA | U39: NA | V39: =IF(OR(VLOOKUP($B39,Formulacion!$A:$BE,MATCH(V$1,Formulacion!$1:$1,0),FALSE)="NA",$D39=0),"NA",IF($B39="DLSBT",MID($D39,ZanjaInicioBT,ZanjaFinBT-ZanjaInicioBT+1)*1,MID($D39,ZanjaInicio,ZanjaFin-ZanjaInicio+1)*1)) -> NA | W39: 1 | X39: =IF(OR(VLOOKUP($B39,Formulacion!$A:$BE,MATCH(X$1,Formulacion!$1:$1,0),FALSE)="NA",$D39=0),"NA",MID($D39,m2Inicio+INDIRECT(B39),m2Fin-m2Inicio+1)*1) -> NA | Y39: =IF(OR(VLOOKUP($B39,Formulacion!$A:$BE,MATCH(Y$1,Formulacion!$1:$1,0),FALSE)="NA",$D39=0),"NA",RIGHT($D39,4)*1) -> NA | Z39: =IF(OR(VLOOKUP($B39,Formulacion!$A:$BE,MATCH(Z$1,Formulacion!$1:$1,0),FALSE)="NA",$D39=0),"NA",RIGHT($D39,3)*1) -> NA | AA39: 1 | AB39: =IF(VLOOKUP($B39,Formulacion!$A:$BE,MATCH(AB$1,Formulacion!$1:$1,0),FALSE)="NA",1,IF(X39<=m2Min,0,1)) -> 1 | AC39: =IF(VLOOKUP($B39,Formulacion!$A:$BE,MATCH(AC$1,Formulacion!$1:$1,0),FALSE)="NA",1,IF(OR(E39<=FechaMin,E39>FechaMax),0,1)) -> 1 | AD39: =IF(VLOOKUP($B39,Formulacion!$A:$BE,MATCH(AD$1,Formulacion!$1:$1,0),FALSE)="NA",1,IF(H39<=MaterialesMin,0,1)) -> 1 | AE39: =IF(VLOOKUP($B39,Formulacion!$A:$BE,MATCH(AE$1,Formulacion!$1:$1,0),FALSE)="NA",1,IF(N39=0,0,IF(OR(I39/N39<=MObraMin,I39/N39>=MObraMax),MDOmin,1))) -> 1 | AF39: =IF(VLOOKUP($B39,Formulacion!$A:$BE,MATCH(AF$1,Formulacion!$1:$1,0),FALSE)="NA",1,IF(N39<=CostoTotalMin,0,1)) -> 1 | AG39: =IF(VLOOKUP($B39,Formulacion!$A:$BE,MATCH(AG$1,Formulacion!$1:$1,0),FALSE)="NA",1,IF(S39<PostesMin,0,1)) -> 1 | AH39: =IF(VLOOKUP($B39,Formulacion!$A:$BE,MATCH(AH$1,Formulacion!$1:$1,0),FALSE)="NA",1,IF(T39<INDIRECT(VLOOKUP(B39,Formulacion!$A:$BE,2,FALSE)),0,1)) -> 1 | AI39: 1 | AJ39: 2286.49 | AK39: 1 | AL39: =IF(VLOOKUP($B39,Formulacion!$A:$BE,MATCH(AL$1,Formulacion!$1:$1,0),FALSE)="NA","NA",HLOOKUP(VLOOKUP($B39,Formulacion!$A:$BE,MATCH(AL$1,Formulacion!$1:$1,0),FALSE),$S:$AB,ROW(AL39),FALSE)) -> NA | AM39: =IF(VLOOKUP($B39,Formulacion!$A:$BE,MATCH(AM$1,Formulacion!$1:$1,0),FALSE)="NA",1,VLOOKUP($B39,Formulacion!$A:$BE,MATCH(AM$1,Formulacion!$1:$1,0),FALSE)) -> 1 | AN39: =IF(VLOOKUP($B39,Formulacion!$A:$BE,MATCH(AN$1,Formulacion!$1:$1,0),FALSE)="NA",1,VLOOKUP($B39,Formulacion!$A:$BE,MATCH(AN$1,Formulacion!$1:$1,0),FALSE)) -> 1 | AO39: 1 | AP39: =IF(VLOOKUP($B39,Formulacion!$A:$BE,MATCH(AP$1,Formulacion!$1:$1,0),FALSE)="NA","NA",IF(D39=0,"",VLOOKUP($B39,Formulacion!$A:$BE,MATCH(AP$1,Formulacion!$1:$1,0),FALSE))) -> NA | AQ39: X | AX39: NA | AY39: =IF(VLOOKUP($B39,Formulacion!$A:$BE,MATCH(AY$1,Formulacion!$1:$1,0),FALSE)="NA","NA",HLOOKUP(VLOOKUP($B39,Formulacion!$A:$BE,MATCH(AY$1,Formulacion!$1:$1,0),FALSE),$S:$AB,ROW(AY39),FALSE)) -> NA | AZ39: NA | BA39: 1 | BB39: =IF(VLOOKUP($B39,Formulacion!$A:$BE,MATCH(BB$1,Formulacion!$1:$1,0),FALSE)="NA",1,VLOOKUP($B39,Formulacion!$A:$BE,MATCH(BB$1,Formulacion!$1:$1,0),FALSE)) -> 0.9 | BC39: =IF(VLOOKUP($B39,Formulacion!$A:$BE,MATCH(BC$1,Formulacion!$1:$1,0),FALSE)="NA",1,VLOOKUP($B39,Formulacion!$A:$BE,MATCH(BC$1,Formulacion!$1:$1,0),FALSE)) -> 1 | BD39: 2057.841 | BF39: =VLOOKUP(C39,[3]Listado_Proyectos!$A$2:$I$815,9,FALSE) ->  | BG39: 2019-02-28
A40: Proyecto con cuenta ENSA 2024.xls | B40: =[1]Listado_Proyectos!K40 -> DLAMT-13,8 | C40: =[1]Listado_Proyectos!A40 -> 01-17.23.0189 | E40: =[1]Listado_Proyectos!I40 -> 2024-01-22 | F40: =[1]Listado_Proyectos!D40 -> PANAMA | H40: =[1]Listado_Proyectos!N40 -> 2509.07 | I40: =[1]Listado_Proyectos!M40 -> 4971.31 | K40: =[1]Listado_Proyectos!O40 -> 0 | N40: =[1]Listado_Proyectos!P40 -> 7480.38 | P40: =[1]Listado_Proyectos!Q40+[1]Listado_Proyectos!R40 -> 0 | Q40: =IFERROR(VLOOKUP(C40,'[2]Postes 2024'!$A:$C,3,FALSE),0) -> 3 | R40: =IFERROR(VLOOKUP(C40,'[2]Líneas 2024'!$A:$C,3,FALSE),0) -> 16.7001 | S40: =IF((VLOOKUP($B40,Formulacion!$A:$BE,MATCH(S$1,Formulacion!$1:$1,0),FALSE)="NA"),"NA",Q40) -> 3 | T40: =IF((VLOOKUP($B40,Formulacion!$A:$BE,MATCH(T$1,Formulacion!$1:$1,0),FALSE)="NA"),"NA",R40) -> 16.7001 | U40: 5.5667 | V40: =IF(OR(VLOOKUP($B40,Formulacion!$A:$BE,MATCH(V$1,Formulacion!$1:$1,0),FALSE)="NA",$D40=0),"NA",IF($B40="DLSBT",MID($D40,ZanjaInicioBT,ZanjaFinBT-ZanjaInicioBT+1)*1,MID($D40,ZanjaInicio,ZanjaFin-ZanjaInicio+1)*1)) -> NA | W40: 1 | X40: =IF(OR(VLOOKUP($B40,Formulacion!$A:$BE,MATCH(X$1,Formulacion!$1:$1,0),FALSE)="NA",$D40=0),"NA",MID($D40,m2Inicio+INDIRECT(B40),m2Fin-m2Inicio+1)*1) -> NA | Y40: =IF(OR(VLOOKUP($B40,Formulacion!$A:$BE,MATCH(Y$1,Formulacion!$1:$1,0),FALSE)="NA",$D40=0),"NA",RIGHT($D40,4)*1) -> NA | Z40: =IF(OR(VLOOKUP($B40,Formulacion!$A:$BE,MATCH(Z$1,Formulacion!$1:$1,0),FALSE)="NA",$D40=0),"NA",RIGHT($D40,3)*1) -> NA | AA40: 1 | AB40: =IF(VLOOKUP($B40,Formulacion!$A:$BE,MATCH(AB$1,Formulacion!$1:$1,0),FALSE)="NA",1,IF(X40<=m2Min,0,1)) -> 1 | AC40: =IF(VLOOKUP($B40,Formulacion!$A:$BE,MATCH(AC$1,Formulacion!$1:$1,0),FALSE)="NA",1,IF(OR(E40<=FechaMin,E40>FechaMax),0,1)) -> 1 | AD40: =IF(VLOOKUP($B40,Formulacion!$A:$BE,MATCH(AD$1,Formulacion!$1:$1,0),FALSE)="NA",1,IF(H40<=MaterialesMin,0,1)) -> 1 | AE40: =IF(VLOOKUP($B40,Formulacion!$A:$BE,MATCH(AE$1,Formulacion!$1:$1,0),FALSE)="NA",1,IF(N40=0,0,IF(OR(I40/N40<=MObraMin,I40/N40>=MObraMax),MDOmin,1))) -> 1 | AF40: =IF(VLOOKUP($B40,Formulacion!$A:$BE,MATCH(AF$1,Formulacion!$1:$1,0),FALSE)="NA",1,IF(N40<=CostoTotalMin,0,1)) -> 1 | AG40: =IF(VLOOKUP($B40,Formulacion!$A:$BE,MATCH(AG$1,Formulacion!$1:$1,0),FALSE)="NA",1,IF(S40<PostesMin,0,1)) -> 1 | AH40: =IF(VLOOKUP($B40,Formulacion!$A:$BE,MATCH(AH$1,Formulacion!$1:$1,0),FALSE)="NA",1,IF(T40<INDIRECT(VLOOKUP(B40,Formulacion!$A:$BE,2,FALSE)),0,1)) -> 0 | AI40: 1 | AJ40: 7480.38 | AK40: 1 | AL40: =IF(VLOOKUP($B40,Formulacion!$A:$BE,MATCH(AL$1,Formulacion!$1:$1,0),FALSE)="NA","NA",HLOOKUP(VLOOKUP($B40,Formulacion!$A:$BE,MATCH(AL$1,Formulacion!$1:$1,0),FALSE),$S:$AB,ROW(AL40),FALSE)) -> 5.5667 | AM40: =IF(VLOOKUP($B40,Formulacion!$A:$BE,MATCH(AM$1,Formulacion!$1:$1,0),FALSE)="NA",1,VLOOKUP($B40,Formulacion!$A:$BE,MATCH(AM$1,Formulacion!$1:$1,0),FALSE)) -> 45 | AN40: =IF(VLOOKUP($B40,Formulacion!$A:$BE,MATCH(AN$1,Formulacion!$1:$1,0),FALSE)="NA",1,VLOOKUP($B40,Formulacion!$A:$BE,MATCH(AN$1,Formulacion!$1:$1,0),FALSE)) -> 0.3 | AO40: CU | AP40: =IF(VLOOKUP($B40,Formulacion!$A:$BE,MATCH(AP$1,Formulacion!$1:$1,0),FALSE)="NA","NA",IF(D40=0,"",VLOOKUP($B40,Formulacion!$A:$BE,MATCH(AP$1,Formulacion!$1:$1,0),FALSE))) ->  | AQ40: X | AX40: NA | AY40: =IF(VLOOKUP($B40,Formulacion!$A:$BE,MATCH(AY$1,Formulacion!$1:$1,0),FALSE)="NA","NA",HLOOKUP(VLOOKUP($B40,Formulacion!$A:$BE,MATCH(AY$1,Formulacion!$1:$1,0),FALSE),$S:$AB,ROW(AY40),FALSE)) -> 16.7001 | AZ40: NA | BA40: 1 | BB40: =IF(VLOOKUP($B40,Formulacion!$A:$BE,MATCH(BB$1,Formulacion!$1:$1,0),FALSE)="NA",1,VLOOKUP($B40,Formulacion!$A:$BE,MATCH(BB$1,Formulacion!$1:$1,0),FALSE)) -> 0.9 | BC40: =IF(VLOOKUP($B40,Formulacion!$A:$BE,MATCH(BC$1,Formulacion!$1:$1,0),FALSE)="NA",1,VLOOKUP($B40,Formulacion!$A:$BE,MATCH(BC$1,Formulacion!$1:$1,0),FALSE)) -> 1 | BD40: 6732.342 | BF40: =VLOOKUP(C40,[3]Listado_Proyectos!$A$2:$I$815,9,FALSE) ->  | BG40: 2019-02-28
A41: Proyecto con cuenta ENSA 2024.xls | B41: =[1]Listado_Proyectos!K41 -> DLSMT-13,8 | C41: =[1]Listado_Proyectos!A41 -> 01-17.23.0189 | E41: =[1]Listado_Proyectos!I41 -> 2024-01-22 | F41: =[1]Listado_Proyectos!D41 -> PANAMA | H41: =[1]Listado_Proyectos!N41 -> 26509.4 | I41: =[1]Listado_Proyectos!M41 -> 11807.03 | K41: =[1]Listado_Proyectos!O41 -> 0 | N41: =[1]Listado_Proyectos!P41 -> 38316.43 | P41: =[1]Listado_Proyectos!Q41+[1]Listado_Proyectos!R41 -> 0 | Q41: =IFERROR(VLOOKUP(C41,'[2]Postes 2024'!$A:$C,3,FALSE),0) -> 3 | R41: =IFERROR(VLOOKUP(C41,'[2]Líneas 2024'!$A:$C,3,FALSE),0) -> 16.7001 | S41: =IF((VLOOKUP($B41,Formulacion!$A:$BE,MATCH(S$1,Formulacion!$1:$1,0),FALSE)="NA"),"NA",Q41) -> NA | T41: =IF((VLOOKUP($B41,Formulacion!$A:$BE,MATCH(T$1,Formulacion!$1:$1,0),FALSE)="NA"),"NA",R41) -> 16.7001 | U41: NA | V41: =IF(OR(VLOOKUP($B41,Formulacion!$A:$BE,MATCH(V$1,Formulacion!$1:$1,0),FALSE)="NA",$D41=0),"NA",IF($B41="DLSBT",MID($D41,ZanjaInicioBT,ZanjaFinBT-ZanjaInicioBT+1)*1,MID($D41,ZanjaInicio,ZanjaFin-ZanjaInicio+1)*1)) -> NA | W41: 1 | X41: =IF(OR(VLOOKUP($B41,Formulacion!$A:$BE,MATCH(X$1,Formulacion!$1:$1,0),FALSE)="NA",$D41=0),"NA",MID($D41,m2Inicio+INDIRECT(B41),m2Fin-m2Inicio+1)*1) -> NA | Y41: =IF(OR(VLOOKUP($B41,Formulacion!$A:$BE,MATCH(Y$1,Formulacion!$1:$1,0),FALSE)="NA",$D41=0),"NA",RIGHT($D41,4)*1) -> NA | Z41: =IF(OR(VLOOKUP($B41,Formulacion!$A:$BE,MATCH(Z$1,Formulacion!$1:$1,0),FALSE)="NA",$D41=0),"NA",RIGHT($D41,3)*1) -> NA | AA41: 1 | AB41: =IF(VLOOKUP($B41,Formulacion!$A:$BE,MATCH(AB$1,Formulacion!$1:$1,0),FALSE)="NA",1,IF(X41<=m2Min,0,1)) -> 1 | AC41: =IF(VLOOKUP($B41,Formulacion!$A:$BE,MATCH(AC$1,Formulacion!$1:$1,0),FALSE)="NA",1,IF(OR(E41<=FechaMin,E41>FechaMax),0,1)) -> 1 | AD41: =IF(VLOOKUP($B41,Formulacion!$A:$BE,MATCH(AD$1,Formulacion!$1:$1,0),FALSE)="NA",1,IF(H41<=MaterialesMin,0,1)) -> 1 | AE41: =IF(VLOOKUP($B41,Formulacion!$A:$BE,MATCH(AE$1,Formulacion!$1:$1,0),FALSE)="NA",1,IF(N41=0,0,IF(OR(I41/N41<=MObraMin,I41/N41>=MObraMax),MDOmin,1))) -> 1 | AF41: =IF(VLOOKUP($B41,Formulacion!$A:$BE,MATCH(AF$1,Formulacion!$1:$1,0),FALSE)="NA",1,IF(N41<=CostoTotalMin,0,1)) -> 1 | AG41: =IF(VLOOKUP($B41,Formulacion!$A:$BE,MATCH(AG$1,Formulacion!$1:$1,0),FALSE)="NA",1,IF(S41<PostesMin,0,1)) -> 1 | AH41: =IF(VLOOKUP($B41,Formulacion!$A:$BE,MATCH(AH$1,Formulacion!$1:$1,0),FALSE)="NA",1,IF(T41<INDIRECT(VLOOKUP(B41,Formulacion!$A:$BE,2,FALSE)),0,1)) -> 0 | AI41: 1 | AJ41: 38316.43 | AK41: 1 | AL41: =IF(VLOOKUP($B41,Formulacion!$A:$BE,MATCH(AL$1,Formulacion!$1:$1,0),FALSE)="NA","NA",HLOOKUP(VLOOKUP($B41,Formulacion!$A:$BE,MATCH(AL$1,Formulacion!$1:$1,0),FALSE),$S:$AB,ROW(AL41),FALSE)) -> NA | AM41: =IF(VLOOKUP($B41,Formulacion!$A:$BE,MATCH(AM$1,Formulacion!$1:$1,0),FALSE)="NA",1,VLOOKUP($B41,Formulacion!$A:$BE,MATCH(AM$1,Formulacion!$1:$1,0),FALSE)) -> 1000 | AN41: =IF(VLOOKUP($B41,Formulacion!$A:$BE,MATCH(AN$1,Formulacion!$1:$1,0),FALSE)="NA",1,VLOOKUP($B41,Formulacion!$A:$BE,MATCH(AN$1,Formulacion!$1:$1,0),FALSE)) -> 0.5 | AO41: 1 | AP41: =IF(VLOOKUP($B41,Formulacion!$A:$BE,MATCH(AP$1,Formulacion!$1:$1,0),FALSE)="NA","NA",IF(D41=0,"",VLOOKUP($B41,Formulacion!$A:$BE,MATCH(AP$1,Formulacion!$1:$1,0),FALSE))) ->  | AQ41: X | AX41: NA | AY41: =IF(VLOOKUP($B41,Formulacion!$A:$BE,MATCH(AY$1,Formulacion!$1:$1,0),FALSE)="NA","NA",HLOOKUP(VLOOKUP($B41,Formulacion!$A:$BE,MATCH(AY$1,Formulacion!$1:$1,0),FALSE),$S:$AB,ROW(AY41),FALSE)) -> 16.7001 | AZ41: NA | BA41: 1 | BB41: =IF(VLOOKUP($B41,Formulacion!$A:$BE,MATCH(BB$1,Formulacion!$1:$1,0),FALSE)="NA",1,VLOOKUP($B41,Formulacion!$A:$BE,MATCH(BB$1,Formulacion!$1:$1,0),FALSE)) -> 0.9 | BC41: =IF(VLOOKUP($B41,Formulacion!$A:$BE,MATCH(BC$1,Formulacion!$1:$1,0),FALSE)="NA",1,VLOOKUP($B41,Formulacion!$A:$BE,MATCH(BC$1,Formulacion!$1:$1,0),FALSE)) -> 1 | BD41: 34484.787 | BF41: =VLOOKUP(C41,[3]Listado_Proyectos!$A$2:$I$815,9,FALSE) ->  | BG41: 2019-02-28
A42: Proyecto con cuenta ENSA 2024.xls | B42: =[1]Listado_Proyectos!K42 -> DTRMB-13,8 | C42: =[1]Listado_Proyectos!A42 -> 01-17.23.0189 | E42: =[1]Listado_Proyectos!I42 -> 2024-01-22 | F42: =[1]Listado_Proyectos!D42 -> PANAMA | H42: =[1]Listado_Proyectos!N42 -> 2635.18 | I42: =[1]Listado_Proyectos!M42 -> 1732.16 | K42: =[1]Listado_Proyectos!O42 -> 0 | N42: =[1]Listado_Proyectos!P42 -> 4367.34 | P42: =[1]Listado_Proyectos!Q42+[1]Listado_Proyectos!R42 -> 0 | Q42: =IFERROR(VLOOKUP(C42,'[2]Postes 2024'!$A:$C,3,FALSE),0) -> 3 | R42: =IFERROR(VLOOKUP(C42,'[2]Líneas 2024'!$A:$C,3,FALSE),0) -> 16.7001 | S42: =IF((VLOOKUP($B42,Formulacion!$A:$BE,MATCH(S$1,Formulacion!$1:$1,0),FALSE)="NA"),"NA",Q42) -> NA | T42: =IF((VLOOKUP($B42,Formulacion!$A:$BE,MATCH(T$1,Formulacion!$1:$1,0),FALSE)="NA"),"NA",R42) -> NA | U42: NA | V42: =IF(OR(VLOOKUP($B42,Formulacion!$A:$BE,MATCH(V$1,Formulacion!$1:$1,0),FALSE)="NA",$D42=0),"NA",IF($B42="DLSBT",MID($D42,ZanjaInicioBT,ZanjaFinBT-ZanjaInicioBT+1)*1,MID($D42,ZanjaInicio,ZanjaFin-ZanjaInicio+1)*1)) -> NA | W42: 1 | X42: =IF(OR(VLOOKUP($B42,Formulacion!$A:$BE,MATCH(X$1,Formulacion!$1:$1,0),FALSE)="NA",$D42=0),"NA",MID($D42,m2Inicio+INDIRECT(B42),m2Fin-m2Inicio+1)*1) -> NA | Y42: =IF(OR(VLOOKUP($B42,Formulacion!$A:$BE,MATCH(Y$1,Formulacion!$1:$1,0),FALSE)="NA",$D42=0),"NA",RIGHT($D42,4)*1) -> NA | Z42: =IF(OR(VLOOKUP($B42,Formulacion!$A:$BE,MATCH(Z$1,Formulacion!$1:$1,0),FALSE)="NA",$D42=0),"NA",RIGHT($D42,3)*1) -> NA | AA42: 1 | AB42: =IF(VLOOKUP($B42,Formulacion!$A:$BE,MATCH(AB$1,Formulacion!$1:$1,0),FALSE)="NA",1,IF(X42<=m2Min,0,1)) -> 1 | AC42: =IF(VLOOKUP($B42,Formulacion!$A:$BE,MATCH(AC$1,Formulacion!$1:$1,0),FALSE)="NA",1,IF(OR(E42<=FechaMin,E42>FechaMax),0,1)) -> 1 | AD42: =IF(VLOOKUP($B42,Formulacion!$A:$BE,MATCH(AD$1,Formulacion!$1:$1,0),FALSE)="NA",1,IF(H42<=MaterialesMin,0,1)) -> 1 | AE42: =IF(VLOOKUP($B42,Formulacion!$A:$BE,MATCH(AE$1,Formulacion!$1:$1,0),FALSE)="NA",1,IF(N42=0,0,IF(OR(I42/N42<=MObraMin,I42/N42>=MObraMax),MDOmin,1))) -> 1 | AF42: =IF(VLOOKUP($B42,Formulacion!$A:$BE,MATCH(AF$1,Formulacion!$1:$1,0),FALSE)="NA",1,IF(N42<=CostoTotalMin,0,1)) -> 1 | AG42: =IF(VLOOKUP($B42,Formulacion!$A:$BE,MATCH(AG$1,Formulacion!$1:$1,0),FALSE)="NA",1,IF(S42<PostesMin,0,1)) -> 1 | AH42: =IF(VLOOKUP($B42,Formulacion!$A:$BE,MATCH(AH$1,Formulacion!$1:$1,0),FALSE)="NA",1,IF(T42<INDIRECT(VLOOKUP(B42,Formulacion!$A:$BE,2,FALSE)),0,1)) -> 1 | AI42: 1 | AJ42: 4367.34 | AK42: 1 | AL42: =IF(VLOOKUP($B42,Formulacion!$A:$BE,MATCH(AL$1,Formulacion!$1:$1,0),FALSE)="NA","NA",HLOOKUP(VLOOKUP($B42,Formulacion!$A:$BE,MATCH(AL$1,Formulacion!$1:$1,0),FALSE),$S:$AB,ROW(AL42),FALSE)) -> NA | AM42: =IF(VLOOKUP($B42,Formulacion!$A:$BE,MATCH(AM$1,Formulacion!$1:$1,0),FALSE)="NA",1,VLOOKUP($B42,Formulacion!$A:$BE,MATCH(AM$1,Formulacion!$1:$1,0),FALSE)) -> 1 | AN42: =IF(VLOOKUP($B42,Formulacion!$A:$BE,MATCH(AN$1,Formulacion!$1:$1,0),FALSE)="NA",1,VLOOKUP($B42,Formulacion!$A:$BE,MATCH(AN$1,Formulacion!$1:$1,0),FALSE)) -> 1 | AO42: 1 | AP42: =IF(VLOOKUP($B42,Formulacion!$A:$BE,MATCH(AP$1,Formulacion!$1:$1,0),FALSE)="NA","NA",IF(D42=0,"",VLOOKUP($B42,Formulacion!$A:$BE,MATCH(AP$1,Formulacion!$1:$1,0),FALSE))) ->  | AQ42: X | AX42: NA | AY42: =IF(VLOOKUP($B42,Formulacion!$A:$BE,MATCH(AY$1,Formulacion!$1:$1,0),FALSE)="NA","NA",HLOOKUP(VLOOKUP($B42,Formulacion!$A:$BE,MATCH(AY$1,Formulacion!$1:$1,0),FALSE),$S:$AB,ROW(AY42),FALSE)) -> NA | AZ42: NA | BA42: 1 | BB42: =IF(VLOOKUP($B42,Formulacion!$A:$BE,MATCH(BB$1,Formulacion!$1:$1,0),FALSE)="NA",1,VLOOKUP($B42,Formulacion!$A:$BE,MATCH(BB$1,Formulacion!$1:$1,0),FALSE)) -> 0.9 | BC42: =IF(VLOOKUP($B42,Formulacion!$A:$BE,MATCH(BC$1,Formulacion!$1:$1,0),FALSE)="NA",1,VLOOKUP($B42,Formulacion!$A:$BE,MATCH(BC$1,Formulacion!$1:$1,0),FALSE)) -> 1 | BD42: 3930.606 | BF42: =VLOOKUP(C42,[3]Listado_Proyectos!$A$2:$I$815,9,FALSE) ->  | BG42: 2019-02-28
A43: Proyecto con cuenta ENSA 2024.xls | B43: =[1]Listado_Proyectos!K43 -> PEQOT | C43: =[1]Listado_Proyectos!A43 -> 01-22.23.0007 | E43: =[1]Listado_Proyectos!I43 -> 2024-09-25 | F43: =[1]Listado_Proyectos!D43 -> SAN MIGUELITO | H43: =[1]Listado_Proyectos!N43 -> 26364.8 | I43: =[1]Listado_Proyectos!M43 -> 0 | K43: =[1]Listado_Proyectos!O43 -> 0 | N43: =[1]Listado_Proyectos!P43 -> 26364.8 | P43: =[1]Listado_Proyectos!Q43+[1]Listado_Proyectos!R43 -> 0 | Q43: =IFERROR(VLOOKUP(C43,'[2]Postes 2024'!$A:$C,3,FALSE),0) -> 0 | R43: =IFERROR(VLOOKUP(C43,'[2]Líneas 2024'!$A:$C,3,FALSE),0) -> 0 | S43: =IF((VLOOKUP($B43,Formulacion!$A:$BE,MATCH(S$1,Formulacion!$1:$1,0),FALSE)="NA"),"NA",Q43) -> NA | T43: =IF((VLOOKUP($B43,Formulacion!$A:$BE,MATCH(T$1,Formulacion!$1:$1,0),FALSE)="NA"),"NA",R43) -> NA | U43: NA | V43: =IF(OR(VLOOKUP($B43,Formulacion!$A:$BE,MATCH(V$1,Formulacion!$1:$1,0),FALSE)="NA",$D43=0),"NA",IF($B43="DLSBT",MID($D43,ZanjaInicioBT,ZanjaFinBT-ZanjaInicioBT+1)*1,MID($D43,ZanjaInicio,ZanjaFin-ZanjaInicio+1)*1)) -> NA | W43: 1 | X43: =IF(OR(VLOOKUP($B43,Formulacion!$A:$BE,MATCH(X$1,Formulacion!$1:$1,0),FALSE)="NA",$D43=0),"NA",MID($D43,m2Inicio+INDIRECT(B43),m2Fin-m2Inicio+1)*1) -> NA | Y43: =IF(OR(VLOOKUP($B43,Formulacion!$A:$BE,MATCH(Y$1,Formulacion!$1:$1,0),FALSE)="NA",$D43=0),"NA",RIGHT($D43,4)*1) -> NA | Z43: =IF(OR(VLOOKUP($B43,Formulacion!$A:$BE,MATCH(Z$1,Formulacion!$1:$1,0),FALSE)="NA",$D43=0),"NA",RIGHT($D43,3)*1) -> NA | AA43: 1 | AB43: =IF(VLOOKUP($B43,Formulacion!$A:$BE,MATCH(AB$1,Formulacion!$1:$1,0),FALSE)="NA",1,IF(X43<=m2Min,0,1)) -> 1 | AC43: =IF(VLOOKUP($B43,Formulacion!$A:$BE,MATCH(AC$1,Formulacion!$1:$1,0),FALSE)="NA",1,IF(OR(E43<=FechaMin,E43>FechaMax),0,1)) -> 1 | AD43: =IF(VLOOKUP($B43,Formulacion!$A:$BE,MATCH(AD$1,Formulacion!$1:$1,0),FALSE)="NA",1,IF(H43<=MaterialesMin,0,1)) -> 1 | AE43: =IF(VLOOKUP($B43,Formulacion!$A:$BE,MATCH(AE$1,Formulacion!$1:$1,0),FALSE)="NA",1,IF(N43=0,0,IF(OR(I43/N43<=MObraMin,I43/N43>=MObraMax),MDOmin,1))) -> 1 | AF43: =IF(VLOOKUP($B43,Formulacion!$A:$BE,MATCH(AF$1,Formulacion!$1:$1,0),FALSE)="NA",1,IF(N43<=CostoTotalMin,0,1)) -> 1 | AG43: =IF(VLOOKUP($B43,Formulacion!$A:$BE,MATCH(AG$1,Formulacion!$1:$1,0),FALSE)="NA",1,IF(S43<PostesMin,0,1)) -> 1 | AH43: =IF(VLOOKUP($B43,Formulacion!$A:$BE,MATCH(AH$1,Formulacion!$1:$1,0),FALSE)="NA",1,IF(T43<INDIRECT(VLOOKUP(B43,Formulacion!$A:$BE,2,FALSE)),0,1)) -> 1 | AI43: 1 | AJ43: 26364.8 | AK43: 1 | AL43: =IF(VLOOKUP($B43,Formulacion!$A:$BE,MATCH(AL$1,Formulacion!$1:$1,0),FALSE)="NA","NA",HLOOKUP(VLOOKUP($B43,Formulacion!$A:$BE,MATCH(AL$1,Formulacion!$1:$1,0),FALSE),$S:$AB,ROW(AL43),FALSE)) -> NA | AM43: =IF(VLOOKUP($B43,Formulacion!$A:$BE,MATCH(AM$1,Formulacion!$1:$1,0),FALSE)="NA",1,VLOOKUP($B43,Formulacion!$A:$BE,MATCH(AM$1,Formulacion!$1:$1,0),FALSE)) -> 1 | AN43: =IF(VLOOKUP($B43,Formulacion!$A:$BE,MATCH(AN$1,Formulacion!$1:$1,0),FALSE)="NA",1,VLOOKUP($B43,Formulacion!$A:$BE,MATCH(AN$1,Formulacion!$1:$1,0),FALSE)) -> 1 | AO43: 1 | AP43: =IF(VLOOKUP($B43,Formulacion!$A:$BE,MATCH(AP$1,Formulacion!$1:$1,0),FALSE)="NA","NA",IF(D43=0,"",VLOOKUP($B43,Formulacion!$A:$BE,MATCH(AP$1,Formulacion!$1:$1,0),FALSE))) -> NA | AQ43: X | AX43: NA | AY43: =IF(VLOOKUP($B43,Formulacion!$A:$BE,MATCH(AY$1,Formulacion!$1:$1,0),FALSE)="NA","NA",HLOOKUP(VLOOKUP($B43,Formulacion!$A:$BE,MATCH(AY$1,Formulacion!$1:$1,0),FALSE),$S:$AB,ROW(AY43),FALSE)) -> NA | AZ43: NA | BA43: 1 | BB43: =IF(VLOOKUP($B43,Formulacion!$A:$BE,MATCH(BB$1,Formulacion!$1:$1,0),FALSE)="NA",1,VLOOKUP($B43,Formulacion!$A:$BE,MATCH(BB$1,Formulacion!$1:$1,0),FALSE)) -> 0.9 | BC43: =IF(VLOOKUP($B43,Formulacion!$A:$BE,MATCH(BC$1,Formulacion!$1:$1,0),FALSE)="NA",1,VLOOKUP($B43,Formulacion!$A:$BE,MATCH(BC$1,Formulacion!$1:$1,0),FALSE)) -> 1 | BD43: 23728.32 | BF43: =VLOOKUP(C43,[3]Listado_Proyectos!$A$2:$I$815,9,FALSE) ->  | BG43: 2019-02-28
A44: Proyecto con cuenta ENSA 2024.xls | B44: =[1]Listado_Proyectos!K44 -> DEQDM | C44: =[1]Listado_Proyectos!A44 -> 01-58.24.0021 | E44: =[1]Listado_Proyectos!I44 -> 2024-10-23 | F44: =[1]Listado_Proyectos!D44 -> PANAMA | H44: =[1]Listado_Proyectos!N44 -> 19012.88 | I44: =[1]Listado_Proyectos!M44 -> 11607.5 | K44: =[1]Listado_Proyectos!O44 -> 5.37 | N44: =[1]Listado_Proyectos!P44 -> 30625.75 | P44: =[1]Listado_Proyectos!Q44+[1]Listado_Proyectos!R44 -> 0 | Q44: =IFERROR(VLOOKUP(C44,'[2]Postes 2024'!$A:$C,3,FALSE),0) -> 0 | R44: =IFERROR(VLOOKUP(C44,'[2]Líneas 2024'!$A:$C,3,FALSE),0) -> 0 | S44: =IF((VLOOKUP($B44,Formulacion!$A:$BE,MATCH(S$1,Formulacion!$1:$1,0),FALSE)="NA"),"NA",Q44) -> NA | T44: =IF((VLOOKUP($B44,Formulacion!$A:$BE,MATCH(T$1,Formulacion!$1:$1,0),FALSE)="NA"),"NA",R44) -> NA | U44: NA | V44: =IF(OR(VLOOKUP($B44,Formulacion!$A:$BE,MATCH(V$1,Formulacion!$1:$1,0),FALSE)="NA",$D44=0),"NA",IF($B44="DLSBT",MID($D44,ZanjaInicioBT,ZanjaFinBT-ZanjaInicioBT+1)*1,MID($D44,ZanjaInicio,ZanjaFin-ZanjaInicio+1)*1)) -> NA | W44: 1 | X44: =IF(OR(VLOOKUP($B44,Formulacion!$A:$BE,MATCH(X$1,Formulacion!$1:$1,0),FALSE)="NA",$D44=0),"NA",MID($D44,m2Inicio+INDIRECT(B44),m2Fin-m2Inicio+1)*1) -> NA | Y44: =IF(OR(VLOOKUP($B44,Formulacion!$A:$BE,MATCH(Y$1,Formulacion!$1:$1,0),FALSE)="NA",$D44=0),"NA",RIGHT($D44,4)*1) -> NA | Z44: =IF(OR(VLOOKUP($B44,Formulacion!$A:$BE,MATCH(Z$1,Formulacion!$1:$1,0),FALSE)="NA",$D44=0),"NA",RIGHT($D44,3)*1) -> NA | AA44: 1 | AB44: =IF(VLOOKUP($B44,Formulacion!$A:$BE,MATCH(AB$1,Formulacion!$1:$1,0),FALSE)="NA",1,IF(X44<=m2Min,0,1)) -> 1 | AC44: =IF(VLOOKUP($B44,Formulacion!$A:$BE,MATCH(AC$1,Formulacion!$1:$1,0),FALSE)="NA",1,IF(OR(E44<=FechaMin,E44>FechaMax),0,1)) -> 1 | AD44: =IF(VLOOKUP($B44,Formulacion!$A:$BE,MATCH(AD$1,Formulacion!$1:$1,0),FALSE)="NA",1,IF(H44<=MaterialesMin,0,1)) -> 1 | AE44: =IF(VLOOKUP($B44,Formulacion!$A:$BE,MATCH(AE$1,Formulacion!$1:$1,0),FALSE)="NA",1,IF(N44=0,0,IF(OR(I44/N44<=MObraMin,I44/N44>=MObraMax),MDOmin,1))) -> 1 | AF44: =IF(VLOOKUP($B44,Formulacion!$A:$BE,MATCH(AF$1,Formulacion!$1:$1,0),FALSE)="NA",1,IF(N44<=CostoTotalMin,0,1)) -> 1 | AG44: =IF(VLOOKUP($B44,Formulacion!$A:$BE,MATCH(AG$1,Formulacion!$1:$1,0),FALSE)="NA",1,IF(S44<PostesMin,0,1)) -> 1 | AH44: =IF(VLOOKUP($B44,Formulacion!$A:$BE,MATCH(AH$1,Formulacion!$1:$1,0),FALSE)="NA",1,IF(T44<INDIRECT(VLOOKUP(B44,Formulacion!$A:$BE,2,FALSE)),0,1)) -> 1 | AI44: 1 | AJ44: 30625.75 | AK44: 1 | AL44: =IF(VLOOKUP($B44,Formulacion!$A:$BE,MATCH(AL$1,Formulacion!$1:$1,0),FALSE)="NA","NA",HLOOKUP(VLOOKUP($B44,Formulacion!$A:$BE,MATCH(AL$1,Formulacion!$1:$1,0),FALSE),$S:$AB,ROW(AL44),FALSE)) -> NA | AM44: =IF(VLOOKUP($B44,Formulacion!$A:$BE,MATCH(AM$1,Formulacion!$1:$1,0),FALSE)="NA",1,VLOOKUP($B44,Formulacion!$A:$BE,MATCH(AM$1,Formulacion!$1:$1,0),FALSE)) -> 1 | AN44: =IF(VLOOKUP($B44,Formulacion!$A:$BE,MATCH(AN$1,Formulacion!$1:$1,0),FALSE)="NA",1,VLOOKUP($B44,Formulacion!$A:$BE,MATCH(AN$1,Formulacion!$1:$1,0),FALSE)) -> 1 | AO44: 1 | AP44: =IF(VLOOKUP($B44,Formulacion!$A:$BE,MATCH(AP$1,Formulacion!$1:$1,0),FALSE)="NA","NA",IF(D44=0,"",VLOOKUP($B44,Formulacion!$A:$BE,MATCH(AP$1,Formulacion!$1:$1,0),FALSE))) -> NA | AQ44: X | AX44: NA | AY44: =IF(VLOOKUP($B44,Formulacion!$A:$BE,MATCH(AY$1,Formulacion!$1:$1,0),FALSE)="NA","NA",HLOOKUP(VLOOKUP($B44,Formulacion!$A:$BE,MATCH(AY$1,Formulacion!$1:$1,0),FALSE),$S:$AB,ROW(AY44),FALSE)) -> NA | AZ44: NA | BA44: 1 | BB44: =IF(VLOOKUP($B44,Formulacion!$A:$BE,MATCH(BB$1,Formulacion!$1:$1,0),FALSE)="NA",1,VLOOKUP($B44,Formulacion!$A:$BE,MATCH(BB$1,Formulacion!$1:$1,0),FALSE)) -> 0.9 | BC44: =IF(VLOOKUP($B44,Formulacion!$A:$BE,MATCH(BC$1,Formulacion!$1:$1,0),FALSE)="NA",1,VLOOKUP($B44,Formulacion!$A:$BE,MATCH(BC$1,Formulacion!$1:$1,0),FALSE)) -> 1 | BD44: 27563.175 | BF44: =VLOOKUP(C44,[3]Listado_Proyectos!$A$2:$I$815,9,FALSE) ->  | BG44: 2019-02-28
A45: Proyecto con cuenta ENSA 2024.xls | B45: =[1]Listado_Proyectos!K45 -> DLSMT-13,8 | C45: =[1]Listado_Proyectos!A45 -> 01-58.24.0021 | E45: =[1]Listado_Proyectos!I45 -> 2024-10-23 | F45: =[1]Listado_Proyectos!D45 -> PANAMA | H45: =[1]Listado_Proyectos!N45 -> 1867.11 | I45: =[1]Listado_Proyectos!M45 -> 325.05 | K45: =[1]Listado_Proyectos!O45 -> 0 | N45: =[1]Listado_Proyectos!P45 -> 2192.16 | P45: =[1]Listado_Proyectos!Q45+[1]Listado_Proyectos!R45 -> 0 | Q45: =IFERROR(VLOOKUP(C45,'[2]Postes 2024'!$A:$C,3,FALSE),0) -> 0 | R45: =IFERROR(VLOOKUP(C45,'[2]Líneas 2024'!$A:$C,3,FALSE),0) -> 0 | S45: =IF((VLOOKUP($B45,Formulacion!$A:$BE,MATCH(S$1,Formulacion!$1:$1,0),FALSE)="NA"),"NA",Q45) -> NA | T45: =IF((VLOOKUP($B45,Formulacion!$A:$BE,MATCH(T$1,Formulacion!$1:$1,0),FALSE)="NA"),"NA",R45) -> 0 | U45: NA | V45: =IF(OR(VLOOKUP($B45,Formulacion!$A:$BE,MATCH(V$1,Formulacion!$1:$1,0),FALSE)="NA",$D45=0),"NA",IF($B45="DLSBT",MID($D45,ZanjaInicioBT,ZanjaFinBT-ZanjaInicioBT+1)*1,MID($D45,ZanjaInicio,ZanjaFin-ZanjaInicio+1)*1)) -> NA | W45: 1 | X45: =IF(OR(VLOOKUP($B45,Formulacion!$A:$BE,MATCH(X$1,Formulacion!$1:$1,0),FALSE)="NA",$D45=0),"NA",MID($D45,m2Inicio+INDIRECT(B45),m2Fin-m2Inicio+1)*1) -> NA | Y45: =IF(OR(VLOOKUP($B45,Formulacion!$A:$BE,MATCH(Y$1,Formulacion!$1:$1,0),FALSE)="NA",$D45=0),"NA",RIGHT($D45,4)*1) -> NA | Z45: =IF(OR(VLOOKUP($B45,Formulacion!$A:$BE,MATCH(Z$1,Formulacion!$1:$1,0),FALSE)="NA",$D45=0),"NA",RIGHT($D45,3)*1) -> NA | AA45: 1 | AB45: =IF(VLOOKUP($B45,Formulacion!$A:$BE,MATCH(AB$1,Formulacion!$1:$1,0),FALSE)="NA",1,IF(X45<=m2Min,0,1)) -> 1 | AC45: =IF(VLOOKUP($B45,Formulacion!$A:$BE,MATCH(AC$1,Formulacion!$1:$1,0),FALSE)="NA",1,IF(OR(E45<=FechaMin,E45>FechaMax),0,1)) -> 1 | AD45: =IF(VLOOKUP($B45,Formulacion!$A:$BE,MATCH(AD$1,Formulacion!$1:$1,0),FALSE)="NA",1,IF(H45<=MaterialesMin,0,1)) -> 1 | AE45: =IF(VLOOKUP($B45,Formulacion!$A:$BE,MATCH(AE$1,Formulacion!$1:$1,0),FALSE)="NA",1,IF(N45=0,0,IF(OR(I45/N45<=MObraMin,I45/N45>=MObraMax),MDOmin,1))) -> 1 | AF45: =IF(VLOOKUP($B45,Formulacion!$A:$BE,MATCH(AF$1,Formulacion!$1:$1,0),FALSE)="NA",1,IF(N45<=CostoTotalMin,0,1)) -> 1 | AG45: =IF(VLOOKUP($B45,Formulacion!$A:$BE,MATCH(AG$1,Formulacion!$1:$1,0),FALSE)="NA",1,IF(S45<PostesMin,0,1)) -> 1 | AH45: =IF(VLOOKUP($B45,Formulacion!$A:$BE,MATCH(AH$1,Formulacion!$1:$1,0),FALSE)="NA",1,IF(T45<INDIRECT(VLOOKUP(B45,Formulacion!$A:$BE,2,FALSE)),0,1)) -> 0 | AI45: 1 | AJ45: 2192.16 | AK45: 1 | AL45: =IF(VLOOKUP($B45,Formulacion!$A:$BE,MATCH(AL$1,Formulacion!$1:$1,0),FALSE)="NA","NA",HLOOKUP(VLOOKUP($B45,Formulacion!$A:$BE,MATCH(AL$1,Formulacion!$1:$1,0),FALSE),$S:$AB,ROW(AL45),FALSE)) -> NA | AM45: =IF(VLOOKUP($B45,Formulacion!$A:$BE,MATCH(AM$1,Formulacion!$1:$1,0),FALSE)="NA",1,VLOOKUP($B45,Formulacion!$A:$BE,MATCH(AM$1,Formulacion!$1:$1,0),FALSE)) -> 1000 | AN45: =IF(VLOOKUP($B45,Formulacion!$A:$BE,MATCH(AN$1,Formulacion!$1:$1,0),FALSE)="NA",1,VLOOKUP($B45,Formulacion!$A:$BE,MATCH(AN$1,Formulacion!$1:$1,0),FALSE)) -> 0.5 | AO45: 1 | AP45: =IF(VLOOKUP($B45,Formulacion!$A:$BE,MATCH(AP$1,Formulacion!$1:$1,0),FALSE)="NA","NA",IF(D45=0,"",VLOOKUP($B45,Formulacion!$A:$BE,MATCH(AP$1,Formulacion!$1:$1,0),FALSE))) ->  | AQ45: X | AX45: NA | AY45: =IF(VLOOKUP($B45,Formulacion!$A:$BE,MATCH(AY$1,Formulacion!$1:$1,0),FALSE)="NA","NA",HLOOKUP(VLOOKUP($B45,Formulacion!$A:$BE,MATCH(AY$1,Formulacion!$1:$1,0),FALSE),$S:$AB,ROW(AY45),FALSE)) -> 0 | AZ45: NA | BA45: 1 | BB45: =IF(VLOOKUP($B45,Formulacion!$A:$BE,MATCH(BB$1,Formulacion!$1:$1,0),FALSE)="NA",1,VLOOKUP($B45,Formulacion!$A:$BE,MATCH(BB$1,Formulacion!$1:$1,0),FALSE)) -> 0.9 | BC45: =IF(VLOOKUP($B45,Formulacion!$A:$BE,MATCH(BC$1,Formulacion!$1:$1,0),FALSE)="NA",1,VLOOKUP($B45,Formulacion!$A:$BE,MATCH(BC$1,Formulacion!$1:$1,0),FALSE)) -> 1 | BD45: 1972.944 | BF45: =VLOOKUP(C45,[3]Listado_Proyectos!$A$2:$I$815,9,FALSE) ->  | BG45: 2019-02-28
A46: Proyecto con cuenta ENSA 2024.xls | B46: =[1]Listado_Proyectos!K46 -> AINAP | C46: =[1]Listado_Proyectos!A46 -> 01-03.23.0022 | E46: =[1]Listado_Proyectos!I46 -> 2024-06-21 | F46: =[1]Listado_Proyectos!D46 -> DONOSO | H46: =[1]Listado_Proyectos!N46 -> 1016.9 | I46: =[1]Listado_Proyectos!M46 -> 301.82 | K46: =[1]Listado_Proyectos!O46 -> 0 | N46: =[1]Listado_Proyectos!P46 -> 1318.72 | P46: =[1]Listado_Proyectos!Q46+[1]Listado_Proyectos!R46 -> 0 | Q46: =IFERROR(VLOOKUP(C46,'[2]Postes 2024'!$A:$C,3,FALSE),0) -> 0 | R46: =IFERROR(VLOOKUP(C46,'[2]Líneas 2024'!$A:$C,3,FALSE),0) -> 0 | S46: =IF((VLOOKUP($B46,Formulacion!$A:$BE,MATCH(S$1,Formulacion!$1:$1,0),FALSE)="NA"),"NA",Q46) -> NA | T46: =IF((VLOOKUP($B46,Formulacion!$A:$BE,MATCH(T$1,Formulacion!$1:$1,0),FALSE)="NA"),"NA",R46) -> NA | U46: NA | V46: =IF(OR(VLOOKUP($B46,Formulacion!$A:$BE,MATCH(V$1,Formulacion!$1:$1,0),FALSE)="NA",$D46=0),"NA",IF($B46="DLSBT",MID($D46,ZanjaInicioBT,ZanjaFinBT-ZanjaInicioBT+1)*1,MID($D46,ZanjaInicio,ZanjaFin-ZanjaInicio+1)*1)) -> NA | W46: 1 | X46: =IF(OR(VLOOKUP($B46,Formulacion!$A:$BE,MATCH(X$1,Formulacion!$1:$1,0),FALSE)="NA",$D46=0),"NA",MID($D46,m2Inicio+INDIRECT(B46),m2Fin-m2Inicio+1)*1) -> NA | Y46: =IF(OR(VLOOKUP($B46,Formulacion!$A:$BE,MATCH(Y$1,Formulacion!$1:$1,0),FALSE)="NA",$D46=0),"NA",RIGHT($D46,4)*1) -> NA | Z46: =IF(OR(VLOOKUP($B46,Formulacion!$A:$BE,MATCH(Z$1,Formulacion!$1:$1,0),FALSE)="NA",$D46=0),"NA",RIGHT($D46,3)*1) -> NA | AA46: 1 | AB46: =IF(VLOOKUP($B46,Formulacion!$A:$BE,MATCH(AB$1,Formulacion!$1:$1,0),FALSE)="NA",1,IF(X46<=m2Min,0,1)) -> 1 | AC46: =IF(VLOOKUP($B46,Formulacion!$A:$BE,MATCH(AC$1,Formulacion!$1:$1,0),FALSE)="NA",1,IF(OR(E46<=FechaMin,E46>FechaMax),0,1)) -> 1 | AD46: =IF(VLOOKUP($B46,Formulacion!$A:$BE,MATCH(AD$1,Formulacion!$1:$1,0),FALSE)="NA",1,IF(H46<=MaterialesMin,0,1)) -> 1 | AE46: =IF(VLOOKUP($B46,Formulacion!$A:$BE,MATCH(AE$1,Formulacion!$1:$1,0),FALSE)="NA",1,IF(N46=0,0,IF(OR(I46/N46<=MObraMin,I46/N46>=MObraMax),MDOmin,1))) -> 1 | AF46: =IF(VLOOKUP($B46,Formulacion!$A:$BE,MATCH(AF$1,Formulacion!$1:$1,0),FALSE)="NA",1,IF(N46<=CostoTotalMin,0,1)) -> 1 | AG46: =IF(VLOOKUP($B46,Formulacion!$A:$BE,MATCH(AG$1,Formulacion!$1:$1,0),FALSE)="NA",1,IF(S46<PostesMin,0,1)) -> 1 | AH46: =IF(VLOOKUP($B46,Formulacion!$A:$BE,MATCH(AH$1,Formulacion!$1:$1,0),FALSE)="NA",1,IF(T46<INDIRECT(VLOOKUP(B46,Formulacion!$A:$BE,2,FALSE)),0,1)) -> 1 | AI46: 1 | AJ46: 1318.72 | AK46: 1 | AL46: =IF(VLOOKUP($B46,Formulacion!$A:$BE,MATCH(AL$1,Formulacion!$1:$1,0),FALSE)="NA","NA",HLOOKUP(VLOOKUP($B46,Formulacion!$A:$BE,MATCH(AL$1,Formulacion!$1:$1,0),FALSE),$S:$AB,ROW(AL46),FALSE)) -> NA | AM46: =IF(VLOOKUP($B46,Formulacion!$A:$BE,MATCH(AM$1,Formulacion!$1:$1,0),FALSE)="NA",1,VLOOKUP($B46,Formulacion!$A:$BE,MATCH(AM$1,Formulacion!$1:$1,0),FALSE)) -> 1 | AN46: =IF(VLOOKUP($B46,Formulacion!$A:$BE,MATCH(AN$1,Formulacion!$1:$1,0),FALSE)="NA",1,VLOOKUP($B46,Formulacion!$A:$BE,MATCH(AN$1,Formulacion!$1:$1,0),FALSE)) -> 1 | AO46: 1 | AP46: =IF(VLOOKUP($B46,Formulacion!$A:$BE,MATCH(AP$1,Formulacion!$1:$1,0),FALSE)="NA","NA",IF(D46=0,"",VLOOKUP($B46,Formulacion!$A:$BE,MATCH(AP$1,Formulacion!$1:$1,0),FALSE))) -> NA | AQ46: X | AX46: NA | AY46: =IF(VLOOKUP($B46,Formulacion!$A:$BE,MATCH(AY$1,Formulacion!$1:$1,0),FALSE)="NA","NA",HLOOKUP(VLOOKUP($B46,Formulacion!$A:$BE,MATCH(AY$1,Formulacion!$1:$1,0),FALSE),$S:$AB,ROW(AY46),FALSE)) -> NA | AZ46: NA | BA46: 1 | BB46: =IF(VLOOKUP($B46,Formulacion!$A:$BE,MATCH(BB$1,Formulacion!$1:$1,0),FALSE)="NA",1,VLOOKUP($B46,Formulacion!$A:$BE,MATCH(BB$1,Formulacion!$1:$1,0),FALSE)) -> 0.9 | BC46: =IF(VLOOKUP($B46,Formulacion!$A:$BE,MATCH(BC$1,Formulacion!$1:$1,0),FALSE)="NA",1,VLOOKUP($B46,Formulacion!$A:$BE,MATCH(BC$1,Formulacion!$1:$1,0),FALSE)) -> 1 | BD46: 1186.848 | BF46: =VLOOKUP(C46,[3]Listado_Proyectos!$A$2:$I$815,9,FALSE) ->  | BG46: 2019-02-28
A47: Proyecto con cuenta ENSA 2024.xls | B47: =[1]Listado_Proyectos!K47 -> AINAP | C47: =[1]Listado_Proyectos!A47 -> 01-03.23.0003 | E47: =[1]Listado_Proyectos!I47 -> 2024-09-24 | F47: =[1]Listado_Proyectos!D47 -> SAN MIGUELITO | H47: =[1]Listado_Proyectos!N47 -> 189595.04 | I47: =[1]Listado_Proyectos!M47 -> 59646.66 | K47: =[1]Listado_Proyectos!O47 -> 0 | N47: =[1]Listado_Proyectos!P47 -> 249241.7 | P47: =[1]Listado_Proyectos!Q47+[1]Listado_Proyectos!R47 -> 0 | Q47: =IFERROR(VLOOKUP(C47,'[2]Postes 2024'!$A:$C,3,FALSE),0) -> 0 | R47: =IFERROR(VLOOKUP(C47,'[2]Líneas 2024'!$A:$C,3,FALSE),0) -> 0 | S47: =IF((VLOOKUP($B47,Formulacion!$A:$BE,MATCH(S$1,Formulacion!$1:$1,0),FALSE)="NA"),"NA",Q47) -> NA | T47: =IF((VLOOKUP($B47,Formulacion!$A:$BE,MATCH(T$1,Formulacion!$1:$1,0),FALSE)="NA"),"NA",R47) -> NA | U47: NA | V47: =IF(OR(VLOOKUP($B47,Formulacion!$A:$BE,MATCH(V$1,Formulacion!$1:$1,0),FALSE)="NA",$D47=0),"NA",IF($B47="DLSBT",MID($D47,ZanjaInicioBT,ZanjaFinBT-ZanjaInicioBT+1)*1,MID($D47,ZanjaInicio,ZanjaFin-ZanjaInicio+1)*1)) -> NA | W47: 1 | X47: =IF(OR(VLOOKUP($B47,Formulacion!$A:$BE,MATCH(X$1,Formulacion!$1:$1,0),FALSE)="NA",$D47=0),"NA",MID($D47,m2Inicio+INDIRECT(B47),m2Fin-m2Inicio+1)*1) -> NA | Y47: =IF(OR(VLOOKUP($B47,Formulacion!$A:$BE,MATCH(Y$1,Formulacion!$1:$1,0),FALSE)="NA",$D47=0),"NA",RIGHT($D47,4)*1) -> NA | Z47: =IF(OR(VLOOKUP($B47,Formulacion!$A:$BE,MATCH(Z$1,Formulacion!$1:$1,0),FALSE)="NA",$D47=0),"NA",RIGHT($D47,3)*1) -> NA | AA47: 1 | AB47: =IF(VLOOKUP($B47,Formulacion!$A:$BE,MATCH(AB$1,Formulacion!$1:$1,0),FALSE)="NA",1,IF(X47<=m2Min,0,1)) -> 1 | AC47: =IF(VLOOKUP($B47,Formulacion!$A:$BE,MATCH(AC$1,Formulacion!$1:$1,0),FALSE)="NA",1,IF(OR(E47<=FechaMin,E47>FechaMax),0,1)) -> 1 | AD47: =IF(VLOOKUP($B47,Formulacion!$A:$BE,MATCH(AD$1,Formulacion!$1:$1,0),FALSE)="NA",1,IF(H47<=MaterialesMin,0,1)) -> 1 | AE47: =IF(VLOOKUP($B47,Formulacion!$A:$BE,MATCH(AE$1,Formulacion!$1:$1,0),FALSE)="NA",1,IF(N47=0,0,IF(OR(I47/N47<=MObraMin,I47/N47>=MObraMax),MDOmin,1))) -> 1 | AF47: =IF(VLOOKUP($B47,Formulacion!$A:$BE,MATCH(AF$1,Formulacion!$1:$1,0),FALSE)="NA",1,IF(N47<=CostoTotalMin,0,1)) -> 1 | AG47: =IF(VLOOKUP($B47,Formulacion!$A:$BE,MATCH(AG$1,Formulacion!$1:$1,0),FALSE)="NA",1,IF(S47<PostesMin,0,1)) -> 1 | AH47: =IF(VLOOKUP($B47,Formulacion!$A:$BE,MATCH(AH$1,Formulacion!$1:$1,0),FALSE)="NA",1,IF(T47<INDIRECT(VLOOKUP(B47,Formulacion!$A:$BE,2,FALSE)),0,1)) -> 1 | AI47: 1 | AJ47: 249241.7 | AK47: 1 | AL47: =IF(VLOOKUP($B47,Formulacion!$A:$BE,MATCH(AL$1,Formulacion!$1:$1,0),FALSE)="NA","NA",HLOOKUP(VLOOKUP($B47,Formulacion!$A:$BE,MATCH(AL$1,Formulacion!$1:$1,0),FALSE),$S:$AB,ROW(AL47),FALSE)) -> NA | AM47: =IF(VLOOKUP($B47,Formulacion!$A:$BE,MATCH(AM$1,Formulacion!$1:$1,0),FALSE)="NA",1,VLOOKUP($B47,Formulacion!$A:$BE,MATCH(AM$1,Formulacion!$1:$1,0),FALSE)) -> 1 | AN47: =IF(VLOOKUP($B47,Formulacion!$A:$BE,MATCH(AN$1,Formulacion!$1:$1,0),FALSE)="NA",1,VLOOKUP($B47,Formulacion!$A:$BE,MATCH(AN$1,Formulacion!$1:$1,0),FALSE)) -> 1 | AO47: 1 | AP47: =IF(VLOOKUP($B47,Formulacion!$A:$BE,MATCH(AP$1,Formulacion!$1:$1,0),FALSE)="NA","NA",IF(D47=0,"",VLOOKUP($B47,Formulacion!$A:$BE,MATCH(AP$1,Formulacion!$1:$1,0),FALSE))) -> NA | AQ47: X | AX47: NA | AY47: =IF(VLOOKUP($B47,Formulacion!$A:$BE,MATCH(AY$1,Formulacion!$1:$1,0),FALSE)="NA","NA",HLOOKUP(VLOOKUP($B47,Formulacion!$A:$BE,MATCH(AY$1,Formulacion!$1:$1,0),FALSE),$S:$AB,ROW(AY47),FALSE)) -> NA | AZ47: NA | BA47: 1 | BB47: =IF(VLOOKUP($B47,Formulacion!$A:$BE,MATCH(BB$1,Formulacion!$1:$1,0),FALSE)="NA",1,VLOOKUP($B47,Formulacion!$A:$BE,MATCH(BB$1,Formulacion!$1:$1,0),FALSE)) -> 0.9 | BC47: =IF(VLOOKUP($B47,Formulacion!$A:$BE,MATCH(BC$1,Formulacion!$1:$1,0),FALSE)="NA",1,VLOOKUP($B47,Formulacion!$A:$BE,MATCH(BC$1,Formulacion!$1:$1,0),FALSE)) -> 1 | BD47: 224317.53 | BF47: =VLOOKUP(C47,[3]Listado_Proyectos!$A$2:$I$815,9,FALSE) ->  | BG47: 2019-02-28
A48: Proyecto con cuenta ENSA 2024.xls | B48: =[1]Listado_Proyectos!K48 -> PEDYM | C48: =[1]Listado_Proyectos!A48 -> 01-20.24.0010 | E48: =[1]Listado_Proyectos!I48 -> 2024-12-30 | F48: =[1]Listado_Proyectos!D48 -> COLON | H48: =[1]Listado_Proyectos!N48 -> 0 | I48: =[1]Listado_Proyectos!M48 -> 4023.61 | K48: =[1]Listado_Proyectos!O48 -> 0 | N48: =[1]Listado_Proyectos!P48 -> 4023.61 | P48: =[1]Listado_Proyectos!Q48+[1]Listado_Proyectos!R48 -> 0 | Q48: =IFERROR(VLOOKUP(C48,'[2]Postes 2024'!$A:$C,3,FALSE),0) -> 0 | R48: =IFERROR(VLOOKUP(C48,'[2]Líneas 2024'!$A:$C,3,FALSE),0) -> 0 | S48: =IF((VLOOKUP($B48,Formulacion!$A:$BE,MATCH(S$1,Formulacion!$1:$1,0),FALSE)="NA"),"NA",Q48) -> NA | T48: =IF((VLOOKUP($B48,Formulacion!$A:$BE,MATCH(T$1,Formulacion!$1:$1,0),FALSE)="NA"),"NA",R48) -> NA | U48: NA | V48: =IF(OR(VLOOKUP($B48,Formulacion!$A:$BE,MATCH(V$1,Formulacion!$1:$1,0),FALSE)="NA",$D48=0),"NA",IF($B48="DLSBT",MID($D48,ZanjaInicioBT,ZanjaFinBT-ZanjaInicioBT+1)*1,MID($D48,ZanjaInicio,ZanjaFin-ZanjaInicio+1)*1)) -> NA | W48: 1 | X48: =IF(OR(VLOOKUP($B48,Formulacion!$A:$BE,MATCH(X$1,Formulacion!$1:$1,0),FALSE)="NA",$D48=0),"NA",MID($D48,m2Inicio+INDIRECT(B48),m2Fin-m2Inicio+1)*1) -> NA | Y48: =IF(OR(VLOOKUP($B48,Formulacion!$A:$BE,MATCH(Y$1,Formulacion!$1:$1,0),FALSE)="NA",$D48=0),"NA",RIGHT($D48,4)*1) -> NA | Z48: =IF(OR(VLOOKUP($B48,Formulacion!$A:$BE,MATCH(Z$1,Formulacion!$1:$1,0),FALSE)="NA",$D48=0),"NA",RIGHT($D48,3)*1) -> NA | AA48: 1 | AB48: =IF(VLOOKUP($B48,Formulacion!$A:$BE,MATCH(AB$1,Formulacion!$1:$1,0),FALSE)="NA",1,IF(X48<=m2Min,0,1)) -> 1 | AC48: =IF(VLOOKUP($B48,Formulacion!$A:$BE,MATCH(AC$1,Formulacion!$1:$1,0),FALSE)="NA",1,IF(OR(E48<=FechaMin,E48>FechaMax),0,1)) -> 1 | AD48: =IF(VLOOKUP($B48,Formulacion!$A:$BE,MATCH(AD$1,Formulacion!$1:$1,0),FALSE)="NA",1,IF(H48<=MaterialesMin,0,1)) -> 1 | AE48: =IF(VLOOKUP($B48,Formulacion!$A:$BE,MATCH(AE$1,Formulacion!$1:$1,0),FALSE)="NA",1,IF(N48=0,0,IF(OR(I48/N48<=MObraMin,I48/N48>=MObraMax),MDOmin,1))) -> 1 | AF48: =IF(VLOOKUP($B48,Formulacion!$A:$BE,MATCH(AF$1,Formulacion!$1:$1,0),FALSE)="NA",1,IF(N48<=CostoTotalMin,0,1)) -> 1 | AG48: =IF(VLOOKUP($B48,Formulacion!$A:$BE,MATCH(AG$1,Formulacion!$1:$1,0),FALSE)="NA",1,IF(S48<PostesMin,0,1)) -> 1 | AH48: =IF(VLOOKUP($B48,Formulacion!$A:$BE,MATCH(AH$1,Formulacion!$1:$1,0),FALSE)="NA",1,IF(T48<INDIRECT(VLOOKUP(B48,Formulacion!$A:$BE,2,FALSE)),0,1)) -> 1 | AI48: 1 | AJ48: 4023.61 | AK48: 1 | AL48: =IF(VLOOKUP($B48,Formulacion!$A:$BE,MATCH(AL$1,Formulacion!$1:$1,0),FALSE)="NA","NA",HLOOKUP(VLOOKUP($B48,Formulacion!$A:$BE,MATCH(AL$1,Formulacion!$1:$1,0),FALSE),$S:$AB,ROW(AL48),FALSE)) -> NA | AM48: =IF(VLOOKUP($B48,Formulacion!$A:$BE,MATCH(AM$1,Formulacion!$1:$1,0),FALSE)="NA",1,VLOOKUP($B48,Formulacion!$A:$BE,MATCH(AM$1,Formulacion!$1:$1,0),FALSE)) -> 1 | AN48: =IF(VLOOKUP($B48,Formulacion!$A:$BE,MATCH(AN$1,Formulacion!$1:$1,0),FALSE)="NA",1,VLOOKUP($B48,Formulacion!$A:$BE,MATCH(AN$1,Formulacion!$1:$1,0),FALSE)) -> 1 | AO48: 1 | AP48: =IF(VLOOKUP($B48,Formulacion!$A:$BE,MATCH(AP$1,Formulacion!$1:$1,0),FALSE)="NA","NA",IF(D48=0,"",VLOOKUP($B48,Formulacion!$A:$BE,MATCH(AP$1,Formulacion!$1:$1,0),FALSE))) -> NA | AQ48: X | AX48: NA | AY48: =IF(VLOOKUP($B48,Formulacion!$A:$BE,MATCH(AY$1,Formulacion!$1:$1,0),FALSE)="NA","NA",HLOOKUP(VLOOKUP($B48,Formulacion!$A:$BE,MATCH(AY$1,Formulacion!$1:$1,0),FALSE),$S:$AB,ROW(AY48),FALSE)) -> NA | AZ48: NA | BA48: 1 | BB48: =IF(VLOOKUP($B48,Formulacion!$A:$BE,MATCH(BB$1,Formulacion!$1:$1,0),FALSE)="NA",1,VLOOKUP($B48,Formulacion!$A:$BE,MATCH(BB$1,Formulacion!$1:$1,0),FALSE)) -> 0.9 | BC48: =IF(VLOOKUP($B48,Formulacion!$A:$BE,MATCH(BC$1,Formulacion!$1:$1,0),FALSE)="NA",1,VLOOKUP($B48,Formulacion!$A:$BE,MATCH(BC$1,Formulacion!$1:$1,0),FALSE)) -> 1 | BD48: 3621.249 | BF48: =VLOOKUP(C48,[3]Listado_Proyectos!$A$2:$I$815,9,FALSE) ->  | BG48: 2019-02-28
A49: Proyecto con cuenta ENSA 2024.xls | B49: =[1]Listado_Proyectos!K49 -> PEQCO | C49: =[1]Listado_Proyectos!A49 -> 01-28.24.0003 | E49: =[1]Listado_Proyectos!I49 -> 2024-10-31 | F49: =[1]Listado_Proyectos!D49 -> PANAMA | H49: =[1]Listado_Proyectos!N49 -> 0 | I49: =[1]Listado_Proyectos!M49 -> 14996.34 | K49: =[1]Listado_Proyectos!O49 -> 0 | N49: =[1]Listado_Proyectos!P49 -> 14996.34 | P49: =[1]Listado_Proyectos!Q49+[1]Listado_Proyectos!R49 -> 0 | Q49: =IFERROR(VLOOKUP(C49,'[2]Postes 2024'!$A:$C,3,FALSE),0) -> 0 | R49: =IFERROR(VLOOKUP(C49,'[2]Líneas 2024'!$A:$C,3,FALSE),0) -> 0 | S49: =IF((VLOOKUP($B49,Formulacion!$A:$BE,MATCH(S$1,Formulacion!$1:$1,0),FALSE)="NA"),"NA",Q49) -> NA | T49: =IF((VLOOKUP($B49,Formulacion!$A:$BE,MATCH(T$1,Formulacion!$1:$1,0),FALSE)="NA"),"NA",R49) -> NA | U49: NA | V49: =IF(OR(VLOOKUP($B49,Formulacion!$A:$BE,MATCH(V$1,Formulacion!$1:$1,0),FALSE)="NA",$D49=0),"NA",IF($B49="DLSBT",MID($D49,ZanjaInicioBT,ZanjaFinBT-ZanjaInicioBT+1)*1,MID($D49,ZanjaInicio,ZanjaFin-ZanjaInicio+1)*1)) -> NA | W49: 1 | X49: =IF(OR(VLOOKUP($B49,Formulacion!$A:$BE,MATCH(X$1,Formulacion!$1:$1,0),FALSE)="NA",$D49=0),"NA",MID($D49,m2Inicio+INDIRECT(B49),m2Fin-m2Inicio+1)*1) -> NA | Y49: =IF(OR(VLOOKUP($B49,Formulacion!$A:$BE,MATCH(Y$1,Formulacion!$1:$1,0),FALSE)="NA",$D49=0),"NA",RIGHT($D49,4)*1) -> NA | Z49: =IF(OR(VLOOKUP($B49,Formulacion!$A:$BE,MATCH(Z$1,Formulacion!$1:$1,0),FALSE)="NA",$D49=0),"NA",RIGHT($D49,3)*1) -> NA | AA49: 1 | AB49: =IF(VLOOKUP($B49,Formulacion!$A:$BE,MATCH(AB$1,Formulacion!$1:$1,0),FALSE)="NA",1,IF(X49<=m2Min,0,1)) -> 1 | AC49: =IF(VLOOKUP($B49,Formulacion!$A:$BE,MATCH(AC$1,Formulacion!$1:$1,0),FALSE)="NA",1,IF(OR(E49<=FechaMin,E49>FechaMax),0,1)) -> 1 | AD49: =IF(VLOOKUP($B49,Formulacion!$A:$BE,MATCH(AD$1,Formulacion!$1:$1,0),FALSE)="NA",1,IF(H49<=MaterialesMin,0,1)) -> 1 | AE49: =IF(VLOOKUP($B49,Formulacion!$A:$BE,MATCH(AE$1,Formulacion!$1:$1,0),FALSE)="NA",1,IF(N49=0,0,IF(OR(I49/N49<=MObraMin,I49/N49>=MObraMax),MDOmin,1))) -> 1 | AF49: =IF(VLOOKUP($B49,Formulacion!$A:$BE,MATCH(AF$1,Formulacion!$1:$1,0),FALSE)="NA",1,IF(N49<=CostoTotalMin,0,1)) -> 1 | AG49: =IF(VLOOKUP($B49,Formulacion!$A:$BE,MATCH(AG$1,Formulacion!$1:$1,0),FALSE)="NA",1,IF(S49<PostesMin,0,1)) -> 1 | AH49: =IF(VLOOKUP($B49,Formulacion!$A:$BE,MATCH(AH$1,Formulacion!$1:$1,0),FALSE)="NA",1,IF(T49<INDIRECT(VLOOKUP(B49,Formulacion!$A:$BE,2,FALSE)),0,1)) -> 1 | AI49: 1 | AJ49: 14996.34 | AK49: 1 | AL49: =IF(VLOOKUP($B49,Formulacion!$A:$BE,MATCH(AL$1,Formulacion!$1:$1,0),FALSE)="NA","NA",HLOOKUP(VLOOKUP($B49,Formulacion!$A:$BE,MATCH(AL$1,Formulacion!$1:$1,0),FALSE),$S:$AB,ROW(AL49),FALSE)) -> NA | AM49: =IF(VLOOKUP($B49,Formulacion!$A:$BE,MATCH(AM$1,Formulacion!$1:$1,0),FALSE)="NA",1,VLOOKUP($B49,Formulacion!$A:$BE,MATCH(AM$1,Formulacion!$1:$1,0),FALSE)) -> 1 | AN49: =IF(VLOOKUP($B49,Formulacion!$A:$BE,MATCH(AN$1,Formulacion!$1:$1,0),FALSE)="NA",1,VLOOKUP($B49,Formulacion!$A:$BE,MATCH(AN$1,Formulacion!$1:$1,0),FALSE)) -> 1 | AO49: 1 | AP49: =IF(VLOOKUP($B49,Formulacion!$A:$BE,MATCH(AP$1,Formulacion!$1:$1,0),FALSE)="NA","NA",IF(D49=0,"",VLOOKUP($B49,Formulacion!$A:$BE,MATCH(AP$1,Formulacion!$1:$1,0),FALSE))) -> NA | AQ49: X | AX49: NA | AY49: =IF(VLOOKUP($B49,Formulacion!$A:$BE,MATCH(AY$1,Formulacion!$1:$1,0),FALSE)="NA","NA",HLOOKUP(VLOOKUP($B49,Formulacion!$A:$BE,MATCH(AY$1,Formulacion!$1:$1,0),FALSE),$S:$AB,ROW(AY49),FALSE)) -> NA | AZ49: NA | BA49: 1 | BB49: =IF(VLOOKUP($B49,Formulacion!$A:$BE,MATCH(BB$1,Formulacion!$1:$1,0),FALSE)="NA",1,VLOOKUP($B49,Formulacion!$A:$BE,MATCH(BB$1,Formulacion!$1:$1,0),FALSE)) -> 0.9 | BC49: =IF(VLOOKUP($B49,Formulacion!$A:$BE,MATCH(BC$1,Formulacion!$1:$1,0),FALSE)="NA",1,VLOOKUP($B49,Formulacion!$A:$BE,MATCH(BC$1,Formulacion!$1:$1,0),FALSE)) -> 1 | BD49: 13496.706 | BF49: =VLOOKUP(C49,[3]Listado_Proyectos!$A$2:$I$815,9,FALSE) ->  | BG49: 2019-02-28
A50: Proyecto con cuenta ENSA 2024.xls | B50: =[1]Listado_Proyectos!K50 -> DEQDM | C50: =[1]Listado_Proyectos!A50 -> 01-47.22.0008 | E50: =[1]Listado_Proyectos!I50 -> 2024-12-26 | F50: =[1]Listado_Proyectos!D50 -> COLON | H50: =[1]Listado_Proyectos!N50 -> 85643.55 | I50: =[1]Listado_Proyectos!M50 -> 29271.31 | K50: =[1]Listado_Proyectos!O50 -> 968.43 | N50: =[1]Listado_Proyectos!P50 -> 115883.29 | P50: =[1]Listado_Proyectos!Q50+[1]Listado_Proyectos!R50 -> 0 | Q50: =IFERROR(VLOOKUP(C50,'[2]Postes 2024'!$A:$C,3,FALSE),0) -> 2 | R50: =IFERROR(VLOOKUP(C50,'[2]Líneas 2024'!$A:$C,3,FALSE),0) -> 939.4397 | S50: =IF((VLOOKUP($B50,Formulacion!$A:$BE,MATCH(S$1,Formulacion!$1:$1,0),FALSE)="NA"),"NA",Q50) -> NA | T50: =IF((VLOOKUP($B50,Formulacion!$A:$BE,MATCH(T$1,Formulacion!$1:$1,0),FALSE)="NA"),"NA",R50) -> NA | U50: NA | V50: =IF(OR(VLOOKUP($B50,Formulacion!$A:$BE,MATCH(V$1,Formulacion!$1:$1,0),FALSE)="NA",$D50=0),"NA",IF($B50="DLSBT",MID($D50,ZanjaInicioBT,ZanjaFinBT-ZanjaInicioBT+1)*1,MID($D50,ZanjaInicio,ZanjaFin-ZanjaInicio+1)*1)) -> NA | W50: 1 | X50: =IF(OR(VLOOKUP($B50,Formulacion!$A:$BE,MATCH(X$1,Formulacion!$1:$1,0),FALSE)="NA",$D50=0),"NA",MID($D50,m2Inicio+INDIRECT(B50),m2Fin-m2Inicio+1)*1) -> NA | Y50: =IF(OR(VLOOKUP($B50,Formulacion!$A:$BE,MATCH(Y$1,Formulacion!$1:$1,0),FALSE)="NA",$D50=0),"NA",RIGHT($D50,4)*1) -> NA | Z50: =IF(OR(VLOOKUP($B50,Formulacion!$A:$BE,MATCH(Z$1,Formulacion!$1:$1,0),FALSE)="NA",$D50=0),"NA",RIGHT($D50,3)*1) -> NA | AA50: 1 | AB50: =IF(VLOOKUP($B50,Formulacion!$A:$BE,MATCH(AB$1,Formulacion!$1:$1,0),FALSE)="NA",1,IF(X50<=m2Min,0,1)) -> 1 | AC50: =IF(VLOOKUP($B50,Formulacion!$A:$BE,MATCH(AC$1,Formulacion!$1:$1,0),FALSE)="NA",1,IF(OR(E50<=FechaMin,E50>FechaMax),0,1)) -> 1 | AD50: =IF(VLOOKUP($B50,Formulacion!$A:$BE,MATCH(AD$1,Formulacion!$1:$1,0),FALSE)="NA",1,IF(H50<=MaterialesMin,0,1)) -> 1 | AE50: =IF(VLOOKUP($B50,Formulacion!$A:$BE,MATCH(AE$1,Formulacion!$1:$1,0),FALSE)="NA",1,IF(N50=0,0,IF(OR(I50/N50<=MObraMin,I50/N50>=MObraMax),MDOmin,1))) -> 1 | AF50: =IF(VLOOKUP($B50,Formulacion!$A:$BE,MATCH(AF$1,Formulacion!$1:$1,0),FALSE)="NA",1,IF(N50<=CostoTotalMin,0,1)) -> 1 | AG50: =IF(VLOOKUP($B50,Formulacion!$A:$BE,MATCH(AG$1,Formulacion!$1:$1,0),FALSE)="NA",1,IF(S50<PostesMin,0,1)) -> 1 | AH50: =IF(VLOOKUP($B50,Formulacion!$A:$BE,MATCH(AH$1,Formulacion!$1:$1,0),FALSE)="NA",1,IF(T50<INDIRECT(VLOOKUP(B50,Formulacion!$A:$BE,2,FALSE)),0,1)) -> 1 | AI50: 1 | AJ50: 115883.29 | AK50: 1 | AL50: =IF(VLOOKUP($B50,Formulacion!$A:$BE,MATCH(AL$1,Formulacion!$1:$1,0),FALSE)="NA","NA",HLOOKUP(VLOOKUP($B50,Formulacion!$A:$BE,MATCH(AL$1,Formulacion!$1:$1,0),FALSE),$S:$AB,ROW(AL50),FALSE)) -> NA | AM50: =IF(VLOOKUP($B50,Formulacion!$A:$BE,MATCH(AM$1,Formulacion!$1:$1,0),FALSE)="NA",1,VLOOKUP($B50,Formulacion!$A:$BE,MATCH(AM$1,Formulacion!$1:$1,0),FALSE)) -> 1 | AN50: =IF(VLOOKUP($B50,Formulacion!$A:$BE,MATCH(AN$1,Formulacion!$1:$1,0),FALSE)="NA",1,VLOOKUP($B50,Formulacion!$A:$BE,MATCH(AN$1,Formulacion!$1:$1,0),FALSE)) -> 1 | AO50: 1 | AP50: =IF(VLOOKUP($B50,Formulacion!$A:$BE,MATCH(AP$1,Formulacion!$1:$1,0),FALSE)="NA","NA",IF(D50=0,"",VLOOKUP($B50,Formulacion!$A:$BE,MATCH(AP$1,Formulacion!$1:$1,0),FALSE))) -> NA | AQ50: X | AX50: NA | AY50: =IF(VLOOKUP($B50,Formulacion!$A:$BE,MATCH(AY$1,Formulacion!$1:$1,0),FALSE)="NA","NA",HLOOKUP(VLOOKUP($B50,Formulacion!$A:$BE,MATCH(AY$1,Formulacion!$1:$1,0),FALSE),$S:$AB,ROW(AY50),FALSE)) -> NA | AZ50: NA | BA50: 1 | BB50: =IF(VLOOKUP($B50,Formulacion!$A:$BE,MATCH(BB$1,Formulacion!$1:$1,0),FALSE)="NA",1,VLOOKUP($B50,Formulacion!$A:$BE,MATCH(BB$1,Formulacion!$1:$1,0),FALSE)) -> 0.9 | BC50: =IF(VLOOKUP($B50,Formulacion!$A:$BE,MATCH(BC$1,Formulacion!$1:$1,0),FALSE)="NA",1,VLOOKUP($B50,Formulacion!$A:$BE,MATCH(BC$1,Formulacion!$1:$1,0),FALSE)) -> 1 | BD50: 104294.961 | BF50: =VLOOKUP(C50,[3]Listado_Proyectos!$A$2:$I$815,9,FALSE) ->  | BG50: 2019-02-28
A51: Proyecto con cuenta ENSA 2024.xls | B51: =[1]Listado_Proyectos!K51 -> DLAMT-13,8 | C51: =[1]Listado_Proyectos!A51 -> 01-47.22.0008 | E51: =[1]Listado_Proyectos!I51 -> 2024-12-26 | F51: =[1]Listado_Proyectos!D51 -> COLON | H51: =[1]Listado_Proyectos!N51 -> 112557.36 | I51: =[1]Listado_Proyectos!M51 -> 89154.11 | K51: =[1]Listado_Proyectos!O51 -> 2106.92 | N51: =[1]Listado_Proyectos!P51 -> 203818.39 | P51: =[1]Listado_Proyectos!Q51+[1]Listado_Proyectos!R51 -> 0 | Q51: =IFERROR(VLOOKUP(C51,'[2]Postes 2024'!$A:$C,3,FALSE),0) -> 2 | R51: =IFERROR(VLOOKUP(C51,'[2]Líneas 2024'!$A:$C,3,FALSE),0) -> 939.4397 | S51: =IF((VLOOKUP($B51,Formulacion!$A:$BE,MATCH(S$1,Formulacion!$1:$1,0),FALSE)="NA"),"NA",Q51) -> 2 | T51: =IF((VLOOKUP($B51,Formulacion!$A:$BE,MATCH(T$1,Formulacion!$1:$1,0),FALSE)="NA"),"NA",R51) -> 939.4397 | U51: 469.71985 | V51: =IF(OR(VLOOKUP($B51,Formulacion!$A:$BE,MATCH(V$1,Formulacion!$1:$1,0),FALSE)="NA",$D51=0),"NA",IF($B51="DLSBT",MID($D51,ZanjaInicioBT,ZanjaFinBT-ZanjaInicioBT+1)*1,MID($D51,ZanjaInicio,ZanjaFin-ZanjaInicio+1)*1)) -> NA | W51: 1 | X51: =IF(OR(VLOOKUP($B51,Formulacion!$A:$BE,MATCH(X$1,Formulacion!$1:$1,0),FALSE)="NA",$D51=0),"NA",MID($D51,m2Inicio+INDIRECT(B51),m2Fin-m2Inicio+1)*1) -> NA | Y51: =IF(OR(VLOOKUP($B51,Formulacion!$A:$BE,MATCH(Y$1,Formulacion!$1:$1,0),FALSE)="NA",$D51=0),"NA",RIGHT($D51,4)*1) -> NA | Z51: =IF(OR(VLOOKUP($B51,Formulacion!$A:$BE,MATCH(Z$1,Formulacion!$1:$1,0),FALSE)="NA",$D51=0),"NA",RIGHT($D51,3)*1) -> NA | AA51: 1 | AB51: =IF(VLOOKUP($B51,Formulacion!$A:$BE,MATCH(AB$1,Formulacion!$1:$1,0),FALSE)="NA",1,IF(X51<=m2Min,0,1)) -> 1 | AC51: =IF(VLOOKUP($B51,Formulacion!$A:$BE,MATCH(AC$1,Formulacion!$1:$1,0),FALSE)="NA",1,IF(OR(E51<=FechaMin,E51>FechaMax),0,1)) -> 1 | AD51: =IF(VLOOKUP($B51,Formulacion!$A:$BE,MATCH(AD$1,Formulacion!$1:$1,0),FALSE)="NA",1,IF(H51<=MaterialesMin,0,1)) -> 1 | AE51: =IF(VLOOKUP($B51,Formulacion!$A:$BE,MATCH(AE$1,Formulacion!$1:$1,0),FALSE)="NA",1,IF(N51=0,0,IF(OR(I51/N51<=MObraMin,I51/N51>=MObraMax),MDOmin,1))) -> 1 | AF51: =IF(VLOOKUP($B51,Formulacion!$A:$BE,MATCH(AF$1,Formulacion!$1:$1,0),FALSE)="NA",1,IF(N51<=CostoTotalMin,0,1)) -> 1 | AG51: =IF(VLOOKUP($B51,Formulacion!$A:$BE,MATCH(AG$1,Formulacion!$1:$1,0),FALSE)="NA",1,IF(S51<PostesMin,0,1)) -> 1 | AH51: =IF(VLOOKUP($B51,Formulacion!$A:$BE,MATCH(AH$1,Formulacion!$1:$1,0),FALSE)="NA",1,IF(T51<INDIRECT(VLOOKUP(B51,Formulacion!$A:$BE,2,FALSE)),0,1)) -> 1 | AI51: 1 | AJ51: 203818.39 | AK51: 1 | AL51: =IF(VLOOKUP($B51,Formulacion!$A:$BE,MATCH(AL$1,Formulacion!$1:$1,0),FALSE)="NA","NA",HLOOKUP(VLOOKUP($B51,Formulacion!$A:$BE,MATCH(AL$1,Formulacion!$1:$1,0),FALSE),$S:$AB,ROW(AL51),FALSE)) -> 469.71985 | AM51: =IF(VLOOKUP($B51,Formulacion!$A:$BE,MATCH(AM$1,Formulacion!$1:$1,0),FALSE)="NA",1,VLOOKUP($B51,Formulacion!$A:$BE,MATCH(AM$1,Formulacion!$1:$1,0),FALSE)) -> 45 | AN51: =IF(VLOOKUP($B51,Formulacion!$A:$BE,MATCH(AN$1,Formulacion!$1:$1,0),FALSE)="NA",1,VLOOKUP($B51,Formulacion!$A:$BE,MATCH(AN$1,Formulacion!$1:$1,0),FALSE)) -> 0.3 | AO51: NC | AP51: =IF(VLOOKUP($B51,Formulacion!$A:$BE,MATCH(AP$1,Formulacion!$1:$1,0),FALSE)="NA","NA",IF(D51=0,"",VLOOKUP($B51,Formulacion!$A:$BE,MATCH(AP$1,Formulacion!$1:$1,0),FALSE))) ->  | AQ51: X | AX51: NA | AY51: =IF(VLOOKUP($B51,Formulacion!$A:$BE,MATCH(AY$1,Formulacion!$1:$1,0),FALSE)="NA","NA",HLOOKUP(VLOOKUP($B51,Formulacion!$A:$BE,MATCH(AY$1,Formulacion!$1:$1,0),FALSE),$S:$AB,ROW(AY51),FALSE)) -> 939.4397 | AZ51: NA | BA51: 1 | BB51: =IF(VLOOKUP($B51,Formulacion!$A:$BE,MATCH(BB$1,Formulacion!$1:$1,0),FALSE)="NA",1,VLOOKUP($B51,Formulacion!$A:$BE,MATCH(BB$1,Formulacion!$1:$1,0),FALSE)) -> 0.9 | BC51: =IF(VLOOKUP($B51,Formulacion!$A:$BE,MATCH(BC$1,Formulacion!$1:$1,0),FALSE)="NA",1,VLOOKUP($B51,Formulacion!$A:$BE,MATCH(BC$1,Formulacion!$1:$1,0),FALSE)) -> 1 | BD51: 183436.551 | BF51: =VLOOKUP(C51,[3]Listado_Proyectos!$A$2:$I$815,9,FALSE) ->  | BG51: 2019-02-28
A52: Proyecto con cuenta ENSA 2024.xls | B52: =[1]Listado_Proyectos!K52 -> DLSMT-13,8 | C52: =[1]Listado_Proyectos!A52 -> 01-47.22.0008 | E52: =[1]Listado_Proyectos!I52 -> 2024-12-26 | F52: =[1]Listado_Proyectos!D52 -> COLON | H52: =[1]Listado_Proyectos!N52 -> 3029.44 | I52: =[1]Listado_Proyectos!M52 -> 1059.24 | K52: =[1]Listado_Proyectos!O52 -> 22.28 | N52: =[1]Listado_Proyectos!P52 -> 4110.96 | P52: =[1]Listado_Proyectos!Q52+[1]Listado_Proyectos!R52 -> 0 | Q52: =IFERROR(VLOOKUP(C52,'[2]Postes 2024'!$A:$C,3,FALSE),0) -> 2 | R52: =IFERROR(VLOOKUP(C52,'[2]Líneas 2024'!$A:$C,3,FALSE),0) -> 939.4397 | S52: =IF((VLOOKUP($B52,Formulacion!$A:$BE,MATCH(S$1,Formulacion!$1:$1,0),FALSE)="NA"),"NA",Q52) -> NA | T52: =IF((VLOOKUP($B52,Formulacion!$A:$BE,MATCH(T$1,Formulacion!$1:$1,0),FALSE)="NA"),"NA",R52) -> 939.4397 | U52: NA | V52: =IF(OR(VLOOKUP($B52,Formulacion!$A:$BE,MATCH(V$1,Formulacion!$1:$1,0),FALSE)="NA",$D52=0),"NA",IF($B52="DLSBT",MID($D52,ZanjaInicioBT,ZanjaFinBT-ZanjaInicioBT+1)*1,MID($D52,ZanjaInicio,ZanjaFin-ZanjaInicio+1)*1)) -> NA | W52: 1 | X52: =IF(OR(VLOOKUP($B52,Formulacion!$A:$BE,MATCH(X$1,Formulacion!$1:$1,0),FALSE)="NA",$D52=0),"NA",MID($D52,m2Inicio+INDIRECT(B52),m2Fin-m2Inicio+1)*1) -> NA | Y52: =IF(OR(VLOOKUP($B52,Formulacion!$A:$BE,MATCH(Y$1,Formulacion!$1:$1,0),FALSE)="NA",$D52=0),"NA",RIGHT($D52,4)*1) -> NA | Z52: =IF(OR(VLOOKUP($B52,Formulacion!$A:$BE,MATCH(Z$1,Formulacion!$1:$1,0),FALSE)="NA",$D52=0),"NA",RIGHT($D52,3)*1) -> NA | AA52: 1 | AB52: =IF(VLOOKUP($B52,Formulacion!$A:$BE,MATCH(AB$1,Formulacion!$1:$1,0),FALSE)="NA",1,IF(X52<=m2Min,0,1)) -> 1 | AC52: =IF(VLOOKUP($B52,Formulacion!$A:$BE,MATCH(AC$1,Formulacion!$1:$1,0),FALSE)="NA",1,IF(OR(E52<=FechaMin,E52>FechaMax),0,1)) -> 1 | AD52: =IF(VLOOKUP($B52,Formulacion!$A:$BE,MATCH(AD$1,Formulacion!$1:$1,0),FALSE)="NA",1,IF(H52<=MaterialesMin,0,1)) -> 1 | AE52: =IF(VLOOKUP($B52,Formulacion!$A:$BE,MATCH(AE$1,Formulacion!$1:$1,0),FALSE)="NA",1,IF(N52=0,0,IF(OR(I52/N52<=MObraMin,I52/N52>=MObraMax),MDOmin,1))) -> 1 | AF52: =IF(VLOOKUP($B52,Formulacion!$A:$BE,MATCH(AF$1,Formulacion!$1:$1,0),FALSE)="NA",1,IF(N52<=CostoTotalMin,0,1)) -> 1 | AG52: =IF(VLOOKUP($B52,Formulacion!$A:$BE,MATCH(AG$1,Formulacion!$1:$1,0),FALSE)="NA",1,IF(S52<PostesMin,0,1)) -> 1 | AH52: =IF(VLOOKUP($B52,Formulacion!$A:$BE,MATCH(AH$1,Formulacion!$1:$1,0),FALSE)="NA",1,IF(T52<INDIRECT(VLOOKUP(B52,Formulacion!$A:$BE,2,FALSE)),0,1)) -> 1 | AI52: 1 | AJ52: 4110.96 | AK52: 1 | AL52: =IF(VLOOKUP($B52,Formulacion!$A:$BE,MATCH(AL$1,Formulacion!$1:$1,0),FALSE)="NA","NA",HLOOKUP(VLOOKUP($B52,Formulacion!$A:$BE,MATCH(AL$1,Formulacion!$1:$1,0),FALSE),$S:$AB,ROW(AL52),FALSE)) -> NA | AM52: =IF(VLOOKUP($B52,Formulacion!$A:$BE,MATCH(AM$1,Formulacion!$1:$1,0),FALSE)="NA",1,VLOOKUP($B52,Formulacion!$A:$BE,MATCH(AM$1,Formulacion!$1:$1,0),FALSE)) -> 1000 | AN52: =IF(VLOOKUP($B52,Formulacion!$A:$BE,MATCH(AN$1,Formulacion!$1:$1,0),FALSE)="NA",1,VLOOKUP($B52,Formulacion!$A:$BE,MATCH(AN$1,Formulacion!$1:$1,0),FALSE)) -> 0.5 | AO52: 1 | AP52: =IF(VLOOKUP($B52,Formulacion!$A:$BE,MATCH(AP$1,Formulacion!$1:$1,0),FALSE)="NA","NA",IF(D52=0,"",VLOOKUP($B52,Formulacion!$A:$BE,MATCH(AP$1,Formulacion!$1:$1,0),FALSE))) ->  | AQ52: X | AX52: NA | AY52: =IF(VLOOKUP($B52,Formulacion!$A:$BE,MATCH(AY$1,Formulacion!$1:$1,0),FALSE)="NA","NA",HLOOKUP(VLOOKUP($B52,Formulacion!$A:$BE,MATCH(AY$1,Formulacion!$1:$1,0),FALSE),$S:$AB,ROW(AY52),FALSE)) -> 939.4397 | AZ52: NA | BA52: 1 | BB52: =IF(VLOOKUP($B52,Formulacion!$A:$BE,MATCH(BB$1,Formulacion!$1:$1,0),FALSE)="NA",1,VLOOKUP($B52,Formulacion!$A:$BE,MATCH(BB$1,Formulacion!$1:$1,0),FALSE)) -> 0.9 | BC52: =IF(VLOOKUP($B52,Formulacion!$A:$BE,MATCH(BC$1,Formulacion!$1:$1,0),FALSE)="NA",1,VLOOKUP($B52,Formulacion!$A:$BE,MATCH(BC$1,Formulacion!$1:$1,0),FALSE)) -> 1 | BD52: 3699.864 | BF52: =VLOOKUP(C52,[3]Listado_Proyectos!$A$2:$I$815,9,FALSE) ->  | BG52: 2019-02-28
A53: Proyecto con cuenta ENSA 2024.xls | B53: =[1]Listado_Proyectos!K53 -> CMEDI | C53: =[1]Listado_Proyectos!A53 -> 01-45.23.0007 | E53: =[1]Listado_Proyectos!I53 -> 2024-05-20 | F53: =[1]Listado_Proyectos!D53 -> PANAMA | H53: =[1]Listado_Proyectos!N53 -> 107220.18 | I53: =[1]Listado_Proyectos!M53 -> 34900.17 | K53: =[1]Listado_Proyectos!O53 -> 0 | N53: =[1]Listado_Proyectos!P53 -> 142120.35 | P53: =[1]Listado_Proyectos!Q53+[1]Listado_Proyectos!R53 -> 0 | Q53: =IFERROR(VLOOKUP(C53,'[2]Postes 2024'!$A:$C,3,FALSE),0) -> 0 | R53: =IFERROR(VLOOKUP(C53,'[2]Líneas 2024'!$A:$C,3,FALSE),0) -> 0 | S53: =IF((VLOOKUP($B53,Formulacion!$A:$BE,MATCH(S$1,Formulacion!$1:$1,0),FALSE)="NA"),"NA",Q53) -> NA | T53: =IF((VLOOKUP($B53,Formulacion!$A:$BE,MATCH(T$1,Formulacion!$1:$1,0),FALSE)="NA"),"NA",R53) -> NA | U53: NA | V53: =IF(OR(VLOOKUP($B53,Formulacion!$A:$BE,MATCH(V$1,Formulacion!$1:$1,0),FALSE)="NA",$D53=0),"NA",IF($B53="DLSBT",MID($D53,ZanjaInicioBT,ZanjaFinBT-ZanjaInicioBT+1)*1,MID($D53,ZanjaInicio,ZanjaFin-ZanjaInicio+1)*1)) -> NA | W53: 1 | X53: =IF(OR(VLOOKUP($B53,Formulacion!$A:$BE,MATCH(X$1,Formulacion!$1:$1,0),FALSE)="NA",$D53=0),"NA",MID($D53,m2Inicio+INDIRECT(B53),m2Fin-m2Inicio+1)*1) -> NA | Y53: =IF(OR(VLOOKUP($B53,Formulacion!$A:$BE,MATCH(Y$1,Formulacion!$1:$1,0),FALSE)="NA",$D53=0),"NA",RIGHT($D53,4)*1) -> NA | Z53: =IF(OR(VLOOKUP($B53,Formulacion!$A:$BE,MATCH(Z$1,Formulacion!$1:$1,0),FALSE)="NA",$D53=0),"NA",RIGHT($D53,3)*1) -> NA | AA53: 1 | AB53: =IF(VLOOKUP($B53,Formulacion!$A:$BE,MATCH(AB$1,Formulacion!$1:$1,0),FALSE)="NA",1,IF(X53<=m2Min,0,1)) -> 1 | AC53: =IF(VLOOKUP($B53,Formulacion!$A:$BE,MATCH(AC$1,Formulacion!$1:$1,0),FALSE)="NA",1,IF(OR(E53<=FechaMin,E53>FechaMax),0,1)) -> 1 | AD53: =IF(VLOOKUP($B53,Formulacion!$A:$BE,MATCH(AD$1,Formulacion!$1:$1,0),FALSE)="NA",1,IF(H53<=MaterialesMin,0,1)) -> 1 | AE53: =IF(VLOOKUP($B53,Formulacion!$A:$BE,MATCH(AE$1,Formulacion!$1:$1,0),FALSE)="NA",1,IF(N53=0,0,IF(OR(I53/N53<=MObraMin,I53/N53>=MObraMax),MDOmin,1))) -> 1 | AF53: =IF(VLOOKUP($B53,Formulacion!$A:$BE,MATCH(AF$1,Formulacion!$1:$1,0),FALSE)="NA",1,IF(N53<=CostoTotalMin,0,1)) -> 1 | AG53: =IF(VLOOKUP($B53,Formulacion!$A:$BE,MATCH(AG$1,Formulacion!$1:$1,0),FALSE)="NA",1,IF(S53<PostesMin,0,1)) -> 1 | AH53: =IF(VLOOKUP($B53,Formulacion!$A:$BE,MATCH(AH$1,Formulacion!$1:$1,0),FALSE)="NA",1,IF(T53<INDIRECT(VLOOKUP(B53,Formulacion!$A:$BE,2,FALSE)),0,1)) -> 1 | AI53: 1 | AJ53: 142120.35 | AK53: 1 | AL53: =IF(VLOOKUP($B53,Formulacion!$A:$BE,MATCH(AL$1,Formulacion!$1:$1,0),FALSE)="NA","NA",HLOOKUP(VLOOKUP($B53,Formulacion!$A:$BE,MATCH(AL$1,Formulacion!$1:$1,0),FALSE),$S:$AB,ROW(AL53),FALSE)) -> NA | AM53: =IF(VLOOKUP($B53,Formulacion!$A:$BE,MATCH(AM$1,Formulacion!$1:$1,0),FALSE)="NA",1,VLOOKUP($B53,Formulacion!$A:$BE,MATCH(AM$1,Formulacion!$1:$1,0),FALSE)) -> 1 | AN53: =IF(VLOOKUP($B53,Formulacion!$A:$BE,MATCH(AN$1,Formulacion!$1:$1,0),FALSE)="NA",1,VLOOKUP($B53,Formulacion!$A:$BE,MATCH(AN$1,Formulacion!$1:$1,0),FALSE)) -> 1 | AO53: 1 | AP53: =IF(VLOOKUP($B53,Formulacion!$A:$BE,MATCH(AP$1,Formulacion!$1:$1,0),FALSE)="NA","NA",IF(D53=0,"",VLOOKUP($B53,Formulacion!$A:$BE,MATCH(AP$1,Formulacion!$1:$1,0),FALSE))) -> NA | AQ53: X | AX53: NA | AY53: =IF(VLOOKUP($B53,Formulacion!$A:$BE,MATCH(AY$1,Formulacion!$1:$1,0),FALSE)="NA","NA",HLOOKUP(VLOOKUP($B53,Formulacion!$A:$BE,MATCH(AY$1,Formulacion!$1:$1,0),FALSE),$S:$AB,ROW(AY53),FALSE)) -> NA | AZ53: NA | BA53: 1 | BB53: =IF(VLOOKUP($B53,Formulacion!$A:$BE,MATCH(BB$1,Formulacion!$1:$1,0),FALSE)="NA",1,VLOOKUP($B53,Formulacion!$A:$BE,MATCH(BB$1,Formulacion!$1:$1,0),FALSE)) -> 0.9 | BC53: =IF(VLOOKUP($B53,Formulacion!$A:$BE,MATCH(BC$1,Formulacion!$1:$1,0),FALSE)="NA",1,VLOOKUP($B53,Formulacion!$A:$BE,MATCH(BC$1,Formulacion!$1:$1,0),FALSE)) -> 1 | BD53: 127908.315 | BF53: =VLOOKUP(C53,[3]Listado_Proyectos!$A$2:$I$815,9,FALSE) ->  | BG53: 2019-02-28
A54: Proyecto con cuenta ENSA 2024.xls | B54: =[1]Listado_Proyectos!K54 -> DACBT | C54: =[1]Listado_Proyectos!A54 -> 01-45.23.0007 | E54: =[1]Listado_Proyectos!I54 -> 2024-05-20 | F54: =[1]Listado_Proyectos!D54 -> PANAMA | H54: =[1]Listado_Proyectos!N54 -> 95.33 | I54: =[1]Listado_Proyectos!M54 -> 36.65 | K54: =[1]Listado_Proyectos!O54 -> 0 | N54: =[1]Listado_Proyectos!P54 -> 131.98 | P54: =[1]Listado_Proyectos!Q54+[1]Listado_Proyectos!R54 -> 0 | Q54: =IFERROR(VLOOKUP(C54,'[2]Postes 2024'!$A:$C,3,FALSE),0) -> 0 | R54: =IFERROR(VLOOKUP(C54,'[2]Líneas 2024'!$A:$C,3,FALSE),0) -> 0 | S54: =IF((VLOOKUP($B54,Formulacion!$A:$BE,MATCH(S$1,Formulacion!$1:$1,0),FALSE)="NA"),"NA",Q54) -> NA | T54: =IF((VLOOKUP($B54,Formulacion!$A:$BE,MATCH(T$1,Formulacion!$1:$1,0),FALSE)="NA"),"NA",R54) -> NA | U54: NA | V54: =IF(OR(VLOOKUP($B54,Formulacion!$A:$BE,MATCH(V$1,Formulacion!$1:$1,0),FALSE)="NA",$D54=0),"NA",IF($B54="DLSBT",MID($D54,ZanjaInicioBT,ZanjaFinBT-ZanjaInicioBT+1)*1,MID($D54,ZanjaInicio,ZanjaFin-ZanjaInicio+1)*1)) -> NA | W54: 1 | X54: =IF(OR(VLOOKUP($B54,Formulacion!$A:$BE,MATCH(X$1,Formulacion!$1:$1,0),FALSE)="NA",$D54=0),"NA",MID($D54,m2Inicio+INDIRECT(B54),m2Fin-m2Inicio+1)*1) -> NA | Y54: =IF(OR(VLOOKUP($B54,Formulacion!$A:$BE,MATCH(Y$1,Formulacion!$1:$1,0),FALSE)="NA",$D54=0),"NA",RIGHT($D54,4)*1) -> NA | Z54: =IF(OR(VLOOKUP($B54,Formulacion!$A:$BE,MATCH(Z$1,Formulacion!$1:$1,0),FALSE)="NA",$D54=0),"NA",RIGHT($D54,3)*1) -> NA | AA54: 1 | AB54: =IF(VLOOKUP($B54,Formulacion!$A:$BE,MATCH(AB$1,Formulacion!$1:$1,0),FALSE)="NA",1,IF(X54<=m2Min,0,1)) -> 1 | AC54: =IF(VLOOKUP($B54,Formulacion!$A:$BE,MATCH(AC$1,Formulacion!$1:$1,0),FALSE)="NA",1,IF(OR(E54<=FechaMin,E54>FechaMax),0,1)) -> 1 | AD54: =IF(VLOOKUP($B54,Formulacion!$A:$BE,MATCH(AD$1,Formulacion!$1:$1,0),FALSE)="NA",1,IF(H54<=MaterialesMin,0,1)) -> 1 | AE54: =IF(VLOOKUP($B54,Formulacion!$A:$BE,MATCH(AE$1,Formulacion!$1:$1,0),FALSE)="NA",1,IF(N54=0,0,IF(OR(I54/N54<=MObraMin,I54/N54>=MObraMax),MDOmin,1))) -> 1 | AF54: =IF(VLOOKUP($B54,Formulacion!$A:$BE,MATCH(AF$1,Formulacion!$1:$1,0),FALSE)="NA",1,IF(N54<=CostoTotalMin,0,1)) -> 1 | AG54: =IF(VLOOKUP($B54,Formulacion!$A:$BE,MATCH(AG$1,Formulacion!$1:$1,0),FALSE)="NA",1,IF(S54<PostesMin,0,1)) -> 1 | AH54: =IF(VLOOKUP($B54,Formulacion!$A:$BE,MATCH(AH$1,Formulacion!$1:$1,0),FALSE)="NA",1,IF(T54<INDIRECT(VLOOKUP(B54,Formulacion!$A:$BE,2,FALSE)),0,1)) -> 1 | AI54: 1 | AJ54: 131.98 | AK54: 1 | AL54: =IF(VLOOKUP($B54,Formulacion!$A:$BE,MATCH(AL$1,Formulacion!$1:$1,0),FALSE)="NA","NA",HLOOKUP(VLOOKUP($B54,Formulacion!$A:$BE,MATCH(AL$1,Formulacion!$1:$1,0),FALSE),$S:$AB,ROW(AL54),FALSE)) -> NA | AM54: =IF(VLOOKUP($B54,Formulacion!$A:$BE,MATCH(AM$1,Formulacion!$1:$1,0),FALSE)="NA",1,VLOOKUP($B54,Formulacion!$A:$BE,MATCH(AM$1,Formulacion!$1:$1,0),FALSE)) -> 1 | AN54: =IF(VLOOKUP($B54,Formulacion!$A:$BE,MATCH(AN$1,Formulacion!$1:$1,0),FALSE)="NA",1,VLOOKUP($B54,Formulacion!$A:$BE,MATCH(AN$1,Formulacion!$1:$1,0),FALSE)) -> 1 | AO54: 1 | AP54: =IF(VLOOKUP($B54,Formulacion!$A:$BE,MATCH(AP$1,Formulacion!$1:$1,0),FALSE)="NA","NA",IF(D54=0,"",VLOOKUP($B54,Formulacion!$A:$BE,MATCH(AP$1,Formulacion!$1:$1,0),FALSE))) -> NA | AQ54: X | AX54: NA | AY54: =IF(VLOOKUP($B54,Formulacion!$A:$BE,MATCH(AY$1,Formulacion!$1:$1,0),FALSE)="NA","NA",HLOOKUP(VLOOKUP($B54,Formulacion!$A:$BE,MATCH(AY$1,Formulacion!$1:$1,0),FALSE),$S:$AB,ROW(AY54),FALSE)) -> NA | AZ54: NA | BA54: 1 | BB54: =IF(VLOOKUP($B54,Formulacion!$A:$BE,MATCH(BB$1,Formulacion!$1:$1,0),FALSE)="NA",1,VLOOKUP($B54,Formulacion!$A:$BE,MATCH(BB$1,Formulacion!$1:$1,0),FALSE)) -> 0.9 | BC54: =IF(VLOOKUP($B54,Formulacion!$A:$BE,MATCH(BC$1,Formulacion!$1:$1,0),FALSE)="NA",1,VLOOKUP($B54,Formulacion!$A:$BE,MATCH(BC$1,Formulacion!$1:$1,0),FALSE)) -> 1 | BD54: 118.782 | BF54: =VLOOKUP(C54,[3]Listado_Proyectos!$A$2:$I$815,9,FALSE) ->  | BG54: 2019-02-28
A55: Proyecto con cuenta ENSA 2024.xls | B55: =[1]Listado_Proyectos!K55 -> DEQOT | C55: =[1]Listado_Proyectos!A55 -> 01-45.23.0007 | E55: =[1]Listado_Proyectos!I55 -> 2024-05-20 | F55: =[1]Listado_Proyectos!D55 -> PANAMA | H55: =[1]Listado_Proyectos!N55 -> 28006.06 | I55: =[1]Listado_Proyectos!M55 -> 11973.27 | K55: =[1]Listado_Proyectos!O55 -> 0 | N55: =[1]Listado_Proyectos!P55 -> 39979.33 | P55: =[1]Listado_Proyectos!Q55+[1]Listado_Proyectos!R55 -> 0 | Q55: =IFERROR(VLOOKUP(C55,'[2]Postes 2024'!$A:$C,3,FALSE),0) -> 0 | R55: =IFERROR(VLOOKUP(C55,'[2]Líneas 2024'!$A:$C,3,FALSE),0) -> 0 | S55: =IF((VLOOKUP($B55,Formulacion!$A:$BE,MATCH(S$1,Formulacion!$1:$1,0),FALSE)="NA"),"NA",Q55) -> NA | T55: =IF((VLOOKUP($B55,Formulacion!$A:$BE,MATCH(T$1,Formulacion!$1:$1,0),FALSE)="NA"),"NA",R55) -> NA | U55: NA | V55: =IF(OR(VLOOKUP($B55,Formulacion!$A:$BE,MATCH(V$1,Formulacion!$1:$1,0),FALSE)="NA",$D55=0),"NA",IF($B55="DLSBT",MID($D55,ZanjaInicioBT,ZanjaFinBT-ZanjaInicioBT+1)*1,MID($D55,ZanjaInicio,ZanjaFin-ZanjaInicio+1)*1)) -> NA | W55: 1 | X55: =IF(OR(VLOOKUP($B55,Formulacion!$A:$BE,MATCH(X$1,Formulacion!$1:$1,0),FALSE)="NA",$D55=0),"NA",MID($D55,m2Inicio+INDIRECT(B55),m2Fin-m2Inicio+1)*1) -> NA | Y55: =IF(OR(VLOOKUP($B55,Formulacion!$A:$BE,MATCH(Y$1,Formulacion!$1:$1,0),FALSE)="NA",$D55=0),"NA",RIGHT($D55,4)*1) -> NA | Z55: =IF(OR(VLOOKUP($B55,Formulacion!$A:$BE,MATCH(Z$1,Formulacion!$1:$1,0),FALSE)="NA",$D55=0),"NA",RIGHT($D55,3)*1) -> NA | AA55: 1 | AB55: =IF(VLOOKUP($B55,Formulacion!$A:$BE,MATCH(AB$1,Formulacion!$1:$1,0),FALSE)="NA",1,IF(X55<=m2Min,0,1)) -> 1 | AC55: =IF(VLOOKUP($B55,Formulacion!$A:$BE,MATCH(AC$1,Formulacion!$1:$1,0),FALSE)="NA",1,IF(OR(E55<=FechaMin,E55>FechaMax),0,1)) -> 1 | AD55: =IF(VLOOKUP($B55,Formulacion!$A:$BE,MATCH(AD$1,Formulacion!$1:$1,0),FALSE)="NA",1,IF(H55<=MaterialesMin,0,1)) -> 1 | AE55: =IF(VLOOKUP($B55,Formulacion!$A:$BE,MATCH(AE$1,Formulacion!$1:$1,0),FALSE)="NA",1,IF(N55=0,0,IF(OR(I55/N55<=MObraMin,I55/N55>=MObraMax),MDOmin,1))) -> 1 | AF55: =IF(VLOOKUP($B55,Formulacion!$A:$BE,MATCH(AF$1,Formulacion!$1:$1,0),FALSE)="NA",1,IF(N55<=CostoTotalMin,0,1)) -> 1 | AG55: =IF(VLOOKUP($B55,Formulacion!$A:$BE,MATCH(AG$1,Formulacion!$1:$1,0),FALSE)="NA",1,IF(S55<PostesMin,0,1)) -> 1 | AH55: =IF(VLOOKUP($B55,Formulacion!$A:$BE,MATCH(AH$1,Formulacion!$1:$1,0),FALSE)="NA",1,IF(T55<INDIRECT(VLOOKUP(B55,Formulacion!$A:$BE,2,FALSE)),0,1)) -> 1 | AI55: 1 | AJ55: 39979.33 | AK55: 1 | AL55: =IF(VLOOKUP($B55,Formulacion!$A:$BE,MATCH(AL$1,Formulacion!$1:$1,0),FALSE)="NA","NA",HLOOKUP(VLOOKUP($B55,Formulacion!$A:$BE,MATCH(AL$1,Formulacion!$1:$1,0),FALSE),$S:$AB,ROW(AL55),FALSE)) -> NA | AM55: =IF(VLOOKUP($B55,Formulacion!$A:$BE,MATCH(AM$1,Formulacion!$1:$1,0),FALSE)="NA",1,VLOOKUP($B55,Formulacion!$A:$BE,MATCH(AM$1,Formulacion!$1:$1,0),FALSE)) -> 1 | AN55: =IF(VLOOKUP($B55,Formulacion!$A:$BE,MATCH(AN$1,Formulacion!$1:$1,0),FALSE)="NA",1,VLOOKUP($B55,Formulacion!$A:$BE,MATCH(AN$1,Formulacion!$1:$1,0),FALSE)) -> 1 | AO55: 1 | AP55: =IF(VLOOKUP($B55,Formulacion!$A:$BE,MATCH(AP$1,Formulacion!$1:$1,0),FALSE)="NA","NA",IF(D55=0,"",VLOOKUP($B55,Formulacion!$A:$BE,MATCH(AP$1,Formulacion!$1:$1,0),FALSE))) -> NA | AQ55: X | AX55: NA | AY55: =IF(VLOOKUP($B55,Formulacion!$A:$BE,MATCH(AY$1,Formulacion!$1:$1,0),FALSE)="NA","NA",HLOOKUP(VLOOKUP($B55,Formulacion!$A:$BE,MATCH(AY$1,Formulacion!$1:$1,0),FALSE),$S:$AB,ROW(AY55),FALSE)) -> NA | AZ55: NA | BA55: 1 | BB55: =IF(VLOOKUP($B55,Formulacion!$A:$BE,MATCH(BB$1,Formulacion!$1:$1,0),FALSE)="NA",1,VLOOKUP($B55,Formulacion!$A:$BE,MATCH(BB$1,Formulacion!$1:$1,0),FALSE)) -> 0.9 | BC55: =IF(VLOOKUP($B55,Formulacion!$A:$BE,MATCH(BC$1,Formulacion!$1:$1,0),FALSE)="NA",1,VLOOKUP($B55,Formulacion!$A:$BE,MATCH(BC$1,Formulacion!$1:$1,0),FALSE)) -> 1 | BD55: 35981.397 | BF55: =VLOOKUP(C55,[3]Listado_Proyectos!$A$2:$I$815,9,FALSE) ->  | BG55: 2019-02-28
A56: Proyecto con cuenta ENSA 2024.xls | B56: =[1]Listado_Proyectos!K56 -> AINAP | C56: =[1]Listado_Proyectos!A56 -> 01-07.23.0134 | E56: =[1]Listado_Proyectos!I56 -> 2024-05-23 | F56: =[1]Listado_Proyectos!D56 -> PANAMA | H56: =[1]Listado_Proyectos!N56 -> 764.75 | I56: =[1]Listado_Proyectos!M56 -> 245.11 | K56: =[1]Listado_Proyectos!O56 -> 0 | N56: =[1]Listado_Proyectos!P56 -> 1009.86 | P56: =[1]Listado_Proyectos!Q56+[1]Listado_Proyectos!R56 -> 90.85 | Q56: =IFERROR(VLOOKUP(C56,'[2]Postes 2024'!$A:$C,3,FALSE),0) -> 3 | R56: =IFERROR(VLOOKUP(C56,'[2]Líneas 2024'!$A:$C,3,FALSE),0) -> 87.261 | S56: =IF((VLOOKUP($B56,Formulacion!$A:$BE,MATCH(S$1,Formulacion!$1:$1,0),FALSE)="NA"),"NA",Q56) -> NA | T56: =IF((VLOOKUP($B56,Formulacion!$A:$BE,MATCH(T$1,Formulacion!$1:$1,0),FALSE)="NA"),"NA",R56) -> NA | U56: NA | V56: =IF(OR(VLOOKUP($B56,Formulacion!$A:$BE,MATCH(V$1,Formulacion!$1:$1,0),FALSE)="NA",$D56=0),"NA",IF($B56="DLSBT",MID($D56,ZanjaInicioBT,ZanjaFinBT-ZanjaInicioBT+1)*1,MID($D56,ZanjaInicio,ZanjaFin-ZanjaInicio+1)*1)) -> NA | W56: 1 | X56: =IF(OR(VLOOKUP($B56,Formulacion!$A:$BE,MATCH(X$1,Formulacion!$1:$1,0),FALSE)="NA",$D56=0),"NA",MID($D56,m2Inicio+INDIRECT(B56),m2Fin-m2Inicio+1)*1) -> NA | Y56: =IF(OR(VLOOKUP($B56,Formulacion!$A:$BE,MATCH(Y$1,Formulacion!$1:$1,0),FALSE)="NA",$D56=0),"NA",RIGHT($D56,4)*1) -> NA | Z56: =IF(OR(VLOOKUP($B56,Formulacion!$A:$BE,MATCH(Z$1,Formulacion!$1:$1,0),FALSE)="NA",$D56=0),"NA",RIGHT($D56,3)*1) -> NA | AA56: 1 | AB56: =IF(VLOOKUP($B56,Formulacion!$A:$BE,MATCH(AB$1,Formulacion!$1:$1,0),FALSE)="NA",1,IF(X56<=m2Min,0,1)) -> 1 | AC56: =IF(VLOOKUP($B56,Formulacion!$A:$BE,MATCH(AC$1,Formulacion!$1:$1,0),FALSE)="NA",1,IF(OR(E56<=FechaMin,E56>FechaMax),0,1)) -> 1 | AD56: =IF(VLOOKUP($B56,Formulacion!$A:$BE,MATCH(AD$1,Formulacion!$1:$1,0),FALSE)="NA",1,IF(H56<=MaterialesMin,0,1)) -> 1 | AE56: =IF(VLOOKUP($B56,Formulacion!$A:$BE,MATCH(AE$1,Formulacion!$1:$1,0),FALSE)="NA",1,IF(N56=0,0,IF(OR(I56/N56<=MObraMin,I56/N56>=MObraMax),MDOmin,1))) -> 1 | AF56: =IF(VLOOKUP($B56,Formulacion!$A:$BE,MATCH(AF$1,Formulacion!$1:$1,0),FALSE)="NA",1,IF(N56<=CostoTotalMin,0,1)) -> 1 | AG56: =IF(VLOOKUP($B56,Formulacion!$A:$BE,MATCH(AG$1,Formulacion!$1:$1,0),FALSE)="NA",1,IF(S56<PostesMin,0,1)) -> 1 | AH56: =IF(VLOOKUP($B56,Formulacion!$A:$BE,MATCH(AH$1,Formulacion!$1:$1,0),FALSE)="NA",1,IF(T56<INDIRECT(VLOOKUP(B56,Formulacion!$A:$BE,2,FALSE)),0,1)) -> 1 | AI56: 1 | AJ56: 1009.86 | AK56: 1 | AL56: =IF(VLOOKUP($B56,Formulacion!$A:$BE,MATCH(AL$1,Formulacion!$1:$1,0),FALSE)="NA","NA",HLOOKUP(VLOOKUP($B56,Formulacion!$A:$BE,MATCH(AL$1,Formulacion!$1:$1,0),FALSE),$S:$AB,ROW(AL56),FALSE)) -> NA | AM56: =IF(VLOOKUP($B56,Formulacion!$A:$BE,MATCH(AM$1,Formulacion!$1:$1,0),FALSE)="NA",1,VLOOKUP($B56,Formulacion!$A:$BE,MATCH(AM$1,Formulacion!$1:$1,0),FALSE)) -> 1 | AN56: =IF(VLOOKUP($B56,Formulacion!$A:$BE,MATCH(AN$1,Formulacion!$1:$1,0),FALSE)="NA",1,VLOOKUP($B56,Formulacion!$A:$BE,MATCH(AN$1,Formulacion!$1:$1,0),FALSE)) -> 1 | AO56: 1 | AP56: =IF(VLOOKUP($B56,Formulacion!$A:$BE,MATCH(AP$1,Formulacion!$1:$1,0),FALSE)="NA","NA",IF(D56=0,"",VLOOKUP($B56,Formulacion!$A:$BE,MATCH(AP$1,Formulacion!$1:$1,0),FALSE))) -> NA | AQ56: X | AX56: NA | AY56: =IF(VLOOKUP($B56,Formulacion!$A:$BE,MATCH(AY$1,Formulacion!$1:$1,0),FALSE)="NA","NA",HLOOKUP(VLOOKUP($B56,Formulacion!$A:$BE,MATCH(AY$1,Formulacion!$1:$1,0),FALSE),$S:$AB,ROW(AY56),FALSE)) -> NA | AZ56: NA | BA56: 1 | BB56: =IF(VLOOKUP($B56,Formulacion!$A:$BE,MATCH(BB$1,Formulacion!$1:$1,0),FALSE)="NA",1,VLOOKUP($B56,Formulacion!$A:$BE,MATCH(BB$1,Formulacion!$1:$1,0),FALSE)) -> 0.9 | BC56: =IF(VLOOKUP($B56,Formulacion!$A:$BE,MATCH(BC$1,Formulacion!$1:$1,0),FALSE)="NA",1,VLOOKUP($B56,Formulacion!$A:$BE,MATCH(BC$1,Formulacion!$1:$1,0),FALSE)) -> 1 | BD56: 908.874 | BF56: =VLOOKUP(C56,[3]Listado_Proyectos!$A$2:$I$815,9,FALSE) ->  | BG56: 2019-02-28
A57: Proyecto con cuenta ENSA 2024.xls | B57: =[1]Listado_Proyectos!K57 -> DACBT | C57: =[1]Listado_Proyectos!A57 -> 01-07.23.0134 | E57: =[1]Listado_Proyectos!I57 -> 2024-05-23 | F57: =[1]Listado_Proyectos!D57 -> PANAMA | H57: =[1]Listado_Proyectos!N57 -> 9952.97 | I57: =[1]Listado_Proyectos!M57 -> 2869.42 | K57: =[1]Listado_Proyectos!O57 -> 0 | N57: =[1]Listado_Proyectos!P57 -> 12822.39 | P57: =[1]Listado_Proyectos!Q57+[1]Listado_Proyectos!R57 -> 1153.51 | Q57: =IFERROR(VLOOKUP(C57,'[2]Postes 2024'!$A:$C,3,FALSE),0) -> 3 | R57: =IFERROR(VLOOKUP(C57,'[2]Líneas 2024'!$A:$C,3,FALSE),0) -> 87.261 | S57: =IF((VLOOKUP($B57,Formulacion!$A:$BE,MATCH(S$1,Formulacion!$1:$1,0),FALSE)="NA"),"NA",Q57) -> NA | T57: =IF((VLOOKUP($B57,Formulacion!$A:$BE,MATCH(T$1,Formulacion!$1:$1,0),FALSE)="NA"),"NA",R57) -> NA | U57: NA | V57: =IF(OR(VLOOKUP($B57,Formulacion!$A:$BE,MATCH(V$1,Formulacion!$1:$1,0),FALSE)="NA",$D57=0),"NA",IF($B57="DLSBT",MID($D57,ZanjaInicioBT,ZanjaFinBT-ZanjaInicioBT+1)*1,MID($D57,ZanjaInicio,ZanjaFin-ZanjaInicio+1)*1)) -> NA | W57: 1 | X57: =IF(OR(VLOOKUP($B57,Formulacion!$A:$BE,MATCH(X$1,Formulacion!$1:$1,0),FALSE)="NA",$D57=0),"NA",MID($D57,m2Inicio+INDIRECT(B57),m2Fin-m2Inicio+1)*1) -> NA | Y57: =IF(OR(VLOOKUP($B57,Formulacion!$A:$BE,MATCH(Y$1,Formulacion!$1:$1,0),FALSE)="NA",$D57=0),"NA",RIGHT($D57,4)*1) -> NA | Z57: =IF(OR(VLOOKUP($B57,Formulacion!$A:$BE,MATCH(Z$1,Formulacion!$1:$1,0),FALSE)="NA",$D57=0),"NA",RIGHT($D57,3)*1) -> NA | AA57: 1 | AB57: =IF(VLOOKUP($B57,Formulacion!$A:$BE,MATCH(AB$1,Formulacion!$1:$1,0),FALSE)="NA",1,IF(X57<=m2Min,0,1)) -> 1 | AC57: =IF(VLOOKUP($B57,Formulacion!$A:$BE,MATCH(AC$1,Formulacion!$1:$1,0),FALSE)="NA",1,IF(OR(E57<=FechaMin,E57>FechaMax),0,1)) -> 1 | AD57: =IF(VLOOKUP($B57,Formulacion!$A:$BE,MATCH(AD$1,Formulacion!$1:$1,0),FALSE)="NA",1,IF(H57<=MaterialesMin,0,1)) -> 1 | AE57: =IF(VLOOKUP($B57,Formulacion!$A:$BE,MATCH(AE$1,Formulacion!$1:$1,0),FALSE)="NA",1,IF(N57=0,0,IF(OR(I57/N57<=MObraMin,I57/N57>=MObraMax),MDOmin,1))) -> 1 | AF57: =IF(VLOOKUP($B57,Formulacion!$A:$BE,MATCH(AF$1,Formulacion!$1:$1,0),FALSE)="NA",1,IF(N57<=CostoTotalMin,0,1)) -> 1 | AG57: =IF(VLOOKUP($B57,Formulacion!$A:$BE,MATCH(AG$1,Formulacion!$1:$1,0),FALSE)="NA",1,IF(S57<PostesMin,0,1)) -> 1 | AH57: =IF(VLOOKUP($B57,Formulacion!$A:$BE,MATCH(AH$1,Formulacion!$1:$1,0),FALSE)="NA",1,IF(T57<INDIRECT(VLOOKUP(B57,Formulacion!$A:$BE,2,FALSE)),0,1)) -> 1 | AI57: 1 | AJ57: 12822.39 | AK57: 1 | AL57: =IF(VLOOKUP($B57,Formulacion!$A:$BE,MATCH(AL$1,Formulacion!$1:$1,0),FALSE)="NA","NA",HLOOKUP(VLOOKUP($B57,Formulacion!$A:$BE,MATCH(AL$1,Formulacion!$1:$1,0),FALSE),$S:$AB,ROW(AL57),FALSE)) -> NA | AM57: =IF(VLOOKUP($B57,Formulacion!$A:$BE,MATCH(AM$1,Formulacion!$1:$1,0),FALSE)="NA",1,VLOOKUP($B57,Formulacion!$A:$BE,MATCH(AM$1,Formulacion!$1:$1,0),FALSE)) -> 1 | AN57: =IF(VLOOKUP($B57,Formulacion!$A:$BE,MATCH(AN$1,Formulacion!$1:$1,0),FALSE)="NA",1,VLOOKUP($B57,Formulacion!$A:$BE,MATCH(AN$1,Formulacion!$1:$1,0),FALSE)) -> 1 | AO57: 1 | AP57: =IF(VLOOKUP($B57,Formulacion!$A:$BE,MATCH(AP$1,Formulacion!$1:$1,0),FALSE)="NA","NA",IF(D57=0,"",VLOOKUP($B57,Formulacion!$A:$BE,MATCH(AP$1,Formulacion!$1:$1,0),FALSE))) -> NA | AQ57: X | AX57: NA | AY57: =IF(VLOOKUP($B57,Formulacion!$A:$BE,MATCH(AY$1,Formulacion!$1:$1,0),FALSE)="NA","NA",HLOOKUP(VLOOKUP($B57,Formulacion!$A:$BE,MATCH(AY$1,Formulacion!$1:$1,0),FALSE),$S:$AB,ROW(AY57),FALSE)) -> NA | AZ57: NA | BA57: 1 | BB57: =IF(VLOOKUP($B57,Formulacion!$A:$BE,MATCH(BB$1,Formulacion!$1:$1,0),FALSE)="NA",1,VLOOKUP($B57,Formulacion!$A:$BE,MATCH(BB$1,Formulacion!$1:$1,0),FALSE)) -> 0.9 | BC57: =IF(VLOOKUP($B57,Formulacion!$A:$BE,MATCH(BC$1,Formulacion!$1:$1,0),FALSE)="NA",1,VLOOKUP($B57,Formulacion!$A:$BE,MATCH(BC$1,Formulacion!$1:$1,0),FALSE)) -> 1 | BD57: 11540.151 | BF57: =VLOOKUP(C57,[3]Listado_Proyectos!$A$2:$I$815,9,FALSE) ->  | BG57: 2019-02-28
A58: Proyecto con cuenta ENSA 2024.xls | B58: =[1]Listado_Proyectos!K58 -> DLAMT-13,8 | C58: =[1]Listado_Proyectos!A58 -> 01-07.23.0134 | E58: =[1]Listado_Proyectos!I58 -> 2024-05-23 | F58: =[1]Listado_Proyectos!D58 -> PANAMA | H58: =[1]Listado_Proyectos!N58 -> 3523.75 | I58: =[1]Listado_Proyectos!M58 -> 1745.16 | K58: =[1]Listado_Proyectos!O58 -> 0 | N58: =[1]Listado_Proyectos!P58 -> 5268.91 | P58: =[1]Listado_Proyectos!Q58+[1]Listado_Proyectos!R58 -> 473.99 | Q58: =IFERROR(VLOOKUP(C58,'[2]Postes 2024'!$A:$C,3,FALSE),0) -> 3 | R58: =IFERROR(VLOOKUP(C58,'[2]Líneas 2024'!$A:$C,3,FALSE),0) -> 87.261 | S58: =IF((VLOOKUP($B58,Formulacion!$A:$BE,MATCH(S$1,Formulacion!$1:$1,0),FALSE)="NA"),"NA",Q58) -> 3 | T58: =IF((VLOOKUP($B58,Formulacion!$A:$BE,MATCH(T$1,Formulacion!$1:$1,0),FALSE)="NA"),"NA",R58) -> 87.261 | U58: 29.087 | V58: =IF(OR(VLOOKUP($B58,Formulacion!$A:$BE,MATCH(V$1,Formulacion!$1:$1,0),FALSE)="NA",$D58=0),"NA",IF($B58="DLSBT",MID($D58,ZanjaInicioBT,ZanjaFinBT-ZanjaInicioBT+1)*1,MID($D58,ZanjaInicio,ZanjaFin-ZanjaInicio+1)*1)) -> NA | W58: 1 | X58: =IF(OR(VLOOKUP($B58,Formulacion!$A:$BE,MATCH(X$1,Formulacion!$1:$1,0),FALSE)="NA",$D58=0),"NA",MID($D58,m2Inicio+INDIRECT(B58),m2Fin-m2Inicio+1)*1) -> NA | Y58: =IF(OR(VLOOKUP($B58,Formulacion!$A:$BE,MATCH(Y$1,Formulacion!$1:$1,0),FALSE)="NA",$D58=0),"NA",RIGHT($D58,4)*1) -> NA | Z58: =IF(OR(VLOOKUP($B58,Formulacion!$A:$BE,MATCH(Z$1,Formulacion!$1:$1,0),FALSE)="NA",$D58=0),"NA",RIGHT($D58,3)*1) -> NA | AA58: 1 | AB58: =IF(VLOOKUP($B58,Formulacion!$A:$BE,MATCH(AB$1,Formulacion!$1:$1,0),FALSE)="NA",1,IF(X58<=m2Min,0,1)) -> 1 | AC58: =IF(VLOOKUP($B58,Formulacion!$A:$BE,MATCH(AC$1,Formulacion!$1:$1,0),FALSE)="NA",1,IF(OR(E58<=FechaMin,E58>FechaMax),0,1)) -> 1 | AD58: =IF(VLOOKUP($B58,Formulacion!$A:$BE,MATCH(AD$1,Formulacion!$1:$1,0),FALSE)="NA",1,IF(H58<=MaterialesMin,0,1)) -> 1 | AE58: =IF(VLOOKUP($B58,Formulacion!$A:$BE,MATCH(AE$1,Formulacion!$1:$1,0),FALSE)="NA",1,IF(N58=0,0,IF(OR(I58/N58<=MObraMin,I58/N58>=MObraMax),MDOmin,1))) -> 1 | AF58: =IF(VLOOKUP($B58,Formulacion!$A:$BE,MATCH(AF$1,Formulacion!$1:$1,0),FALSE)="NA",1,IF(N58<=CostoTotalMin,0,1)) -> 1 | AG58: =IF(VLOOKUP($B58,Formulacion!$A:$BE,MATCH(AG$1,Formulacion!$1:$1,0),FALSE)="NA",1,IF(S58<PostesMin,0,1)) -> 1 | AH58: =IF(VLOOKUP($B58,Formulacion!$A:$BE,MATCH(AH$1,Formulacion!$1:$1,0),FALSE)="NA",1,IF(T58<INDIRECT(VLOOKUP(B58,Formulacion!$A:$BE,2,FALSE)),0,1)) -> 1 | AI58: 1 | AJ58: 5268.91 | AK58: 1 | AL58: =IF(VLOOKUP($B58,Formulacion!$A:$BE,MATCH(AL$1,Formulacion!$1:$1,0),FALSE)="NA","NA",HLOOKUP(VLOOKUP($B58,Formulacion!$A:$BE,MATCH(AL$1,Formulacion!$1:$1,0),FALSE),$S:$AB,ROW(AL58),FALSE)) -> 29.087 | AM58: =IF(VLOOKUP($B58,Formulacion!$A:$BE,MATCH(AM$1,Formulacion!$1:$1,0),FALSE)="NA",1,VLOOKUP($B58,Formulacion!$A:$BE,MATCH(AM$1,Formulacion!$1:$1,0),FALSE)) -> 45 | AN58: =IF(VLOOKUP($B58,Formulacion!$A:$BE,MATCH(AN$1,Formulacion!$1:$1,0),FALSE)="NA",1,VLOOKUP($B58,Formulacion!$A:$BE,MATCH(AN$1,Formulacion!$1:$1,0),FALSE)) -> 0.3 | AO58: CU | AP58: =IF(VLOOKUP($B58,Formulacion!$A:$BE,MATCH(AP$1,Formulacion!$1:$1,0),FALSE)="NA","NA",IF(D58=0,"",VLOOKUP($B58,Formulacion!$A:$BE,MATCH(AP$1,Formulacion!$1:$1,0),FALSE))) ->  | AQ58: X | AX58: NA | AY58: =IF(VLOOKUP($B58,Formulacion!$A:$BE,MATCH(AY$1,Formulacion!$1:$1,0),FALSE)="NA","NA",HLOOKUP(VLOOKUP($B58,Formulacion!$A:$BE,MATCH(AY$1,Formulacion!$1:$1,0),FALSE),$S:$AB,ROW(AY58),FALSE)) -> 87.261 | AZ58: NA | BA58: 1 | BB58: =IF(VLOOKUP($B58,Formulacion!$A:$BE,MATCH(BB$1,Formulacion!$1:$1,0),FALSE)="NA",1,VLOOKUP($B58,Formulacion!$A:$BE,MATCH(BB$1,Formulacion!$1:$1,0),FALSE)) -> 0.9 | BC58: =IF(VLOOKUP($B58,Formulacion!$A:$BE,MATCH(BC$1,Formulacion!$1:$1,0),FALSE)="NA",1,VLOOKUP($B58,Formulacion!$A:$BE,MATCH(BC$1,Formulacion!$1:$1,0),FALSE)) -> 1 | BD58: 4742.019 | BF58: =VLOOKUP(C58,[3]Listado_Proyectos!$A$2:$I$815,9,FALSE) ->  | BG58: 2019-02-28
A59: Proyecto con cuenta ENSA 2024.xls | B59: =[1]Listado_Proyectos!K59 -> DLSMT-13,8 | C59: =[1]Listado_Proyectos!A59 -> 01-07.23.0134 | E59: =[1]Listado_Proyectos!I59 -> 2024-05-23 | F59: =[1]Listado_Proyectos!D59 -> PANAMA | H59: =[1]Listado_Proyectos!N59 -> 4614.36 | I59: =[1]Listado_Proyectos!M59 -> 15712.33 | K59: =[1]Listado_Proyectos!O59 -> 0 | N59: =[1]Listado_Proyectos!P59 -> 20326.69 | P59: =[1]Listado_Proyectos!Q59+[1]Listado_Proyectos!R59 -> 1828.6 | Q59: =IFERROR(VLOOKUP(C59,'[2]Postes 2024'!$A:$C,3,FALSE),0) -> 3 | R59: =IFERROR(VLOOKUP(C59,'[2]Líneas 2024'!$A:$C,3,FALSE),0) -> 87.261 | S59: =IF((VLOOKUP($B59,Formulacion!$A:$BE,MATCH(S$1,Formulacion!$1:$1,0),FALSE)="NA"),"NA",Q59) -> NA | T59: =IF((VLOOKUP($B59,Formulacion!$A:$BE,MATCH(T$1,Formulacion!$1:$1,0),FALSE)="NA"),"NA",R59) -> 87.261 | U59: NA | V59: =IF(OR(VLOOKUP($B59,Formulacion!$A:$BE,MATCH(V$1,Formulacion!$1:$1,0),FALSE)="NA",$D59=0),"NA",IF($B59="DLSBT",MID($D59,ZanjaInicioBT,ZanjaFinBT-ZanjaInicioBT+1)*1,MID($D59,ZanjaInicio,ZanjaFin-ZanjaInicio+1)*1)) -> NA | W59: 1 | X59: =IF(OR(VLOOKUP($B59,Formulacion!$A:$BE,MATCH(X$1,Formulacion!$1:$1,0),FALSE)="NA",$D59=0),"NA",MID($D59,m2Inicio+INDIRECT(B59),m2Fin-m2Inicio+1)*1) -> NA | Y59: =IF(OR(VLOOKUP($B59,Formulacion!$A:$BE,MATCH(Y$1,Formulacion!$1:$1,0),FALSE)="NA",$D59=0),"NA",RIGHT($D59,4)*1) -> NA | Z59: =IF(OR(VLOOKUP($B59,Formulacion!$A:$BE,MATCH(Z$1,Formulacion!$1:$1,0),FALSE)="NA",$D59=0),"NA",RIGHT($D59,3)*1) -> NA | AA59: 1 | AB59: =IF(VLOOKUP($B59,Formulacion!$A:$BE,MATCH(AB$1,Formulacion!$1:$1,0),FALSE)="NA",1,IF(X59<=m2Min,0,1)) -> 1 | AC59: =IF(VLOOKUP($B59,Formulacion!$A:$BE,MATCH(AC$1,Formulacion!$1:$1,0),FALSE)="NA",1,IF(OR(E59<=FechaMin,E59>FechaMax),0,1)) -> 1 | AD59: =IF(VLOOKUP($B59,Formulacion!$A:$BE,MATCH(AD$1,Formulacion!$1:$1,0),FALSE)="NA",1,IF(H59<=MaterialesMin,0,1)) -> 1 | AE59: =IF(VLOOKUP($B59,Formulacion!$A:$BE,MATCH(AE$1,Formulacion!$1:$1,0),FALSE)="NA",1,IF(N59=0,0,IF(OR(I59/N59<=MObraMin,I59/N59>=MObraMax),MDOmin,1))) -> 1 | AF59: =IF(VLOOKUP($B59,Formulacion!$A:$BE,MATCH(AF$1,Formulacion!$1:$1,0),FALSE)="NA",1,IF(N59<=CostoTotalMin,0,1)) -> 1 | AG59: =IF(VLOOKUP($B59,Formulacion!$A:$BE,MATCH(AG$1,Formulacion!$1:$1,0),FALSE)="NA",1,IF(S59<PostesMin,0,1)) -> 1 | AH59: =IF(VLOOKUP($B59,Formulacion!$A:$BE,MATCH(AH$1,Formulacion!$1:$1,0),FALSE)="NA",1,IF(T59<INDIRECT(VLOOKUP(B59,Formulacion!$A:$BE,2,FALSE)),0,1)) -> 1 | AI59: 1 | AJ59: 20326.69 | AK59: 1 | AL59: =IF(VLOOKUP($B59,Formulacion!$A:$BE,MATCH(AL$1,Formulacion!$1:$1,0),FALSE)="NA","NA",HLOOKUP(VLOOKUP($B59,Formulacion!$A:$BE,MATCH(AL$1,Formulacion!$1:$1,0),FALSE),$S:$AB,ROW(AL59),FALSE)) -> NA | AM59: =IF(VLOOKUP($B59,Formulacion!$A:$BE,MATCH(AM$1,Formulacion!$1:$1,0),FALSE)="NA",1,VLOOKUP($B59,Formulacion!$A:$BE,MATCH(AM$1,Formulacion!$1:$1,0),FALSE)) -> 1000 | AN59: =IF(VLOOKUP($B59,Formulacion!$A:$BE,MATCH(AN$1,Formulacion!$1:$1,0),FALSE)="NA",1,VLOOKUP($B59,Formulacion!$A:$BE,MATCH(AN$1,Formulacion!$1:$1,0),FALSE)) -> 0.5 | AO59: 1 | AP59: =IF(VLOOKUP($B59,Formulacion!$A:$BE,MATCH(AP$1,Formulacion!$1:$1,0),FALSE)="NA","NA",IF(D59=0,"",VLOOKUP($B59,Formulacion!$A:$BE,MATCH(AP$1,Formulacion!$1:$1,0),FALSE))) ->  | AQ59: X | AX59: NA | AY59: =IF(VLOOKUP($B59,Formulacion!$A:$BE,MATCH(AY$1,Formulacion!$1:$1,0),FALSE)="NA","NA",HLOOKUP(VLOOKUP($B59,Formulacion!$A:$BE,MATCH(AY$1,Formulacion!$1:$1,0),FALSE),$S:$AB,ROW(AY59),FALSE)) -> 87.261 | AZ59: NA | BA59: 1 | BB59: =IF(VLOOKUP($B59,Formulacion!$A:$BE,MATCH(BB$1,Formulacion!$1:$1,0),FALSE)="NA",1,VLOOKUP($B59,Formulacion!$A:$BE,MATCH(BB$1,Formulacion!$1:$1,0),FALSE)) -> 0.9 | BC59: =IF(VLOOKUP($B59,Formulacion!$A:$BE,MATCH(BC$1,Formulacion!$1:$1,0),FALSE)="NA",1,VLOOKUP($B59,Formulacion!$A:$BE,MATCH(BC$1,Formulacion!$1:$1,0),FALSE)) -> 1 | BD59: 18294.021 | BF59: =VLOOKUP(C59,[3]Listado_Proyectos!$A$2:$I$815,9,FALSE) ->  | BG59: 2019-02-28
A60: Proyecto con cuenta ENSA 2024.xls | B60: =[1]Listado_Proyectos!K60 -> DTRMB-13,8 | C60: =[1]Listado_Proyectos!A60 -> 01-07.23.0134 | E60: =[1]Listado_Proyectos!I60 -> 2024-05-23 | F60: =[1]Listado_Proyectos!D60 -> PANAMA | H60: =[1]Listado_Proyectos!N60 -> 2596.06 | I60: =[1]Listado_Proyectos!M60 -> 414.25 | K60: =[1]Listado_Proyectos!O60 -> 0 | N60: =[1]Listado_Proyectos!P60 -> 3010.31 | P60: =[1]Listado_Proyectos!Q60+[1]Listado_Proyectos!R60 -> 270.81 | Q60: =IFERROR(VLOOKUP(C60,'[2]Postes 2024'!$A:$C,3,FALSE),0) -> 3 | R60: =IFERROR(VLOOKUP(C60,'[2]Líneas 2024'!$A:$C,3,FALSE),0) -> 87.261 | S60: =IF((VLOOKUP($B60,Formulacion!$A:$BE,MATCH(S$1,Formulacion!$1:$1,0),FALSE)="NA"),"NA",Q60) -> NA | T60: =IF((VLOOKUP($B60,Formulacion!$A:$BE,MATCH(T$1,Formulacion!$1:$1,0),FALSE)="NA"),"NA",R60) -> NA | U60: NA | V60: =IF(OR(VLOOKUP($B60,Formulacion!$A:$BE,MATCH(V$1,Formulacion!$1:$1,0),FALSE)="NA",$D60=0),"NA",IF($B60="DLSBT",MID($D60,ZanjaInicioBT,ZanjaFinBT-ZanjaInicioBT+1)*1,MID($D60,ZanjaInicio,ZanjaFin-ZanjaInicio+1)*1)) -> NA | W60: 1 | X60: =IF(OR(VLOOKUP($B60,Formulacion!$A:$BE,MATCH(X$1,Formulacion!$1:$1,0),FALSE)="NA",$D60=0),"NA",MID($D60,m2Inicio+INDIRECT(B60),m2Fin-m2Inicio+1)*1) -> NA | Y60: =IF(OR(VLOOKUP($B60,Formulacion!$A:$BE,MATCH(Y$1,Formulacion!$1:$1,0),FALSE)="NA",$D60=0),"NA",RIGHT($D60,4)*1) -> NA | Z60: =IF(OR(VLOOKUP($B60,Formulacion!$A:$BE,MATCH(Z$1,Formulacion!$1:$1,0),FALSE)="NA",$D60=0),"NA",RIGHT($D60,3)*1) -> NA | AA60: 1 | AB60: =IF(VLOOKUP($B60,Formulacion!$A:$BE,MATCH(AB$1,Formulacion!$1:$1,0),FALSE)="NA",1,IF(X60<=m2Min,0,1)) -> 1 | AC60: =IF(VLOOKUP($B60,Formulacion!$A:$BE,MATCH(AC$1,Formulacion!$1:$1,0),FALSE)="NA",1,IF(OR(E60<=FechaMin,E60>FechaMax),0,1)) -> 1 | AD60: =IF(VLOOKUP($B60,Formulacion!$A:$BE,MATCH(AD$1,Formulacion!$1:$1,0),FALSE)="NA",1,IF(H60<=MaterialesMin,0,1)) -> 1 | AE60: =IF(VLOOKUP($B60,Formulacion!$A:$BE,MATCH(AE$1,Formulacion!$1:$1,0),FALSE)="NA",1,IF(N60=0,0,IF(OR(I60/N60<=MObraMin,I60/N60>=MObraMax),MDOmin,1))) -> 1 | AF60: =IF(VLOOKUP($B60,Formulacion!$A:$BE,MATCH(AF$1,Formulacion!$1:$1,0),FALSE)="NA",1,IF(N60<=CostoTotalMin,0,1)) -> 1 | AG60: =IF(VLOOKUP($B60,Formulacion!$A:$BE,MATCH(AG$1,Formulacion!$1:$1,0),FALSE)="NA",1,IF(S60<PostesMin,0,1)) -> 1 | AH60: =IF(VLOOKUP($B60,Formulacion!$A:$BE,MATCH(AH$1,Formulacion!$1:$1,0),FALSE)="NA",1,IF(T60<INDIRECT(VLOOKUP(B60,Formulacion!$A:$BE,2,FALSE)),0,1)) -> 1 | AI60: 1 | AJ60: 3010.31 | AK60: 1 | AL60: =IF(VLOOKUP($B60,Formulacion!$A:$BE,MATCH(AL$1,Formulacion!$1:$1,0),FALSE)="NA","NA",HLOOKUP(VLOOKUP($B60,Formulacion!$A:$BE,MATCH(AL$1,Formulacion!$1:$1,0),FALSE),$S:$AB,ROW(AL60),FALSE)) -> NA | AM60: =IF(VLOOKUP($B60,Formulacion!$A:$BE,MATCH(AM$1,Formulacion!$1:$1,0),FALSE)="NA",1,VLOOKUP($B60,Formulacion!$A:$BE,MATCH(AM$1,Formulacion!$1:$1,0),FALSE)) -> 1 | AN60: =IF(VLOOKUP($B60,Formulacion!$A:$BE,MATCH(AN$1,Formulacion!$1:$1,0),FALSE)="NA",1,VLOOKUP($B60,Formulacion!$A:$BE,MATCH(AN$1,Formulacion!$1:$1,0),FALSE)) -> 1 | AO60: 1 | AP60: =IF(VLOOKUP($B60,Formulacion!$A:$BE,MATCH(AP$1,Formulacion!$1:$1,0),FALSE)="NA","NA",IF(D60=0,"",VLOOKUP($B60,Formulacion!$A:$BE,MATCH(AP$1,Formulacion!$1:$1,0),FALSE))) ->  | AQ60: X | AX60: NA | AY60: =IF(VLOOKUP($B60,Formulacion!$A:$BE,MATCH(AY$1,Formulacion!$1:$1,0),FALSE)="NA","NA",HLOOKUP(VLOOKUP($B60,Formulacion!$A:$BE,MATCH(AY$1,Formulacion!$1:$1,0),FALSE),$S:$AB,ROW(AY60),FALSE)) -> NA | AZ60: NA | BA60: 1 | BB60: =IF(VLOOKUP($B60,Formulacion!$A:$BE,MATCH(BB$1,Formulacion!$1:$1,0),FALSE)="NA",1,VLOOKUP($B60,Formulacion!$A:$BE,MATCH(BB$1,Formulacion!$1:$1,0),FALSE)) -> 0.9 | BC60: =IF(VLOOKUP($B60,Formulacion!$A:$BE,MATCH(BC$1,Formulacion!$1:$1,0),FALSE)="NA",1,VLOOKUP($B60,Formulacion!$A:$BE,MATCH(BC$1,Formulacion!$1:$1,0),FALSE)) -> 1 | BD60: 2709.279 | BF60: =VLOOKUP(C60,[3]Listado_Proyectos!$A$2:$I$815,9,FALSE) ->  | BG60: 2019-02-28
A61: Proyecto con cuenta ENSA 2024.xls | B61: =[1]Listado_Proyectos!K61 -> CMEDI | C61: =[1]Listado_Proyectos!A61 -> 01-45.24.0003 | E61: =[1]Listado_Proyectos!I61 -> 2024-11-28 | F61: =[1]Listado_Proyectos!D61 -> PANAMA | H61: =[1]Listado_Proyectos!N61 -> 344964.39 | I61: =[1]Listado_Proyectos!M61 -> 57901.35 | K61: =[1]Listado_Proyectos!O61 -> 0 | N61: =[1]Listado_Proyectos!P61 -> 402865.74 | P61: =[1]Listado_Proyectos!Q61+[1]Listado_Proyectos!R61 -> 0 | Q61: =IFERROR(VLOOKUP(C61,'[2]Postes 2024'!$A:$C,3,FALSE),0) -> 0 | R61: =IFERROR(VLOOKUP(C61,'[2]Líneas 2024'!$A:$C,3,FALSE),0) -> 0 | S61: =IF((VLOOKUP($B61,Formulacion!$A:$BE,MATCH(S$1,Formulacion!$1:$1,0),FALSE)="NA"),"NA",Q61) -> NA | T61: =IF((VLOOKUP($B61,Formulacion!$A:$BE,MATCH(T$1,Formulacion!$1:$1,0),FALSE)="NA"),"NA",R61) -> NA | U61: NA | V61: =IF(OR(VLOOKUP($B61,Formulacion!$A:$BE,MATCH(V$1,Formulacion!$1:$1,0),FALSE)="NA",$D61=0),"NA",IF($B61="DLSBT",MID($D61,ZanjaInicioBT,ZanjaFinBT-ZanjaInicioBT+1)*1,MID($D61,ZanjaInicio,ZanjaFin-ZanjaInicio+1)*1)) -> NA | W61: 1 | X61: =IF(OR(VLOOKUP($B61,Formulacion!$A:$BE,MATCH(X$1,Formulacion!$1:$1,0),FALSE)="NA",$D61=0),"NA",MID($D61,m2Inicio+INDIRECT(B61),m2Fin-m2Inicio+1)*1) -> NA | Y61: =IF(OR(VLOOKUP($B61,Formulacion!$A:$BE,MATCH(Y$1,Formulacion!$1:$1,0),FALSE)="NA",$D61=0),"NA",RIGHT($D61,4)*1) -> NA | Z61: =IF(OR(VLOOKUP($B61,Formulacion!$A:$BE,MATCH(Z$1,Formulacion!$1:$1,0),FALSE)="NA",$D61=0),"NA",RIGHT($D61,3)*1) -> NA | AA61: 1 | AB61: =IF(VLOOKUP($B61,Formulacion!$A:$BE,MATCH(AB$1,Formulacion!$1:$1,0),FALSE)="NA",1,IF(X61<=m2Min,0,1)) -> 1 | AC61: =IF(VLOOKUP($B61,Formulacion!$A:$BE,MATCH(AC$1,Formulacion!$1:$1,0),FALSE)="NA",1,IF(OR(E61<=FechaMin,E61>FechaMax),0,1)) -> 1 | AD61: =IF(VLOOKUP($B61,Formulacion!$A:$BE,MATCH(AD$1,Formulacion!$1:$1,0),FALSE)="NA",1,IF(H61<=MaterialesMin,0,1)) -> 1 | AE61: =IF(VLOOKUP($B61,Formulacion!$A:$BE,MATCH(AE$1,Formulacion!$1:$1,0),FALSE)="NA",1,IF(N61=0,0,IF(OR(I61/N61<=MObraMin,I61/N61>=MObraMax),MDOmin,1))) -> 1 | AF61: =IF(VLOOKUP($B61,Formulacion!$A:$BE,MATCH(AF$1,Formulacion!$1:$1,0),FALSE)="NA",1,IF(N61<=CostoTotalMin,0,1)) -> 1 | AG61: =IF(VLOOKUP($B61,Formulacion!$A:$BE,MATCH(AG$1,Formulacion!$1:$1,0),FALSE)="NA",1,IF(S61<PostesMin,0,1)) -> 1 | AH61: =IF(VLOOKUP($B61,Formulacion!$A:$BE,MATCH(AH$1,Formulacion!$1:$1,0),FALSE)="NA",1,IF(T61<INDIRECT(VLOOKUP(B61,Formulacion!$A:$BE,2,FALSE)),0,1)) -> 1 | AI61: 1 | AJ61: 402865.74 | AK61: 1 | AL61: =IF(VLOOKUP($B61,Formulacion!$A:$BE,MATCH(AL$1,Formulacion!$1:$1,0),FALSE)="NA","NA",HLOOKUP(VLOOKUP($B61,Formulacion!$A:$BE,MATCH(AL$1,Formulacion!$1:$1,0),FALSE),$S:$AB,ROW(AL61),FALSE)) -> NA | AM61: =IF(VLOOKUP($B61,Formulacion!$A:$BE,MATCH(AM$1,Formulacion!$1:$1,0),FALSE)="NA",1,VLOOKUP($B61,Formulacion!$A:$BE,MATCH(AM$1,Formulacion!$1:$1,0),FALSE)) -> 1 | AN61: =IF(VLOOKUP($B61,Formulacion!$A:$BE,MATCH(AN$1,Formulacion!$1:$1,0),FALSE)="NA",1,VLOOKUP($B61,Formulacion!$A:$BE,MATCH(AN$1,Formulacion!$1:$1,0),FALSE)) -> 1 | AO61: 1 | AP61: =IF(VLOOKUP($B61,Formulacion!$A:$BE,MATCH(AP$1,Formulacion!$1:$1,0),FALSE)="NA","NA",IF(D61=0,"",VLOOKUP($B61,Formulacion!$A:$BE,MATCH(AP$1,Formulacion!$1:$1,0),FALSE))) -> NA | AQ61: X | AX61: NA | AY61: =IF(VLOOKUP($B61,Formulacion!$A:$BE,MATCH(AY$1,Formulacion!$1:$1,0),FALSE)="NA","NA",HLOOKUP(VLOOKUP($B61,Formulacion!$A:$BE,MATCH(AY$1,Formulacion!$1:$1,0),FALSE),$S:$AB,ROW(AY61),FALSE)) -> NA | AZ61: NA | BA61: 1 | BB61: =IF(VLOOKUP($B61,Formulacion!$A:$BE,MATCH(BB$1,Formulacion!$1:$1,0),FALSE)="NA",1,VLOOKUP($B61,Formulacion!$A:$BE,MATCH(BB$1,Formulacion!$1:$1,0),FALSE)) -> 0.9 | BC61: =IF(VLOOKUP($B61,Formulacion!$A:$BE,MATCH(BC$1,Formulacion!$1:$1,0),FALSE)="NA",1,VLOOKUP($B61,Formulacion!$A:$BE,MATCH(BC$1,Formulacion!$1:$1,0),FALSE)) -> 1 | BD61: 362579.166 | BF61: =VLOOKUP(C61,[3]Listado_Proyectos!$A$2:$I$815,9,FALSE) ->  | BG61: 2019-02-28
A62: Proyecto con cuenta ENSA 2024.xls | B62: =[1]Listado_Proyectos!K62 -> DACBT | C62: =[1]Listado_Proyectos!A62 -> 01-45.24.0003 | E62: =[1]Listado_Proyectos!I62 -> 2024-11-28 | F62: =[1]Listado_Proyectos!D62 -> PANAMA | H62: =[1]Listado_Proyectos!N62 -> 195.75 | I62: =[1]Listado_Proyectos!M62 -> 11.75 | K62: =[1]Listado_Proyectos!O62 -> 0 | N62: =[1]Listado_Proyectos!P62 -> 207.5 | P62: =[1]Listado_Proyectos!Q62+[1]Listado_Proyectos!R62 -> 0 | Q62: =IFERROR(VLOOKUP(C62,'[2]Postes 2024'!$A:$C,3,FALSE),0) -> 0 | R62: =IFERROR(VLOOKUP(C62,'[2]Líneas 2024'!$A:$C,3,FALSE),0) -> 0 | S62: =IF((VLOOKUP($B62,Formulacion!$A:$BE,MATCH(S$1,Formulacion!$1:$1,0),FALSE)="NA"),"NA",Q62) -> NA | T62: =IF((VLOOKUP($B62,Formulacion!$A:$BE,MATCH(T$1,Formulacion!$1:$1,0),FALSE)="NA"),"NA",R62) -> NA | U62: NA | V62: =IF(OR(VLOOKUP($B62,Formulacion!$A:$BE,MATCH(V$1,Formulacion!$1:$1,0),FALSE)="NA",$D62=0),"NA",IF($B62="DLSBT",MID($D62,ZanjaInicioBT,ZanjaFinBT-ZanjaInicioBT+1)*1,MID($D62,ZanjaInicio,ZanjaFin-ZanjaInicio+1)*1)) -> NA | W62: 1 | X62: =IF(OR(VLOOKUP($B62,Formulacion!$A:$BE,MATCH(X$1,Formulacion!$1:$1,0),FALSE)="NA",$D62=0),"NA",MID($D62,m2Inicio+INDIRECT(B62),m2Fin-m2Inicio+1)*1) -> NA | Y62: =IF(OR(VLOOKUP($B62,Formulacion!$A:$BE,MATCH(Y$1,Formulacion!$1:$1,0),FALSE)="NA",$D62=0),"NA",RIGHT($D62,4)*1) -> NA | Z62: =IF(OR(VLOOKUP($B62,Formulacion!$A:$BE,MATCH(Z$1,Formulacion!$1:$1,0),FALSE)="NA",$D62=0),"NA",RIGHT($D62,3)*1) -> NA | AA62: 1 | AB62: =IF(VLOOKUP($B62,Formulacion!$A:$BE,MATCH(AB$1,Formulacion!$1:$1,0),FALSE)="NA",1,IF(X62<=m2Min,0,1)) -> 1 | AC62: =IF(VLOOKUP($B62,Formulacion!$A:$BE,MATCH(AC$1,Formulacion!$1:$1,0),FALSE)="NA",1,IF(OR(E62<=FechaMin,E62>FechaMax),0,1)) -> 1 | AD62: =IF(VLOOKUP($B62,Formulacion!$A:$BE,MATCH(AD$1,Formulacion!$1:$1,0),FALSE)="NA",1,IF(H62<=MaterialesMin,0,1)) -> 1 | AE62: =IF(VLOOKUP($B62,Formulacion!$A:$BE,MATCH(AE$1,Formulacion!$1:$1,0),FALSE)="NA",1,IF(N62=0,0,IF(OR(I62/N62<=MObraMin,I62/N62>=MObraMax),MDOmin,1))) -> 1 | AF62: =IF(VLOOKUP($B62,Formulacion!$A:$BE,MATCH(AF$1,Formulacion!$1:$1,0),FALSE)="NA",1,IF(N62<=CostoTotalMin,0,1)) -> 1 | AG62: =IF(VLOOKUP($B62,Formulacion!$A:$BE,MATCH(AG$1,Formulacion!$1:$1,0),FALSE)="NA",1,IF(S62<PostesMin,0,1)) -> 1 | AH62: =IF(VLOOKUP($B62,Formulacion!$A:$BE,MATCH(AH$1,Formulacion!$1:$1,0),FALSE)="NA",1,IF(T62<INDIRECT(VLOOKUP(B62,Formulacion!$A:$BE,2,FALSE)),0,1)) -> 1 | AI62: 1 | AJ62: 207.5 | AK62: 1 | AL62: =IF(VLOOKUP($B62,Formulacion!$A:$BE,MATCH(AL$1,Formulacion!$1:$1,0),FALSE)="NA","NA",HLOOKUP(VLOOKUP($B62,Formulacion!$A:$BE,MATCH(AL$1,Formulacion!$1:$1,0),FALSE),$S:$AB,ROW(AL62),FALSE)) -> NA | AM62: =IF(VLOOKUP($B62,Formulacion!$A:$BE,MATCH(AM$1,Formulacion!$1:$1,0),FALSE)="NA",1,VLOOKUP($B62,Formulacion!$A:$BE,MATCH(AM$1,Formulacion!$1:$1,0),FALSE)) -> 1 | AN62: =IF(VLOOKUP($B62,Formulacion!$A:$BE,MATCH(AN$1,Formulacion!$1:$1,0),FALSE)="NA",1,VLOOKUP($B62,Formulacion!$A:$BE,MATCH(AN$1,Formulacion!$1:$1,0),FALSE)) -> 1 | AO62: 1 | AP62: =IF(VLOOKUP($B62,Formulacion!$A:$BE,MATCH(AP$1,Formulacion!$1:$1,0),FALSE)="NA","NA",IF(D62=0,"",VLOOKUP($B62,Formulacion!$A:$BE,MATCH(AP$1,Formulacion!$1:$1,0),FALSE))) -> NA | AQ62: X | AX62: NA | AY62: =IF(VLOOKUP($B62,Formulacion!$A:$BE,MATCH(AY$1,Formulacion!$1:$1,0),FALSE)="NA","NA",HLOOKUP(VLOOKUP($B62,Formulacion!$A:$BE,MATCH(AY$1,Formulacion!$1:$1,0),FALSE),$S:$AB,ROW(AY62),FALSE)) -> NA | AZ62: NA | BA62: 1 | BB62: =IF(VLOOKUP($B62,Formulacion!$A:$BE,MATCH(BB$1,Formulacion!$1:$1,0),FALSE)="NA",1,VLOOKUP($B62,Formulacion!$A:$BE,MATCH(BB$1,Formulacion!$1:$1,0),FALSE)) -> 0.9 | BC62: =IF(VLOOKUP($B62,Formulacion!$A:$BE,MATCH(BC$1,Formulacion!$1:$1,0),FALSE)="NA",1,VLOOKUP($B62,Formulacion!$A:$BE,MATCH(BC$1,Formulacion!$1:$1,0),FALSE)) -> 1 | BD62: 186.75 | BF62: =VLOOKUP(C62,[3]Listado_Proyectos!$A$2:$I$815,9,FALSE) ->  | BG62: 2019-02-28
A63: Proyecto con cuenta ENSA 2024.xls | B63: =[1]Listado_Proyectos!K63 -> DEQOT | C63: =[1]Listado_Proyectos!A63 -> 01-45.24.0003 | E63: =[1]Listado_Proyectos!I63 -> 2024-11-28 | F63: =[1]Listado_Proyectos!D63 -> PANAMA | H63: =[1]Listado_Proyectos!N63 -> 396.63 | I63: =[1]Listado_Proyectos!M63 -> 23.8 | K63: =[1]Listado_Proyectos!O63 -> 0 | N63: =[1]Listado_Proyectos!P63 -> 420.43 | P63: =[1]Listado_Proyectos!Q63+[1]Listado_Proyectos!R63 -> 0 | Q63: =IFERROR(VLOOKUP(C63,'[2]Postes 2024'!$A:$C,3,FALSE),0) -> 0 | R63: =IFERROR(VLOOKUP(C63,'[2]Líneas 2024'!$A:$C,3,FALSE),0) -> 0 | S63: =IF((VLOOKUP($B63,Formulacion!$A:$BE,MATCH(S$1,Formulacion!$1:$1,0),FALSE)="NA"),"NA",Q63) -> NA | T63: =IF((VLOOKUP($B63,Formulacion!$A:$BE,MATCH(T$1,Formulacion!$1:$1,0),FALSE)="NA"),"NA",R63) -> NA | U63: NA | V63: =IF(OR(VLOOKUP($B63,Formulacion!$A:$BE,MATCH(V$1,Formulacion!$1:$1,0),FALSE)="NA",$D63=0),"NA",IF($B63="DLSBT",MID($D63,ZanjaInicioBT,ZanjaFinBT-ZanjaInicioBT+1)*1,MID($D63,ZanjaInicio,ZanjaFin-ZanjaInicio+1)*1)) -> NA | W63: 1 | X63: =IF(OR(VLOOKUP($B63,Formulacion!$A:$BE,MATCH(X$1,Formulacion!$1:$1,0),FALSE)="NA",$D63=0),"NA",MID($D63,m2Inicio+INDIRECT(B63),m2Fin-m2Inicio+1)*1) -> NA | Y63: =IF(OR(VLOOKUP($B63,Formulacion!$A:$BE,MATCH(Y$1,Formulacion!$1:$1,0),FALSE)="NA",$D63=0),"NA",RIGHT($D63,4)*1) -> NA | Z63: =IF(OR(VLOOKUP($B63,Formulacion!$A:$BE,MATCH(Z$1,Formulacion!$1:$1,0),FALSE)="NA",$D63=0),"NA",RIGHT($D63,3)*1) -> NA | AA63: 1 | AB63: =IF(VLOOKUP($B63,Formulacion!$A:$BE,MATCH(AB$1,Formulacion!$1:$1,0),FALSE)="NA",1,IF(X63<=m2Min,0,1)) -> 1 | AC63: =IF(VLOOKUP($B63,Formulacion!$A:$BE,MATCH(AC$1,Formulacion!$1:$1,0),FALSE)="NA",1,IF(OR(E63<=FechaMin,E63>FechaMax),0,1)) -> 1 | AD63: =IF(VLOOKUP($B63,Formulacion!$A:$BE,MATCH(AD$1,Formulacion!$1:$1,0),FALSE)="NA",1,IF(H63<=MaterialesMin,0,1)) -> 1 | AE63: =IF(VLOOKUP($B63,Formulacion!$A:$BE,MATCH(AE$1,Formulacion!$1:$1,0),FALSE)="NA",1,IF(N63=0,0,IF(OR(I63/N63<=MObraMin,I63/N63>=MObraMax),MDOmin,1))) -> 1 | AF63: =IF(VLOOKUP($B63,Formulacion!$A:$BE,MATCH(AF$1,Formulacion!$1:$1,0),FALSE)="NA",1,IF(N63<=CostoTotalMin,0,1)) -> 1 | AG63: =IF(VLOOKUP($B63,Formulacion!$A:$BE,MATCH(AG$1,Formulacion!$1:$1,0),FALSE)="NA",1,IF(S63<PostesMin,0,1)) -> 1 | AH63: =IF(VLOOKUP($B63,Formulacion!$A:$BE,MATCH(AH$1,Formulacion!$1:$1,0),FALSE)="NA",1,IF(T63<INDIRECT(VLOOKUP(B63,Formulacion!$A:$BE,2,FALSE)),0,1)) -> 1 | AI63: 1 | AJ63: 420.43 | AK63: 1 | AL63: =IF(VLOOKUP($B63,Formulacion!$A:$BE,MATCH(AL$1,Formulacion!$1:$1,0),FALSE)="NA","NA",HLOOKUP(VLOOKUP($B63,Formulacion!$A:$BE,MATCH(AL$1,Formulacion!$1:$1,0),FALSE),$S:$AB,ROW(AL63),FALSE)) -> NA | AM63: =IF(VLOOKUP($B63,Formulacion!$A:$BE,MATCH(AM$1,Formulacion!$1:$1,0),FALSE)="NA",1,VLOOKUP($B63,Formulacion!$A:$BE,MATCH(AM$1,Formulacion!$1:$1,0),FALSE)) -> 1 | AN63: =IF(VLOOKUP($B63,Formulacion!$A:$BE,MATCH(AN$1,Formulacion!$1:$1,0),FALSE)="NA",1,VLOOKUP($B63,Formulacion!$A:$BE,MATCH(AN$1,Formulacion!$1:$1,0),FALSE)) -> 1 | AO63: 1 | AP63: =IF(VLOOKUP($B63,Formulacion!$A:$BE,MATCH(AP$1,Formulacion!$1:$1,0),FALSE)="NA","NA",IF(D63=0,"",VLOOKUP($B63,Formulacion!$A:$BE,MATCH(AP$1,Formulacion!$1:$1,0),FALSE))) -> NA | AQ63: X | AX63: NA | AY63: =IF(VLOOKUP($B63,Formulacion!$A:$BE,MATCH(AY$1,Formulacion!$1:$1,0),FALSE)="NA","NA",HLOOKUP(VLOOKUP($B63,Formulacion!$A:$BE,MATCH(AY$1,Formulacion!$1:$1,0),FALSE),$S:$AB,ROW(AY63),FALSE)) -> NA | AZ63: NA | BA63: 1 | BB63: =IF(VLOOKUP($B63,Formulacion!$A:$BE,MATCH(BB$1,Formulacion!$1:$1,0),FALSE)="NA",1,VLOOKUP($B63,Formulacion!$A:$BE,MATCH(BB$1,Formulacion!$1:$1,0),FALSE)) -> 0.9 | BC63: =IF(VLOOKUP($B63,Formulacion!$A:$BE,MATCH(BC$1,Formulacion!$1:$1,0),FALSE)="NA",1,VLOOKUP($B63,Formulacion!$A:$BE,MATCH(BC$1,Formulacion!$1:$1,0),FALSE)) -> 1 | BD63: 378.387 | BF63: =VLOOKUP(C63,[3]Listado_Proyectos!$A$2:$I$815,9,FALSE) ->  | BG63: 2019-02-28
A64: Proyecto con cuenta ENSA 2024.xls | B64: =[1]Listado_Proyectos!K64 -> AINAP | C64: =[1]Listado_Proyectos!A64 -> 01-49.23.0022 | E64: =[1]Listado_Proyectos!I64 -> 2024-05-17 | F64: =[1]Listado_Proyectos!D64 -> SANTA ISABEL | H64: =[1]Listado_Proyectos!N64 -> 4434.93 | I64: =[1]Listado_Proyectos!M64 -> 3494.86 | K64: =[1]Listado_Proyectos!O64 -> 95.07 | N64: =[1]Listado_Proyectos!P64 -> 8024.86 | P64: =[1]Listado_Proyectos!Q64+[1]Listado_Proyectos!R64 -> 0 | Q64: =IFERROR(VLOOKUP(C64,'[2]Postes 2024'!$A:$C,3,FALSE),0) -> 6 | R64: =IFERROR(VLOOKUP(C64,'[2]Líneas 2024'!$A:$C,3,FALSE),0) -> 23.0639 | S64: =IF((VLOOKUP($B64,Formulacion!$A:$BE,MATCH(S$1,Formulacion!$1:$1,0),FALSE)="NA"),"NA",Q64) -> NA | T64: =IF((VLOOKUP($B64,Formulacion!$A:$BE,MATCH(T$1,Formulacion!$1:$1,0),FALSE)="NA"),"NA",R64) -> NA | U64: NA | V64: =IF(OR(VLOOKUP($B64,Formulacion!$A:$BE,MATCH(V$1,Formulacion!$1:$1,0),FALSE)="NA",$D64=0),"NA",IF($B64="DLSBT",MID($D64,ZanjaInicioBT,ZanjaFinBT-ZanjaInicioBT+1)*1,MID($D64,ZanjaInicio,ZanjaFin-ZanjaInicio+1)*1)) -> NA | W64: 1 | X64: =IF(OR(VLOOKUP($B64,Formulacion!$A:$BE,MATCH(X$1,Formulacion!$1:$1,0),FALSE)="NA",$D64=0),"NA",MID($D64,m2Inicio+INDIRECT(B64),m2Fin-m2Inicio+1)*1) -> NA | Y64: =IF(OR(VLOOKUP($B64,Formulacion!$A:$BE,MATCH(Y$1,Formulacion!$1:$1,0),FALSE)="NA",$D64=0),"NA",RIGHT($D64,4)*1) -> NA | Z64: =IF(OR(VLOOKUP($B64,Formulacion!$A:$BE,MATCH(Z$1,Formulacion!$1:$1,0),FALSE)="NA",$D64=0),"NA",RIGHT($D64,3)*1) -> NA | AA64: 1 | AB64: =IF(VLOOKUP($B64,Formulacion!$A:$BE,MATCH(AB$1,Formulacion!$1:$1,0),FALSE)="NA",1,IF(X64<=m2Min,0,1)) -> 1 | AC64: =IF(VLOOKUP($B64,Formulacion!$A:$BE,MATCH(AC$1,Formulacion!$1:$1,0),FALSE)="NA",1,IF(OR(E64<=FechaMin,E64>FechaMax),0,1)) -> 1 | AD64: =IF(VLOOKUP($B64,Formulacion!$A:$BE,MATCH(AD$1,Formulacion!$1:$1,0),FALSE)="NA",1,IF(H64<=MaterialesMin,0,1)) -> 1 | AE64: =IF(VLOOKUP($B64,Formulacion!$A:$BE,MATCH(AE$1,Formulacion!$1:$1,0),FALSE)="NA",1,IF(N64=0,0,IF(OR(I64/N64<=MObraMin,I64/N64>=MObraMax),MDOmin,1))) -> 1 | AF64: =IF(VLOOKUP($B64,Formulacion!$A:$BE,MATCH(AF$1,Formulacion!$1:$1,0),FALSE)="NA",1,IF(N64<=CostoTotalMin,0,1)) -> 1 | AG64: =IF(VLOOKUP($B64,Formulacion!$A:$BE,MATCH(AG$1,Formulacion!$1:$1,0),FALSE)="NA",1,IF(S64<PostesMin,0,1)) -> 1 | AH64: =IF(VLOOKUP($B64,Formulacion!$A:$BE,MATCH(AH$1,Formulacion!$1:$1,0),FALSE)="NA",1,IF(T64<INDIRECT(VLOOKUP(B64,Formulacion!$A:$BE,2,FALSE)),0,1)) -> 1 | AI64: 1 | AJ64: 8024.86 | AK64: 1 | AL64: =IF(VLOOKUP($B64,Formulacion!$A:$BE,MATCH(AL$1,Formulacion!$1:$1,0),FALSE)="NA","NA",HLOOKUP(VLOOKUP($B64,Formulacion!$A:$BE,MATCH(AL$1,Formulacion!$1:$1,0),FALSE),$S:$AB,ROW(AL64),FALSE)) -> NA | AM64: =IF(VLOOKUP($B64,Formulacion!$A:$BE,MATCH(AM$1,Formulacion!$1:$1,0),FALSE)="NA",1,VLOOKUP($B64,Formulacion!$A:$BE,MATCH(AM$1,Formulacion!$1:$1,0),FALSE)) -> 1 | AN64: =IF(VLOOKUP($B64,Formulacion!$A:$BE,MATCH(AN$1,Formulacion!$1:$1,0),FALSE)="NA",1,VLOOKUP($B64,Formulacion!$A:$BE,MATCH(AN$1,Formulacion!$1:$1,0),FALSE)) -> 1 | AO64: 1 | AP64: =IF(VLOOKUP($B64,Formulacion!$A:$BE,MATCH(AP$1,Formulacion!$1:$1,0),FALSE)="NA","NA",IF(D64=0,"",VLOOKUP($B64,Formulacion!$A:$BE,MATCH(AP$1,Formulacion!$1:$1,0),FALSE))) -> NA | AQ64: X | AX64: NA | AY64: =IF(VLOOKUP($B64,Formulacion!$A:$BE,MATCH(AY$1,Formulacion!$1:$1,0),FALSE)="NA","NA",HLOOKUP(VLOOKUP($B64,Formulacion!$A:$BE,MATCH(AY$1,Formulacion!$1:$1,0),FALSE),$S:$AB,ROW(AY64),FALSE)) -> NA | AZ64: NA | BA64: 1 | BB64: =IF(VLOOKUP($B64,Formulacion!$A:$BE,MATCH(BB$1,Formulacion!$1:$1,0),FALSE)="NA",1,VLOOKUP($B64,Formulacion!$A:$BE,MATCH(BB$1,Formulacion!$1:$1,0),FALSE)) -> 0.9 | BC64: =IF(VLOOKUP($B64,Formulacion!$A:$BE,MATCH(BC$1,Formulacion!$1:$1,0),FALSE)="NA",1,VLOOKUP($B64,Formulacion!$A:$BE,MATCH(BC$1,Formulacion!$1:$1,0),FALSE)) -> 1 | BD64: 7222.374 | BF64: =VLOOKUP(C64,[3]Listado_Proyectos!$A$2:$I$815,9,FALSE) ->  | BG64: 2019-02-28
A65: Proyecto con cuenta ENSA 2024.xls | B65: =[1]Listado_Proyectos!K65 -> DEQOT | C65: =[1]Listado_Proyectos!A65 -> 01-49.23.0022 | E65: =[1]Listado_Proyectos!I65 -> 2024-05-17 | F65: =[1]Listado_Proyectos!D65 -> SANTA ISABEL | H65: =[1]Listado_Proyectos!N65 -> 4898.61 | I65: =[1]Listado_Proyectos!M65 -> 3047.63 | K65: =[1]Listado_Proyectos!O65 -> 128.63 | N65: =[1]Listado_Proyectos!P65 -> 8074.87 | P65: =[1]Listado_Proyectos!Q65+[1]Listado_Proyectos!R65 -> 0 | Q65: =IFERROR(VLOOKUP(C65,'[2]Postes 2024'!$A:$C,3,FALSE),0) -> 6 | R65: =IFERROR(VLOOKUP(C65,'[2]Líneas 2024'!$A:$C,3,FALSE),0) -> 23.0639 | S65: =IF((VLOOKUP($B65,Formulacion!$A:$BE,MATCH(S$1,Formulacion!$1:$1,0),FALSE)="NA"),"NA",Q65) -> NA | T65: =IF((VLOOKUP($B65,Formulacion!$A:$BE,MATCH(T$1,Formulacion!$1:$1,0),FALSE)="NA"),"NA",R65) -> NA | U65: NA | V65: =IF(OR(VLOOKUP($B65,Formulacion!$A:$BE,MATCH(V$1,Formulacion!$1:$1,0),FALSE)="NA",$D65=0),"NA",IF($B65="DLSBT",MID($D65,ZanjaInicioBT,ZanjaFinBT-ZanjaInicioBT+1)*1,MID($D65,ZanjaInicio,ZanjaFin-ZanjaInicio+1)*1)) -> NA | W65: 1 | X65: =IF(OR(VLOOKUP($B65,Formulacion!$A:$BE,MATCH(X$1,Formulacion!$1:$1,0),FALSE)="NA",$D65=0),"NA",MID($D65,m2Inicio+INDIRECT(B65),m2Fin-m2Inicio+1)*1) -> NA | Y65: =IF(OR(VLOOKUP($B65,Formulacion!$A:$BE,MATCH(Y$1,Formulacion!$1:$1,0),FALSE)="NA",$D65=0),"NA",RIGHT($D65,4)*1) -> NA | Z65: =IF(OR(VLOOKUP($B65,Formulacion!$A:$BE,MATCH(Z$1,Formulacion!$1:$1,0),FALSE)="NA",$D65=0),"NA",RIGHT($D65,3)*1) -> NA | AA65: 1 | AB65: =IF(VLOOKUP($B65,Formulacion!$A:$BE,MATCH(AB$1,Formulacion!$1:$1,0),FALSE)="NA",1,IF(X65<=m2Min,0,1)) -> 1 | AC65: =IF(VLOOKUP($B65,Formulacion!$A:$BE,MATCH(AC$1,Formulacion!$1:$1,0),FALSE)="NA",1,IF(OR(E65<=FechaMin,E65>FechaMax),0,1)) -> 1 | AD65: =IF(VLOOKUP($B65,Formulacion!$A:$BE,MATCH(AD$1,Formulacion!$1:$1,0),FALSE)="NA",1,IF(H65<=MaterialesMin,0,1)) -> 1 | AE65: =IF(VLOOKUP($B65,Formulacion!$A:$BE,MATCH(AE$1,Formulacion!$1:$1,0),FALSE)="NA",1,IF(N65=0,0,IF(OR(I65/N65<=MObraMin,I65/N65>=MObraMax),MDOmin,1))) -> 1 | AF65: =IF(VLOOKUP($B65,Formulacion!$A:$BE,MATCH(AF$1,Formulacion!$1:$1,0),FALSE)="NA",1,IF(N65<=CostoTotalMin,0,1)) -> 1 | AG65: =IF(VLOOKUP($B65,Formulacion!$A:$BE,MATCH(AG$1,Formulacion!$1:$1,0),FALSE)="NA",1,IF(S65<PostesMin,0,1)) -> 1 | AH65: =IF(VLOOKUP($B65,Formulacion!$A:$BE,MATCH(AH$1,Formulacion!$1:$1,0),FALSE)="NA",1,IF(T65<INDIRECT(VLOOKUP(B65,Formulacion!$A:$BE,2,FALSE)),0,1)) -> 1 | AI65: 1 | AJ65: 8074.87 | AK65: 1 | AL65: =IF(VLOOKUP($B65,Formulacion!$A:$BE,MATCH(AL$1,Formulacion!$1:$1,0),FALSE)="NA","NA",HLOOKUP(VLOOKUP($B65,Formulacion!$A:$BE,MATCH(AL$1,Formulacion!$1:$1,0),FALSE),$S:$AB,ROW(AL65),FALSE)) -> NA | AM65: =IF(VLOOKUP($B65,Formulacion!$A:$BE,MATCH(AM$1,Formulacion!$1:$1,0),FALSE)="NA",1,VLOOKUP($B65,Formulacion!$A:$BE,MATCH(AM$1,Formulacion!$1:$1,0),FALSE)) -> 1 | AN65: =IF(VLOOKUP($B65,Formulacion!$A:$BE,MATCH(AN$1,Formulacion!$1:$1,0),FALSE)="NA",1,VLOOKUP($B65,Formulacion!$A:$BE,MATCH(AN$1,Formulacion!$1:$1,0),FALSE)) -> 1 | AO65: 1 | AP65: =IF(VLOOKUP($B65,Formulacion!$A:$BE,MATCH(AP$1,Formulacion!$1:$1,0),FALSE)="NA","NA",IF(D65=0,"",VLOOKUP($B65,Formulacion!$A:$BE,MATCH(AP$1,Formulacion!$1:$1,0),FALSE))) -> NA | AQ65: X | AX65: NA | AY65: =IF(VLOOKUP($B65,Formulacion!$A:$BE,MATCH(AY$1,Formulacion!$1:$1,0),FALSE)="NA","NA",HLOOKUP(VLOOKUP($B65,Formulacion!$A:$BE,MATCH(AY$1,Formulacion!$1:$1,0),FALSE),$S:$AB,ROW(AY65),FALSE)) -> NA | AZ65: NA | BA65: 1 | BB65: =IF(VLOOKUP($B65,Formulacion!$A:$BE,MATCH(BB$1,Formulacion!$1:$1,0),FALSE)="NA",1,VLOOKUP($B65,Formulacion!$A:$BE,MATCH(BB$1,Formulacion!$1:$1,0),FALSE)) -> 0.9 | BC65: =IF(VLOOKUP($B65,Formulacion!$A:$BE,MATCH(BC$1,Formulacion!$1:$1,0),FALSE)="NA",1,VLOOKUP($B65,Formulacion!$A:$BE,MATCH(BC$1,Formulacion!$1:$1,0),FALSE)) -> 1 | BD65: 7267.383 | BF65: =VLOOKUP(C65,[3]Listado_Proyectos!$A$2:$I$815,9,FALSE) ->  | BG65: 2019-02-28
A66: Proyecto con cuenta ENSA 2024.xls | B66: =[1]Listado_Proyectos!K66 -> DLAMT-13,8 | C66: =[1]Listado_Proyectos!A66 -> 01-49.23.0022 | E66: =[1]Listado_Proyectos!I66 -> 2024-05-17 | F66: =[1]Listado_Proyectos!D66 -> SANTA ISABEL | H66: =[1]Listado_Proyectos!N66 -> 15175.16 | I66: =[1]Listado_Proyectos!M66 -> 16619.82 | K66: =[1]Listado_Proyectos!O66 -> 428.28 | N66: =[1]Listado_Proyectos!P66 -> 32223.26 | P66: =[1]Listado_Proyectos!Q66+[1]Listado_Proyectos!R66 -> 0 | Q66: =IFERROR(VLOOKUP(C66,'[2]Postes 2024'!$A:$C,3,FALSE),0) -> 6 | R66: =IFERROR(VLOOKUP(C66,'[2]Líneas 2024'!$A:$C,3,FALSE),0) -> 23.0639 | S66: =IF((VLOOKUP($B66,Formulacion!$A:$BE,MATCH(S$1,Formulacion!$1:$1,0),FALSE)="NA"),"NA",Q66) -> 6 | T66: =IF((VLOOKUP($B66,Formulacion!$A:$BE,MATCH(T$1,Formulacion!$1:$1,0),FALSE)="NA"),"NA",R66) -> 23.0639 | U66: 3.843983333 | V66: =IF(OR(VLOOKUP($B66,Formulacion!$A:$BE,MATCH(V$1,Formulacion!$1:$1,0),FALSE)="NA",$D66=0),"NA",IF($B66="DLSBT",MID($D66,ZanjaInicioBT,ZanjaFinBT-ZanjaInicioBT+1)*1,MID($D66,ZanjaInicio,ZanjaFin-ZanjaInicio+1)*1)) -> NA | W66: 1 | X66: =IF(OR(VLOOKUP($B66,Formulacion!$A:$BE,MATCH(X$1,Formulacion!$1:$1,0),FALSE)="NA",$D66=0),"NA",MID($D66,m2Inicio+INDIRECT(B66),m2Fin-m2Inicio+1)*1) -> NA | Y66: =IF(OR(VLOOKUP($B66,Formulacion!$A:$BE,MATCH(Y$1,Formulacion!$1:$1,0),FALSE)="NA",$D66=0),"NA",RIGHT($D66,4)*1) -> NA | Z66: =IF(OR(VLOOKUP($B66,Formulacion!$A:$BE,MATCH(Z$1,Formulacion!$1:$1,0),FALSE)="NA",$D66=0),"NA",RIGHT($D66,3)*1) -> NA | AA66: 1 | AB66: =IF(VLOOKUP($B66,Formulacion!$A:$BE,MATCH(AB$1,Formulacion!$1:$1,0),FALSE)="NA",1,IF(X66<=m2Min,0,1)) -> 1 | AC66: =IF(VLOOKUP($B66,Formulacion!$A:$BE,MATCH(AC$1,Formulacion!$1:$1,0),FALSE)="NA",1,IF(OR(E66<=FechaMin,E66>FechaMax),0,1)) -> 1 | AD66: =IF(VLOOKUP($B66,Formulacion!$A:$BE,MATCH(AD$1,Formulacion!$1:$1,0),FALSE)="NA",1,IF(H66<=MaterialesMin,0,1)) -> 1 | AE66: =IF(VLOOKUP($B66,Formulacion!$A:$BE,MATCH(AE$1,Formulacion!$1:$1,0),FALSE)="NA",1,IF(N66=0,0,IF(OR(I66/N66<=MObraMin,I66/N66>=MObraMax),MDOmin,1))) -> 1 | AF66: =IF(VLOOKUP($B66,Formulacion!$A:$BE,MATCH(AF$1,Formulacion!$1:$1,0),FALSE)="NA",1,IF(N66<=CostoTotalMin,0,1)) -> 1 | AG66: =IF(VLOOKUP($B66,Formulacion!$A:$BE,MATCH(AG$1,Formulacion!$1:$1,0),FALSE)="NA",1,IF(S66<PostesMin,0,1)) -> 1 | AH66: =IF(VLOOKUP($B66,Formulacion!$A:$BE,MATCH(AH$1,Formulacion!$1:$1,0),FALSE)="NA",1,IF(T66<INDIRECT(VLOOKUP(B66,Formulacion!$A:$BE,2,FALSE)),0,1)) -> 0 | AI66: 1 | AJ66: 32223.26 | AK66: 1 | AL66: =IF(VLOOKUP($B66,Formulacion!$A:$BE,MATCH(AL$1,Formulacion!$1:$1,0),FALSE)="NA","NA",HLOOKUP(VLOOKUP($B66,Formulacion!$A:$BE,MATCH(AL$1,Formulacion!$1:$1,0),FALSE),$S:$AB,ROW(AL66),FALSE)) -> 3.843983333 | AM66: =IF(VLOOKUP($B66,Formulacion!$A:$BE,MATCH(AM$1,Formulacion!$1:$1,0),FALSE)="NA",1,VLOOKUP($B66,Formulacion!$A:$BE,MATCH(AM$1,Formulacion!$1:$1,0),FALSE)) -> 45 | AN66: =IF(VLOOKUP($B66,Formulacion!$A:$BE,MATCH(AN$1,Formulacion!$1:$1,0),FALSE)="NA",1,VLOOKUP($B66,Formulacion!$A:$BE,MATCH(AN$1,Formulacion!$1:$1,0),FALSE)) -> 0.3 | AO66: CU | AP66: =IF(VLOOKUP($B66,Formulacion!$A:$BE,MATCH(AP$1,Formulacion!$1:$1,0),FALSE)="NA","NA",IF(D66=0,"",VLOOKUP($B66,Formulacion!$A:$BE,MATCH(AP$1,Formulacion!$1:$1,0),FALSE))) ->  | AQ66: X | AX66: NA | AY66: =IF(VLOOKUP($B66,Formulacion!$A:$BE,MATCH(AY$1,Formulacion!$1:$1,0),FALSE)="NA","NA",HLOOKUP(VLOOKUP($B66,Formulacion!$A:$BE,MATCH(AY$1,Formulacion!$1:$1,0),FALSE),$S:$AB,ROW(AY66),FALSE)) -> 23.0639 | AZ66: NA | BA66: 1 | BB66: =IF(VLOOKUP($B66,Formulacion!$A:$BE,MATCH(BB$1,Formulacion!$1:$1,0),FALSE)="NA",1,VLOOKUP($B66,Formulacion!$A:$BE,MATCH(BB$1,Formulacion!$1:$1,0),FALSE)) -> 0.9 | BC66: =IF(VLOOKUP($B66,Formulacion!$A:$BE,MATCH(BC$1,Formulacion!$1:$1,0),FALSE)="NA",1,VLOOKUP($B66,Formulacion!$A:$BE,MATCH(BC$1,Formulacion!$1:$1,0),FALSE)) -> 1 | BD66: 29000.934 | BF66: =VLOOKUP(C66,[3]Listado_Proyectos!$A$2:$I$815,9,FALSE) ->  | BG66: 2019-02-28
A67: Proyecto con cuenta ENSA 2024.xls | B67: =[1]Listado_Proyectos!K67 -> DTRMB-13,8 | C67: =[1]Listado_Proyectos!A67 -> 01-49.23.0022 | E67: =[1]Listado_Proyectos!I67 -> 2024-05-17 | F67: =[1]Listado_Proyectos!D67 -> SANTA ISABEL | H67: =[1]Listado_Proyectos!N67 -> 1852.23 | I67: =[1]Listado_Proyectos!M67 -> 1899.77 | K67: =[1]Listado_Proyectos!O67 -> 69.87 | N67: =[1]Listado_Proyectos!P67 -> 3821.87 | P67: =[1]Listado_Proyectos!Q67+[1]Listado_Proyectos!R67 -> 0 | Q67: =IFERROR(VLOOKUP(C67,'[2]Postes 2024'!$A:$C,3,FALSE),0) -> 6 | R67: =IFERROR(VLOOKUP(C67,'[2]Líneas 2024'!$A:$C,3,FALSE),0) -> 23.0639 | S67: =IF((VLOOKUP($B67,Formulacion!$A:$BE,MATCH(S$1,Formulacion!$1:$1,0),FALSE)="NA"),"NA",Q67) -> NA | T67: =IF((VLOOKUP($B67,Formulacion!$A:$BE,MATCH(T$1,Formulacion!$1:$1,0),FALSE)="NA"),"NA",R67) -> NA | U67: =IF(S67="NA","NA",IF(S67=0,"SP",T67/S67)) -> NA | V67: =IF(OR(VLOOKUP($B67,Formulacion!$A:$BE,MATCH(V$1,Formulacion!$1:$1,0),FALSE)="NA",$D67=0),"NA",IF($B67="DLSBT",MID($D67,ZanjaInicioBT,ZanjaFinBT-ZanjaInicioBT+1)*1,MID($D67,ZanjaInicio,ZanjaFin-ZanjaInicio+1)*1)) -> NA | W67: 1 | X67: =IF(OR(VLOOKUP($B67,Formulacion!$A:$BE,MATCH(X$1,Formulacion!$1:$1,0),FALSE)="NA",$D67=0),"NA",MID($D67,m2Inicio+INDIRECT(B67),m2Fin-m2Inicio+1)*1) -> NA | Y67: =IF(OR(VLOOKUP($B67,Formulacion!$A:$BE,MATCH(Y$1,Formulacion!$1:$1,0),FALSE)="NA",$D67=0),"NA",RIGHT($D67,4)*1) -> NA | Z67: =IF(OR(VLOOKUP($B67,Formulacion!$A:$BE,MATCH(Z$1,Formulacion!$1:$1,0),FALSE)="NA",$D67=0),"NA",RIGHT($D67,3)*1) -> NA | AA67: =IF(OR(AND(Y67="NA",Z67="NA"),AND(Y67="NA",Z67>CantTrbtOtCMin),AND(Y67>CantTrbtOtCMin,Z67="NA")),1,0) -> 1 | AB67: =IF(VLOOKUP($B67,Formulacion!$A:$BE,MATCH(AB$1,Formulacion!$1:$1,0),FALSE)="NA",1,IF(X67<=m2Min,0,1)) -> 1 | AC67: =IF(VLOOKUP($B67,Formulacion!$A:$BE,MATCH(AC$1,Formulacion!$1:$1,0),FALSE)="NA",1,IF(OR(E67<=FechaMin,E67>FechaMax),0,1)) -> 1 | AD67: =IF(VLOOKUP($B67,Formulacion!$A:$BE,MATCH(AD$1,Formulacion!$1:$1,0),FALSE)="NA",1,IF(H67<=MaterialesMin,0,1)) -> 1 | AE67: =IF(VLOOKUP($B67,Formulacion!$A:$BE,MATCH(AE$1,Formulacion!$1:$1,0),FALSE)="NA",1,IF(N67=0,0,IF(OR(I67/N67<=MObraMin,I67/N67>=MObraMax),MDOmin,1))) -> 1 | AF67: =IF(VLOOKUP($B67,Formulacion!$A:$BE,MATCH(AF$1,Formulacion!$1:$1,0),FALSE)="NA",1,IF(N67<=CostoTotalMin,0,1)) -> 1 | AG67: =IF(VLOOKUP($B67,Formulacion!$A:$BE,MATCH(AG$1,Formulacion!$1:$1,0),FALSE)="NA",1,IF(S67<PostesMin,0,1)) -> 1 | AH67: =IF(VLOOKUP($B67,Formulacion!$A:$BE,MATCH(AH$1,Formulacion!$1:$1,0),FALSE)="NA",1,IF(T67<INDIRECT(VLOOKUP(B67,Formulacion!$A:$BE,2,FALSE)),0,1)) -> 1 | AI67: =AA67*AB67*AC67*AD67*AE67*AF67*MAX(AG67,AH67) -> 1 | AJ67: =N67*AI67 -> 3821.87 | AK67: =IF(OR(E67<=FechaMin,E67>FechaMax),0,1) -> 1 | AL67: =IF(VLOOKUP($B67,Formulacion!$A:$BE,MATCH(AL$1,Formulacion!$1:$1,0),FALSE)="NA","NA",HLOOKUP(VLOOKUP($B67,Formulacion!$A:$BE,MATCH(AL$1,Formulacion!$1:$1,0),FALSE),$S:$AB,ROW(AL67),FALSE)) -> NA | AM67: =IF(VLOOKUP($B67,Formulacion!$A:$BE,MATCH(AM$1,Formulacion!$1:$1,0),FALSE)="NA",1,VLOOKUP($B67,Formulacion!$A:$BE,MATCH(AM$1,Formulacion!$1:$1,0),FALSE)) -> 1 | AN67: =IF(VLOOKUP($B67,Formulacion!$A:$BE,MATCH(AN$1,Formulacion!$1:$1,0),FALSE)="NA",1,VLOOKUP($B67,Formulacion!$A:$BE,MATCH(AN$1,Formulacion!$1:$1,0),FALSE)) -> 1 | AO67: =IF(AL67="NA",1,IF(AL67<=AM67*(1+AN67),"CU","NC")) -> 1 | AP67: =IF(VLOOKUP($B67,Formulacion!$A:$BE,MATCH(AP$1,Formulacion!$1:$1,0),FALSE)="NA","NA",IF(D67=0,"",VLOOKUP($B67,Formulacion!$A:$BE,MATCH(AP$1,Formulacion!$1:$1,0),FALSE))) ->  | AQ67: =IF(OR(MID(AP67,1,2)="",MID(AP67,1,2)="NA"),"X",MID(D67,MID(AP67,1,2),MID(AP67,3,2))) -> X | AR67: =IF(MID(AP67,5,2)="","",MID(D67,MID(AP67,5,2),MID(AP67,7,2))) ->  | AS67: =IF(MID(AP67,9,2)="","",MID(D67,MID(AP67,9,2),MID(AP67,11,2))) ->  | AT67: =IF(MID(AP67,13,2)="","",MID(D67,MID(AP67,13,2),MID(AP67,15,2))) ->  | AU67: =IF(MID(AP67,17,2)="","",MID(D67,MID(AP67,17,2),MID(AP67,19,2))) ->  | AV67: =IF(MID(AP67,21,2)="","",MID(D67,MID(AP67,21,2),MID(AP67,23,2))) ->  | AW67: =IF(MID(AP67,25,2)="","",MID(D67,MID(AP67,25,2),MID(AP67,27,2))) ->  | AX67: NA | AY67: =IF(VLOOKUP($B67,Formulacion!$A:$BE,MATCH(AY$1,Formulacion!$1:$1,0),FALSE)="NA","NA",HLOOKUP(VLOOKUP($B67,Formulacion!$A:$BE,MATCH(AY$1,Formulacion!$1:$1,0),FALSE),$S:$AB,ROW(AY67),FALSE)) -> NA | AZ67: =IF(AX67="NA","NA",IF(AY67=0,0,N67/AY67)) -> NA | BA67: =IFERROR(IF(OR(AZ67="NA",AO67="NC"),1,IF(AZ67<AX67,1,AX67/AZ67)),100%) -> 1 | BB67: =IF(VLOOKUP($B67,Formulacion!$A:$BE,MATCH(BB$1,Formulacion!$1:$1,0),FALSE)="NA",1,VLOOKUP($B67,Formulacion!$A:$BE,MATCH(BB$1,Formulacion!$1:$1,0),FALSE)) -> 0.9 | BC67: =IF(VLOOKUP($B67,Formulacion!$A:$BE,MATCH(BC$1,Formulacion!$1:$1,0),FALSE)="NA",1,VLOOKUP($B67,Formulacion!$A:$BE,MATCH(BC$1,Formulacion!$1:$1,0),FALSE)) -> 1 | BD67: =AJ67*BA67*BB67*BC67 -> 3439.683 | BF67: =VLOOKUP(C67,[3]Listado_Proyectos!$A$2:$I$815,9,FALSE) ->  | BG67: 2019-02-28
A68: Proyecto con cuenta ENSA 2024.xls | B68: =[1]Listado_Proyectos!K68 -> PPLIN | C68: =[1]Listado_Proyectos!A68 -> 01-31.24.0001 | E68: =[1]Listado_Proyectos!I68 -> 2024-08-30 | F68: =[1]Listado_Proyectos!D68 -> PANAMA | H68: =[1]Listado_Proyectos!N68 -> 0 | I68: =[1]Listado_Proyectos!M68 -> 19943.88 | K68: =[1]Listado_Proyectos!O68 -> 0 | N68: =[1]Listado_Proyectos!P68 -> 19943.88 | P68: =[1]Listado_Proyectos!Q68+[1]Listado_Proyectos!R68 -> 0 | Q68: =IFERROR(VLOOKUP(C68,'[2]Postes 2024'!$A:$C,3,FALSE),0) -> 0 | R68: =IFERROR(VLOOKUP(C68,'[2]Líneas 2024'!$A:$C,3,FALSE),0) -> 0 | S68: =IF((VLOOKUP($B68,Formulacion!$A:$BE,MATCH(S$1,Formulacion!$1:$1,0),FALSE)="NA"),"NA",Q68) -> NA | T68: =IF((VLOOKUP($B68,Formulacion!$A:$BE,MATCH(T$1,Formulacion!$1:$1,0),FALSE)="NA"),"NA",R68) -> NA | U68: NA | V68: =IF(OR(VLOOKUP($B68,Formulacion!$A:$BE,MATCH(V$1,Formulacion!$1:$1,0),FALSE)="NA",$D68=0),"NA",IF($B68="DLSBT",MID($D68,ZanjaInicioBT,ZanjaFinBT-ZanjaInicioBT+1)*1,MID($D68,ZanjaInicio,ZanjaFin-ZanjaInicio+1)*1)) -> NA | W68: 1 | X68: =IF(OR(VLOOKUP($B68,Formulacion!$A:$BE,MATCH(X$1,Formulacion!$1:$1,0),FALSE)="NA",$D68=0),"NA",MID($D68,m2Inicio+INDIRECT(B68),m2Fin-m2Inicio+1)*1) -> NA | Y68: =IF(OR(VLOOKUP($B68,Formulacion!$A:$BE,MATCH(Y$1,Formulacion!$1:$1,0),FALSE)="NA",$D68=0),"NA",RIGHT($D68,4)*1) -> NA | Z68: =IF(OR(VLOOKUP($B68,Formulacion!$A:$BE,MATCH(Z$1,Formulacion!$1:$1,0),FALSE)="NA",$D68=0),"NA",RIGHT($D68,3)*1) -> NA | AA68: 1 | AB68: =IF(VLOOKUP($B68,Formulacion!$A:$BE,MATCH(AB$1,Formulacion!$1:$1,0),FALSE)="NA",1,IF(X68<=m2Min,0,1)) -> 1 | AC68: =IF(VLOOKUP($B68,Formulacion!$A:$BE,MATCH(AC$1,Formulacion!$1:$1,0),FALSE)="NA",1,IF(OR(E68<=FechaMin,E68>FechaMax),0,1)) -> 1 | AD68: =IF(VLOOKUP($B68,Formulacion!$A:$BE,MATCH(AD$1,Formulacion!$1:$1,0),FALSE)="NA",1,IF(H68<=MaterialesMin,0,1)) -> 1 | AE68: =IF(VLOOKUP($B68,Formulacion!$A:$BE,MATCH(AE$1,Formulacion!$1:$1,0),FALSE)="NA",1,IF(N68=0,0,IF(OR(I68/N68<=MObraMin,I68/N68>=MObraMax),MDOmin,1))) -> 1 | AF68: =IF(VLOOKUP($B68,Formulacion!$A:$BE,MATCH(AF$1,Formulacion!$1:$1,0),FALSE)="NA",1,IF(N68<=CostoTotalMin,0,1)) -> 1 | AG68: =IF(VLOOKUP($B68,Formulacion!$A:$BE,MATCH(AG$1,Formulacion!$1:$1,0),FALSE)="NA",1,IF(S68<PostesMin,0,1)) -> 1 | AH68: =IF(VLOOKUP($B68,Formulacion!$A:$BE,MATCH(AH$1,Formulacion!$1:$1,0),FALSE)="NA",1,IF(T68<INDIRECT(VLOOKUP(B68,Formulacion!$A:$BE,2,FALSE)),0,1)) -> 1 | AI68: 1 | AJ68: 19943.88 | AK68: 1 | AL68: =IF(VLOOKUP($B68,Formulacion!$A:$BE,MATCH(AL$1,Formulacion!$1:$1,0),FALSE)="NA","NA",HLOOKUP(VLOOKUP($B68,Formulacion!$A:$BE,MATCH(AL$1,Formulacion!$1:$1,0),FALSE),$S:$AB,ROW(AL68),FALSE)) -> NA | AM68: =IF(VLOOKUP($B68,Formulacion!$A:$BE,MATCH(AM$1,Formulacion!$1:$1,0),FALSE)="NA",1,VLOOKUP($B68,Formulacion!$A:$BE,MATCH(AM$1,Formulacion!$1:$1,0),FALSE)) -> 1 | AN68: =IF(VLOOKUP($B68,Formulacion!$A:$BE,MATCH(AN$1,Formulacion!$1:$1,0),FALSE)="NA",1,VLOOKUP($B68,Formulacion!$A:$BE,MATCH(AN$1,Formulacion!$1:$1,0),FALSE)) -> 1 | AO68: 1 | AP68: =IF(VLOOKUP($B68,Formulacion!$A:$BE,MATCH(AP$1,Formulacion!$1:$1,0),FALSE)="NA","NA",IF(D68=0,"",VLOOKUP($B68,Formulacion!$A:$BE,MATCH(AP$1,Formulacion!$1:$1,0),FALSE))) -> NA | AQ68: X | AX68: NA | AY68: =IF(VLOOKUP($B68,Formulacion!$A:$BE,MATCH(AY$1,Formulacion!$1:$1,0),FALSE)="NA","NA",HLOOKUP(VLOOKUP($B68,Formulacion!$A:$BE,MATCH(AY$1,Formulacion!$1:$1,0),FALSE),$S:$AB,ROW(AY68),FALSE)) -> NA | AZ68: NA | BA68: 1 | BB68: =IF(VLOOKUP($B68,Formulacion!$A:$BE,MATCH(BB$1,Formulacion!$1:$1,0),FALSE)="NA",1,VLOOKUP($B68,Formulacion!$A:$BE,MATCH(BB$1,Formulacion!$1:$1,0),FALSE)) -> 0.9 | BC68: =IF(VLOOKUP($B68,Formulacion!$A:$BE,MATCH(BC$1,Formulacion!$1:$1,0),FALSE)="NA",1,VLOOKUP($B68,Formulacion!$A:$BE,MATCH(BC$1,Formulacion!$1:$1,0),FALSE)) -> 1 | BD68: 17949.492 | BF68: =VLOOKUP(C68,[3]Listado_Proyectos!$A$2:$I$815,9,FALSE) ->  | BG68: 2019-02-28
A69: Proyecto con cuenta ENSA 2024.xls | B69: =[1]Listado_Proyectos!K69 -> AINAP | C69: =[1]Listado_Proyectos!A69 -> 01-06.24.0040 | E69: =[1]Listado_Proyectos!I69 -> 2024-10-21 | F69: =[1]Listado_Proyectos!D69 -> COLON | H69: =[1]Listado_Proyectos!N69 -> 2694.56 | I69: =[1]Listado_Proyectos!M69 -> 1647.51 | K69: =[1]Listado_Proyectos!O69 -> 19.97 | N69: =[1]Listado_Proyectos!P69 -> 4362.04 | P69: =[1]Listado_Proyectos!Q69+[1]Listado_Proyectos!R69 -> 0 | Q69: =IFERROR(VLOOKUP(C69,'[2]Postes 2024'!$A:$C,3,FALSE),0) -> 4 | R69: =IFERROR(VLOOKUP(C69,'[2]Líneas 2024'!$A:$C,3,FALSE),0) -> 598.0996 | S69: =IF((VLOOKUP($B69,Formulacion!$A:$BE,MATCH(S$1,Formulacion!$1:$1,0),FALSE)="NA"),"NA",Q69) -> NA | T69: =IF((VLOOKUP($B69,Formulacion!$A:$BE,MATCH(T$1,Formulacion!$1:$1,0),FALSE)="NA"),"NA",R69) -> NA | U69: NA | V69: =IF(OR(VLOOKUP($B69,Formulacion!$A:$BE,MATCH(V$1,Formulacion!$1:$1,0),FALSE)="NA",$D69=0),"NA",IF($B69="DLSBT",MID($D69,ZanjaInicioBT,ZanjaFinBT-ZanjaInicioBT+1)*1,MID($D69,ZanjaInicio,ZanjaFin-ZanjaInicio+1)*1)) -> NA | W69: 1 | X69: =IF(OR(VLOOKUP($B69,Formulacion!$A:$BE,MATCH(X$1,Formulacion!$1:$1,0),FALSE)="NA",$D69=0),"NA",MID($D69,m2Inicio+INDIRECT(B69),m2Fin-m2Inicio+1)*1) -> NA | Y69: =IF(OR(VLOOKUP($B69,Formulacion!$A:$BE,MATCH(Y$1,Formulacion!$1:$1,0),FALSE)="NA",$D69=0),"NA",RIGHT($D69,4)*1) -> NA | Z69: =IF(OR(VLOOKUP($B69,Formulacion!$A:$BE,MATCH(Z$1,Formulacion!$1:$1,0),FALSE)="NA",$D69=0),"NA",RIGHT($D69,3)*1) -> NA | AA69: 1 | AB69: =IF(VLOOKUP($B69,Formulacion!$A:$BE,MATCH(AB$1,Formulacion!$1:$1,0),FALSE)="NA",1,IF(X69<=m2Min,0,1)) -> 1 | AC69: =IF(VLOOKUP($B69,Formulacion!$A:$BE,MATCH(AC$1,Formulacion!$1:$1,0),FALSE)="NA",1,IF(OR(E69<=FechaMin,E69>FechaMax),0,1)) -> 1 | AD69: =IF(VLOOKUP($B69,Formulacion!$A:$BE,MATCH(AD$1,Formulacion!$1:$1,0),FALSE)="NA",1,IF(H69<=MaterialesMin,0,1)) -> 1 | AE69: =IF(VLOOKUP($B69,Formulacion!$A:$BE,MATCH(AE$1,Formulacion!$1:$1,0),FALSE)="NA",1,IF(N69=0,0,IF(OR(I69/N69<=MObraMin,I69/N69>=MObraMax),MDOmin,1))) -> 1 | AF69: =IF(VLOOKUP($B69,Formulacion!$A:$BE,MATCH(AF$1,Formulacion!$1:$1,0),FALSE)="NA",1,IF(N69<=CostoTotalMin,0,1)) -> 1 | AG69: =IF(VLOOKUP($B69,Formulacion!$A:$BE,MATCH(AG$1,Formulacion!$1:$1,0),FALSE)="NA",1,IF(S69<PostesMin,0,1)) -> 1 | AH69: =IF(VLOOKUP($B69,Formulacion!$A:$BE,MATCH(AH$1,Formulacion!$1:$1,0),FALSE)="NA",1,IF(T69<INDIRECT(VLOOKUP(B69,Formulacion!$A:$BE,2,FALSE)),0,1)) -> 1 | AI69: 1 | AJ69: 4362.04 | AK69: 1 | AL69: =IF(VLOOKUP($B69,Formulacion!$A:$BE,MATCH(AL$1,Formulacion!$1:$1,0),FALSE)="NA","NA",HLOOKUP(VLOOKUP($B69,Formulacion!$A:$BE,MATCH(AL$1,Formulacion!$1:$1,0),FALSE),$S:$AB,ROW(AL69),FALSE)) -> NA | AM69: =IF(VLOOKUP($B69,Formulacion!$A:$BE,MATCH(AM$1,Formulacion!$1:$1,0),FALSE)="NA",1,VLOOKUP($B69,Formulacion!$A:$BE,MATCH(AM$1,Formulacion!$1:$1,0),FALSE)) -> 1 | AN69: =IF(VLOOKUP($B69,Formulacion!$A:$BE,MATCH(AN$1,Formulacion!$1:$1,0),FALSE)="NA",1,VLOOKUP($B69,Formulacion!$A:$BE,MATCH(AN$1,Formulacion!$1:$1,0),FALSE)) -> 1 | AO69: 1 | AP69: =IF(VLOOKUP($B69,Formulacion!$A:$BE,MATCH(AP$1,Formulacion!$1:$1,0),FALSE)="NA","NA",IF(D69=0,"",VLOOKUP($B69,Formulacion!$A:$BE,MATCH(AP$1,Formulacion!$1:$1,0),FALSE))) -> NA | AQ69: X | AX69: NA | AY69: =IF(VLOOKUP($B69,Formulacion!$A:$BE,MATCH(AY$1,Formulacion!$1:$1,0),FALSE)="NA","NA",HLOOKUP(VLOOKUP($B69,Formulacion!$A:$BE,MATCH(AY$1,Formulacion!$1:$1,0),FALSE),$S:$AB,ROW(AY69),FALSE)) -> NA | AZ69: NA | BA69: 1 | BB69: =IF(VLOOKUP($B69,Formulacion!$A:$BE,MATCH(BB$1,Formulacion!$1:$1,0),FALSE)="NA",1,VLOOKUP($B69,Formulacion!$A:$BE,MATCH(BB$1,Formulacion!$1:$1,0),FALSE)) -> 0.9 | BC69: =IF(VLOOKUP($B69,Formulacion!$A:$BE,MATCH(BC$1,Formulacion!$1:$1,0),FALSE)="NA",1,VLOOKUP($B69,Formulacion!$A:$BE,MATCH(BC$1,Formulacion!$1:$1,0),FALSE)) -> 1 | BD69: 3925.836 | BF69: =VLOOKUP(C69,[3]Listado_Proyectos!$A$2:$I$815,9,FALSE) ->  | BG69: 2019-02-28
A70: Proyecto con cuenta ENSA 2024.xls | B70: =[1]Listado_Proyectos!K70 -> DEQOT | C70: =[1]Listado_Proyectos!A70 -> 01-06.24.0040 | E70: =[1]Listado_Proyectos!I70 -> 2024-10-21 | F70: =[1]Listado_Proyectos!D70 -> COLON | H70: =[1]Listado_Proyectos!N70 -> 5368.66 | I70: =[1]Listado_Proyectos!M70 -> 1820.74 | K70: =[1]Listado_Proyectos!O70 -> 16.02 | N70: =[1]Listado_Proyectos!P70 -> 7205.42 | P70: =[1]Listado_Proyectos!Q70+[1]Listado_Proyectos!R70 -> 0 | Q70: =IFERROR(VLOOKUP(C70,'[2]Postes 2024'!$A:$C,3,FALSE),0) -> 4 | R70: =IFERROR(VLOOKUP(C70,'[2]Líneas 2024'!$A:$C,3,FALSE),0) -> 598.0996 | S70: =IF((VLOOKUP($B70,Formulacion!$A:$BE,MATCH(S$1,Formulacion!$1:$1,0),FALSE)="NA"),"NA",Q70) -> NA | T70: =IF((VLOOKUP($B70,Formulacion!$A:$BE,MATCH(T$1,Formulacion!$1:$1,0),FALSE)="NA"),"NA",R70) -> NA | U70: NA | V70: =IF(OR(VLOOKUP($B70,Formulacion!$A:$BE,MATCH(V$1,Formulacion!$1:$1,0),FALSE)="NA",$D70=0),"NA",IF($B70="DLSBT",MID($D70,ZanjaInicioBT,ZanjaFinBT-ZanjaInicioBT+1)*1,MID($D70,ZanjaInicio,ZanjaFin-ZanjaInicio+1)*1)) -> NA | W70: 1 | X70: =IF(OR(VLOOKUP($B70,Formulacion!$A:$BE,MATCH(X$1,Formulacion!$1:$1,0),FALSE)="NA",$D70=0),"NA",MID($D70,m2Inicio+INDIRECT(B70),m2Fin-m2Inicio+1)*1) -> NA | Y70: =IF(OR(VLOOKUP($B70,Formulacion!$A:$BE,MATCH(Y$1,Formulacion!$1:$1,0),FALSE)="NA",$D70=0),"NA",RIGHT($D70,4)*1) -> NA | Z70: =IF(OR(VLOOKUP($B70,Formulacion!$A:$BE,MATCH(Z$1,Formulacion!$1:$1,0),FALSE)="NA",$D70=0),"NA",RIGHT($D70,3)*1) -> NA | AA70: 1 | AB70: =IF(VLOOKUP($B70,Formulacion!$A:$BE,MATCH(AB$1,Formulacion!$1:$1,0),FALSE)="NA",1,IF(X70<=m2Min,0,1)) -> 1 | AC70: =IF(VLOOKUP($B70,Formulacion!$A:$BE,MATCH(AC$1,Formulacion!$1:$1,0),FALSE)="NA",1,IF(OR(E70<=FechaMin,E70>FechaMax),0,1)) -> 1 | AD70: =IF(VLOOKUP($B70,Formulacion!$A:$BE,MATCH(AD$1,Formulacion!$1:$1,0),FALSE)="NA",1,IF(H70<=MaterialesMin,0,1)) -> 1 | AE70: =IF(VLOOKUP($B70,Formulacion!$A:$BE,MATCH(AE$1,Formulacion!$1:$1,0),FALSE)="NA",1,IF(N70=0,0,IF(OR(I70/N70<=MObraMin,I70/N70>=MObraMax),MDOmin,1))) -> 1 | AF70: =IF(VLOOKUP($B70,Formulacion!$A:$BE,MATCH(AF$1,Formulacion!$1:$1,0),FALSE)="NA",1,IF(N70<=CostoTotalMin,0,1)) -> 1 | AG70: =IF(VLOOKUP($B70,Formulacion!$A:$BE,MATCH(AG$1,Formulacion!$1:$1,0),FALSE)="NA",1,IF(S70<PostesMin,0,1)) -> 1 | AH70: =IF(VLOOKUP($B70,Formulacion!$A:$BE,MATCH(AH$1,Formulacion!$1:$1,0),FALSE)="NA",1,IF(T70<INDIRECT(VLOOKUP(B70,Formulacion!$A:$BE,2,FALSE)),0,1)) -> 1 | AI70: 1 | AJ70: 7205.42 | AK70: 1 | AL70: =IF(VLOOKUP($B70,Formulacion!$A:$BE,MATCH(AL$1,Formulacion!$1:$1,0),FALSE)="NA","NA",HLOOKUP(VLOOKUP($B70,Formulacion!$A:$BE,MATCH(AL$1,Formulacion!$1:$1,0),FALSE),$S:$AB,ROW(AL70),FALSE)) -> NA | AM70: =IF(VLOOKUP($B70,Formulacion!$A:$BE,MATCH(AM$1,Formulacion!$1:$1,0),FALSE)="NA",1,VLOOKUP($B70,Formulacion!$A:$BE,MATCH(AM$1,Formulacion!$1:$1,0),FALSE)) -> 1 | AN70: =IF(VLOOKUP($B70,Formulacion!$A:$BE,MATCH(AN$1,Formulacion!$1:$1,0),FALSE)="NA",1,VLOOKUP($B70,Formulacion!$A:$BE,MATCH(AN$1,Formulacion!$1:$1,0),FALSE)) -> 1 | AO70: 1 | AP70: =IF(VLOOKUP($B70,Formulacion!$A:$BE,MATCH(AP$1,Formulacion!$1:$1,0),FALSE)="NA","NA",IF(D70=0,"",VLOOKUP($B70,Formulacion!$A:$BE,MATCH(AP$1,Formulacion!$1:$1,0),FALSE))) -> NA | AQ70: X | AX70: NA | AY70: =IF(VLOOKUP($B70,Formulacion!$A:$BE,MATCH(AY$1,Formulacion!$1:$1,0),FALSE)="NA","NA",HLOOKUP(VLOOKUP($B70,Formulacion!$A:$BE,MATCH(AY$1,Formulacion!$1:$1,0),FALSE),$S:$AB,ROW(AY70),FALSE)) -> NA | AZ70: NA | BA70: 1 | BB70: =IF(VLOOKUP($B70,Formulacion!$A:$BE,MATCH(BB$1,Formulacion!$1:$1,0),FALSE)="NA",1,VLOOKUP($B70,Formulacion!$A:$BE,MATCH(BB$1,Formulacion!$1:$1,0),FALSE)) -> 0.9 | BC70: =IF(VLOOKUP($B70,Formulacion!$A:$BE,MATCH(BC$1,Formulacion!$1:$1,0),FALSE)="NA",1,VLOOKUP($B70,Formulacion!$A:$BE,MATCH(BC$1,Formulacion!$1:$1,0),FALSE)) -> 1 | BD70: 6484.878 | BF70: =VLOOKUP(C70,[3]Listado_Proyectos!$A$2:$I$815,9,FALSE) ->  | BG70: 2019-02-28
A71: Proyecto con cuenta ENSA 2024.xls | B71: =[1]Listado_Proyectos!K71 -> DLAMT-13,8 | C71: =[1]Listado_Proyectos!A71 -> 01-06.24.0040 | E71: =[1]Listado_Proyectos!I71 -> 2024-10-21 | F71: =[1]Listado_Proyectos!D71 -> COLON | H71: =[1]Listado_Proyectos!N71 -> 18366.1 | I71: =[1]Listado_Proyectos!M71 -> 10952.5 | K71: =[1]Listado_Proyectos!O71 -> 53.2 | N71: =[1]Listado_Proyectos!P71 -> 29371.8 | P71: =[1]Listado_Proyectos!Q71+[1]Listado_Proyectos!R71 -> 0 | Q71: =IFERROR(VLOOKUP(C71,'[2]Postes 2024'!$A:$C,3,FALSE),0) -> 4 | R71: =IFERROR(VLOOKUP(C71,'[2]Líneas 2024'!$A:$C,3,FALSE),0) -> 598.0996 | S71: =IF((VLOOKUP($B71,Formulacion!$A:$BE,MATCH(S$1,Formulacion!$1:$1,0),FALSE)="NA"),"NA",Q71) -> 4 | T71: =IF((VLOOKUP($B71,Formulacion!$A:$BE,MATCH(T$1,Formulacion!$1:$1,0),FALSE)="NA"),"NA",R71) -> 598.0996 | U71: 149.5249 | V71: =IF(OR(VLOOKUP($B71,Formulacion!$A:$BE,MATCH(V$1,Formulacion!$1:$1,0),FALSE)="NA",$D71=0),"NA",IF($B71="DLSBT",MID($D71,ZanjaInicioBT,ZanjaFinBT-ZanjaInicioBT+1)*1,MID($D71,ZanjaInicio,ZanjaFin-ZanjaInicio+1)*1)) -> NA | W71: 1 | X71: =IF(OR(VLOOKUP($B71,Formulacion!$A:$BE,MATCH(X$1,Formulacion!$1:$1,0),FALSE)="NA",$D71=0),"NA",MID($D71,m2Inicio+INDIRECT(B71),m2Fin-m2Inicio+1)*1) -> NA | Y71: =IF(OR(VLOOKUP($B71,Formulacion!$A:$BE,MATCH(Y$1,Formulacion!$1:$1,0),FALSE)="NA",$D71=0),"NA",RIGHT($D71,4)*1) -> NA | Z71: =IF(OR(VLOOKUP($B71,Formulacion!$A:$BE,MATCH(Z$1,Formulacion!$1:$1,0),FALSE)="NA",$D71=0),"NA",RIGHT($D71,3)*1) -> NA | AA71: 1 | AB71: =IF(VLOOKUP($B71,Formulacion!$A:$BE,MATCH(AB$1,Formulacion!$1:$1,0),FALSE)="NA",1,IF(X71<=m2Min,0,1)) -> 1 | AC71: =IF(VLOOKUP($B71,Formulacion!$A:$BE,MATCH(AC$1,Formulacion!$1:$1,0),FALSE)="NA",1,IF(OR(E71<=FechaMin,E71>FechaMax),0,1)) -> 1 | AD71: =IF(VLOOKUP($B71,Formulacion!$A:$BE,MATCH(AD$1,Formulacion!$1:$1,0),FALSE)="NA",1,IF(H71<=MaterialesMin,0,1)) -> 1 | AE71: =IF(VLOOKUP($B71,Formulacion!$A:$BE,MATCH(AE$1,Formulacion!$1:$1,0),FALSE)="NA",1,IF(N71=0,0,IF(OR(I71/N71<=MObraMin,I71/N71>=MObraMax),MDOmin,1))) -> 1 | AF71: =IF(VLOOKUP($B71,Formulacion!$A:$BE,MATCH(AF$1,Formulacion!$1:$1,0),FALSE)="NA",1,IF(N71<=CostoTotalMin,0,1)) -> 1 | AG71: =IF(VLOOKUP($B71,Formulacion!$A:$BE,MATCH(AG$1,Formulacion!$1:$1,0),FALSE)="NA",1,IF(S71<PostesMin,0,1)) -> 1 | AH71: =IF(VLOOKUP($B71,Formulacion!$A:$BE,MATCH(AH$1,Formulacion!$1:$1,0),FALSE)="NA",1,IF(T71<INDIRECT(VLOOKUP(B71,Formulacion!$A:$BE,2,FALSE)),0,1)) -> 1 | AI71: 1 | AJ71: 29371.8 | AK71: 1 | AL71: =IF(VLOOKUP($B71,Formulacion!$A:$BE,MATCH(AL$1,Formulacion!$1:$1,0),FALSE)="NA","NA",HLOOKUP(VLOOKUP($B71,Formulacion!$A:$BE,MATCH(AL$1,Formulacion!$1:$1,0),FALSE),$S:$AB,ROW(AL71),FALSE)) -> 149.5249 | AM71: =IF(VLOOKUP($B71,Formulacion!$A:$BE,MATCH(AM$1,Formulacion!$1:$1,0),FALSE)="NA",1,VLOOKUP($B71,Formulacion!$A:$BE,MATCH(AM$1,Formulacion!$1:$1,0),FALSE)) -> 45 | AN71: =IF(VLOOKUP($B71,Formulacion!$A:$BE,MATCH(AN$1,Formulacion!$1:$1,0),FALSE)="NA",1,VLOOKUP($B71,Formulacion!$A:$BE,MATCH(AN$1,Formulacion!$1:$1,0),FALSE)) -> 0.3 | AO71: NC | AP71: =IF(VLOOKUP($B71,Formulacion!$A:$BE,MATCH(AP$1,Formulacion!$1:$1,0),FALSE)="NA","NA",IF(D71=0,"",VLOOKUP($B71,Formulacion!$A:$BE,MATCH(AP$1,Formulacion!$1:$1,0),FALSE))) ->  | AQ71: X | AX71: NA | AY71: =IF(VLOOKUP($B71,Formulacion!$A:$BE,MATCH(AY$1,Formulacion!$1:$1,0),FALSE)="NA","NA",HLOOKUP(VLOOKUP($B71,Formulacion!$A:$BE,MATCH(AY$1,Formulacion!$1:$1,0),FALSE),$S:$AB,ROW(AY71),FALSE)) -> 598.0996 | AZ71: NA | BA71: 1 | BB71: =IF(VLOOKUP($B71,Formulacion!$A:$BE,MATCH(BB$1,Formulacion!$1:$1,0),FALSE)="NA",1,VLOOKUP($B71,Formulacion!$A:$BE,MATCH(BB$1,Formulacion!$1:$1,0),FALSE)) -> 0.9 | BC71: =IF(VLOOKUP($B71,Formulacion!$A:$BE,MATCH(BC$1,Formulacion!$1:$1,0),FALSE)="NA",1,VLOOKUP($B71,Formulacion!$A:$BE,MATCH(BC$1,Formulacion!$1:$1,0),FALSE)) -> 1 | BD71: 26434.62 | BF71: =VLOOKUP(C71,[3]Listado_Proyectos!$A$2:$I$815,9,FALSE) ->  | BG71: 2019-02-28
A72: Proyecto con cuenta ENSA 2024.xls | B72: =[1]Listado_Proyectos!K72 -> DTRMB-13,8 | C72: =[1]Listado_Proyectos!A72 -> 01-06.24.0040 | E72: =[1]Listado_Proyectos!I72 -> 2024-10-21 | F72: =[1]Listado_Proyectos!D72 -> COLON | H72: =[1]Listado_Proyectos!N72 -> 4320.68 | I72: =[1]Listado_Proyectos!M72 -> 2272.32 | K72: =[1]Listado_Proyectos!O72 -> 0 | N72: =[1]Listado_Proyectos!P72 -> 6593 | P72: =[1]Listado_Proyectos!Q72+[1]Listado_Proyectos!R72 -> 0 | Q72: =IFERROR(VLOOKUP(C72,'[2]Postes 2024'!$A:$C,3,FALSE),0) -> 4 | R72: =IFERROR(VLOOKUP(C72,'[2]Líneas 2024'!$A:$C,3,FALSE),0) -> 598.0996 | S72: =IF((VLOOKUP($B72,Formulacion!$A:$BE,MATCH(S$1,Formulacion!$1:$1,0),FALSE)="NA"),"NA",Q72) -> NA | T72: =IF((VLOOKUP($B72,Formulacion!$A:$BE,MATCH(T$1,Formulacion!$1:$1,0),FALSE)="NA"),"NA",R72) -> NA | U72: NA | V72: =IF(OR(VLOOKUP($B72,Formulacion!$A:$BE,MATCH(V$1,Formulacion!$1:$1,0),FALSE)="NA",$D72=0),"NA",IF($B72="DLSBT",MID($D72,ZanjaInicioBT,ZanjaFinBT-ZanjaInicioBT+1)*1,MID($D72,ZanjaInicio,ZanjaFin-ZanjaInicio+1)*1)) -> NA | W72: 1 | X72: =IF(OR(VLOOKUP($B72,Formulacion!$A:$BE,MATCH(X$1,Formulacion!$1:$1,0),FALSE)="NA",$D72=0),"NA",MID($D72,m2Inicio+INDIRECT(B72),m2Fin-m2Inicio+1)*1) -> NA | Y72: =IF(OR(VLOOKUP($B72,Formulacion!$A:$BE,MATCH(Y$1,Formulacion!$1:$1,0),FALSE)="NA",$D72=0),"NA",RIGHT($D72,4)*1) -> NA | Z72: =IF(OR(VLOOKUP($B72,Formulacion!$A:$BE,MATCH(Z$1,Formulacion!$1:$1,0),FALSE)="NA",$D72=0),"NA",RIGHT($D72,3)*1) -> NA | AA72: 1 | AB72: =IF(VLOOKUP($B72,Formulacion!$A:$BE,MATCH(AB$1,Formulacion!$1:$1,0),FALSE)="NA",1,IF(X72<=m2Min,0,1)) -> 1 | AC72: =IF(VLOOKUP($B72,Formulacion!$A:$BE,MATCH(AC$1,Formulacion!$1:$1,0),FALSE)="NA",1,IF(OR(E72<=FechaMin,E72>FechaMax),0,1)) -> 1 | AD72: =IF(VLOOKUP($B72,Formulacion!$A:$BE,MATCH(AD$1,Formulacion!$1:$1,0),FALSE)="NA",1,IF(H72<=MaterialesMin,0,1)) -> 1 | AE72: =IF(VLOOKUP($B72,Formulacion!$A:$BE,MATCH(AE$1,Formulacion!$1:$1,0),FALSE)="NA",1,IF(N72=0,0,IF(OR(I72/N72<=MObraMin,I72/N72>=MObraMax),MDOmin,1))) -> 1 | AF72: =IF(VLOOKUP($B72,Formulacion!$A:$BE,MATCH(AF$1,Formulacion!$1:$1,0),FALSE)="NA",1,IF(N72<=CostoTotalMin,0,1)) -> 1 | AG72: =IF(VLOOKUP($B72,Formulacion!$A:$BE,MATCH(AG$1,Formulacion!$1:$1,0),FALSE)="NA",1,IF(S72<PostesMin,0,1)) -> 1 | AH72: =IF(VLOOKUP($B72,Formulacion!$A:$BE,MATCH(AH$1,Formulacion!$1:$1,0),FALSE)="NA",1,IF(T72<INDIRECT(VLOOKUP(B72,Formulacion!$A:$BE,2,FALSE)),0,1)) -> 1 | AI72: 1 | AJ72: 6593 | AK72: 1 | AL72: =IF(VLOOKUP($B72,Formulacion!$A:$BE,MATCH(AL$1,Formulacion!$1:$1,0),FALSE)="NA","NA",HLOOKUP(VLOOKUP($B72,Formulacion!$A:$BE,MATCH(AL$1,Formulacion!$1:$1,0),FALSE),$S:$AB,ROW(AL72),FALSE)) -> NA | AM72: =IF(VLOOKUP($B72,Formulacion!$A:$BE,MATCH(AM$1,Formulacion!$1:$1,0),FALSE)="NA",1,VLOOKUP($B72,Formulacion!$A:$BE,MATCH(AM$1,Formulacion!$1:$1,0),FALSE)) -> 1 | AN72: =IF(VLOOKUP($B72,Formulacion!$A:$BE,MATCH(AN$1,Formulacion!$1:$1,0),FALSE)="NA",1,VLOOKUP($B72,Formulacion!$A:$BE,MATCH(AN$1,Formulacion!$1:$1,0),FALSE)) -> 1 | AO72: 1 | AP72: =IF(VLOOKUP($B72,Formulacion!$A:$BE,MATCH(AP$1,Formulacion!$1:$1,0),FALSE)="NA","NA",IF(D72=0,"",VLOOKUP($B72,Formulacion!$A:$BE,MATCH(AP$1,Formulacion!$1:$1,0),FALSE))) ->  | AQ72: X | AX72: NA | AY72: =IF(VLOOKUP($B72,Formulacion!$A:$BE,MATCH(AY$1,Formulacion!$1:$1,0),FALSE)="NA","NA",HLOOKUP(VLOOKUP($B72,Formulacion!$A:$BE,MATCH(AY$1,Formulacion!$1:$1,0),FALSE),$S:$AB,ROW(AY72),FALSE)) -> NA | AZ72: NA | BA72: 1 | BB72: =IF(VLOOKUP($B72,Formulacion!$A:$BE,MATCH(BB$1,Formulacion!$1:$1,0),FALSE)="NA",1,VLOOKUP($B72,Formulacion!$A:$BE,MATCH(BB$1,Formulacion!$1:$1,0),FALSE)) -> 0.9 | BC72: =IF(VLOOKUP($B72,Formulacion!$A:$BE,MATCH(BC$1,Formulacion!$1:$1,0),FALSE)="NA",1,VLOOKUP($B72,Formulacion!$A:$BE,MATCH(BC$1,Formulacion!$1:$1,0),FALSE)) -> 1 | BD72: 5933.7 | BF72: =VLOOKUP(C72,[3]Listado_Proyectos!$A$2:$I$815,9,FALSE) ->  | BG72: 2019-02-28
A73: Proyecto con cuenta ENSA 2024.xls | B73: =[1]Listado_Proyectos!K73 -> DACBT | C73: =[1]Listado_Proyectos!A73 -> 01-17.23.0153 | E73: =[1]Listado_Proyectos!I73 -> 2024-05-20 | F73: =[1]Listado_Proyectos!D73 -> COLON | H73: =[1]Listado_Proyectos!N73 -> 8505.29 | I73: =[1]Listado_Proyectos!M73 -> 5960.33 | K73: =[1]Listado_Proyectos!O73 -> 0 | N73: =[1]Listado_Proyectos!P73 -> 14465.62 | P73: =[1]Listado_Proyectos!Q73+[1]Listado_Proyectos!R73 -> 0 | Q73: =IFERROR(VLOOKUP(C73,'[2]Postes 2024'!$A:$C,3,FALSE),0) -> 3 | R73: =IFERROR(VLOOKUP(C73,'[2]Líneas 2024'!$A:$C,3,FALSE),0) -> 0 | S73: =IF((VLOOKUP($B73,Formulacion!$A:$BE,MATCH(S$1,Formulacion!$1:$1,0),FALSE)="NA"),"NA",Q73) -> NA | T73: =IF((VLOOKUP($B73,Formulacion!$A:$BE,MATCH(T$1,Formulacion!$1:$1,0),FALSE)="NA"),"NA",R73) -> NA | U73: NA | V73: =IF(OR(VLOOKUP($B73,Formulacion!$A:$BE,MATCH(V$1,Formulacion!$1:$1,0),FALSE)="NA",$D73=0),"NA",IF($B73="DLSBT",MID($D73,ZanjaInicioBT,ZanjaFinBT-ZanjaInicioBT+1)*1,MID($D73,ZanjaInicio,ZanjaFin-ZanjaInicio+1)*1)) -> NA | W73: 1 | X73: =IF(OR(VLOOKUP($B73,Formulacion!$A:$BE,MATCH(X$1,Formulacion!$1:$1,0),FALSE)="NA",$D73=0),"NA",MID($D73,m2Inicio+INDIRECT(B73),m2Fin-m2Inicio+1)*1) -> NA | Y73: =IF(OR(VLOOKUP($B73,Formulacion!$A:$BE,MATCH(Y$1,Formulacion!$1:$1,0),FALSE)="NA",$D73=0),"NA",RIGHT($D73,4)*1) -> NA | Z73: =IF(OR(VLOOKUP($B73,Formulacion!$A:$BE,MATCH(Z$1,Formulacion!$1:$1,0),FALSE)="NA",$D73=0),"NA",RIGHT($D73,3)*1) -> NA | AA73: 1 | AB73: =IF(VLOOKUP($B73,Formulacion!$A:$BE,MATCH(AB$1,Formulacion!$1:$1,0),FALSE)="NA",1,IF(X73<=m2Min,0,1)) -> 1 | AC73: =IF(VLOOKUP($B73,Formulacion!$A:$BE,MATCH(AC$1,Formulacion!$1:$1,0),FALSE)="NA",1,IF(OR(E73<=FechaMin,E73>FechaMax),0,1)) -> 1 | AD73: =IF(VLOOKUP($B73,Formulacion!$A:$BE,MATCH(AD$1,Formulacion!$1:$1,0),FALSE)="NA",1,IF(H73<=MaterialesMin,0,1)) -> 1 | AE73: =IF(VLOOKUP($B73,Formulacion!$A:$BE,MATCH(AE$1,Formulacion!$1:$1,0),FALSE)="NA",1,IF(N73=0,0,IF(OR(I73/N73<=MObraMin,I73/N73>=MObraMax),MDOmin,1))) -> 1 | AF73: =IF(VLOOKUP($B73,Formulacion!$A:$BE,MATCH(AF$1,Formulacion!$1:$1,0),FALSE)="NA",1,IF(N73<=CostoTotalMin,0,1)) -> 1 | AG73: =IF(VLOOKUP($B73,Formulacion!$A:$BE,MATCH(AG$1,Formulacion!$1:$1,0),FALSE)="NA",1,IF(S73<PostesMin,0,1)) -> 1 | AH73: =IF(VLOOKUP($B73,Formulacion!$A:$BE,MATCH(AH$1,Formulacion!$1:$1,0),FALSE)="NA",1,IF(T73<INDIRECT(VLOOKUP(B73,Formulacion!$A:$BE,2,FALSE)),0,1)) -> 1 | AI73: 1 | AJ73: 14465.62 | AK73: 1 | AL73: =IF(VLOOKUP($B73,Formulacion!$A:$BE,MATCH(AL$1,Formulacion!$1:$1,0),FALSE)="NA","NA",HLOOKUP(VLOOKUP($B73,Formulacion!$A:$BE,MATCH(AL$1,Formulacion!$1:$1,0),FALSE),$S:$AB,ROW(AL73),FALSE)) -> NA | AM73: =IF(VLOOKUP($B73,Formulacion!$A:$BE,MATCH(AM$1,Formulacion!$1:$1,0),FALSE)="NA",1,VLOOKUP($B73,Formulacion!$A:$BE,MATCH(AM$1,Formulacion!$1:$1,0),FALSE)) -> 1 | AN73: =IF(VLOOKUP($B73,Formulacion!$A:$BE,MATCH(AN$1,Formulacion!$1:$1,0),FALSE)="NA",1,VLOOKUP($B73,Formulacion!$A:$BE,MATCH(AN$1,Formulacion!$1:$1,0),FALSE)) -> 1 | AO73: 1 | AP73: =IF(VLOOKUP($B73,Formulacion!$A:$BE,MATCH(AP$1,Formulacion!$1:$1,0),FALSE)="NA","NA",IF(D73=0,"",VLOOKUP($B73,Formulacion!$A:$BE,MATCH(AP$1,Formulacion!$1:$1,0),FALSE))) -> NA | AQ73: X | AX73: NA | AY73: =IF(VLOOKUP($B73,Formulacion!$A:$BE,MATCH(AY$1,Formulacion!$1:$1,0),FALSE)="NA","NA",HLOOKUP(VLOOKUP($B73,Formulacion!$A:$BE,MATCH(AY$1,Formulacion!$1:$1,0),FALSE),$S:$AB,ROW(AY73),FALSE)) -> NA | AZ73: NA | BA73: 1 | BB73: =IF(VLOOKUP($B73,Formulacion!$A:$BE,MATCH(BB$1,Formulacion!$1:$1,0),FALSE)="NA",1,VLOOKUP($B73,Formulacion!$A:$BE,MATCH(BB$1,Formulacion!$1:$1,0),FALSE)) -> 0.9 | BC73: =IF(VLOOKUP($B73,Formulacion!$A:$BE,MATCH(BC$1,Formulacion!$1:$1,0),FALSE)="NA",1,VLOOKUP($B73,Formulacion!$A:$BE,MATCH(BC$1,Formulacion!$1:$1,0),FALSE)) -> 1 | BD73: 13019.058 | BF73: =VLOOKUP(C73,[3]Listado_Proyectos!$A$2:$I$815,9,FALSE) ->  | BG73: 2019-02-28
A74: Proyecto con cuenta ENSA 2024.xls | B74: =[1]Listado_Proyectos!K74 -> DEQDM | C74: =[1]Listado_Proyectos!A74 -> 01-17.23.0153 | E74: =[1]Listado_Proyectos!I74 -> 2024-05-20 | F74: =[1]Listado_Proyectos!D74 -> COLON | H74: =[1]Listado_Proyectos!N74 -> 1234.24 | I74: =[1]Listado_Proyectos!M74 -> 2026.86 | K74: =[1]Listado_Proyectos!O74 -> 0 | N74: =[1]Listado_Proyectos!P74 -> 3261.1 | P74: =[1]Listado_Proyectos!Q74+[1]Listado_Proyectos!R74 -> 0 | Q74: =IFERROR(VLOOKUP(C74,'[2]Postes 2024'!$A:$C,3,FALSE),0) -> 3 | R74: =IFERROR(VLOOKUP(C74,'[2]Líneas 2024'!$A:$C,3,FALSE),0) -> 0 | S74: =IF((VLOOKUP($B74,Formulacion!$A:$BE,MATCH(S$1,Formulacion!$1:$1,0),FALSE)="NA"),"NA",Q74) -> NA | T74: =IF((VLOOKUP($B74,Formulacion!$A:$BE,MATCH(T$1,Formulacion!$1:$1,0),FALSE)="NA"),"NA",R74) -> NA | U74: NA | V74: =IF(OR(VLOOKUP($B74,Formulacion!$A:$BE,MATCH(V$1,Formulacion!$1:$1,0),FALSE)="NA",$D74=0),"NA",IF($B74="DLSBT",MID($D74,ZanjaInicioBT,ZanjaFinBT-ZanjaInicioBT+1)*1,MID($D74,ZanjaInicio,ZanjaFin-ZanjaInicio+1)*1)) -> NA | W74: 1 | X74: =IF(OR(VLOOKUP($B74,Formulacion!$A:$BE,MATCH(X$1,Formulacion!$1:$1,0),FALSE)="NA",$D74=0),"NA",MID($D74,m2Inicio+INDIRECT(B74),m2Fin-m2Inicio+1)*1) -> NA | Y74: =IF(OR(VLOOKUP($B74,Formulacion!$A:$BE,MATCH(Y$1,Formulacion!$1:$1,0),FALSE)="NA",$D74=0),"NA",RIGHT($D74,4)*1) -> NA | Z74: =IF(OR(VLOOKUP($B74,Formulacion!$A:$BE,MATCH(Z$1,Formulacion!$1:$1,0),FALSE)="NA",$D74=0),"NA",RIGHT($D74,3)*1) -> NA | AA74: 1 | AB74: =IF(VLOOKUP($B74,Formulacion!$A:$BE,MATCH(AB$1,Formulacion!$1:$1,0),FALSE)="NA",1,IF(X74<=m2Min,0,1)) -> 1 | AC74: =IF(VLOOKUP($B74,Formulacion!$A:$BE,MATCH(AC$1,Formulacion!$1:$1,0),FALSE)="NA",1,IF(OR(E74<=FechaMin,E74>FechaMax),0,1)) -> 1 | AD74: =IF(VLOOKUP($B74,Formulacion!$A:$BE,MATCH(AD$1,Formulacion!$1:$1,0),FALSE)="NA",1,IF(H74<=MaterialesMin,0,1)) -> 1 | AE74: =IF(VLOOKUP($B74,Formulacion!$A:$BE,MATCH(AE$1,Formulacion!$1:$1,0),FALSE)="NA",1,IF(N74=0,0,IF(OR(I74/N74<=MObraMin,I74/N74>=MObraMax),MDOmin,1))) -> 1 | AF74: =IF(VLOOKUP($B74,Formulacion!$A:$BE,MATCH(AF$1,Formulacion!$1:$1,0),FALSE)="NA",1,IF(N74<=CostoTotalMin,0,1)) -> 1 | AG74: =IF(VLOOKUP($B74,Formulacion!$A:$BE,MATCH(AG$1,Formulacion!$1:$1,0),FALSE)="NA",1,IF(S74<PostesMin,0,1)) -> 1 | AH74: =IF(VLOOKUP($B74,Formulacion!$A:$BE,MATCH(AH$1,Formulacion!$1:$1,0),FALSE)="NA",1,IF(T74<INDIRECT(VLOOKUP(B74,Formulacion!$A:$BE,2,FALSE)),0,1)) -> 1 | AI74: 1 | AJ74: 3261.1 | AK74: 1 | AL74: =IF(VLOOKUP($B74,Formulacion!$A:$BE,MATCH(AL$1,Formulacion!$1:$1,0),FALSE)="NA","NA",HLOOKUP(VLOOKUP($B74,Formulacion!$A:$BE,MATCH(AL$1,Formulacion!$1:$1,0),FALSE),$S:$AB,ROW(AL74),FALSE)) -> NA | AM74: =IF(VLOOKUP($B74,Formulacion!$A:$BE,MATCH(AM$1,Formulacion!$1:$1,0),FALSE)="NA",1,VLOOKUP($B74,Formulacion!$A:$BE,MATCH(AM$1,Formulacion!$1:$1,0),FALSE)) -> 1 | AN74: =IF(VLOOKUP($B74,Formulacion!$A:$BE,MATCH(AN$1,Formulacion!$1:$1,0),FALSE)="NA",1,VLOOKUP($B74,Formulacion!$A:$BE,MATCH(AN$1,Formulacion!$1:$1,0),FALSE)) -> 1 | AO74: 1 | AP74: =IF(VLOOKUP($B74,Formulacion!$A:$BE,MATCH(AP$1,Formulacion!$1:$1,0),FALSE)="NA","NA",IF(D74=0,"",VLOOKUP($B74,Formulacion!$A:$BE,MATCH(AP$1,Formulacion!$1:$1,0),FALSE))) -> NA | AQ74: X | AX74: NA | AY74: =IF(VLOOKUP($B74,Formulacion!$A:$BE,MATCH(AY$1,Formulacion!$1:$1,0),FALSE)="NA","NA",HLOOKUP(VLOOKUP($B74,Formulacion!$A:$BE,MATCH(AY$1,Formulacion!$1:$1,0),FALSE),$S:$AB,ROW(AY74),FALSE)) -> NA | AZ74: NA | BA74: 1 | BB74: =IF(VLOOKUP($B74,Formulacion!$A:$BE,MATCH(BB$1,Formulacion!$1:$1,0),FALSE)="NA",1,VLOOKUP($B74,Formulacion!$A:$BE,MATCH(BB$1,Formulacion!$1:$1,0),FALSE)) -> 0.9 | BC74: =IF(VLOOKUP($B74,Formulacion!$A:$BE,MATCH(BC$1,Formulacion!$1:$1,0),FALSE)="NA",1,VLOOKUP($B74,Formulacion!$A:$BE,MATCH(BC$1,Formulacion!$1:$1,0),FALSE)) -> 1 | BD74: 2934.99 | BF74: =VLOOKUP(C74,[3]Listado_Proyectos!$A$2:$I$815,9,FALSE) ->  | BG74: 2019-02-28
A75: Proyecto con cuenta ENSA 2024.xls | B75: =[1]Listado_Proyectos!K75 -> DLAMT-13,8 | C75: =[1]Listado_Proyectos!A75 -> 01-17.23.0153 | E75: =[1]Listado_Proyectos!I75 -> 2024-05-20 | F75: =[1]Listado_Proyectos!D75 -> COLON | H75: =[1]Listado_Proyectos!N75 -> 3617.86 | I75: =[1]Listado_Proyectos!M75 -> 8438.83 | K75: =[1]Listado_Proyectos!O75 -> 0 | N75: =[1]Listado_Proyectos!P75 -> 12056.69 | P75: =[1]Listado_Proyectos!Q75+[1]Listado_Proyectos!R75 -> 0 | Q75: =IFERROR(VLOOKUP(C75,'[2]Postes 2024'!$A:$C,3,FALSE),0) -> 3 | R75: =IFERROR(VLOOKUP(C75,'[2]Líneas 2024'!$A:$C,3,FALSE),0) -> 0 | S75: =IF((VLOOKUP($B75,Formulacion!$A:$BE,MATCH(S$1,Formulacion!$1:$1,0),FALSE)="NA"),"NA",Q75) -> 3 | T75: =IF((VLOOKUP($B75,Formulacion!$A:$BE,MATCH(T$1,Formulacion!$1:$1,0),FALSE)="NA"),"NA",R75) -> 0 | U75: 0 | V75: =IF(OR(VLOOKUP($B75,Formulacion!$A:$BE,MATCH(V$1,Formulacion!$1:$1,0),FALSE)="NA",$D75=0),"NA",IF($B75="DLSBT",MID($D75,ZanjaInicioBT,ZanjaFinBT-ZanjaInicioBT+1)*1,MID($D75,ZanjaInicio,ZanjaFin-ZanjaInicio+1)*1)) -> NA | W75: 1 | X75: =IF(OR(VLOOKUP($B75,Formulacion!$A:$BE,MATCH(X$1,Formulacion!$1:$1,0),FALSE)="NA",$D75=0),"NA",MID($D75,m2Inicio+INDIRECT(B75),m2Fin-m2Inicio+1)*1) -> NA | Y75: =IF(OR(VLOOKUP($B75,Formulacion!$A:$BE,MATCH(Y$1,Formulacion!$1:$1,0),FALSE)="NA",$D75=0),"NA",RIGHT($D75,4)*1) -> NA | Z75: =IF(OR(VLOOKUP($B75,Formulacion!$A:$BE,MATCH(Z$1,Formulacion!$1:$1,0),FALSE)="NA",$D75=0),"NA",RIGHT($D75,3)*1) -> NA | AA75: 1 | AB75: =IF(VLOOKUP($B75,Formulacion!$A:$BE,MATCH(AB$1,Formulacion!$1:$1,0),FALSE)="NA",1,IF(X75<=m2Min,0,1)) -> 1 | AC75: =IF(VLOOKUP($B75,Formulacion!$A:$BE,MATCH(AC$1,Formulacion!$1:$1,0),FALSE)="NA",1,IF(OR(E75<=FechaMin,E75>FechaMax),0,1)) -> 1 | AD75: =IF(VLOOKUP($B75,Formulacion!$A:$BE,MATCH(AD$1,Formulacion!$1:$1,0),FALSE)="NA",1,IF(H75<=MaterialesMin,0,1)) -> 1 | AE75: =IF(VLOOKUP($B75,Formulacion!$A:$BE,MATCH(AE$1,Formulacion!$1:$1,0),FALSE)="NA",1,IF(N75=0,0,IF(OR(I75/N75<=MObraMin,I75/N75>=MObraMax),MDOmin,1))) -> 1 | AF75: =IF(VLOOKUP($B75,Formulacion!$A:$BE,MATCH(AF$1,Formulacion!$1:$1,0),FALSE)="NA",1,IF(N75<=CostoTotalMin,0,1)) -> 1 | AG75: =IF(VLOOKUP($B75,Formulacion!$A:$BE,MATCH(AG$1,Formulacion!$1:$1,0),FALSE)="NA",1,IF(S75<PostesMin,0,1)) -> 1 | AH75: =IF(VLOOKUP($B75,Formulacion!$A:$BE,MATCH(AH$1,Formulacion!$1:$1,0),FALSE)="NA",1,IF(T75<INDIRECT(VLOOKUP(B75,Formulacion!$A:$BE,2,FALSE)),0,1)) -> 0 | AI75: 1 | AJ75: 12056.69 | AK75: 1 | AL75: =IF(VLOOKUP($B75,Formulacion!$A:$BE,MATCH(AL$1,Formulacion!$1:$1,0),FALSE)="NA","NA",HLOOKUP(VLOOKUP($B75,Formulacion!$A:$BE,MATCH(AL$1,Formulacion!$1:$1,0),FALSE),$S:$AB,ROW(AL75),FALSE)) -> 0 | AM75: =IF(VLOOKUP($B75,Formulacion!$A:$BE,MATCH(AM$1,Formulacion!$1:$1,0),FALSE)="NA",1,VLOOKUP($B75,Formulacion!$A:$BE,MATCH(AM$1,Formulacion!$1:$1,0),FALSE)) -> 45 | AN75: =IF(VLOOKUP($B75,Formulacion!$A:$BE,MATCH(AN$1,Formulacion!$1:$1,0),FALSE)="NA",1,VLOOKUP($B75,Formulacion!$A:$BE,MATCH(AN$1,Formulacion!$1:$1,0),FALSE)) -> 0.3 | AO75: CU | AP75: =IF(VLOOKUP($B75,Formulacion!$A:$BE,MATCH(AP$1,Formulacion!$1:$1,0),FALSE)="NA","NA",IF(D75=0,"",VLOOKUP($B75,Formulacion!$A:$BE,MATCH(AP$1,Formulacion!$1:$1,0),FALSE))) ->  | AQ75: X | AX75: NA | AY75: =IF(VLOOKUP($B75,Formulacion!$A:$BE,MATCH(AY$1,Formulacion!$1:$1,0),FALSE)="NA","NA",HLOOKUP(VLOOKUP($B75,Formulacion!$A:$BE,MATCH(AY$1,Formulacion!$1:$1,0),FALSE),$S:$AB,ROW(AY75),FALSE)) -> 0 | AZ75: NA | BA75: 1 | BB75: =IF(VLOOKUP($B75,Formulacion!$A:$BE,MATCH(BB$1,Formulacion!$1:$1,0),FALSE)="NA",1,VLOOKUP($B75,Formulacion!$A:$BE,MATCH(BB$1,Formulacion!$1:$1,0),FALSE)) -> 0.9 | BC75: =IF(VLOOKUP($B75,Formulacion!$A:$BE,MATCH(BC$1,Formulacion!$1:$1,0),FALSE)="NA",1,VLOOKUP($B75,Formulacion!$A:$BE,MATCH(BC$1,Formulacion!$1:$1,0),FALSE)) -> 1 | BD75: 10851.021 | BF75: =VLOOKUP(C75,[3]Listado_Proyectos!$A$2:$I$815,9,FALSE) ->  | BG75: 2019-02-28
